Workbook

Sheet Sheet1

Sheet instructions (hidden)
B2: Instructions
B4: This calculator allows users to conduct analysis similar to that presented in the Federal Reserve Bank of Minneapolis Economic Policy Paper (13-3), “Quantifying the Costs of Additional Regulation on Community Banks,” by Ron Feldman, Ken Heinecke and Jason Schmidt. Please review that paper for additional details on the analysis allowed by this calculator.
B6: The underlying data in the calculator come from the quarterly statements of condition and income that commercial banks are required to file with federal regulators (known as “Call Reports”). This calculator contains data on “community” banks, which are defined to have assets less than $1 billion. The data are for the years 2001 to 2013.
B8: In the calculator, the user can specify four input parameters:
B10: 1. Bank asset size cutoffs. To determine how potential regulatory costs might vary across sizes of banks, create groupings of banks based on the asset size of the bank. Create these groups by specifying “asset size cutoffs.” These cutoffs set the asset size of banks to be included in a given group. Specify up to five different asset size cutoffs. For example, to create groupings that include banks with less than $50 million in assets, banks with assets between $50 million and $100 million, banks with assets between $100 million and $250 million, banks with assets between $250 million and $500 million and banks with assets greater than $500 million, the asset cutoffs would be 50, 100, 250 and 500. That is, enter the maximum amount of assets for each cohort in millions of dollars (i.e., 50 = 50 million).
B12: 2. Number of full-time equivalent employees (FTEs). This calculator quantifies the potential costs of additional regulation on banks by assuming that the costs manifest themselves as additional hiring of staff. The additional staff are measured as FTEs. Enter the number of FTEs hired by each grouping of banks (note: decimals are allowed, i.e., enter 1.5 for one-and-a-half FTEs). Leave input boxes blank to perform the analysis on fewer than five cohorts.
B14: 3. Compensation of FTEs. Specify the compensation of the additional FTEs in order to allow for the quantification of the potential regulatory costs. Also specify compensation for hires at rural and urban banks. Enter the amounts in thousands of dollars (i.e., 70 = 70,000). Also note that the costs are measured in constant 2013 dollars and are adjusted dynamically to account for inflation in earlier years.
B16: 4. Year on which the analysis is performed. Select any year from 2001 to 2013 to perform the regulatory cost quantification. For example, to measure the impact of the regulatory change on bank data from 2005, enter “2005.”
B18: Once the parameters have been specified, press the “perform calculations” button to see the results of the change.

Sheet cpi inflation (hidden)
A1: Series ID: CPIAUCSL | J1: DATE | K1: VALUE | L1: year | M1: cpi adj (2013=100)
A2: Source: U.S. Department of Labor: Bureau of Labor Statistics | J2: 2000-12-01 | K2: 174.6 | L2: =YEAR(J2) -> 2000 | M2: =K2/K$15 -> 0.7442645592
A3: Release: Consumer Price Index | J3: 2001-12-01 | K3: 177.4 | L3: =YEAR(J3) -> 2001 | M3: =K3/K$15 -> 0.7562000733
A4: Seasonal Adjustment: Seasonally Adjusted | J4: 2002-12-01 | K4: 181.8 | L4: 2002 | M4: 0.7749558812
A5: Frequency: Monthly | J5: 2003-12-01 | K5: 185.5 | L5: 2003 | M5: 0.7907278106
A6: Units: Index 1982-84=100 | J6: 2004-12-01 | K6: 191.7 | L6: 2004 | M6: 0.817156449
A7: Date Range: 1947-01-01 to 2012-10-01 | J7: 2005-12-01 | K7: 198.1 | L7: 2005 | M7: 0.8444376242
A8: Last Updated: 2012-11-15 9:53 AM CST | J8: 2006-12-01 | K8: 203.1 | L8: 2006 | M8: 0.8657510422
A9: Notes: Handbook of Methods - (http://www.bls.gov/opub/hom/pdf/homch17.pdf) | J9: 2007-12-01 | K9: 211.445 | L9: 2007 | M9: 0.901323137
A10: Understanding the CPI: Frequently Asked Questions - | J10: 2008-12-01 | K10: 211.398 | L10: 2008 | M10: 0.9011227909
A11: (http://stats.bls.gov:80/cpi/cpifaq.htm) | J11: 2009-12-01 | K11: 217.347 | L11: 2009 | M11: 0.9264814957
J12: 2010-12-01 | K12: 220.437 | L12: 2010 | M12: 0.9396531881
J13: 2011-12-01 | K13: 227.093 | L13: 2011 | M13: 0.9680256102
J14: 2012-12-01 | K14: 231.099 | L14: 2012 | M14: 0.9851019208
J15: 2013-12-01 | K15: 234.594 | L15: 2013 | M15: 1

Sheet summary (hidden)
E1: 1
I2: cohort | J2: addl hires
B3: rural | C3: =E1*E3 -> 100 | E3: 100 | H3: Size 1 | I3: 50 | J3: 1
B4: urban | C4: =E1*E4 -> 150 | E4: 150 | H4: Size 2 | I4: 100 | J4: 1
H5: Size 3 | I5: 250 | J5: 2
H6: Size 4 | I6: 1000 | J6: 2
H7: Size 5 | I7: 1500 | J7: 3
H8: Size 6 | J8: 0

Sheet 2013 data (hidden)
A1: id.rssd | B1: msa.cd | C1: nt.inc | D1: assets | E1: int.exp | F1: nonint.exp | G1: prov.exp | H1: equity | I1: fte | J1: roa | K1: asset.cohort | L1: addl reg exp | M1: new.roa | N1: delta | O1: newly unprof | P1: roe | Q1: new.roe | R1: delta | T1: 2013
A2: 37 | B2: 0 | C2: 807 | D2: 84878 | E2: 686 | F2: 2410 | G2: 165 | H2: 17273 | I2: 25 | J2: =C2/D2 -> 0.009507764085 | K2: =IF(D2/1000<INDEX(sizeV,1),1,IF(D2/1000<INDEX(sizeV,2),2,IF(D2/1000<INDEX(sizeV,3),3,IF(D2/1000<INDEX(sizeV,4),4,IF(D2/1000<INDEX(sizeV,5),5,6))))) -> 2 | L2: =IF(B2=0,salRural*T$2,salUrban*T$2)*INDEX(nHires,K2) -> 100 | M2: =(C2-L2)/D2 -> 0.008329602488 | N2: =M2-J2 -> -0.001178161597 | O2: x | P2: x | Q2: x | R2: x | T2: =VLOOKUP(T1,cpiAdj,2,FALSE) -> 1 | W2: Asset | AC2: Change in ROA | AM2: Number
A3: 242 | B3: 0 | C3: 541 | D3: 38994 | E3: 200 | F3: 958 | G3: 25 | H3: 4563 | I3: 12 | J3: 0.01387392932 | K3: 1 | L3: 100 | M3: 0.01130943222 | N3: -0.002564497102 | O3: x | P3: x | Q3: x | R3: x | V3: Size | W3: Size Max | X3: Addl | Y3: # of | AA3: Median | AB3: x | AC3: 25th pctile | AD3: 50th pctile | AE3: 75th pctile | AF3: Avg | AG3: Original | AH3: Newly | AJ3: Original | AK3: After Change | AM3: of firms
A4: 354 | B4: 0 | C4: 13 | D4: 9707 | E4: 23 | F4: 350 | G4: 0 | H4: 720 | I4: 4 | J4: 0.001339239724 | K4: 1 | L4: 100 | M4: -0.008962604306 | N4: -0.01030184403 | O4: x | P4: x | Q4: x | R4: x | V4: Quintile | W4: ($MM) | X4: Hires | Y4: Banks | Z4: % | AA4: FTEs | AB4: x | AC4: (bps) | AD4: (bps) | AE4: (bps) | AF4: (bps) | AG4: Unprof | AH4: Unprof | AI4: Difference | AJ4: ROA < 40 | AK4: ROA < 40 | AL4: Difference | AM4: in the cohort
A5: 457 | B5: 0 | C5: 771 | D5: 41786 | E5: 290 | F5: 1083 | G5: 138 | H5: 4010 | I5: 10 | J5: 0.01845115589 | K5: 1 | L5: 100 | M5: 0.01605800986 | N5: -0.00239314603 | O5: x | P5: x | Q5: x | R5: x | V5: 1 | W5: x | X5: x | Y5: x | Z5: x | AA5: x | AB5: x | AC5: =PERCENTILE(IF($K$2:$K$7000=$V5,$N$2:$N$7000),0.25)*10000 -> -45.88787999 | AD5: =PERCENTILE(IF($K$2:$K$7000=$V5,$N$2:$N$7000),0.5)*10000 -> -33.79700144 | AE5: =PERCENTILE(IF($K$2:$K$7000=$V5,$N$2:$N$7000),0.75)*10000 -> -25.01594909 | AF5: =AVERAGE(IF($K$2:$K$7000=$V5,$N$2:$N$7000))*10000 -> -41.95148806 | AG5: =SUM(IF($K$2:$K$7000=$V5,IF($J$2:$J$7000<0,1,0))) -> 94 | AH5: =SUM(IF($K$2:$K$7000=$V5,IF($M$2:$M$7000<0,1,0))) -> 252 | AI5: =IF(INDEX(sizeV,V5)>0,AH5-AG5) -> 158 | AJ5: =SUM(IF($K$2:$K$7000=$V5,IF($J$2:$J$7000<0.004,1,0))) -> 255 | AK5: =SUM(IF($K$2:$K$7000=$V5,IF($M$2:$M$7000<0.004,1,0))) -> 430 | AL5: =IF(INDEX(sizeV,V5)>0,AK5-AJ5) -> 175 | AM5: =COUNTIF($K$2:$K$7000,$V5) -> 706
A6: 505 | B6: 10580 | C6: 2761 | D6: 406809 | E6: 1844 | F6: 11759 | G6: 120 | H6: 33997 | I6: 106 | J6: 0.006786968823 | K6: 4 | L6: 300 | M6: 0.006049522012 | N6: -0.0007374468116 | O6: x | P6: x | Q6: x | R6: x | V6: 2 | W6: x | X6: x | Y6: x | Z6: x | AA6: x | AB6: x | AC6: =PERCENTILE(IF($K$2:$K$7000=$V6,$N$2:$N$7000),0.25)*10000 -> -19.32554199 | AD6: =PERCENTILE(IF($K$2:$K$7000=$V6,$N$2:$N$7000),0.5)*10000 -> -16.24312713 | AE6: =PERCENTILE(IF($K$2:$K$7000=$V6,$N$2:$N$7000),0.75)*10000 -> -13.02279833 | AF6: =AVERAGE(IF($K$2:$K$7000=$V6,$N$2:$N$7000))*10000 -> -16.79909852 | AG6: =SUM(IF($K$2:$K$7000=$V6,IF($J$2:$J$7000<0,1,0))) -> 112 | AH6: =SUM(IF($K$2:$K$7000=$V6,IF($M$2:$M$7000<0,1,0))) -> 162 | AI6: =IF(INDEX(sizeV,V6)>0,AH6-AG6) -> 50 | AJ6: =SUM(IF($K$2:$K$7000=$V6,IF($J$2:$J$7000<0.004,1,0))) -> 279 | AK6: =SUM(IF($K$2:$K$7000=$V6,IF($M$2:$M$7000<0.004,1,0))) -> 388 | AL6: =IF(INDEX(sizeV,V6)>0,AK6-AJ6) -> 109 | AM6: =COUNTIF($K$2:$K$7000,$V6) -> 1098
A7: 1155 | B7: 0 | C7: 2584 | D7: 211822 | E7: 1007 | F7: 5738 | G7: 2 | H7: 18041 | I7: 55 | J7: 0.01219892174 | K7: 3 | L7: 200 | M7: 0.01125473275 | N7: -0.0009441889889 | O7: x | P7: x | Q7: x | R7: x | V7: 3 | W7: x | X7: x | Y7: x | Z7: x | AA7: x | AB7: x | AC7: =PERCENTILE(IF($K$2:$K$7000=$V7,$N$2:$N$7000),0.25)*10000 -> -19.27840966 | AD7: =PERCENTILE(IF($K$2:$K$7000=$V7,$N$2:$N$7000),0.5)*10000 -> -15.67373552 | AE7: =PERCENTILE(IF($K$2:$K$7000=$V7,$N$2:$N$7000),0.75)*10000 -> -12.65911302 | AF7: =AVERAGE(IF($K$2:$K$7000=$V7,$N$2:$N$7000))*10000 -> -16.44662546 | AG7: =SUM(IF($K$2:$K$7000=$V7,IF($J$2:$J$7000<0,1,0))) -> 113 | AH7: =SUM(IF($K$2:$K$7000=$V7,IF($M$2:$M$7000<0,1,0))) -> 192 | AI7: =IF(INDEX(sizeV,V7)>0,AH7-AG7) -> 79 | AJ7: =SUM(IF($K$2:$K$7000=$V7,IF($J$2:$J$7000<0.004,1,0))) -> 347 | AK7: =SUM(IF($K$2:$K$7000=$V7,IF($M$2:$M$7000<0.004,1,0))) -> 540 | AL7: =IF(INDEX(sizeV,V7)>0,AK7-AJ7) -> 193 | AM7: =COUNTIF($K$2:$K$7000,$V7) -> 1947
A8: 1351 | B8: 0 | C8: 3179 | D8: 161500 | E8: 1459 | F8: 2825 | G8: 239 | H8: 21724 | I8: 30 | J8: 0.01968421053 | K8: 3 | L8: 200 | M8: 0.01844582043 | N8: -0.001238390093 | O8: x | P8: x | Q8: x | R8: x | V8: 4 | W8: x | X8: x | Y8: x | Z8: x | AA8: x | AB8: x | AC8: =PERCENTILE(IF($K$2:$K$7000=$V8,$N$2:$N$7000),0.25)*10000 -> -7.925741107 | AD8: =PERCENTILE(IF($K$2:$K$7000=$V8,$N$2:$N$7000),0.5)*10000 -> -6.170363743 | AE8: =PERCENTILE(IF($K$2:$K$7000=$V8,$N$2:$N$7000),0.75)*10000 -> -4.413677384 | AF8: =AVERAGE(IF($K$2:$K$7000=$V8,$N$2:$N$7000))*10000 -> -6.416468807 | AG8: =SUM(IF($K$2:$K$7000=$V8,IF($J$2:$J$7000<0,1,0))) -> 74 | AH8: =SUM(IF($K$2:$K$7000=$V8,IF($M$2:$M$7000<0,1,0))) -> 89 | AI8: =IF(INDEX(sizeV,V8)>0,AH8-AG8) -> 15 | AJ8: =SUM(IF($K$2:$K$7000=$V8,IF($J$2:$J$7000<0.004,1,0))) -> 221 | AK8: =SUM(IF($K$2:$K$7000=$V8,IF($M$2:$M$7000<0.004,1,0))) -> 274 | AL8: =IF(INDEX(sizeV,V8)>0,AK8-AJ8) -> 53 | AM8: =COUNTIF($K$2:$K$7000,$V8) -> 1559
A9: 1454 | B9: 16220 | C9: 9796 | D9: 650112 | E9: 992 | F9: 16345 | G9: 220 | H9: 52250 | I9: 143 | J9: 0.01506817287 | K9: 4 | L9: 300 | M9: 0.01460671392 | N9: -0.0004614589486 | O9: x | P9: x | Q9: x | R9: x | V9: 5 | W9: x | X9: x | Y9: x | Z9: x | AA9: x | AB9: x | AC9: =PERCENTILE(IF($K$2:$K$7000=$V9,$N$2:$N$7000),0.25)*10000 ->  | AD9: =PERCENTILE(IF($K$2:$K$7000=$V9,$N$2:$N$7000),0.5)*10000 ->  | AE9: =PERCENTILE(IF($K$2:$K$7000=$V9,$N$2:$N$7000),0.75)*10000 ->  | AF9: =AVERAGE(IF($K$2:$K$7000=$V9,$N$2:$N$7000))*10000 ->  | AG9: =SUM(IF($K$2:$K$7000=$V9,IF($J$2:$J$7000<0,1,0))) -> 0 | AH9: =SUM(IF($K$2:$K$7000=$V9,IF($M$2:$M$7000<0,1,0))) -> 0 | AI9: =IF(INDEX(sizeV,V9)>0,AH9-AG9) -> 0 | AJ9: =SUM(IF($K$2:$K$7000=$V9,IF($J$2:$J$7000<0.004,1,0))) -> 0 | AK9: =SUM(IF($K$2:$K$7000=$V9,IF($M$2:$M$7000<0.004,1,0))) -> 0 | AL9: =IF(INDEX(sizeV,V9)>0,AK9-AJ9) -> 0 | AM9: =COUNTIF($K$2:$K$7000,$V9) -> 0
A10: 1557 | B10: 0 | C10: 598 | D10: 78477 | E10: 120 | F10: 1026 | G10: 208 | H10: 9183 | I10: 13 | J10: 0.007620067026 | K10: 2 | L10: 100 | M10: 0.006345808326 | N10: -0.0012742587 | O10: x | P10: x | Q10: x | R10: x
A11: 1669 | B11: 0 | C11: 2459 | D11: 246241 | E11: 654 | F11: 5367 | G11: 187 | H11: 43952 | I11: 50 | J11: 0.009986151778 | K11: 3 | L11: 200 | M11: 0.009173939352 | N11: -0.000812212426 | O11: x | P11: x | Q11: x | R11: x
A12: 1829 | B12: 38300 | C12: 2255 | D12: 392082 | E12: 2518 | F12: 12092 | G12: 425 | H12: 43006 | I12: 96 | J12: 0.005751347932 | K12: 4 | L12: 300 | M12: 0.004986201866 | N12: -0.0007651460664 | O12: x | P12: x | Q12: x | R12: x | W12: Percentiles of ROA (before)
A13: 1856 | B13: 0 | C13: 821 | D13: 124374 | E13: 2850 | F13: 1307 | G13: 230 | H13: 13373 | I13: 9 | J13: 0.006601058099 | K13: 3 | L13: 200 | M13: 0.004993004969 | N13: -0.00160805313 | O13: x | P13: x | Q13: x | R13: x | V13: Cohort | W13: 25 | X13: 50 | Y13: 75
A14: 2040 | B14: 0 | C14: 1114 | D14: 203846 | E14: 1472 | F14: 5132 | G14: 282 | H14: 19369 | I14: 47 | J14: 0.005464909785 | K14: 3 | L14: 200 | M14: 0.004483776969 | N14: -0.0009811328159 | O14: x | P14: x | Q14: x | R14: x | V14: 1 | W14: =PERCENTILE(IF($K$2:$K$7000=$V14,$J$2:$J$7000),W$13/100) -> 0.002356256075 | X14: =PERCENTILE(IF($K$2:$K$7000=$V14,$J$2:$J$7000),X$13/100) -> 0.005707827958 | Y14: =PERCENTILE(IF($K$2:$K$7000=$V14,$J$2:$J$7000),Y$13/100) -> 0.009903391314
A15: 2161 | B15: 0 | C15: 1957 | D15: 122893 | E15: 381 | F15: 3614 | G15: 175 | H15: 14042 | I15: 33 | J15: 0.01592442206 | K15: 3 | L15: 200 | M15: 0.01429699006 | N15: -0.001627431994 | O15: x | P15: x | Q15: x | R15: x | V15: 2 | W15: =PERCENTILE(IF($K$2:$K$7000=$V15,$J$2:$J$7000),W$13/100) -> 0.003956620362 | X15: =PERCENTILE(IF($K$2:$K$7000=$V15,$J$2:$J$7000),X$13/100) -> 0.007593521464 | Y15: =PERCENTILE(IF($K$2:$K$7000=$V15,$J$2:$J$7000),Y$13/100) -> 0.01152584852
A16: 2554 | B16: 0 | C16: 159 | D16: 14120 | E16: 55 | F16: 301 | G16: 8 | H16: 1274 | I16: 4 | J16: 0.01126062323 | K16: 1 | L16: 100 | M16: 0.004178470255 | N16: -0.007082152975 | O16: x | P16: x | Q16: x | R16: x | V16: 3 | W16: =PERCENTILE(IF($K$2:$K$7000=$V16,$J$2:$J$7000),W$13/100) -> 0.005320445331 | X16: =PERCENTILE(IF($K$2:$K$7000=$V16,$J$2:$J$7000),X$13/100) -> 0.008754434311 | Y16: =PERCENTILE(IF($K$2:$K$7000=$V16,$J$2:$J$7000),Y$13/100) -> 0.01232491832
A17: 2732 | B17: 16974 | C17: 2503 | D17: 527426 | E17: 861 | F17: 11248 | G17: 1000 | H17: 80327 | I17: 90 | J17: 0.004745689443 | K17: 4 | L17: 300 | M17: 0.00417688927 | N17: -0.0005688001729 | O17: x | P17: x | Q17: x | R17: x | V17: 4 | W17: =PERCENTILE(IF($K$2:$K$7000=$V17,$J$2:$J$7000),W$13/100) -> 0.005889502434 | X17: =PERCENTILE(IF($K$2:$K$7000=$V17,$J$2:$J$7000),X$13/100) -> 0.008820617616 | Y17: =PERCENTILE(IF($K$2:$K$7000=$V17,$J$2:$J$7000),Y$13/100) -> 0.01245569914
A18: 2750 | B18: 0 | C18: 617 | D18: 58741 | E18: 534 | F18: 1455 | G18: -30 | H18: 5290 | I18: 10 | J18: 0.01050373674 | K18: 2 | L18: 100 | M18: 0.008801348292 | N18: -0.001702388451 | O18: x | P18: x | Q18: x | R18: x | V18: 5 | W18: =PERCENTILE(IF($K$2:$K$7000=$V18,$J$2:$J$7000),W$13/100) ->  | X18: =PERCENTILE(IF($K$2:$K$7000=$V18,$J$2:$J$7000),X$13/100) ->  | Y18: =PERCENTILE(IF($K$2:$K$7000=$V18,$J$2:$J$7000),Y$13/100) -> 
A19: 3252 | B19: 0 | C19: 2439 | D19: 163605 | E19: 735 | F19: 3585 | G19: 850 | H19: 20391 | I19: 35 | J19: 0.01490785734 | K19: 3 | L19: 200 | M19: 0.01368540081 | N19: -0.001222456526 | O19: x | P19: x | Q19: x | R19: x
A20: 3458 | B20: 0 | C20: 241 | D20: 37360 | E20: 186 | F20: 757 | G20: 24 | H20: 3300 | I20: 10 | J20: 0.006450749465 | K20: 1 | L20: 100 | M20: 0.003774089936 | N20: -0.002676659529 | O20: x | P20: x | Q20: x | R20: x
A21: 3720 | B21: 0 | C21: 2087 | D21: 217863 | E21: 376 | F21: 6910 | G21: 105 | H21: 29750 | I21: 56 | J21: 0.009579414586 | K21: 3 | L21: 200 | M21: 0.00866140648 | N21: -0.000918008106 | O21: x | P21: x | Q21: x | R21: x | W21: Percentiles of ROA (after)
A22: 4156 | B22: 0 | C22: 1678 | D22: 216391 | E22: 980 | F22: 7120 | G22: 15 | H22: 21227 | I22: 66 | J22: 0.007754481471 | K22: 3 | L22: 200 | M22: 0.006830228614 | N22: -0.0009242528571 | O22: x | P22: x | Q22: x | R22: x | V22: Cohort | W22: 25 | X22: 50 | Y22: 75
A23: 4231 | B23: 0 | C23: 284 | D23: 114917 | E23: 763 | F23: 3197 | G23: 686 | H23: 12746 | I23: 32 | J23: 0.002471348887 | K23: 3 | L23: 200 | M23: 0.0007309623467 | N23: -0.00174038654 | O23: x | P23: x | Q23: x | R23: x | V23: 1 | W23: =PERCENTILE(IF($K$2:$K$7000=$V23,$M$2:$M$7000),W$13/100) -> -0.002034161866 | X23: =PERCENTILE(IF($K$2:$K$7000=$V23,$M$2:$M$7000),X$13/100) -> 0.002197939889 | Y23: =PERCENTILE(IF($K$2:$K$7000=$V23,$M$2:$M$7000),Y$13/100) -> 0.006478940741
A24: 4437 | B24: 0 | C24: 826 | D24: 238979 | E24: 1595 | F24: 7350 | G24: 475 | H24: 25977 | I24: 62 | J24: 0.003456370643 | K24: 3 | L24: 200 | M24: 0.002619477025 | N24: -0.0008368936183 | O24: x | P24: x | Q24: x | R24: x | V24: 2 | W24: =PERCENTILE(IF($K$2:$K$7000=$V24,$M$2:$M$7000),W$13/100) -> 0.002149842073 | X24: =PERCENTILE(IF($K$2:$K$7000=$V24,$M$2:$M$7000),X$13/100) -> 0.00581177279 | Y24: =PERCENTILE(IF($K$2:$K$7000=$V24,$M$2:$M$7000),Y$13/100) -> 0.01000777938
A25: 4839 | B25: 16974 | C25: 1314 | D25: 323621 | E25: 2349 | F25: 10214 | G25: 2604 | H25: 33213 | I25: 94 | J25: 0.00406030511 | K25: 4 | L25: 300 | M25: 0.003133294811 | N25: -0.0009270102991 | O25: x | P25: x | Q25: x | R25: x | V25: 3 | W25: =PERCENTILE(IF($K$2:$K$7000=$V25,$M$2:$M$7000),W$13/100) -> 0.003581149789 | X25: =PERCENTILE(IF($K$2:$K$7000=$V25,$M$2:$M$7000),X$13/100) -> 0.007193883631 | Y25: =PERCENTILE(IF($K$2:$K$7000=$V25,$M$2:$M$7000),Y$13/100) -> 0.01082847077
A26: 5069 | B26: 31084 | C26: 25769 | D26: 403171 | E26: 2170 | F26: 4360 | G26: 0 | H26: 149727 | I26: 29 | J26: 0.06391580744 | K26: 4 | L26: 300 | M26: 0.0631717063 | N26: -0.0007441011382 | O26: x | P26: x | Q26: x | R26: x | V26: 4 | W26: =PERCENTILE(IF($K$2:$K$7000=$V26,$M$2:$M$7000),W$13/100) -> 0.005200438855 | X26: =PERCENTILE(IF($K$2:$K$7000=$V26,$M$2:$M$7000),X$13/100) -> 0.008192538748 | Y26: =PERCENTILE(IF($K$2:$K$7000=$V26,$M$2:$M$7000),Y$13/100) -> 0.01181472491
A27: 5135 | B27: 0 | C27: 4538 | D27: 377575 | E27: 2287 | F27: 8599 | G27: 540 | H27: 46306 | I27: 68 | J27: 0.01201880421 | K27: 4 | L27: 200 | M27: 0.01148910812 | N27: -0.0005296960869 | O27: x | P27: x | Q27: x | R27: x | V27: 5 | W27: =PERCENTILE(IF($K$2:$K$7000=$V27,$M$2:$M$7000),W$13/100) ->  | X27: =PERCENTILE(IF($K$2:$K$7000=$V27,$M$2:$M$7000),X$13/100) ->  | Y27: =PERCENTILE(IF($K$2:$K$7000=$V27,$M$2:$M$7000),Y$13/100) -> 
A28: 5461 | B28: 44700 | C28: 3904 | D28: 494090 | E28: 1066 | F28: 15447 | G28: 760 | H28: 43003 | I28: 126 | J28: 0.007901394483 | K28: 4 | L28: 300 | M28: 0.007294217653 | N28: -0.0006071768301 | O28: x | P28: x | Q28: x | R28: x
A29: 5751 | B29: 0 | C29: 3227 | D29: 184323 | E29: 662 | F29: 4888 | G29: 407 | H29: 28087 | I29: 38 | J29: 0.01750731054 | K29: 3 | L29: 200 | M29: 0.01642225875 | N29: -0.001085051784 | O29: x | P29: x | Q29: x | R29: x
A30: 6039 | B30: 0 | C30: -838 | D30: 84892 | E30: 311 | F30: 3281 | G30: 612 | H30: 7736 | I30: 27 | J30: -0.009871365971 | K30: 2 | L30: 100 | M30: -0.01104933327 | N30: -0.0011779673 | O30: x | P30: x | Q30: x | R30: x
A31: 6141 | B31: 0 | C31: 417 | D31: 58234 | E31: 133 | F31: 1314 | G31: 60 | H31: 5507 | I31: 11 | J31: 0.007160765189 | K31: 2 | L31: 100 | M31: 0.005443555311 | N31: -0.001717209877 | O31: x | P31: x | Q31: x | R31: x
A32: 6329 | B32: 0 | C32: 4607 | D32: 460153 | E32: 1922 | F32: 24109 | G32: 5359 | H32: 37433 | I32: 212 | J32: 0.01001188735 | K32: 4 | L32: 200 | M32: 0.009577249306 | N32: -0.0004346380443 | O32: x | P32: x | Q32: x | R32: x
A33: 7009 | B33: 20764 | C33: 18513 | D33: 754696 | E33: 60 | F33: 49858 | G33: 0 | H33: 57612 | I33: 90 | J33: 0.02453040695 | K33: 4 | L33: 300 | M33: 0.02413289589 | N33: -0.0003975110508 | O33: x | P33: x | Q33: x | R33: x
A34: 7045 | B34: 0 | C34: 1477 | D34: 177729 | E34: 592 | F34: 3939 | G34: 240 | H34: 16570 | I34: 50 | J34: 0.008310405167 | K34: 3 | L34: 200 | M34: 0.007185096411 | N34: -0.001125308757 | O34: x | P34: x | Q34: x | R34: x
A35: 7157 | B35: 0 | C35: 93 | D35: 46357 | E35: 252 | F35: 1129 | G35: 98 | H35: 4540 | I35: 8 | J35: 0.002006169511 | K35: 1 | L35: 100 | M35: -0.0001510020062 | N35: -0.002157171517 | O35: x | P35: x | Q35: x | R35: x
A36: 7456 | B36: 0 | C36: 712 | D36: 68780 | E36: 226 | F36: 2050 | G36: 100 | H36: 5064 | I36: 17 | J36: 0.01035184647 | K36: 2 | L36: 100 | M36: 0.008897935446 | N36: -0.001453911021 | O36: x | P36: x | Q36: x | R36: x
A37: 7634 | B37: 0 | C37: 715 | D37: 61299 | E37: 404 | F37: 1549 | G37: 180 | H37: 6338 | I37: 14 | J37: 0.01166413808 | K37: 2 | L37: 100 | M37: 0.01003279009 | N37: -0.001631347983 | O37: x | P37: x | Q37: x | R37: x
A38: 8033 | B38: 12940 | C38: 2611 | D38: 196218 | E38: 1227 | F38: 4251 | G38: 649 | H38: 19640 | I38: 35 | J38: 0.01330662834 | K38: 3 | L38: 300 | M38: 0.01177771662 | N38: -0.001528911721 | O38: x | P38: x | Q38: x | R38: x
A39: 8462 | B39: 0 | C39: 2016 | D39: 160565 | E39: 242 | F39: 2344 | G39: 50 | H39: 16174 | I39: 21 | J39: 0.01255566282 | K39: 3 | L39: 200 | M39: 0.01131006135 | N39: -0.00124560147 | O39: x | P39: x | Q39: x | R39: x
A40: 8631 | B40: 37620 | C40: 426 | D40: 60474 | E40: 223 | F40: 1807 | G40: 0 | H40: 6447 | I40: 20 | J40: 0.007044349638 | K40: 2 | L40: 150 | M40: 0.004563944836 | N40: -0.002480404802 | O40: x | P40: x | Q40: x | R40: x
A41: 9357 | B41: 33460 | C41: 7675 | D41: 403623 | E41: 608 | F41: 7142 | G41: 0 | H41: 74243 | I41: 45 | J41: 0.0190152692 | K41: 4 | L41: 300 | M41: 0.01827200135 | N41: -0.0007432678514 | O41: x | P41: x | Q41: x | R41: x
A42: 9553 | B42: 0 | C42: 1559 | D42: 169858 | E42: 1128 | F42: 2566 | G42: 0 | H42: 10586 | I42: 15 | J42: 0.009178254778 | K42: 3 | L42: 200 | M42: 0.008000800669 | N42: -0.001177454109 | O42: x | P42: x | Q42: x | R42: x
A43: 9955 | B43: 0 | C43: 2057 | D43: 124358 | E43: 259 | F43: 2987 | G43: 75 | H43: 14737 | I43: 26 | J43: 0.01654095434 | K43: 3 | L43: 200 | M43: 0.01493269432 | N43: -0.001608260023 | O43: x | P43: x | Q43: x | R43: x
A44: 10250 | B44: 33460 | C44: 1854 | D44: 355437 | E44: 2141 | F44: 11150 | G44: 85 | H44: 30773 | I44: 87 | J44: 0.005216114248 | K44: 4 | L44: 300 | M44: 0.004372082816 | N44: -0.0008440314317 | O44: x | P44: x | Q44: x | R44: x
A45: 10849 | B45: 30780 | C45: 254 | D45: 258940 | E45: 942 | F45: 7078 | G45: 0 | H45: 25668 | I45: 57 | J45: 0.0009809222214 | K45: 4 | L45: 300 | M45: -0.0001776473314 | N45: -0.001158569553 | O45: x | P45: x | Q45: x | R45: x
A46: 10858 | B46: 0 | C46: 2956 | D46: 440577 | E46: 932 | F46: 11747 | G46: -30 | H46: 33857 | I46: 96 | J46: 0.006709383377 | K46: 4 | L46: 200 | M46: 0.006255433216 | N46: -0.0004539501608 | O46: x | P46: x | Q46: x | R46: x
A47: 11145 | B47: 0 | C47: 1511 | D47: 185585 | E47: 846 | F47: 6209 | G47: 842 | H47: 18390 | I47: 56 | J47: 0.008141821807 | K47: 3 | L47: 200 | M47: 0.007064148503 | N47: -0.001077673303 | O47: x | P47: x | Q47: x | R47: x
A48: 11640 | B48: 0 | C48: 4507 | D48: 361788 | E48: 2144 | F48: 7983 | G48: 789 | H48: 35221 | I48: 53 | J48: 0.01245757184 | K48: 4 | L48: 200 | M48: 0.0119047619 | N48: -0.0005528099329 | O48: x | P48: x | Q48: x | R48: x
A49: 11837 | B49: 0 | C49: 893 | D49: 106951 | E49: 685 | F49: 2091 | G49: -100 | H49: 10209 | I49: 15 | J49: 0.008349618049 | K49: 3 | L49: 200 | M49: 0.006479602809 | N49: -0.001870015241 | O49: x | P49: x | Q49: x | R49: x
A50: 12030 | B50: 0 | C50: 3513 | D50: 315120 | E50: 1602 | F50: 10358 | G50: 4550 | H50: 42916 | I50: 83 | J50: 0.01114813404 | K50: 4 | L50: 200 | M50: 0.01051345519 | N50: -0.0006346788525 | O50: x | P50: x | Q50: x | R50: x
A51: 12142 | B51: 0 | C51: 1411 | D51: 213287 | E51: 438 | F51: 6417 | G51: 120 | H51: 18444 | I51: 67 | J51: 0.006615499304 | K51: 3 | L51: 200 | M51: 0.005677795646 | N51: -0.0009377036575 | O51: x | P51: x | Q51: x | R51: x
A52: 12245 | B52: 0 | C52: 899 | D52: 125862 | E52: 645 | F52: 3731 | G52: 185 | H52: 13605 | I52: 43 | J52: 0.00714274364 | K52: 3 | L52: 200 | M52: 0.005553701673 | N52: -0.001589041967 | O52: x | P52: x | Q52: x | R52: x
A53: 12647 | B53: 0 | C53: 715 | D53: 98832 | E53: 611 | F53: 2479 | G53: -50 | H53: 9796 | I53: 26 | J53: 0.007234498948 | K53: 2 | L53: 100 | M53: 0.006222680913 | N53: -0.001011818035 | O53: x | P53: x | Q53: x | R53: x
A54: 12656 | B54: 0 | C54: 91 | D54: 18382 | E54: 89 | F54: 743 | G54: 30 | H54: 1603 | I54: 9 | J54: 0.00495049505 | K54: 1 | L54: 100 | M54: -0.0004896094005 | N54: -0.00544010445 | O54: x | P54: x | Q54: x | R54: x
A55: 12937 | B55: 16974 | C55: 1418 | D55: 201397 | E55: 852 | F55: 5019 | G55: 365 | H55: 30763 | I55: 37 | J55: 0.007040819873 | K55: 3 | L55: 300 | M55: 0.005551224696 | N55: -0.001489595178 | O55: x | P55: x | Q55: x | R55: x
A56: 12946 | B56: 0 | C56: 16466 | D56: 812406 | E56: 4717 | F56: 17691 | G56: 2458 | H56: 89211 | I56: 175 | J56: 0.02026819103 | K56: 4 | L56: 200 | M56: 0.0200220087 | N56: -0.0002461823276 | O56: x | P56: x | Q56: x | R56: x
A57: 12955 | B57: 36540 | C57: 1714 | D57: 131556 | E57: 614 | F57: 6143 | G57: 0 | H57: 12691 | I57: 63 | J57: 0.0130286722 | K57: 3 | L57: 300 | M57: 0.0107482745 | N57: -0.002280397701 | O57: x | P57: x | Q57: x | R57: x
A58: 13251 | B58: 0 | C58: 324 | D58: 41071 | E58: 59 | F58: 1231 | G58: 60 | H58: 4109 | I58: 10 | J58: 0.00788877797 | K58: 1 | L58: 100 | M58: 0.005453969954 | N58: -0.002434808015 | O58: x | P58: x | Q58: x | R58: x
A59: 13457 | B59: 0 | C59: 254 | D59: 23993 | E59: 59 | F59: 686 | G59: 0 | H59: 5878 | I59: 4 | J59: 0.01058642104 | K59: 1 | L59: 100 | M59: 0.00641853874 | N59: -0.004167882299 | O59: x | P59: x | Q59: x | R59: x
A60: 14052 | B60: 0 | C60: 288 | D60: 61478 | E60: 175 | F60: 1863 | G60: 284 | H60: 6978 | I60: 18 | J60: 0.004684602622 | K60: 2 | L60: 100 | M60: 0.003058004489 | N60: -0.001626598133 | O60: x | P60: x | Q60: x | R60: x
A61: 14155 | B61: 0 | C61: 2208 | D61: 133338 | E61: 592 | F61: 5448 | G61: 250 | H61: 15476 | I61: 51 | J61: 0.01655942042 | K61: 3 | L61: 200 | M61: 0.01505947292 | N61: -0.001499947502 | O61: x | P61: x | Q61: x | R61: x
A62: 14650 | B62: 0 | C62: 380 | D62: 29979 | E62: 54 | F62: 1286 | G62: 60 | H62: 3041 | I62: 13 | J62: 0.01267553954 | K62: 1 | L62: 100 | M62: 0.009339871243 | N62: -0.003335668301 | O62: x | P62: x | Q62: x | R62: x
A63: 14753 | B63: 0 | C63: 265 | D63: 45258 | E63: 149 | F63: 1135 | G63: 15 | H63: 4075 | I63: 9 | J63: 0.005855318397 | K63: 1 | L63: 100 | M63: 0.003645764285 | N63: -0.002209554112 | O63: x | P63: x | Q63: x | R63: x
A64: 14865 | B64: 0 | C64: 2885 | D64: 298897 | E64: 821 | F64: 10857 | G64: 1210 | H64: 29870 | I64: 101 | J64: 0.009652154421 | K64: 4 | L64: 200 | M64: 0.008983027598 | N64: -0.000669126823 | O64: x | P64: x | Q64: x | R64: x
A65: 16458 | B65: 29940 | C65: 1533 | D65: 290962 | E65: 553 | F65: 9506 | G65: 50 | H65: 34501 | I65: 78 | J65: 0.00526872925 | K65: 4 | L65: 300 | M65: 0.004237666774 | N65: -0.001031062476 | O65: x | P65: x | Q65: x | R65: x
A66: 16551 | B66: 0 | C66: 3079 | D66: 242416 | E66: 1844 | F66: 7923 | G66: 125 | H66: 24043 | I66: 77 | J66: =C66/D66 -> 0.01270130684 | K66: =IF(D66/1000<INDEX(sizeV,1),1,IF(D66/1000<INDEX(sizeV,2),2,IF(D66/1000<INDEX(sizeV,3),3,IF(D66/1000<INDEX(sizeV,4),4,IF(D66/1000<INDEX(sizeV,5),5,6))))) -> 3 | L66: =IF(B66=0,salRural*T$2,salUrban*T$2)*INDEX(nHires,K66) -> 200 | M66: =(C66-L66)/D66 -> 0.01187627879 | N66: =M66-J66 -> -0.000825028051 | O66: x | P66: x | Q66: x | R66: x
A67: 16748 | B67: 21780 | C67: 414 | D67: 63859 | E67: 228 | F67: 2129 | G67: 60 | H67: 7291 | I67: 18 | J67: 0.006483032932 | K67: 2 | L67: 150 | M67: 0.004134107957 | N67: -0.002348924975 | O67: x | P67: x | Q67: x | R67: x
A68: 16944 | B68: 28020 | C68: -130 | D68: 39295 | E68: 132 | F68: 1304 | G68: 104 | H68: 3850 | I68: 11 | J68: -0.003308308945 | K68: 1 | L68: 150 | M68: -0.007125588497 | N68: -0.003817279552 | O68: x | P68: x | Q68: x | R68: x
A69: 16953 | B69: 24220 | C69: 153 | D69: 36672 | E69: 105 | F69: 1129 | G69: 5 | H69: 4475 | I69: 8 | J69: 0.004172120419 | K69: 1 | L69: 150 | M69: 8.180628272e-05 | N69: -0.004090314136 | O69: x | P69: x | Q69: x | R69: x
A70: 17110 | B70: 37964 | C70: 2899 | D70: 105293 | E70: 218 | F70: 21901 | G70: 0 | H70: 18911 | I70: 70 | J70: 0.02753269448 | K70: 3 | L70: 300 | M70: 0.02468350223 | N70: -0.002849192254 | O70: x | P70: x | Q70: x | R70: x
A71: 17259 | B71: 0 | C71: 907 | D71: 66895 | E71: 424 | F71: 2310 | G71: 5 | H71: 5383 | I71: 27 | J71: 0.01355856193 | K71: 2 | L71: 100 | M71: 0.01206368189 | N71: -0.001494880036 | O71: x | P71: x | Q71: x | R71: x
A72: 17950 | B72: 13740 | C72: 3056 | D72: 346461 | E72: 1552 | F72: 7817 | G72: 323 | H72: 30970 | I72: 81 | J72: 0.008820617616 | K72: 4 | L72: 300 | M72: 0.00795471929 | N72: -0.0008658983262 | O72: x | P72: x | Q72: x | R72: x
A73: 18050 | B73: 12420 | C73: 5640 | D73: 422923 | E73: 1183 | F73: 11716 | G73: 245 | H73: 42726 | I73: 113 | J73: 0.01333576088 | K73: 4 | L73: 300 | M73: 0.0126264119 | N73: -0.0007093489831 | O73: x | P73: x | Q73: x | R73: x
A74: 18135 | B74: 16974 | C74: 829 | D74: 239452 | E74: 1425 | F74: 8251 | G74: 215 | H74: 18105 | I74: 47 | J74: 0.00346207173 | K74: 3 | L74: 300 | M74: 0.002209211032 | N74: -0.001252860699 | O74: x | P74: x | Q74: x | R74: x
A75: 18827 | B75: 38300 | C75: 4662 | D75: 422362 | E75: 2124 | F75: 9787 | G75: 95 | H75: 45149 | I75: 91 | J75: 0.01103792481 | K75: 4 | L75: 300 | M75: 0.01032763364 | N75: -0.000710291172 | O75: x | P75: x | Q75: x | R75: x
A76: 18836 | B76: 0 | C76: 873 | D76: 146991 | E76: 993 | F76: 5321 | G76: 434 | H76: 14672 | I76: 50 | J76: 0.005939139131 | K76: 3 | L76: 200 | M76: 0.00457851161 | N76: -0.001360627521 | O76: x | P76: x | Q76: x | R76: x
A77: 18854 | B77: 36420 | C77: 8539 | D77: 352044 | E77: 1900 | F77: 8804 | G77: 1075 | H77: 29577 | I77: 64 | J77: 0.02425549079 | K77: 4 | L77: 300 | M77: 0.02340332458 | N77: -0.0008521662065 | O77: x | P77: x | Q77: x | R77: x
A78: 19356 | B78: 0 | C78: 612 | D78: 75683 | E78: 318 | F78: 2149 | G78: -38 | H78: 6563 | I78: 24 | J78: 0.008086360213 | K78: 2 | L78: 100 | M78: 0.006765059525 | N78: -0.001321300688 | O78: x | P78: x | Q78: x | R78: x
A79: 19936 | B79: 0 | C79: -1008 | D79: 257246 | E79: 752 | F79: 10480 | G79: 890 | H79: 22253 | I79: 47 | J79: -0.003918428275 | K79: 4 | L79: 200 | M79: -0.004695894202 | N79: -0.0007774659276 | O79: x | P79: x | Q79: x | R79: x
A80: 20053 | B80: 20740 | C80: 876 | D80: 74478 | E80: 423 | F80: 1980 | G80: 40 | H80: 9628 | I80: 18 | J80: 0.01176186256 | K80: 2 | L80: 150 | M80: 0.009747845001 | N80: -0.002014017562 | O80: x | P80: x | Q80: x | R80: x
A81: 20512 | B81: 0 | C81: 942 | D81: 94194 | E81: 488 | F81: 2444 | G81: 33 | H81: 9647 | I81: 24 | J81: 0.01000063698 | K81: 2 | L81: 100 | M81: 0.008938998238 | N81: -0.001061638746 | O81: x | P81: x | Q81: x | R81: x
A82: 20633 | B82: 0 | C82: 1461 | D82: 303440 | E82: 2536 | F82: 9526 | G82: 540 | H82: 28795 | I82: 84 | J82: 0.004814790403 | K82: 4 | L82: 200 | M82: 0.004155681519 | N82: -0.0006591088848 | O82: x | P82: x | Q82: x | R82: x
A83: 20857 | B83: 0 | C83: 2758 | D83: 209550 | E83: 630 | F83: 2450 | G83: 30 | H83: 17469 | I83: 15 | J83: 0.01316153663 | K83: 3 | L83: 200 | M83: 0.01220711047 | N83: -0.0009544261513 | O83: x | P83: x | Q83: x | R83: x
A84: 21256 | B84: 48620 | C84: 1 | D84: 10340 | E84: 51 | F84: 317 | G84: 0 | H84: 1110 | I84: 4 | J84: 9.671179884e-05 | K84: 1 | L84: 150 | M84: -0.01441005803 | N84: -0.01450676983 | O84: x | P84: x | Q84: x | R84: x
A85: 21359 | B85: 0 | C85: 380 | D85: 24753 | E85: 133 | F85: 894 | G85: 0 | H85: 2668 | I85: 7 | J85: 0.01535167454 | K85: 1 | L85: 100 | M85: 0.01131176019 | N85: -0.004039914354 | O85: x | P85: x | Q85: x | R85: x
A86: 21630 | B86: 29180 | C86: 1231 | D86: 102091 | E86: 391 | F86: 2689 | G86: 170 | H86: 10547 | I86: 30 | J86: 0.01205786994 | K86: 3 | L86: 300 | M86: 0.009119315121 | N86: -0.002938554819 | O86: x | P86: x | Q86: x | R86: x
A87: 21658 | B87: 0 | C87: 1524 | D87: 155448 | E87: 913 | F87: 3977 | G87: 205 | H87: 12032 | I87: 45 | J87: 0.009803921569 | K87: 3 | L87: 200 | M87: 0.008517317688 | N87: -0.00128660388 | O87: x | P87: x | Q87: x | R87: x
A88: 22048 | B88: 0 | C88: 180 | D88: 191268 | E88: 931 | F88: 6277 | G88: 223 | H88: 16351 | I88: 56 | J88: 0.0009410878976 | K88: 3 | L88: 200 | M88: -0.000104565322 | N88: -0.00104565322 | O88: x | P88: x | Q88: x | R88: x
A89: 22543 | B89: 0 | C89: 312 | D89: 96126 | E89: 137 | F89: 2435 | G89: 139 | H89: 14477 | I89: 23 | J89: 0.003245739966 | K89: 2 | L89: 100 | M89: 0.002205438695 | N89: -0.001040301271 | O89: x | P89: x | Q89: x | R89: x
A90: 22552 | B90: 0 | C90: 1222 | D90: 89676 | E90: 483 | F90: 2587 | G90: 55 | H90: 7892 | I90: 22 | J90: 0.01362683438 | K90: 2 | L90: 100 | M90: 0.01251170882 | N90: -0.001115125563 | O90: x | P90: x | Q90: x | R90: x
A91: 22730 | B91: 0 | C91: 722 | D91: 138795 | E91: 482 | F91: 4225 | G91: 137 | H91: 12051 | I91: 44 | J91: 0.005201916496 | K91: 3 | L91: 200 | M91: 0.003760942397 | N91: -0.001440974098 | O91: x | P91: x | Q91: x | R91: x
A92: 22936 | B92: 0 | C92: 84 | D92: 160516 | E92: 649 | F92: 6554 | G92: 160 | H92: 8224 | I92: 48 | J92: 0.0005233123178 | K92: 3 | L92: 200 | M92: -0.0007226693912 | N92: -0.001245981709 | O92: x | P92: x | Q92: x | R92: x
A93: 23045 | B93: 0 | C93: 96 | D93: 42248 | E93: 96 | F93: 1054 | G93: 0 | H93: 6541 | I93: 12 | J93: 0.002272296913 | K93: 1 | L93: 100 | M93: -9.467903806e-05 | N93: -0.002366975952 | O93: x | P93: x | Q93: x | R93: x
A94: 23456 | B94: 0 | C94: 1852 | D94: 103287 | E94: 710 | F94: 2986 | G94: 300 | H94: 11599 | I94: 23 | J94: 0.0179306205 | K94: 3 | L94: 200 | M94: 0.0159942684 | N94: -0.001936352106 | O94: x | P94: x | Q94: x | R94: x
A95: 23643 | B95: 0 | C95: 3058 | D95: 187022 | E95: 954 | F95: 4802 | G95: 10 | H95: 12831 | I95: 41 | J95: 0.01635101753 | K95: 3 | L95: 200 | M95: 0.01528162462 | N95: -0.001069392906 | O95: x | P95: x | Q95: x | R95: x
A96: 23755 | B96: 33460 | C96: 1661 | D96: 165535 | E96: 720 | F96: 6010 | G96: 310 | H96: 14846 | I96: 53 | J96: 0.01003413175 | K96: 3 | L96: 300 | M96: 0.0082218262 | N96: -0.001812305555 | O96: x | P96: x | Q96: x | R96: x
A97: 24453 | B97: 0 | C97: -335 | D97: 206067 | E97: 1127 | F97: 5976 | G97: 230 | H97: 23386 | I97: 38 | J97: -0.00162568485 | K97: 3 | L97: 200 | M97: -0.00259624297 | N97: -0.0009705581194 | O97: x | P97: x | Q97: x | R97: x
A98: 24659 | B98: 0 | C98: 586 | D98: 43946 | E98: 167 | F98: 1015 | G98: 0 | H98: 4970 | I98: 10 | J98: 0.01333454694 | K98: 1 | L98: 100 | M98: 0.01105902699 | N98: -0.002275519956 | O98: x | P98: x | Q98: x | R98: x
A99: 24668 | B99: 0 | C99: 944 | D99: 400167 | E99: 1248 | F99: 10338 | G99: 991 | H99: 63978 | I99: 89 | J99: 0.002359015111 | K99: 4 | L99: 200 | M99: 0.001859223774 | N99: -0.0004997913371 | O99: x | P99: x | Q99: x | R99: x
A100: 24855 | B100: 0 | C100: 27 | D100: 19512 | E100: 17 | F100: 405 | G100: 5 | H100: 1352 | I100: 4 | J100: 0.001383763838 | K100: 1 | L100: 100 | M100: -0.003741287413 | N100: -0.005125051251 | O100: x | P100: x | Q100: x | R100: x
A101: 24949 | B101: 0 | C101: -22066 | D101: 632159 | E101: 2899 | F101: 20667 | G101: 10130 | H101: 43355 | I101: 177 | J101: -0.03490577529 | K101: 4 | L101: 200 | M101: -0.03522215139 | N101: -0.0003163761016 | O101: x | P101: x | Q101: x | R101: x
A102: 25357 | B102: 36420 | C102: 906 | D102: 125804 | E102: 817 | F102: 4178 | G102: 25 | H102: 11341 | I102: 46 | J102: 0.007201678802 | K102: 3 | L102: 300 | M102: 0.004817016947 | N102: -0.002384661855 | O102: x | P102: x | Q102: x | R102: x
A103: 25647 | B103: 16974 | C103: -1559 | D103: 56534 | E103: 464 | F103: 2473 | G103: 913 | H103: 377 | I103: 18 | J103: -0.02757632575 | K103: 2 | L103: 150 | M103: -0.03022959635 | N103: -0.002653270598 | O103: x | P103: x | Q103: x | R103: x
A104: 26242 | B104: 0 | C104: 4285 | D104: 413263 | E104: 824 | F104: 12421 | G104: 0 | H104: 53735 | I104: 117 | J104: 0.01036869984 | K104: 4 | L104: 200 | M104: 0.009884746517 | N104: -0.0004839533179 | O104: x | P104: x | Q104: x | R104: x
A105: 26457 | B105: 0 | C105: 124 | D105: 27928 | E105: 70 | F105: 827 | G105: 20 | H105: 3069 | I105: 7 | J105: 0.004439988542 | K105: 1 | L105: 100 | M105: 0.000859352621 | N105: -0.003580635921 | O105: x | P105: x | Q105: x | R105: x
A106: 26765 | B106: 41700 | C106: 1862 | D106: 325080 | E106: 1028 | F106: 12149 | G106: -71 | H106: 32682 | I106: 75 | J106: 0.005727820844 | K106: 4 | L106: 300 | M106: 0.004804971084 | N106: -0.0009228497601 | O106: x | P106: x | Q106: x | R106: x
A107: 26859 | B107: 26420 | C107: -2099 | D107: 285236 | E107: 1195 | F107: 13962 | G107: -876 | H107: 29659 | I107: 82 | J107: -0.007358818662 | K107: 4 | L107: 300 | M107: -0.00841057931 | N107: -0.001051760647 | O107: x | P107: x | Q107: x | R107: x
A108: 27548 | B108: 27500 | C108: 3221 | D108: 582953 | E108: 2749 | F108: 21364 | G108: 4140 | H108: 57777 | I108: 162 | J108: 0.005525316792 | K108: 4 | L108: 300 | M108: 0.005010695545 | N108: -0.0005146212473 | O108: x | P108: x | Q108: x | R108: x
A109: 27614 | B109: 0 | C109: 3927 | D109: 324458 | E109: 1410 | F109: 9359 | G109: 90 | H109: 32808 | I109: 92 | J109: 0.01210326144 | K109: 4 | L109: 200 | M109: 0.01148684884 | N109: -0.0006164126019 | O109: x | P109: x | Q109: x | R109: x
A110: 27847 | B110: 0 | C110: 6074 | D110: 436674 | E110: 2840 | F110: 12432 | G110: 77 | H110: 43693 | I110: 120 | J110: 0.01390969007 | K110: 4 | L110: 200 | M110: 0.01345168249 | N110: -0.0004580075754 | O110: x | P110: x | Q110: x | R110: x
A111: 28152 | B111: 41060 | C111: 1563 | D111: 133535 | E111: 562 | F111: 3181 | G111: 35 | H111: 11683 | I111: 35 | J111: 0.0117047965 | K111: 3 | L111: 300 | M111: 0.009458194481 | N111: -0.002246602014 | O111: x | P111: x | Q111: x | R111: x
A112: 28255 | B112: 0 | C112: 1957 | D112: 296528 | E112: 499 | F112: 5859 | G112: 337 | H112: 23534 | I112: 53 | J112: 0.006599714024 | K112: 4 | L112: 200 | M112: 0.005925241461 | N112: -0.0006744725625 | O112: x | P112: x | Q112: x | R112: x
A113: 28349 | B113: 22900 | C113: -3121 | D113: 138597 | E113: 1185 | F113: 7685 | G113: 1500 | H113: 10642 | I113: 54 | J113: -0.02251852493 | K113: 3 | L113: 300 | M113: -0.02468307395 | N113: -0.002164549016 | O113: x | P113: x | Q113: x | R113: x
A114: 28732 | B114: 0 | C114: 542 | D114: 84331 | E114: 330 | F114: 2604 | G114: 60 | H114: 8469 | I114: 25 | J114: 0.006427055294 | K114: 2 | L114: 100 | M114: 0.005241251734 | N114: -0.00118580356 | O114: x | P114: x | Q114: x | R114: x
A115: 29636 | B115: 0 | C115: 7230 | D115: 872795 | E115: 4083 | F115: 24385 | G115: 2204 | H115: 64188 | I115: 246 | J115: 0.008283732148 | K115: 4 | L115: 200 | M115: 0.008054583264 | N115: -0.0002291488838 | O115: x | P115: x | Q115: x | R115: x
A116: 29953 | B116: 36540 | C116: 1198 | D116: 76726 | E116: 569 | F116: 1948 | G116: 0 | H116: 9772 | I116: 19 | J116: 0.01561400308 | K116: 2 | L116: 150 | M116: 0.01365899434 | N116: -0.001955008732 | O116: x | P116: x | Q116: x | R116: x
A117: 30052 | B117: 0 | C117: 153 | D117: 28115 | E117: 154 | F117: 1357 | G117: 8 | H117: 3305 | I117: 12 | J117: 0.00544193491 | K117: 1 | L117: 100 | M117: 0.001885114707 | N117: -0.003556820203 | O117: x | P117: x | Q117: x | R117: x
A118: 30502 | B118: 0 | C118: 7148 | D118: 894097 | E118: 4634 | F118: 27290 | G118: 2820 | H118: 88459 | I118: 220 | J118: 0.007994658298 | K118: 4 | L118: 200 | M118: 0.007770968922 | N118: -0.000223689376 | O118: x | P118: x | Q118: x | R118: x
A119: 30650 | B119: 33460 | C119: -161 | D119: 113509 | E119: 752 | F119: 4987 | G119: 127 | H119: 12617 | I119: 20 | J119: -0.001418389731 | K119: 3 | L119: 300 | M119: -0.004061351963 | N119: -0.002642962232 | O119: x | P119: x | Q119: x | R119: x
A120: 31134 | B120: 12260 | C120: 1379 | D120: 117723 | E120: 483 | F120: 3569 | G120: 244 | H120: 17561 | I120: 37 | J120: 0.01171393865 | K120: 3 | L120: 300 | M120: 0.009165583616 | N120: -0.002548355037 | O120: x | P120: x | Q120: x | R120: x
A121: 31255 | B121: 26420 | C121: 3570 | D121: 454848 | E121: 1639 | F121: 16279 | G121: -105 | H121: 40238 | I121: 106 | J121: 0.007848775855 | K121: 4 | L121: 300 | M121: 0.007189214859 | N121: -0.0006595609962 | O121: x | P121: x | Q121: x | R121: x
A122: 31657 | B122: 0 | C122: 2468 | D122: 130069 | E122: 592 | F122: 2713 | G122: 0 | H122: 14289 | I122: 31 | J122: 0.01897454428 | K122: 3 | L122: 200 | M122: 0.01743689888 | N122: -0.001537645404 | O122: x | P122: x | Q122: x | R122: x
A123: 31826 | B123: 0 | C123: 2416 | D123: 245656 | E123: 952 | F123: 6888 | G123: 225 | H123: 39993 | I123: 68 | J123: 0.009834891067 | K123: 3 | L123: 200 | M123: 0.009020744456 | N123: -0.0008141466115 | O123: x | P123: x | Q123: x | R123: x
A124: 31835 | B124: 0 | C124: 917 | D124: 125660 | E124: 400 | F124: 3866 | G124: 410 | H124: 12530 | I124: 28 | J124: 0.007297469362 | K124: 3 | L124: 200 | M124: 0.005705872991 | N124: -0.001591596371 | O124: x | P124: x | Q124: x | R124: x
A125: 32234 | B125: 0 | C125: 713 | D125: 115948 | E125: 210 | F125: 2285 | G125: -27 | H125: 11612 | I125: 19 | J125: 0.006149308311 | K125: 3 | L125: 200 | M125: 0.004424397144 | N125: -0.001724911167 | O125: x | P125: x | Q125: x | R125: x
A126: 32766 | B126: 19124 | C126: 383 | D126: 56100 | E126: 44 | F126: 1489 | G126: 36 | H126: 5390 | I126: 12 | J126: 0.006827094474 | K126: 2 | L126: 150 | M126: 0.004153297683 | N126: -0.002673796791 | O126: x | P126: x | Q126: x | R126: x
A127: 33147 | B127: 0 | C127: 5147 | D127: 416130 | E127: 2083 | F127: 11231 | G127: 1636 | H127: 36804 | I127: 91 | J127: 0.01236873093 | K127: 4 | L127: 200 | M127: 0.01188811189 | N127: -0.0004806190373 | O127: x | P127: x | Q127: x | R127: x
A128: 33259 | B128: 33460 | C128: 5263 | D128: 558041 | E128: 3009 | F128: 13631 | G128: 410 | H128: 52975 | I128: 84 | J128: 0.009431206668 | K128: 4 | L128: 300 | M128: 0.00889361176 | N128: -0.0005375949079 | O128: x | P128: x | Q128: x | R128: x
A129: 33268 | B129: 0 | C129: 1453 | D129: 157652 | E129: 353 | F129: 4303 | G129: 208 | H129: 13287 | I129: 34 | J129: 0.009216502169 | K129: 3 | L129: 200 | M129: 0.007947885216 | N129: -0.001268616954 | O129: x | P129: x | Q129: x | R129: x
A130: 33839 | B130: 14060 | C130: 333 | D130: 35381 | E130: 115 | F130: 757 | G130: 0 | H130: 3673 | I130: 7 | J130: =C130/D130 -> 0.009411831209 | K130: =IF(D130/1000<INDEX(sizeV,1),1,IF(D130/1000<INDEX(sizeV,2),2,IF(D130/1000<INDEX(sizeV,3),3,IF(D130/1000<INDEX(sizeV,4),4,IF(D130/1000<INDEX(sizeV,5),5,6))))) -> 1 | L130: =IF(B130=0,salRural*T$2,salUrban*T$2)*INDEX(nHires,K130) -> 150 | M130: =(C130-L130)/D130 -> 0.005172267601 | N130: =M130-J130 -> -0.004239563608 | O130: x | P130: x | Q130: x | R130: x
A131: 33857 | B131: 0 | C131: 3811 | D131: 237222 | E131: 2326 | F131: 4598 | G131: 410 | H131: 24073 | I131: 38 | J131: 0.01606512044 | K131: 3 | L131: 200 | M131: 0.01522202831 | N131: -0.0008430921247 | O131: x | P131: x | Q131: x | R131: x
A132: 34153 | B132: 33460 | C132: 6849 | D132: 312984 | E132: 1114 | F132: 17852 | G132: -5167 | H132: 20721 | I132: 158 | J132: 0.02188290775 | K132: 4 | L132: 300 | M132: 0.0209243923 | N132: -0.0009585154513 | O132: x | P132: x | Q132: x | R132: x
A133: 34359 | B133: 0 | C133: 310 | D133: 33081 | E133: 172 | F133: 664 | G133: 20 | H133: 6275 | I133: 7 | J133: 0.009370938001 | K133: 1 | L133: 100 | M133: 0.006348054775 | N133: -0.003022883226 | O133: x | P133: x | Q133: x | R133: x
A134: 34425 | B134: 0 | C134: 1244 | D134: 329233 | E134: 2835 | F134: 12252 | G134: 776 | H134: 31236 | I134: 97 | J134: 0.003778479071 | K134: 4 | L134: 200 | M134: 0.003171006552 | N134: -0.0006074725195 | O134: x | P134: x | Q134: x | R134: x
A135: 34434 | B135: 0 | C135: 3706 | D135: 296901 | E135: 1328 | F135: 11771 | G135: 195 | H135: 27508 | I135: 90 | J135: 0.01248227524 | K135: 4 | L135: 200 | M135: 0.01180865002 | N135: -0.0006736252151 | O135: x | P135: x | Q135: x | R135: x
A136: 34452 | B136: 0 | C136: 1493 | D136: 118444 | E136: 748 | F136: 3220 | G136: 109 | H136: 12112 | I136: 33 | J136: 0.01260511296 | K136: 3 | L136: 200 | M136: 0.01091655128 | N136: -0.001688561683 | O136: x | P136: x | Q136: x | R136: x
A137: 34555 | B137: 0 | C137: 1884 | D137: 269743 | E137: 1848 | F137: 5005 | G137: 280 | H137: 22309 | I137: 49 | J137: 0.006984425917 | K137: 4 | L137: 200 | M137: 0.006242979429 | N137: -0.000741446488 | O137: x | P137: x | Q137: x | R137: x
A138: 34742 | B138: 0 | C138: 1120 | D138: 302757 | E138: 2078 | F138: 10960 | G138: 849 | H138: 24645 | I138: 99 | J138: 0.003699336432 | K138: 4 | L138: 200 | M138: 0.00303874064 | N138: -0.0006605957913 | O138: x | P138: x | Q138: x | R138: x
A139: 34836 | B139: 12060 | C139: 100 | D139: 23937 | E139: 101 | F139: 942 | G139: 25 | H139: 1396 | I139: 10 | J139: 0.004177632953 | K139: 1 | L139: 150 | M139: -0.002088816477 | N139: -0.00626644943 | O139: x | P139: x | Q139: x | R139: x
A140: 35057 | B140: 0 | C140: 1946 | D140: 125898 | E140: 577 | F140: 5322 | G140: 0 | H140: 13362 | I140: 47 | J140: 0.01545695722 | K140: 3 | L140: 200 | M140: 0.01386836963 | N140: -0.001588587587 | O140: x | P140: x | Q140: x | R140: x
A141: 35646 | B141: 0 | C141: 658 | D141: 52512 | E141: 177 | F141: 879 | G141: 20 | H141: 11452 | I141: 7 | J141: 0.01253046923 | K141: 2 | L141: 100 | M141: 0.0106261426 | N141: -0.00190432663 | O141: x | P141: x | Q141: x | R141: x
A142: 35842 | B142: 0 | C142: 1390 | D142: 202009 | E142: 1892 | F142: 4534 | G142: 698 | H142: 18270 | I142: 39 | J142: 0.006880881545 | K142: 3 | L142: 200 | M142: 0.005890826646 | N142: -0.0009900548985 | O142: x | P142: x | Q142: x | R142: x
A143: 36456 | B143: 0 | C143: 948 | D143: 97455 | E143: 435 | F143: 2984 | G143: 45 | H143: 8865 | I143: 20 | J143: 0.009727566569 | K143: 2 | L143: 100 | M143: 0.008701451952 | N143: -0.001026114617 | O143: x | P143: x | Q143: x | R143: x
A144: 36933 | B144: 0 | C144: 2117 | D144: 89644 | E144: 477 | F144: 3614 | G144: 0 | H144: 6344 | I144: 32 | J144: 0.02361563518 | K144: 2 | L144: 100 | M144: 0.02250011155 | N144: -0.001115523627 | O144: x | P144: x | Q144: x | R144: x
A145: 37051 | B145: 0 | C145: 704 | D145: 74033 | E145: 616 | F145: 2012 | G145: 200 | H145: 8290 | I145: 22 | J145: 0.009509272892 | K145: 2 | L145: 100 | M145: 0.008158523902 | N145: -0.00135074899 | O145: x | P145: x | Q145: x | R145: x
A146: 37341 | B146: 0 | C146: 434 | D146: 36229 | E146: 319 | F146: 1240 | G146: 57 | H146: 4088 | I146: 12 | J146: 0.01197935356 | K146: 1 | L146: 100 | M146: 0.009219133843 | N146: -0.002760219713 | O146: x | P146: x | Q146: x | R146: x
A147: 37659 | B147: 0 | C147: 851 | D147: 40001 | E147: 126 | F147: 1346 | G147: 25 | H147: 4738 | I147: 13 | J147: 0.02127446814 | K147: 1 | L147: 100 | M147: 0.01877453064 | N147: -0.002499937502 | O147: x | P147: x | Q147: x | R147: x
A148: 37743 | B148: 11540 | C148: 561 | D148: 89357 | E148: 312 | F148: 2746 | G148: 60 | H148: 9639 | I148: 23 | J148: 0.006278187495 | K148: 2 | L148: 150 | M148: 0.004599527737 | N148: -0.001678659758 | O148: x | P148: x | Q148: x | R148: x
A149: 37949 | B149: 16580 | C149: 4461 | D149: 220211 | E149: 814 | F149: 3813 | G149: 288 | H149: 20381 | I149: 37 | J149: 0.02025784361 | K149: 3 | L149: 300 | M149: 0.01889551385 | N149: -0.001362329766 | O149: x | P149: x | Q149: x | R149: x
A150: 38740 | B150: 14020 | C150: 967 | D150: 168939 | E150: 1109 | F150: 6086 | G150: -270 | H150: 17608 | I150: 59 | J150: 0.005723959536 | K150: 3 | L150: 300 | M150: 0.003948170641 | N150: -0.001775788894 | O150: x | P150: x | Q150: x | R150: x
A151: 39327 | B151: 0 | C151: 4238 | D151: 443721 | E151: 469 | F151: 8522 | G151: 801 | H151: 73702 | I151: 92 | J151: 0.009551046716 | K151: 4 | L151: 200 | M151: 0.009100313035 | N151: -0.0004507336818 | O151: x | P151: x | Q151: x | R151: x
A152: 39756 | B152: 36420 | C152: 5636 | D152: 534975 | E152: 1286 | F152: 15600 | G152: 180 | H152: 39617 | I152: 130 | J152: 0.01053507173 | K152: 4 | L152: 300 | M152: 0.009974297864 | N152: -0.0005607738679 | O152: x | P152: x | Q152: x | R152: x
A153: 40033 | B153: 25620 | C153: 453 | D153: 64340 | E153: 167 | F153: 2334 | G153: 0 | H153: 9204 | I153: 18 | J153: 0.007040721169 | K153: 2 | L153: 150 | M153: 0.004709356543 | N153: -0.002331364625 | O153: x | P153: x | Q153: x | R153: x
A154: 40350 | B154: 36540 | C154: -124 | D154: 47595 | E154: 275 | F154: 1294 | G154: 0 | H154: 4466 | I154: 8 | J154: -0.002605315684 | K154: 1 | L154: 150 | M154: -0.005756907238 | N154: -0.003151591554 | O154: x | P154: x | Q154: x | R154: x
A155: 40707 | B155: 0 | C155: 267 | D155: 279805 | E155: 1217 | F155: 9504 | G155: 774 | H155: 21209 | I155: 85 | J155: 0.0009542359858 | K155: 4 | L155: 200 | M155: 0.0002394524758 | N155: -0.0007147835099 | O155: x | P155: x | Q155: x | R155: x
A156: 40855 | B156: 29100 | C156: 1398 | D156: 90830 | E156: 1046 | F156: 1579 | G156: 60 | H156: 7252 | I156: 13 | J156: 0.01539139051 | K156: 2 | L156: 150 | M156: 0.01373995376 | N156: -0.00165143675 | O156: x | P156: x | Q156: x | R156: x
A157: 41245 | B157: 27500 | C157: 505 | D157: 46625 | E157: 187 | F157: 1007 | G157: 0 | H157: 5246 | I157: 10 | J157: 0.0108310992 | K157: 1 | L157: 150 | M157: 0.007613941019 | N157: -0.003217158177 | O157: x | P157: x | Q157: x | R157: x
A158: 41553 | B158: 0 | C158: 1143 | D158: 97564 | E158: 643 | F158: 2302 | G158: 0 | H158: 9247 | I158: 24 | J158: 0.01171538682 | K158: 2 | L158: 100 | M158: 0.0106904186 | N158: -0.001024968226 | O158: x | P158: x | Q158: x | R158: x
A159: 41629 | B159: 0 | C159: 2105 | D159: 168945 | E159: 670 | F159: 6498 | G159: 551 | H159: 18765 | I159: 60 | J159: 0.01245967623 | K159: 3 | L159: 200 | M159: 0.01127585901 | N159: -0.001183817219 | O159: x | P159: x | Q159: x | R159: x
A160: 41759 | B160: 0 | C160: 604 | D160: 53131 | E160: 240 | F160: 951 | G160: 115 | H160: 4897 | I160: 9 | J160: 0.01136812783 | K160: 2 | L160: 100 | M160: 0.009485987465 | N160: -0.00188214037 | O160: x | P160: x | Q160: x | R160: x
A161: 41825 | B161: 13644 | C161: 161 | D161: 160224 | E161: 174 | F161: 4966 | G161: 428 | H161: 17131 | I161: 49 | J161: 0.001004843219 | K161: 3 | L161: 300 | M161: -0.0008675354504 | N161: -0.00187237867 | O161: x | P161: x | Q161: x | R161: x
A162: 41937 | B162: 0 | C162: 558 | D162: 67885 | E162: 203 | F162: 1605 | G162: 6 | H162: 5534 | I162: 18 | J162: 0.008219783457 | K162: 2 | L162: 100 | M162: 0.006746703985 | N162: -0.001473079473 | O162: x | P162: x | Q162: x | R162: x
A163: 41955 | B163: 0 | C163: 148 | D163: 38349 | E163: 141 | F163: 1028 | G163: 0 | H163: 2935 | I163: 9 | J163: 0.003859292289 | K163: 1 | L163: 100 | M163: 0.001251662364 | N163: -0.002607629925 | O163: x | P163: x | Q163: x | R163: x
A164: 42037 | B164: 0 | C164: -10 | D164: 61462 | E164: 265 | F164: 2721 | G164: 0 | H164: 7906 | I164: 27 | J164: -0.0001627021574 | K164: 2 | L164: 100 | M164: -0.001789723732 | N164: -0.001627021574 | O164: x | P164: x | Q164: x | R164: x
A165: 42055 | B165: 0 | C165: 631 | D165: 71361 | E165: 373 | F165: 2588 | G165: 217 | H165: 7676 | I165: 30 | J165: 0.008842364877 | K165: 2 | L165: 100 | M165: 0.007441039223 | N165: -0.001401325654 | O165: x | P165: x | Q165: x | R165: x
A166: 42354 | B166: 0 | C166: 2474 | D166: 135935 | E166: 250 | F166: 3262 | G166: 142 | H166: 16100 | I166: 34 | J166: 0.01819987494 | K166: 3 | L166: 200 | M166: 0.01672858351 | N166: -0.001471291426 | O166: x | P166: x | Q166: x | R166: x
A167: 42448 | B167: 0 | C167: 9306 | D167: 745192 | E167: 6213 | F167: 18034 | G167: 1819 | H167: 91759 | I167: 159 | J167: 0.01248805677 | K167: 4 | L167: 200 | M167: 0.01221966956 | N167: -0.0002683872076 | O167: x | P167: x | Q167: x | R167: x
A168: 42457 | B168: 0 | C168: 311 | D168: 39317 | E168: 68 | F168: 971 | G168: 0 | H168: 5087 | I168: 8 | J168: 0.007910064349 | K168: 1 | L168: 100 | M168: 0.005366635298 | N168: -0.002543429051 | O168: x | P168: x | Q168: x | R168: x
A169: 43052 | B169: 0 | C169: 936 | D169: 81520 | E169: 346 | F169: 2756 | G169: 0 | H169: 13019 | I169: 18 | J169: 0.01148184495 | K169: 2 | L169: 100 | M169: 0.01025515211 | N169: -0.001226692836 | O169: x | P169: x | Q169: x | R169: x
A170: 43351 | B170: 31740 | C170: -391 | D170: 30210 | E170: 253 | F170: 1529 | G170: 144 | H170: 3851 | I170: 11 | J170: -0.01294273419 | K170: 1 | L170: 150 | M170: -0.01790797749 | N170: -0.004965243297 | O170: x | P170: x | Q170: x | R170: x
A171: 43454 | B171: 24220 | C171: 153 | D171: 23874 | E171: 36 | F171: 728 | G171: 17 | H171: 3259 | I171: 7 | J171: 0.006408645388 | K171: 1 | L171: 150 | M171: 0.0001256597135 | N171: -0.006282985675 | O171: x | P171: x | Q171: x | R171: x
A172: 43744 | B172: 31540 | C172: 316 | D172: 73973 | E172: 690 | F172: 1903 | G172: 74 | H172: 11726 | I172: 14 | J172: 0.004271828911 | K172: 2 | L172: 150 | M172: 0.002244062023 | N172: -0.002027766888 | O172: x | P172: x | Q172: x | R172: x
A173: 43856 | B173: 20260 | C173: 126 | D173: 56545 | E173: 167 | F173: 1545 | G173: 0 | H173: 5024 | I173: 16 | J173: 0.002228313732 | K173: 2 | L173: 150 | M173: -0.0004244407109 | N173: -0.002652754443 | O173: x | P173: x | Q173: x | R173: x
A174: 43959 | B174: 13140 | C174: 900 | D174: 159366 | E174: 600 | F174: 3741 | G174: 170 | H174: 12630 | I174: 33 | J174: 0.005647377734 | K174: 3 | L174: 300 | M174: 0.00376491849 | N174: -0.001882459245 | O174: x | P174: x | Q174: x | R174: x
A175: 44040 | B175: 0 | C175: 2237 | D175: 314914 | E175: 1936 | F175: 5814 | G175: 600 | H175: 29848 | I175: 54 | J175: 0.007103526677 | K175: 4 | L175: 200 | M175: 0.006468432651 | N175: -0.0006350940257 | O175: x | P175: x | Q175: x | R175: x
A176: 44433 | B176: 33124 | C176: -1520 | D176: 320988 | E176: 2045 | F176: 12751 | G176: 2523 | H176: 25187 | I176: 86 | J176: -0.004735379516 | K176: 4 | L176: 300 | M176: -0.005669993894 | N176: -0.0009346143781 | O176: x | P176: x | Q176: x | R176: x
A177: 44741 | B177: 26900 | C177: 2422 | D177: 378129 | E177: 1596 | F177: 13135 | G177: -272 | H177: 36176 | I177: 128 | J177: 0.006405221498 | K177: 4 | L177: 300 | M177: 0.005611841462 | N177: -0.000793380037 | O177: x | P177: x | Q177: x | R177: x
A178: 44750 | B178: 0 | C178: 1250 | D178: 166351 | E178: 2054 | F178: 4784 | G178: 144 | H178: 15974 | I178: 42 | J178: 0.007514231955 | K178: 3 | L178: 200 | M178: 0.006311954842 | N178: -0.001202277113 | O178: x | P178: x | Q178: x | R178: x
A179: 44929 | B179: 0 | C179: 544 | D179: 140392 | E179: 820 | F179: 4216 | G179: 32 | H179: 15895 | I179: 57 | J179: 0.003874864665 | K179: 3 | L179: 200 | M179: 0.002450282067 | N179: -0.001424582597 | O179: x | P179: x | Q179: x | R179: x
A180: 45038 | B180: 0 | C180: 1563 | D180: 136690 | E180: 1034 | F180: 2008 | G180: 800 | H180: 12947 | I180: 17 | J180: 0.01143463311 | K180: 3 | L180: 200 | M180: 0.009971468286 | N180: -0.001463164826 | O180: x | P180: x | Q180: x | R180: x
A181: 45047 | B181: 0 | C181: 2183 | D181: 121358 | E181: 415 | F181: 4555 | G181: 89 | H181: 17894 | I181: 38 | J181: 0.01798810132 | K181: 3 | L181: 200 | M181: 0.01634008471 | N181: -0.001648016612 | O181: x | P181: x | Q181: x | R181: x
A182: 45056 | B182: 0 | C182: 386 | D182: 66106 | E182: 144 | F182: 1676 | G182: 0 | H182: 8888 | I182: 12 | J182: 0.005839106889 | K182: 2 | L182: 100 | M182: 0.004326384897 | N182: -0.001512721992 | O182: x | P182: x | Q182: x | R182: x
A183: 45430 | B183: 0 | C183: 776 | D183: 119338 | E183: 875 | F183: 3052 | G183: 84 | H183: 15636 | I183: 24 | J183: 0.006502539007 | K183: 3 | L183: 200 | M183: 0.004826626892 | N183: -0.001675912115 | O183: x | P183: x | Q183: x | R183: x
A184: 45458 | B184: 48620 | C184: 20 | D184: 46874 | E184: 61 | F184: 754 | G184: 43 | H184: 5654 | I184: 13 | J184: 0.0004266757691 | K184: 1 | L184: 150 | M184: -0.002773392499 | N184: -0.003200068268 | O184: x | P184: x | Q184: x | R184: x
A185: 45551 | B185: 0 | C185: 10818 | D185: 712408 | E185: 2138 | F185: 23872 | G185: 1122 | H185: 73278 | I185: 180 | J185: 0.01518511864 | K185: 4 | L185: 200 | M185: 0.01490438064 | N185: -0.0002807380041 | O185: x | P185: x | Q185: x | R185: x
A186: 46053 | B186: 0 | C186: 1482 | D186: 175941 | E186: 661 | F186: 6504 | G186: 177 | H186: 19791 | I186: 46 | J186: 0.008423278258 | K186: 3 | L186: 200 | M186: 0.007286533554 | N186: -0.001136744704 | O186: x | P186: x | Q186: x | R186: x
A187: 46941 | B187: 0 | C187: 1772 | D187: 114944 | E187: 438 | F187: 3392 | G187: 93 | H187: 19143 | I187: 34 | J187: 0.01541620267 | K187: 3 | L187: 200 | M187: 0.01367622494 | N187: -0.001739977728 | O187: x | P187: x | Q187: x | R187: x
A188: 47153 | B188: 0 | C188: -61 | D188: 20318 | E188: 97 | F188: 575 | G188: 175 | H188: 1997 | I188: 5 | J188: -0.003002264002 | K188: 1 | L188: 100 | M188: -0.007924008269 | N188: -0.004921744266 | O188: x | P188: x | Q188: x | R188: x
A189: 47247 | B189: 29620 | C189: 2415 | D189: 271122 | E189: 1721 | F189: 8040 | G189: 164 | H189: 26621 | I189: 77 | J189: 0.008907429128 | K189: 4 | L189: 300 | M189: 0.007800916193 | N189: -0.001106512935 | O189: x | P189: x | Q189: x | R189: x
A190: 47256 | B190: 0 | C190: 9 | D190: 28144 | E190: 100 | F190: 1267 | G190: -1 | H190: 4582 | I190: 15 | J190: 0.0003197839682 | K190: 1 | L190: 100 | M190: -0.003233371234 | N190: -0.003553155202 | O190: x | P190: x | Q190: x | R190: x
A191: 47452 | B191: 43340 | C191: 349 | D191: 51930 | E191: 235 | F191: 1303 | G191: 0 | H191: 8784 | I191: 12 | J191: 0.006720585403 | K191: 2 | L191: 150 | M191: 0.003832081648 | N191: -0.002888503755 | O191: x | P191: x | Q191: x | R191: x
A192: 48057 | B192: 0 | C192: 559 | D192: 113163 | E192: 596 | F192: 3147 | G192: 396 | H192: 9608 | I192: 27 | J192: 0.004939777136 | K192: 3 | L192: 200 | M192: 0.003172415012 | N192: -0.001767362124 | O192: x | P192: x | Q192: x | R192: x
A193: 48150 | B193: 0 | C193: 204 | D193: 26981 | E193: 114 | F193: 597 | G193: 12 | H193: 3540 | I193: 5 | J193: 0.007560876172 | K193: 1 | L193: 100 | M193: 0.003854564323 | N193: -0.003706311849 | O193: x | P193: x | Q193: x | R193: x
A194: 48374 | B194: 0 | C194: 23873 | D194: 855988 | E194: 7735 | F194: 30334 | G194: 600 | H194: 89674 | I194: 261 | J194: =C194/D194 -> 0.02788940966 | K194: =IF(D194/1000<INDEX(sizeV,1),1,IF(D194/1000<INDEX(sizeV,2),2,IF(D194/1000<INDEX(sizeV,3),3,IF(D194/1000<INDEX(sizeV,4),4,IF(D194/1000<INDEX(sizeV,5),5,6))))) -> 4 | L194: =IF(B194=0,salRural*T$2,salUrban*T$2)*INDEX(nHires,K194) -> 200 | M194: =(C194-L194)/D194 -> 0.02765576153 | N194: =M194-J194 -> -0.0002336481353 | O194: x | P194: x | Q194: x | R194: x
A195: 48440 | B195: 0 | C195: 1210 | D195: 106928 | E195: 484 | F195: 2870 | G195: 150 | H195: 9393 | I195: 26 | J195: 0.01131602574 | K195: 3 | L195: 200 | M195: 0.00944560826 | N195: -0.001870417477 | O195: x | P195: x | Q195: x | R195: x
A196: 49054 | B196: 0 | C196: 2058 | D196: 156160 | E196: 1865 | F196: 4592 | G196: -411 | H196: 23352 | I196: 20 | J196: 0.01317879098 | K196: 3 | L196: 200 | M196: 0.01189805328 | N196: -0.001280737705 | O196: x | P196: x | Q196: x | R196: x
A197: 49148 | B197: 0 | C197: 1225 | D197: 97794 | E197: 338 | F197: 1730 | G197: 60 | H197: 12763 | I197: 18 | J197: 0.01252633086 | K197: 2 | L197: 100 | M197: 0.01150377324 | N197: -0.001022557621 | O197: x | P197: x | Q197: x | R197: x
A198: 49241 | B198: 38220 | C198: 5205 | D198: 465897 | E198: 1303 | F198: 18869 | G198: 915 | H198: 62626 | I198: 150 | J198: 0.01117199724 | K198: 4 | L198: 300 | M198: 0.01052807809 | N198: -0.0006439191495 | O198: x | P198: x | Q198: x | R198: x
A199: 49344 | B199: 29620 | C199: 852 | D199: 132543 | E199: 1380 | F199: 3156 | G199: 103 | H199: 13341 | I199: 32 | J199: 0.006428102578 | K199: 3 | L199: 300 | M199: 0.004164686177 | N199: -0.002263416401 | O199: x | P199: x | Q199: x | R199: x
A200: 49643 | B200: 0 | C200: 180 | D200: 40043 | E200: 121 | F200: 766 | G200: 0 | H200: 7041 | I200: 10 | J200: 0.004495167695 | K200: 1 | L200: 100 | M200: 0.001997852309 | N200: -0.002497315386 | O200: x | P200: x | Q200: x | R200: x
... 5111 more rows

Sheet 2012 data (hidden)
A1: id.rssd | B1: msa.cd | C1: nt.inc | D1: assets | E1: int.exp | F1: nonint.exp | G1: prov.exp | H1: equity | I1: fte | J1: roa | K1: asset.cohort | L1: addl reg exp | M1: new.roa | N1: delta | O1: newly unprof | P1: roe | Q1: new.roe | R1: delta | T1: 2012
A2: 37 | B2: 0 | C2: 498 | D2: 85871 | E2: 1009 | F2: 2324 | G2: 120 | H2: 18478 | I2: 25 | J2: =C2/D2 -> 0.00579939677 | K2: =IF(D2/1000<INDEX(sizeV,1),1,IF(D2/1000<INDEX(sizeV,2),2,IF(D2/1000<INDEX(sizeV,3),3,IF(D2/1000<INDEX(sizeV,4),4,IF(D2/1000<INDEX(sizeV,5),5,6))))) -> 2 | L2: =IF(B2=0,salRural*T$2,salUrban*T$2)*INDEX(nHires,K2) -> 98.51019208 | M2: =(C2-L2)/D2 -> 0.004652208638 | N2: =M2-J2 -> -0.001147188132 | O2: x | P2: x | Q2: x | R2: x | T2: =VLOOKUP(T1,cpiAdj,2,FALSE) -> 0.9851019208 | W2: Asset | AC2: Change in ROA | AM2: Number
A3: 242 | B3: 0 | C3: 474 | D3: 36979 | E3: 240 | F3: 937 | G3: 0 | H3: 4941 | I3: 12 | J3: 0.01281808594 | K3: 1 | L3: 98.51019208 | M3: 0.01015413635 | N3: -0.002663949595 | O3: x | P3: x | Q3: x | R3: x | V3: Size | W3: Size Max | X3: Addl | Y3: # of | AA3: Median | AB3: x | AC3: 25th pctile | AD3: 50th pctile | AE3: 75th pctile | AF3: Avg | AG3: Original | AH3: Newly | AJ3: Original | AK3: After Change | AM3: of firms
A4: 354 | B4: 0 | C4: 33 | D4: 11203 | E4: 25 | F4: 350 | G4: 0 | H4: 1063 | I4: 4 | J4: 0.002945639561 | K4: 1 | L4: 98.51019208 | M4: -0.005847557982 | N4: -0.008793197543 | O4: x | P4: x | Q4: x | R4: x | V4: Quintile | W4: ($MM) | X4: Hires | Y4: Banks | Z4: % | AA4: FTEs | AB4: x | AC4: (bps) | AD4: (bps) | AE4: (bps) | AF4: (bps) | AG4: Unprof | AH4: Unprof | AI4: Difference | AJ4: ROA < 40 | AK4: ROA < 40 | AL4: Difference | AM4: in the cohort
A5: 457 | B5: 0 | C5: 907 | D5: 40715 | E5: 314 | F5: 1001 | G5: 121 | H5: 3805 | I5: 9 | J5: 0.02227680216 | K5: 1 | L5: 98.51019208 | M5: 0.01985729603 | N5: -0.00241950613 | O5: x | P5: x | Q5: x | R5: x | V5: 1 | W5: x | X5: x | Y5: x | Z5: x | AA5: x | AB5: x | AC5: =PERCENTILE(IF($K$2:$K$7000=$V5,$N$2:$N$7000),0.25)*10000 -> -46.1615058 | AD5: =PERCENTILE(IF($K$2:$K$7000=$V5,$N$2:$N$7000),0.5)*10000 -> -33.67102384 | AE5: =PERCENTILE(IF($K$2:$K$7000=$V5,$N$2:$N$7000),0.75)*10000 -> -25.32428746 | AF5: =AVERAGE(IF($K$2:$K$7000=$V5,$N$2:$N$7000))*10000 -> -41.67723087 | AG5: =SUM(IF($K$2:$K$7000=$V5,IF($J$2:$J$7000<0,1,0))) -> 111 | AH5: =SUM(IF($K$2:$K$7000=$V5,IF($M$2:$M$7000<0,1,0))) -> 248 | AI5: =IF(INDEX(sizeV,V5)>0,AH5-AG5) -> 137 | AJ5: =SUM(IF($K$2:$K$7000=$V5,IF($J$2:$J$7000<0.004,1,0))) -> 256 | AK5: =SUM(IF($K$2:$K$7000=$V5,IF($M$2:$M$7000<0.004,1,0))) -> 453 | AL5: =IF(INDEX(sizeV,V5)>0,AK5-AJ5) -> 197 | AM5: =COUNTIF($K$2:$K$7000,$V5) -> 739
A6: 505 | B6: 10580 | C6: 2355 | D6: 421160 | E6: 2437 | F6: 11480 | G6: 400 | H6: 31512 | I6: 106 | J6: 0.005591699117 | K6: 4 | L6: 295.5305762 | M6: 0.004889992933 | N6: -0.0007017061835 | O6: x | P6: x | Q6: x | R6: x | V6: 2 | W6: x | X6: x | Y6: x | Z6: x | AA6: x | AB6: x | AC6: =PERCENTILE(IF($K$2:$K$7000=$V6,$N$2:$N$7000),0.25)*10000 -> -19.17818725 | AD6: =PERCENTILE(IF($K$2:$K$7000=$V6,$N$2:$N$7000),0.5)*10000 -> -16.16210729 | AE6: =PERCENTILE(IF($K$2:$K$7000=$V6,$N$2:$N$7000),0.75)*10000 -> -13.01702236 | AF6: =AVERAGE(IF($K$2:$K$7000=$V6,$N$2:$N$7000))*10000 -> -16.68993099 | AG6: =SUM(IF($K$2:$K$7000=$V6,IF($J$2:$J$7000<0,1,0))) -> 148 | AH6: =SUM(IF($K$2:$K$7000=$V6,IF($M$2:$M$7000<0,1,0))) -> 202 | AI6: =IF(INDEX(sizeV,V6)>0,AH6-AG6) -> 54 | AJ6: =SUM(IF($K$2:$K$7000=$V6,IF($J$2:$J$7000<0.004,1,0))) -> 308 | AK6: =SUM(IF($K$2:$K$7000=$V6,IF($M$2:$M$7000<0.004,1,0))) -> 430 | AL6: =IF(INDEX(sizeV,V6)>0,AK6-AJ6) -> 122 | AM6: =COUNTIF($K$2:$K$7000,$V6) -> 1182
A7: 1155 | B7: 0 | C7: 2506 | D7: 215586 | E7: 1534 | F7: 6113 | G7: 1 | H7: 19654 | I7: 51 | J7: 0.01162413144 | K7: 3 | L7: 197.0203842 | M7: 0.01071024842 | N7: -0.0009138830172 | O7: x | P7: x | Q7: x | R7: x | V7: 3 | W7: x | X7: x | Y7: x | Z7: x | AA7: x | AB7: x | AC7: =PERCENTILE(IF($K$2:$K$7000=$V7,$N$2:$N$7000),0.25)*10000 -> -19.03771735 | AD7: =PERCENTILE(IF($K$2:$K$7000=$V7,$N$2:$N$7000),0.5)*10000 -> -15.35874026 | AE7: =PERCENTILE(IF($K$2:$K$7000=$V7,$N$2:$N$7000),0.75)*10000 -> -12.39103734 | AF7: =AVERAGE(IF($K$2:$K$7000=$V7,$N$2:$N$7000))*10000 -> -16.13615515 | AG7: =SUM(IF($K$2:$K$7000=$V7,IF($J$2:$J$7000<0,1,0))) -> 192 | AH7: =SUM(IF($K$2:$K$7000=$V7,IF($M$2:$M$7000<0,1,0))) -> 268 | AI7: =IF(INDEX(sizeV,V7)>0,AH7-AG7) -> 76 | AJ7: =SUM(IF($K$2:$K$7000=$V7,IF($J$2:$J$7000<0.004,1,0))) -> 409 | AK7: =SUM(IF($K$2:$K$7000=$V7,IF($M$2:$M$7000<0.004,1,0))) -> 580 | AL7: =IF(INDEX(sizeV,V7)>0,AK7-AJ7) -> 171 | AM7: =COUNTIF($K$2:$K$7000,$V7) -> 1971
A8: 1351 | B8: 0 | C8: 3115 | D8: 163382 | E8: 1878 | F8: 2598 | G8: 629 | H8: 19773 | I8: 30 | J8: 0.01906574776 | K8: 3 | L8: 197.0203842 | M8: 0.01785985981 | N8: -0.001205887945 | O8: x | P8: x | Q8: x | R8: x | V8: 4 | W8: x | X8: x | Y8: x | Z8: x | AA8: x | AB8: x | AC8: =PERCENTILE(IF($K$2:$K$7000=$V8,$N$2:$N$7000),0.25)*10000 -> -7.853954841 | AD8: =PERCENTILE(IF($K$2:$K$7000=$V8,$N$2:$N$7000),0.5)*10000 -> -6.088793992 | AE8: =PERCENTILE(IF($K$2:$K$7000=$V8,$N$2:$N$7000),0.75)*10000 -> -4.342027895 | AF8: =AVERAGE(IF($K$2:$K$7000=$V8,$N$2:$N$7000))*10000 -> -6.343459417 | AG8: =SUM(IF($K$2:$K$7000=$V8,IF($J$2:$J$7000<0,1,0))) -> 118 | AH8: =SUM(IF($K$2:$K$7000=$V8,IF($M$2:$M$7000<0,1,0))) -> 129 | AI8: =IF(INDEX(sizeV,V8)>0,AH8-AG8) -> 11 | AJ8: =SUM(IF($K$2:$K$7000=$V8,IF($J$2:$J$7000<0.004,1,0))) -> 283 | AK8: =SUM(IF($K$2:$K$7000=$V8,IF($M$2:$M$7000<0.004,1,0))) -> 335 | AL8: =IF(INDEX(sizeV,V8)>0,AK8-AJ8) -> 52 | AM8: =COUNTIF($K$2:$K$7000,$V8) -> 1565
A9: 1454 | B9: 16220 | C9: 9334 | D9: 637046 | E9: 1171 | F9: 16621 | G9: 280 | H9: 65680 | I9: 146 | J9: 0.01465200315 | K9: 4 | L9: 295.5305762 | M9: 0.0141880954 | N9: -0.0004639077496 | O9: x | P9: x | Q9: x | R9: x | V9: 5 | W9: x | X9: x | Y9: x | Z9: x | AA9: x | AB9: x | AC9: =PERCENTILE(IF($K$2:$K$7000=$V9,$N$2:$N$7000),0.25)*10000 ->  | AD9: =PERCENTILE(IF($K$2:$K$7000=$V9,$N$2:$N$7000),0.5)*10000 ->  | AE9: =PERCENTILE(IF($K$2:$K$7000=$V9,$N$2:$N$7000),0.75)*10000 ->  | AF9: =AVERAGE(IF($K$2:$K$7000=$V9,$N$2:$N$7000))*10000 ->  | AG9: =SUM(IF($K$2:$K$7000=$V9,IF($J$2:$J$7000<0,1,0))) -> 0 | AH9: =SUM(IF($K$2:$K$7000=$V9,IF($M$2:$M$7000<0,1,0))) -> 0 | AI9: =IF(INDEX(sizeV,V9)>0,AH9-AG9) -> 0 | AJ9: =SUM(IF($K$2:$K$7000=$V9,IF($J$2:$J$7000<0.004,1,0))) -> 0 | AK9: =SUM(IF($K$2:$K$7000=$V9,IF($M$2:$M$7000<0.004,1,0))) -> 0 | AL9: =IF(INDEX(sizeV,V9)>0,AK9-AJ9) -> 0 | AM9: =COUNTIF($K$2:$K$7000,$V9) -> 0
A10: 1557 | B10: 0 | C10: 664 | D10: 71074 | E10: 289 | F10: 1303 | G10: 210 | H10: 6054 | I10: 13 | J10: 0.009342375552 | K10: 2 | L10: 98.51019208 | M10: 0.007956352645 | N10: -0.001386022907 | O10: x | P10: x | Q10: x | R10: x
A11: 1669 | B11: 0 | C11: 2746 | D11: 250172 | E11: 942 | F11: 5513 | G11: 258 | H11: 44541 | I11: 51 | J11: 0.0109764482 | K11: 4 | L11: 197.0203842 | M11: 0.01018890849 | N11: -0.0007875397093 | O11: x | P11: x | Q11: x | R11: x
A12: 1829 | B12: 38300 | C12: 2525 | D12: 405289 | E12: 3324 | F12: 11794 | G12: 486 | H12: 44610 | I12: 98 | J12: 0.006230122209 | K12: 4 | L12: 295.5305762 | M12: 0.005500937414 | N12: -0.0007291847946 | O12: x | P12: x | Q12: x | R12: x | W12: Percentiles of ROA (before)
A13: 1856 | B13: 0 | C13: -2601 | D13: 116772 | E13: 3594 | F13: 3954 | G13: 171 | H13: 14926 | I13: 8 | J13: -0.02227417532 | K13: 3 | L13: 197.0203842 | M13: -0.02396139814 | N13: -0.001687222829 | O13: x | P13: x | Q13: x | R13: x | V13: Cohort | W13: 25 | X13: 50 | Y13: 75
A14: 2040 | B14: 0 | C14: 7 | D14: 200588 | E14: 2273 | F14: 6411 | G14: 1135 | H14: 21267 | I14: 46 | J14: 3.489740164e-05 | K14: 3 | L14: 197.0203842 | M14: -0.0009473168093 | N14: -0.000982214211 | O14: x | P14: x | Q14: x | R14: x | V14: 1 | W14: =PERCENTILE(IF($K$2:$K$7000=$V14,$J$2:$J$7000),W$13/100) -> 0.002649481066 | X14: =PERCENTILE(IF($K$2:$K$7000=$V14,$J$2:$J$7000),X$13/100) -> 0.006011453776 | Y14: =PERCENTILE(IF($K$2:$K$7000=$V14,$J$2:$J$7000),Y$13/100) -> 0.01044564482
A15: 2161 | B15: 0 | C15: 2152 | D15: 136486 | E15: 495 | F15: 3751 | G15: 5 | H15: 14718 | I15: 34 | J15: 0.01576718491 | K15: 3 | L15: 197.0203842 | M15: 0.01432366408 | N15: -0.001443520831 | O15: x | P15: x | Q15: x | R15: x | V15: 2 | W15: =PERCENTILE(IF($K$2:$K$7000=$V15,$J$2:$J$7000),W$13/100) -> 0.00370246473 | X15: =PERCENTILE(IF($K$2:$K$7000=$V15,$J$2:$J$7000),X$13/100) -> 0.007803346525 | Y15: =PERCENTILE(IF($K$2:$K$7000=$V15,$J$2:$J$7000),Y$13/100) -> 0.01193265197
A16: 2554 | B16: 0 | C16: 157 | D16: 13235 | E16: 67 | F16: 298 | G16: 24 | H16: 1273 | I16: 4 | J16: 0.01186248583 | K16: 1 | L16: 98.51019208 | M16: 0.004419328139 | N16: -0.007443157694 | O16: x | P16: x | Q16: x | R16: x | V16: 3 | W16: =PERCENTILE(IF($K$2:$K$7000=$V16,$J$2:$J$7000),W$13/100) -> 0.004831350145 | X16: =PERCENTILE(IF($K$2:$K$7000=$V16,$J$2:$J$7000),X$13/100) -> 0.008603879601 | Y16: =PERCENTILE(IF($K$2:$K$7000=$V16,$J$2:$J$7000),Y$13/100) -> 0.01230241197
A17: 2732 | B17: 16974 | C17: 3442 | D17: 548627 | E17: 1501 | F17: 10471 | G17: 1615 | H17: 79417 | I17: 90 | J17: 0.006273843613 | K17: 4 | L17: 295.5305762 | M17: 0.005735170569 | N17: -0.0005386730442 | O17: x | P17: x | Q17: x | R17: x | V17: 4 | W17: =PERCENTILE(IF($K$2:$K$7000=$V17,$J$2:$J$7000),W$13/100) -> 0.005474446836 | X17: =PERCENTILE(IF($K$2:$K$7000=$V17,$J$2:$J$7000),X$13/100) -> 0.008791169915 | Y17: =PERCENTILE(IF($K$2:$K$7000=$V17,$J$2:$J$7000),Y$13/100) -> 0.01213159246
A18: 2750 | B18: 0 | C18: 92 | D18: 58495 | E18: 674 | F18: 1390 | G18: 697 | H18: 5611 | I18: 10 | J18: 0.001572783999 | K18: 2 | L18: 98.51019208 | M18: -0.000111294847 | N18: -0.001684078846 | O18: x | P18: x | Q18: x | R18: x | V18: 5 | W18: =PERCENTILE(IF($K$2:$K$7000=$V18,$J$2:$J$7000),W$13/100) ->  | X18: =PERCENTILE(IF($K$2:$K$7000=$V18,$J$2:$J$7000),X$13/100) ->  | Y18: =PERCENTILE(IF($K$2:$K$7000=$V18,$J$2:$J$7000),Y$13/100) -> 
A19: 3252 | B19: 0 | C19: 2765 | D19: 167113 | E19: 903 | F19: 3383 | G19: 550 | H19: 20445 | I19: 36 | J19: 0.01654569064 | K19: 3 | L19: 197.0203842 | M19: 0.0153667256 | N19: -0.001178965037 | O19: x | P19: x | Q19: x | R19: x
A20: 3458 | B20: 0 | C20: 223 | D20: 34114 | E20: 198 | F20: 779 | G20: 60 | H20: 3423 | I20: 10 | J20: 0.006536905669 | K20: 1 | L20: 98.51019208 | M20: 0.003649229288 | N20: -0.002887676381 | O20: x | P20: x | Q20: x | R20: x
A21: 3720 | B21: 0 | C21: 2002 | D21: 204303 | E21: 883 | F21: 6947 | G21: 190 | H21: 29560 | I21: 60 | J21: 0.009799170839 | K21: 3 | L21: 197.0203842 | M21: 0.008834816992 | N21: -0.0009643538477 | O21: x | P21: x | Q21: x | R21: x | W21: Percentiles of ROA (after)
A22: 4156 | B22: 0 | C22: 2061 | D22: 210558 | E22: 1188 | F22: 6908 | G22: 90 | H22: 21505 | I22: 65 | J22: 0.009788276864 | K22: 3 | L22: 197.0203842 | M22: 0.008852570863 | N22: -0.000935706001 | O22: x | P22: x | Q22: x | R22: x | V22: Cohort | W22: 25 | X22: 50 | Y22: 75
A23: 4231 | B23: 0 | C23: 32 | D23: 121055 | E23: 1099 | F23: 3075 | G23: 1859 | H23: 14834 | I23: 32 | J23: 0.0002643426542 | K23: 3 | L23: 197.0203842 | M23: -0.001363185198 | N23: -0.001627527852 | O23: x | P23: x | Q23: x | R23: x | V23: 1 | W23: =PERCENTILE(IF($K$2:$K$7000=$V23,$M$2:$M$7000),W$13/100) -> -0.001978343416 | X23: =PERCENTILE(IF($K$2:$K$7000=$V23,$M$2:$M$7000),X$13/100) -> 0.002594521021 | Y23: =PERCENTILE(IF($K$2:$K$7000=$V23,$M$2:$M$7000),Y$13/100) -> 0.007175881673
A24: 4437 | B24: 0 | C24: 897 | D24: 259780 | E24: 2180 | F24: 7090 | G24: 601 | H24: 27513 | I24: 61 | J24: 0.003452921703 | K24: 4 | L24: 197.0203842 | M24: 0.002694509261 | N24: -0.0007584124419 | O24: x | P24: x | Q24: x | R24: x | V24: 2 | W24: =PERCENTILE(IF($K$2:$K$7000=$V24,$M$2:$M$7000),W$13/100) -> 0.001859183917 | X24: =PERCENTILE(IF($K$2:$K$7000=$V24,$M$2:$M$7000),X$13/100) -> 0.00608758065 | Y24: =PERCENTILE(IF($K$2:$K$7000=$V24,$M$2:$M$7000),Y$13/100) -> 0.01044838277
A25: 4839 | B25: 16974 | C25: 3730 | D25: 339146 | E25: 2713 | F25: 10678 | G25: 2050 | H25: 34403 | I25: 91 | J25: 0.01099821316 | K25: 4 | L25: 295.5305762 | M25: 0.01012681684 | N25: -0.0008713963197 | O25: x | P25: x | Q25: x | R25: x | V25: 3 | W25: =PERCENTILE(IF($K$2:$K$7000=$V25,$M$2:$M$7000),W$13/100) -> 0.003133408535 | X25: =PERCENTILE(IF($K$2:$K$7000=$V25,$M$2:$M$7000),X$13/100) -> 0.006987686196 | Y25: =PERCENTILE(IF($K$2:$K$7000=$V25,$M$2:$M$7000),Y$13/100) -> 0.01084344643
A26: 5069 | B26: 31084 | C26: 23342 | D26: 412673 | E26: 3485 | F26: 4155 | G26: -1750 | H26: 137059 | I26: 30 | J26: 0.05656294451 | K26: 4 | L26: 295.5305762 | M26: 0.05584680709 | N26: -0.0007161374169 | O26: x | P26: x | Q26: x | R26: x | V26: 4 | W26: =PERCENTILE(IF($K$2:$K$7000=$V26,$M$2:$M$7000),W$13/100) -> 0.004805849718 | X26: =PERCENTILE(IF($K$2:$K$7000=$V26,$M$2:$M$7000),X$13/100) -> 0.008134688067 | Y26: =PERCENTILE(IF($K$2:$K$7000=$V26,$M$2:$M$7000),Y$13/100) -> 0.01148822388
A27: 5135 | B27: 0 | C27: 3682 | D27: 366303 | E27: 2797 | F27: 8518 | G27: 850 | H27: 42473 | I27: 65 | J27: 0.01005178773 | K27: 4 | L27: 197.0203842 | M27: 0.009513925946 | N27: -0.0005378617815 | O27: x | P27: x | Q27: x | R27: x | V27: 5 | W27: =PERCENTILE(IF($K$2:$K$7000=$V27,$M$2:$M$7000),W$13/100) ->  | X27: =PERCENTILE(IF($K$2:$K$7000=$V27,$M$2:$M$7000),X$13/100) ->  | Y27: =PERCENTILE(IF($K$2:$K$7000=$V27,$M$2:$M$7000),Y$13/100) -> 
A28: 5461 | B28: 44700 | C28: 751 | D28: 501225 | E28: 1388 | F28: 16053 | G28: 5117 | H28: 45915 | I28: 121 | J28: 0.001498329094 | K28: 4 | L28: 295.5305762 | M28: 0.0009087125019 | N28: -0.0005896165918 | O28: x | P28: x | Q28: x | R28: x
A29: 5751 | B29: 0 | C29: 2928 | D29: 202659 | E29: 464 | F29: 2968 | G29: 440 | H29: 27596 | I29: 37 | J29: 0.01444791497 | K29: 3 | L29: 197.0203842 | M29: 0.01347573814 | N29: -0.0009721768298 | O29: x | P29: x | Q29: x | R29: x
A30: 6039 | B30: 0 | C30: 24 | D30: 82330 | E30: 413 | F30: 2784 | G30: 566 | H30: 8741 | I30: 24 | J30: 0.0002915097777 | K30: 2 | L30: 98.51019208 | M30: -0.0009050187304 | N30: -0.001196528508 | O30: x | P30: x | Q30: x | R30: x
A31: 6141 | B31: 0 | C31: 292 | D31: 56670 | E31: 218 | F31: 1368 | G31: 210 | H31: 5210 | I31: 11 | J31: 0.00515263808 | K31: 2 | L31: 98.51019208 | M31: 0.00341432518 | N31: -0.001738312901 | O31: x | P31: x | Q31: x | R31: x
A32: 6329 | B32: 0 | C32: 742 | D32: 432392 | E32: 2602 | F32: 20543 | G32: 10650 | H32: 33141 | I32: 188 | J32: 0.001716035449 | K32: 4 | L32: 197.0203842 | M32: 0.001260383207 | N32: -0.0004556522418 | O32: x | P32: x | Q32: x | R32: x
A33: 7009 | B33: 20764 | C33: 13267 | D33: 738276 | E33: 62 | F33: 50530 | G33: 0 | H33: 52422 | I33: 83 | J33: 0.01797024419 | K33: 4 | L33: 295.5305762 | M33: 0.01756994596 | N33: -0.0004002982302 | O33: x | P33: x | Q33: x | R33: x
A34: 7045 | B34: 0 | C34: 1535 | D34: 179787 | E34: 732 | F34: 3641 | G34: 230 | H34: 17488 | I34: 50 | J34: 0.008537880937 | K34: 3 | L34: 197.0203842 | M34: 0.007442026486 | N34: -0.001095854451 | O34: x | P34: x | Q34: x | R34: x
A35: 7157 | B35: 0 | C35: 276 | D35: 46390 | E35: 357 | F35: 1119 | G35: 52 | H35: 4555 | I35: 8 | J35: 0.005949558094 | K35: 1 | L35: 98.51019208 | M35: 0.003826035954 | N35: -0.00212352214 | O35: x | P35: x | Q35: x | R35: x
A36: 7456 | B36: 0 | C36: 716 | D36: 69580 | E36: 306 | F36: 1908 | G36: 20 | H36: 5376 | I36: 16 | J36: 0.01029031331 | K36: 2 | L36: 98.51019208 | M36: 0.008874530151 | N36: -0.001415783157 | O36: x | P36: x | Q36: x | R36: x
A37: 7634 | B37: 0 | C37: 859 | D37: 58909 | E37: 569 | F37: 1661 | G37: 320 | H37: 6265 | I37: 12 | J37: 0.01458181263 | K37: 2 | L37: 98.51019208 | M37: 0.01290956913 | N37: -0.001672243496 | O37: x | P37: x | Q37: x | R37: x
A38: 8033 | B38: 12940 | C38: 1969 | D38: 181398 | E38: 1413 | F38: 3752 | G38: 950 | H38: 17745 | I38: 36 | J38: 0.01085458495 | K38: 3 | L38: 295.5305762 | M38: 0.009225401734 | N38: -0.001629183212 | O38: x | P38: x | Q38: x | R38: x
A39: 8462 | B39: 0 | C39: 1696 | D39: 182260 | E39: 326 | F39: 2325 | G39: 51 | H39: 17143 | I39: 21 | J39: 0.009305387907 | K39: 3 | L39: 197.0203842 | M39: 0.008224402589 | N39: -0.001080985319 | O39: x | P39: x | Q39: x | R39: x
A40: 8631 | B40: 37620 | C40: 476 | D40: 62788 | E40: 303 | F40: 1871 | G40: 20 | H40: 6648 | I40: 23 | J40: 0.007581066446 | K40: 2 | L40: 147.7652881 | M40: 0.005227666304 | N40: -0.002353400142 | O40: x | P40: x | Q40: x | R40: x
A41: 9357 | B41: 33460 | C41: 10021 | D41: 522893 | E41: 801 | F41: 7854 | G41: -900 | H41: 75553 | I41: 46 | J41: 0.01916453271 | K41: 4 | L41: 295.5305762 | M41: 0.01859934905 | N41: -0.0005651836537 | O41: x | P41: x | Q41: x | R41: x
A42: 9553 | B42: 0 | C42: 1498 | D42: 161982 | E42: 804 | F42: 2491 | G42: 100 | H42: 10846 | I42: 16 | J42: 0.009247941129 | K42: 3 | L42: 197.0203842 | M42: 0.008031630773 | N42: -0.001216310356 | O42: x | P42: x | Q42: x | R42: x
A43: 9955 | B43: 0 | C43: 1778 | D43: 121189 | E43: 293 | F43: 3178 | G43: 85 | H43: 14175 | I43: 26 | J43: 0.01467129855 | K43: 3 | L43: 197.0203842 | M43: 0.01304557027 | N43: -0.001625728277 | O43: x | P43: x | Q43: x | R43: x
A44: 10250 | B44: 33460 | C44: 1035 | D44: 363533 | E44: 3163 | F44: 11945 | G44: 1375 | H44: 30116 | I44: 87 | J44: 0.002847059277 | K44: 4 | L44: 295.5305762 | M44: 0.002034119114 | N44: -0.0008129401629 | O44: x | P44: x | Q44: x | R44: x
A45: 10849 | B45: 30780 | C45: 1035 | D45: 256085 | E45: 1412 | F45: 8005 | G45: 150 | H45: 27410 | I45: 59 | J45: 0.004041626804 | K45: 4 | L45: 295.5305762 | M45: 0.002887593665 | N45: -0.001154033138 | O45: x | P45: x | Q45: x | R45: x
A46: 10858 | B46: 0 | C46: 3568 | D46: 418940 | E46: 1275 | F46: 13443 | G46: 200 | H46: 36641 | I46: 114 | J46: 0.008516732706 | K46: 4 | L46: 197.0203842 | M46: 0.008046449649 | N46: -0.0004702830576 | O46: x | P46: x | Q46: x | R46: x
A47: 11145 | B47: 0 | C47: 1191 | D47: 182073 | E47: 1134 | F47: 6196 | G47: 938 | H47: 17907 | I47: 55 | J47: 0.006541332323 | K47: 3 | L47: 197.0203842 | M47: 0.005459236767 | N47: -0.001082095556 | O47: x | P47: x | Q47: x | R47: x
A48: 11640 | B48: 0 | C48: 4478 | D48: 327360 | E48: 2477 | F48: 8782 | G48: 140 | H48: 35746 | I48: 57 | J48: 0.01367913001 | K48: 4 | L48: 197.0203842 | M48: 0.01307728377 | N48: -0.000601846237 | O48: x | P48: x | Q48: x | R48: x
A49: 11837 | B49: 0 | C49: 722 | D49: 104544 | E49: 859 | F49: 2249 | G49: 300 | H49: 12562 | I49: 15 | J49: 0.006906183043 | K49: 3 | L49: 197.0203842 | M49: 0.005021614018 | N49: -0.001884569025 | O49: x | P49: x | Q49: x | R49: x
A50: 12030 | B50: 0 | C50: 3118 | D50: 305070 | E50: 2289 | F50: 8923 | G50: 5100 | H50: 40600 | I50: 87 | J50: 0.01022060511 | K50: 4 | L50: 197.0203842 | M50: 0.009574784855 | N50: -0.0006458202516 | O50: x | P50: x | Q50: x | R50: x
A51: 12142 | B51: 0 | C51: 1368 | D51: 209957 | E51: 553 | F51: 6408 | G51: 40 | H51: 20622 | I51: 68 | J51: 0.006515619865 | K51: 3 | L51: 197.0203842 | M51: 0.005577235414 | N51: -0.0009383844509 | O51: x | P51: x | Q51: x | R51: x
A52: 12245 | B52: 0 | C52: 847 | D52: 122984 | E52: 756 | F52: 3705 | G52: 258 | H52: 13986 | I52: 43 | J52: 0.006887074741 | K52: 3 | L52: 197.0203842 | M52: 0.00528507461 | N52: -0.001602000131 | O52: x | P52: x | Q52: x | R52: x
A53: 12647 | B53: 0 | C53: 668 | D53: 108739 | E53: 952 | F53: 2638 | G53: 165 | H53: 9233 | I53: 25 | J53: 0.006143150112 | K53: 3 | L53: 197.0203842 | M53: 0.004331285149 | N53: -0.001811864962 | O53: x | P53: x | Q53: x | R53: x
A54: 12656 | B54: 0 | C54: 103 | D54: 18021 | E54: 121 | F54: 734 | G54: 30 | H54: 1511 | I54: 9 | J54: 0.005715554076 | K54: 1 | L54: 98.51019208 | M54: 0.0002491431066 | N54: -0.005466410969 | O54: x | P54: x | Q54: x | R54: x
A55: 12937 | B55: 16974 | C55: 1367 | D55: 208388 | E55: 1179 | F55: 5215 | G55: 540 | H55: 29645 | I55: 35 | J55: 0.006559878688 | K55: 3 | L55: 295.5305762 | M55: 0.005141704051 | N55: -0.001418174637 | O55: x | P55: x | Q55: x | R55: x
A56: 12946 | B56: 0 | C56: 13532 | D56: 770159 | E56: 5734 | F56: 16461 | G56: 4200 | H56: 85539 | I56: 170 | J56: 0.0175703978 | K56: 4 | L56: 197.0203842 | M56: 0.01731458 | N56: -0.0002558178041 | O56: x | P56: x | Q56: x | R56: x
A57: 12955 | B57: 36540 | C57: 2414 | D57: 129662 | E57: 734 | F57: 5903 | G57: 100 | H57: 13893 | I57: 58 | J57: 0.01861763662 | K57: 3 | L57: 295.5305762 | M57: 0.01633839848 | N57: -0.002279238144 | O57: x | P57: x | Q57: x | R57: x
A58: 13251 | B58: 0 | C58: 439 | D58: 43504 | E58: 124 | F58: 1050 | G58: 180 | H58: 3828 | I58: 9 | J58: 0.01009102611 | K58: 1 | L58: 98.51019208 | M58: 0.007826632216 | N58: -0.002264393897 | O58: x | P58: x | Q58: x | R58: x
A59: 13457 | B59: 0 | C59: 284 | D59: 23283 | E59: 72 | F59: 687 | G59: 0 | H59: 6009 | I59: 5 | J59: 0.01219774084 | K59: 1 | L59: 98.51019208 | M59: 0.007966748612 | N59: -0.004230992229 | O59: x | P59: x | Q59: x | R59: x
A60: 14052 | B60: 0 | C60: 348 | D60: 60419 | E60: 243 | F60: 1826 | G60: 313 | H60: 6944 | I60: 19 | J60: 0.005759777553 | K60: 2 | L60: 98.51019208 | M60: 0.004129326999 | N60: -0.001630450555 | O60: x | P60: x | Q60: x | R60: x
A61: 14155 | B61: 0 | C61: 1859 | D61: 129802 | E61: 673 | F61: 4972 | G61: 387 | H61: 14714 | I61: 45 | J61: 0.01432181322 | K61: 3 | L61: 197.0203842 | M61: 0.01280396 | N61: -0.001517853224 | O61: x | P61: x | Q61: x | R61: x
A62: 14650 | B62: 0 | C62: 409 | D62: 28300 | E62: 84 | F62: 1257 | G62: 30 | H62: 3055 | I62: 13 | J62: 0.01445229682 | K62: 1 | L62: 98.51019208 | M62: 0.0109713713 | N62: -0.003480925515 | O62: x | P62: x | Q62: x | R62: x
A63: 14753 | B63: 0 | C63: 297 | D63: 44267 | E63: 174 | F63: 1077 | G63: 0 | H63: 3989 | I63: 11 | J63: 0.006709286828 | K63: 1 | L63: 98.51019208 | M63: 0.00448392274 | N63: -0.002225364088 | O63: x | P63: x | Q63: x | R63: x
A64: 14865 | B64: 0 | C64: 2795 | D64: 284716 | E64: 943 | F64: 10070 | G64: 1090 | H64: 29524 | I64: 99 | J64: 0.009816799899 | K64: 4 | L64: 197.0203842 | M64: 0.009124810744 | N64: -0.0006919891546 | O64: x | P64: x | Q64: x | R64: x
A65: 16458 | B65: 29940 | C65: 1507 | D65: 294240 | E65: 732 | F65: 9841 | G65: 90 | H65: 34937 | I65: 80 | J65: 0.005121669386 | K65: 4 | L65: 295.5305762 | M65: 0.004117283251 | N65: -0.001004386135 | O65: x | P65: x | Q65: x | R65: x
A66: 16551 | B66: 0 | C66: 2449 | D66: 229613 | E66: 2496 | F66: 7567 | G66: 350 | H66: 23301 | I66: 81 | J66: =C66/D66 -> 0.01066577241 | K66: =IF(D66/1000<INDEX(sizeV,1),1,IF(D66/1000<INDEX(sizeV,2),2,IF(D66/1000<INDEX(sizeV,3),3,IF(D66/1000<INDEX(sizeV,4),4,IF(D66/1000<INDEX(sizeV,5),5,6))))) -> 3 | L66: =IF(B66=0,salRural*T$2,salUrban*T$2)*INDEX(nHires,K66) -> 197.0203842 | M66: =(C66-L66)/D66 -> 0.009807718273 | N66: =M66-J66 -> -0.0008580541352 | O66: x | P66: x | Q66: x | R66: x
A67: 16748 | B67: 21780 | C67: 621 | D67: 60039 | E67: 299 | F67: 1766 | G67: 65 | H67: 7081 | I67: 15 | J67: 0.01034327687 | K67: 2 | L67: 147.7652881 | M67: 0.007882121819 | N67: -0.002461155051 | O67: x | P67: x | Q67: x | R67: x
A68: 16944 | B68: 28020 | C68: 12 | D68: 39856 | E68: 165 | F68: 1268 | G68: 15 | H68: 4342 | I68: 12 | J68: 0.000301083902 | K68: 1 | L68: 147.7652881 | M68: -0.003406395226 | N68: -0.003707479128 | O68: x | P68: x | Q68: x | R68: x
A69: 16953 | B69: 24220 | C69: 222 | D69: 38970 | E69: 143 | F69: 1115 | G69: 0 | H69: 5437 | I69: 8 | J69: 0.005696689761 | K69: 1 | L69: 147.7652881 | M69: 0.001904919474 | N69: -0.003791770288 | O69: x | P69: x | Q69: x | R69: x
A70: 17110 | B70: 37964 | C70: 2454 | D70: 91890 | E70: 295 | F70: 19777 | G70: 0 | H70: 18273 | I70: 66 | J70: 0.02670584394 | K70: 2 | L70: 147.7652881 | M70: 0.02509777682 | N70: -0.001608067125 | O70: x | P70: x | Q70: x | R70: x
A71: 17259 | B71: 0 | C71: 772 | D71: 67493 | E71: 502 | F71: 2474 | G71: 70 | H71: 5469 | I71: 28 | J71: 0.01143822322 | K71: 2 | L71: 98.51019208 | M71: 0.009978661608 | N71: -0.001459561615 | O71: x | P71: x | Q71: x | R71: x
A72: 17950 | B72: 13740 | C72: 2791 | D72: 335995 | E72: 1868 | F72: 7099 | G72: 780 | H72: 31935 | I72: 80 | J72: 0.00830667123 | K72: 4 | L72: 295.5305762 | M72: 0.007427102855 | N72: -0.0008795683752 | O72: x | P72: x | Q72: x | R72: x
A73: 18050 | B73: 12420 | C73: 6128 | D73: 404325 | E73: 1398 | F73: 11041 | G73: 985 | H73: 43583 | I73: 109 | J73: 0.0151561244 | K73: 4 | L73: 295.5305762 | M73: 0.01442520107 | N73: -0.000730923332 | O73: x | P73: x | Q73: x | R73: x
A74: 18135 | B74: 16974 | C74: 1160 | D74: 235725 | E74: 1493 | F74: 8787 | G74: 460 | H74: 21628 | I74: 49 | J74: 0.00492098844 | K74: 3 | L74: 295.5305762 | M74: 0.003667279346 | N74: -0.001253709094 | O74: x | P74: x | Q74: x | R74: x
A75: 18827 | B75: 38300 | C75: 4640 | D75: 395520 | E75: 2280 | F75: 9864 | G75: 211 | H75: 41328 | I75: 83 | J75: 0.01173139159 | K75: 4 | L75: 295.5305762 | M75: 0.01098419656 | N75: -0.0007471950249 | O75: x | P75: x | Q75: x | R75: x
A76: 18836 | B76: 0 | C76: 724 | D76: 148528 | E76: 1402 | F76: 5305 | G76: 814 | H76: 14031 | I76: 49 | J76: 0.004874501777 | K76: 3 | L76: 197.0203842 | M76: 0.003548015296 | N76: -0.001326486482 | O76: x | P76: x | Q76: x | R76: x
A77: 18854 | B77: 36420 | C77: 6768 | D77: 280935 | E77: 1674 | F77: 7364 | G77: 880 | H77: 24505 | I77: 55 | J77: 0.0240909819 | K77: 4 | L77: 295.5305762 | M77: 0.02303902833 | N77: -0.00105195357 | O77: x | P77: x | Q77: x | R77: x
A78: 19356 | B78: 0 | C78: 855 | D78: 76362 | E78: 391 | F78: 2378 | G78: 57 | H78: 8224 | I78: 25 | J78: 0.0111966685 | K78: 2 | L78: 98.51019208 | M78: 0.009906626436 | N78: -0.001290042064 | O78: x | P78: x | Q78: x | R78: x
A79: 19936 | B79: 0 | C79: 2322 | D79: 241773 | E79: 1012 | F79: 5654 | G79: 700 | H79: 23422 | I79: 47 | J79: 0.00960405008 | K79: 3 | L79: 197.0203842 | M79: 0.008789151873 | N79: -0.0008148982068 | O79: x | P79: x | Q79: x | R79: x
A80: 20053 | B80: 20740 | C80: 831 | D80: 73433 | E80: 535 | F80: 1962 | G80: 469 | H80: 9331 | I80: 17 | J80: 0.01131643811 | K80: 2 | L80: 147.7652881 | M80: 0.009304191738 | N80: -0.002012246376 | O80: x | P80: x | Q80: x | R80: x
A81: 20512 | B81: 0 | C81: 741 | D81: 100876 | E81: 700 | F81: 2841 | G81: 13 | H81: 9768 | I81: 26 | J81: 0.007345652088 | K81: 3 | L81: 197.0203842 | M81: 0.005392557356 | N81: -0.001953094732 | O81: x | P81: x | Q81: x | R81: x
A82: 20633 | B82: 0 | C82: 1728 | D82: 310469 | E82: 3514 | F82: 9470 | G82: 522 | H82: 29300 | I82: 81 | J82: 0.005565773072 | K82: 4 | L82: 197.0203842 | M82: 0.004931183519 | N82: -0.0006345895537 | O82: x | P82: x | Q82: x | R82: x
A83: 20857 | B83: 0 | C83: 3209 | D83: 183694 | E83: 610 | F83: 2550 | G83: 20 | H83: 20512 | I83: 18 | J83: 0.01746926955 | K83: 3 | L83: 197.0203842 | M83: 0.0163967229 | N83: -0.001072546649 | O83: x | P83: x | Q83: x | R83: x
A84: 21256 | B84: 48620 | C84: 34 | D84: 9217 | E84: 55 | F84: 322 | G84: 0 | H84: 1114 | I84: 4 | J84: 0.003688835847 | K84: 1 | L84: 147.7652881 | M84: -0.0123429845 | N84: -0.01603182034 | O84: x | P84: x | Q84: x | R84: x
A85: 21359 | B85: 0 | C85: 406 | D85: 26652 | E85: 175 | F85: 881 | G85: 0 | H85: 2769 | I85: 7 | J85: 0.01523337836 | K85: 1 | L85: 98.51019208 | M85: 0.01153721326 | N85: -0.003696165094 | O85: x | P85: x | Q85: x | R85: x
A86: 21630 | B86: 29180 | C86: 1131 | D86: 94221 | E86: 500 | F86: 2440 | G86: 143 | H86: 9754 | I86: 30 | J86: 0.01200369344 | K86: 2 | L86: 147.7652881 | M86: 0.01043540943 | N86: -0.001568284014 | O86: x | P86: x | Q86: x | R86: x
A87: 21658 | B87: 0 | C87: 1549 | D87: 153461 | E87: 1109 | F87: 4143 | G87: 420 | H87: 15248 | I87: 43 | J87: 0.01009376975 | K87: 3 | L87: 197.0203842 | M87: 0.008809923146 | N87: -0.001283846607 | O87: x | P87: x | Q87: x | R87: x
A88: 22048 | B88: 0 | C88: 1402 | D88: 193636 | E88: 1445 | F88: 6472 | G88: 21 | H88: 20029 | I88: 63 | J88: 0.007240389184 | K88: 3 | L88: 197.0203842 | M88: 0.006222911111 | N88: -0.001017478073 | O88: x | P88: x | Q88: x | R88: x
A89: 22543 | B89: 0 | C89: 592 | D89: 88233 | E89: 194 | F89: 2567 | G89: 403 | H89: 14509 | I89: 24 | J89: 0.006709507781 | K89: 2 | L89: 98.51019208 | M89: 0.005593029909 | N89: -0.001116477872 | O89: x | P89: x | Q89: x | R89: x
A90: 22552 | B90: 0 | C90: 1357 | D90: 91731 | E90: 640 | F90: 2431 | G90: 75 | H90: 7863 | I90: 21 | J90: 0.01479325419 | K90: 2 | L90: 98.51019208 | M90: 0.01371935123 | N90: -0.001073902956 | O90: x | P90: x | Q90: x | R90: x
A91: 22730 | B91: 0 | C91: 684 | D91: 135173 | E91: 690 | F91: 4152 | G91: 15 | H91: 12937 | I91: 46 | J91: 0.005060182137 | K91: 3 | L91: 197.0203842 | M91: 0.003602639698 | N91: -0.001457542439 | O91: x | P91: x | Q91: x | R91: x
A92: 22936 | B92: 0 | C92: -1602 | D92: 176865 | E92: 1593 | F92: 6801 | G92: 970 | H92: 8176 | I92: 55 | J92: -0.009057755916 | K92: 3 | L92: 197.0203842 | M92: -0.01017171506 | N92: -0.001113959145 | O92: x | P92: x | Q92: x | R92: x
A93: 23045 | B93: 0 | C93: 116 | D93: 41024 | E93: 103 | F93: 1073 | G93: 0 | H93: 7854 | I93: 13 | J93: 0.002827613105 | K93: 1 | L93: 98.51019208 | M93: 0.0004263311214 | N93: -0.002401281983 | O93: x | P93: x | Q93: x | R93: x
A94: 23456 | B94: 0 | C94: 1619 | D94: 100955 | E94: 917 | F94: 2991 | G94: 130 | H94: 12036 | I94: 24 | J94: 0.0160368481 | K94: 3 | L94: 197.0203842 | M94: 0.01408528172 | N94: -0.001951566383 | O94: x | P94: x | Q94: x | R94: x
A95: 23540 | B95: 16974 | C95: -161 | D95: 195794 | E95: 781 | F95: 6041 | G95: 1835 | H95: 12793 | I95: 41 | J95: -0.000822292818 | K95: 3 | L95: 295.5305762 | M95: -0.002331688286 | N95: -0.001509395468 | O95: x | P95: x | Q95: x | R95: x
A96: 23643 | B96: 0 | C96: 2614 | D96: 175880 | E96: 1277 | F96: 4682 | G96: 700 | H96: 16573 | I96: 40 | J96: 0.01486240619 | K96: 3 | L96: 197.0203842 | M96: 0.01374220841 | N96: -0.001120197772 | O96: x | P96: x | Q96: x | R96: x
A97: 23755 | B97: 33460 | C97: 1888 | D97: 168567 | E97: 971 | F97: 6543 | G97: 546 | H97: 15777 | I97: 54 | J97: 0.01120029425 | K97: 3 | L97: 295.5305762 | M97: 0.0094471007 | N97: -0.001753193545 | O97: x | P97: x | Q97: x | R97: x
A98: 24453 | B98: 0 | C98: -3195 | D98: 204309 | E98: 1401 | F98: 5505 | G98: 2472 | H98: 19792 | I98: 36 | J98: -0.01563807762 | K98: 3 | L98: 197.0203842 | M98: -0.01660240315 | N98: -0.0009643255273 | O98: x | P98: x | Q98: x | R98: x
A99: 24659 | B99: 0 | C99: 524 | D99: 42998 | E99: 266 | F99: 994 | G99: 0 | H99: 4685 | I99: 10 | J99: 0.01218661333 | K99: 1 | L99: 98.51019208 | M99: 0.009895572071 | N99: -0.00229104126 | O99: x | P99: x | Q99: x | R99: x
A100: 24668 | B100: 0 | C100: 2011 | D100: 223523 | E100: 1107 | F100: 8139 | G100: 278 | H100: 22415 | I100: 72 | J100: 0.008996837015 | K100: 3 | L100: 197.0203842 | M100: 0.00811540475 | N100: -0.0008814322649 | O100: x | P100: x | Q100: x | R100: x
A101: 24855 | B101: 0 | C101: 69 | D101: 16306 | E101: 30 | F101: 415 | G101: -50 | H101: 1025 | I101: 4 | J101: 0.004231571201 | K101: 1 | L101: 98.51019208 | M101: -0.001809775057 | N101: -0.006041346258 | O101: x | P101: x | Q101: x | R101: x
A102: 24949 | B102: 0 | C102: -9117 | D102: 746015 | E102: 4682 | F102: 23424 | G102: 14495 | H102: 65658 | I102: 190 | J102: -0.0122209339 | K102: 4 | L102: 197.0203842 | M102: -0.01248503098 | N102: -0.0002640970814 | O102: x | P102: x | Q102: x | R102: x
A103: 25357 | B103: 36420 | C103: 1909 | D103: 125651 | E103: 969 | F103: 3824 | G103: 7 | H103: 11005 | I103: 47 | J103: 0.0151928755 | K103: 3 | L103: 295.5305762 | M103: 0.01284088009 | N103: -0.002351995418 | O103: x | P103: x | Q103: x | R103: x
A104: 25647 | B104: 16974 | C104: -841 | D104: 60950 | E104: 623 | F104: 2535 | G104: 649 | H104: 1950 | I104: 20 | J104: -0.01379819524 | K104: 2 | L104: 147.7652881 | M104: -0.0162225642 | N104: -0.00242436896 | O104: x | P104: x | Q104: x | R104: x
A105: 26242 | B105: 0 | C105: 5249 | D105: 408204 | E105: 1208 | F105: 11833 | G105: 0 | H105: 55876 | I105: 119 | J105: 0.0128587667 | K105: 4 | L105: 197.0203842 | M105: 0.01237611492 | N105: -0.0004826517725 | O105: x | P105: x | Q105: x | R105: x
A106: 26457 | B106: 0 | C106: 204 | D106: 28261 | E106: 111 | F106: 766 | G106: 5 | H106: 2964 | I106: 7 | J106: 0.007218428223 | K106: 1 | L106: 98.51019208 | M106: 0.003732699053 | N106: -0.00348572917 | O106: x | P106: x | Q106: x | R106: x
A107: 26765 | B107: 0 | C107: 710 | D107: 312777 | E107: 1062 | F107: 11678 | G107: 0 | H107: 31322 | I107: 74 | J107: 0.002269987883 | K107: 4 | L107: 197.0203842 | M107: 0.001640081003 | N107: -0.0006299068798 | O107: x | P107: x | Q107: x | R107: x
A108: 26859 | B108: 26420 | C108: -1979 | D108: 311804 | E108: 1561 | F108: 13533 | G108: 655 | H108: 31720 | I108: 88 | J108: -0.006346935896 | K108: 4 | L108: 295.5305762 | M108: -0.007294744699 | N108: -0.0009478088037 | O108: x | P108: x | Q108: x | R108: x
A109: 27548 | B109: 27500 | C109: 3394 | D109: 557916 | E109: 3826 | F109: 21159 | G109: 5620 | H109: 56782 | I109: 162 | J109: 0.00608335305 | K109: 4 | L109: 295.5305762 | M109: 0.005553648621 | N109: -0.000529704429 | O109: x | P109: x | Q109: x | R109: x
A110: 27614 | B110: 0 | C110: 4238 | D110: 324846 | E110: 1891 | F110: 9227 | G110: 500 | H110: 35102 | I110: 94 | J110: 0.01304618188 | K110: 4 | L110: 197.0203842 | M110: 0.01243967793 | N110: -0.0006065039562 | O110: x | P110: x | Q110: x | R110: x
A111: 27847 | B111: 0 | C111: 7395 | D111: 418531 | E111: 3462 | F111: 12389 | G111: 573 | H111: 48026 | I111: 122 | J111: 0.01766894209 | K111: 4 | L111: 197.0203842 | M111: 0.01719819945 | N111: -0.0004707426311 | O111: x | P111: x | Q111: x | R111: x
A112: 28152 | B112: 41060 | C112: 1296 | D112: 84869 | E112: 434 | F112: 1811 | G112: 0 | H112: 7499 | I112: 19 | J112: 0.0152705935 | K112: 2 | L112: 147.7652881 | M112: 0.01352949501 | N112: -0.001741098494 | O112: x | P112: x | Q112: x | R112: x
A113: 28255 | B113: 0 | C113: 1960 | D113: 303249 | E113: 934 | F113: 5597 | G113: 369 | H113: 22099 | I113: 53 | J113: 0.006463335411 | K113: 4 | L113: 197.0203842 | M113: 0.00581363703 | N113: -0.0006496983804 | O113: x | P113: x | Q113: x | R113: x
A114: 28349 | B114: 22900 | C114: -3470 | D114: 157331 | E114: 1496 | F114: 8631 | G114: 1700 | H114: 13594 | I114: 57 | J114: -0.02205541184 | K114: 3 | L114: 295.5305762 | M114: -0.023933812 | N114: -0.001878400164 | O114: x | P114: x | Q114: x | R114: x
A115: 28732 | B115: 0 | C115: 348 | D115: 82993 | E115: 386 | F115: 2617 | G115: 60 | H115: 8742 | I115: 24 | J115: 0.004193124721 | K115: 2 | L115: 98.51019208 | M115: 0.003006154831 | N115: -0.00118696989 | O115: x | P115: x | Q115: x | R115: x
A116: 29636 | B116: 0 | C116: 6936 | D116: 880514 | E116: 5712 | F116: 25717 | G116: 1546 | H116: 86886 | I116: 249 | J116: 0.007877217171 | K116: 4 | L116: 197.0203842 | M116: 0.007653461065 | N116: -0.0002237561063 | O116: x | P116: x | Q116: x | R116: x
A117: 29953 | B117: 36540 | C117: 1528 | D117: 80680 | E117: 809 | F117: 1964 | G117: 0 | H117: 9776 | I117: 19 | J117: 0.01893901834 | K117: 2 | L117: 147.7652881 | M117: 0.01710751998 | N117: -0.001831498365 | O117: x | P117: x | Q117: x | R117: x
A118: 30052 | B118: 0 | C118: 178 | D118: 33522 | E118: 149 | F118: 1423 | G118: 6 | H118: 3219 | I118: 12 | J118: 0.005309945707 | K118: 1 | L118: 98.51019208 | M118: 0.002371272833 | N118: -0.002938672874 | O118: x | P118: x | Q118: x | R118: x
A119: 30502 | B119: 0 | C119: 6612 | D119: 869816 | E119: 6136 | F119: 26849 | G119: 2112 | H119: 87962 | I119: 214 | J119: 0.007601607696 | K119: 4 | L119: 197.0203842 | M119: 0.00737509958 | N119: -0.0002265081168 | O119: x | P119: x | Q119: x | R119: x
A120: 30650 | B120: 33460 | C120: 361 | D120: 131105 | E120: 991 | F120: 4761 | G120: 0 | H120: 13100 | I120: 23 | J120: 0.002753518172 | K120: 3 | L120: 295.5305762 | M120: 0.0004993663382 | N120: -0.002254151834 | O120: x | P120: x | Q120: x | R120: x
A121: 31134 | B121: 12260 | C121: 1380 | D121: 116730 | E121: 732 | F121: 3480 | G121: 285 | H121: 16999 | I121: 38 | J121: 0.01182215369 | K121: 3 | L121: 295.5305762 | M121: 0.009290408839 | N121: -0.002531744849 | O121: x | P121: x | Q121: x | R121: x
A122: 31255 | B122: 26420 | C122: 5089 | D122: 446554 | E122: 2157 | F122: 14998 | G122: 420 | H122: 41520 | I122: 101 | J122: 0.01139615814 | K122: 4 | L122: 295.5305762 | M122: 0.01073435558 | N122: -0.0006618025507 | O122: x | P122: x | Q122: x | R122: x
A123: 31657 | B123: 0 | C123: 1981 | D123: 121881 | E123: 730 | F123: 2816 | G123: 135 | H123: 12961 | I123: 30 | J123: 0.0162535588 | K123: 3 | L123: 197.0203842 | M123: 0.01463706087 | N123: -0.00161649793 | O123: x | P123: x | Q123: x | R123: x
A124: 31826 | B124: 0 | C124: 2274 | D124: 251059 | E124: 1325 | F124: 7369 | G124: 175 | H124: 39920 | I124: 70 | J124: 0.009057631871 | K124: 4 | L124: 197.0203842 | M124: 0.008272874567 | N124: -0.0007847573047 | O124: x | P124: x | Q124: x | R124: x
A125: 31835 | B125: 0 | C125: 985 | D125: 115642 | E125: 518 | F125: 3898 | G125: 300 | H125: 13047 | I125: 27 | J125: 0.008517666592 | K125: 3 | L125: 197.0203842 | M125: 0.006813957004 | N125: -0.001703709588 | O125: x | P125: x | Q125: x | R125: x
A126: 32234 | B126: 0 | C126: 876 | D126: 105459 | E126: 278 | F126: 2294 | G126: -95 | H126: 13028 | I126: 20 | J126: 0.008306545672 | K126: 3 | L126: 197.0203842 | M126: 0.006438327842 | N126: -0.00186821783 | O126: x | P126: x | Q126: x | R126: x
A127: 32766 | B127: 19124 | C127: 316 | D127: 56298 | E127: 58 | F127: 1477 | G127: 6 | H127: 5168 | I127: 13 | J127: 0.005612988028 | K127: 2 | L127: 147.7652881 | M127: 0.002988289316 | N127: -0.002624698712 | O127: x | P127: x | Q127: x | R127: x
A128: 33147 | B128: 0 | C128: 3303 | D128: 414243 | E128: 3055 | F128: 12518 | G128: 2125 | H128: 36829 | I128: 88 | J128: 0.007973580724 | K128: 4 | L128: 197.0203842 | M128: 0.007497965242 | N128: -0.0004756154821 | O128: x | P128: x | Q128: x | R128: x
A129: 33259 | B129: 33460 | C129: 3420 | D129: 558366 | E129: 3648 | F129: 14023 | G129: 2195 | H129: 48241 | I129: 82 | J129: 0.006125014775 | K129: 4 | L129: 295.5305762 | M129: 0.005595737247 | N129: -0.0005292775281 | O129: x | P129: x | Q129: x | R129: x
A130: 33268 | B130: 0 | C130: 1445 | D130: 167211 | E130: 671 | F130: 4230 | G130: 0 | H130: 15476 | I130: 37 | J130: =C130/D130 -> 0.00864177596 | K130: =IF(D130/1000<INDEX(sizeV,1),1,IF(D130/1000<INDEX(sizeV,2),2,IF(D130/1000<INDEX(sizeV,3),3,IF(D130/1000<INDEX(sizeV,4),4,IF(D130/1000<INDEX(sizeV,5),5,6))))) -> 3 | L130: =IF(B130=0,salRural*T$2,salUrban*T$2)*INDEX(nHires,K130) -> 197.0203842 | M130: =(C130-L130)/D130 -> 0.007463501898 | N130: =M130-J130 -> -0.001178274062 | O130: x | P130: x | Q130: x | R130: x
A131: 33754 | B131: 0 | C131: 301 | D131: 29887 | E131: 83 | F131: 1036 | G131: 95 | H131: 4529 | I131: 11 | J131: 0.01007126844 | K131: 1 | L131: 98.51019208 | M131: 0.006775180109 | N131: -0.003296088335 | O131: x | P131: x | Q131: x | R131: x
A132: 33839 | B132: 14060 | C132: 329 | D132: 37743 | E132: 136 | F132: 790 | G132: 5 | H132: 3702 | I132: 7 | J132: 0.008716848157 | K132: 1 | L132: 147.7652881 | M132: 0.004801809922 | N132: -0.003915038235 | O132: x | P132: x | Q132: x | R132: x
A133: 33857 | B133: 0 | C133: 1999 | D133: 193903 | E133: 2272 | F133: 4209 | G133: 740 | H133: 20312 | I133: 37 | J133: 0.01030927835 | K133: 3 | L133: 197.0203842 | M133: 0.009293201322 | N133: -0.001016077029 | O133: x | P133: x | Q133: x | R133: x
A134: 34153 | B134: 33460 | C134: -4887 | D134: 361194 | E134: 1844 | F134: 24111 | G134: 2640 | H134: 17454 | I134: 158 | J134: -0.01353012509 | K134: 4 | L134: 295.5305762 | M134: -0.01434832964 | N134: -0.0008182045555 | O134: x | P134: x | Q134: x | R134: x
A135: 34359 | B135: 0 | C135: 438 | D135: 34556 | E135: 209 | F135: 686 | G135: 0 | H135: 6762 | I135: 7 | J135: 0.01267507813 | K135: 1 | L135: 98.51019208 | M135: 0.009824337537 | N135: -0.002850740597 | O135: x | P135: x | Q135: x | R135: x
A136: 34425 | B136: 0 | C136: 614 | D136: 337304 | E136: 3436 | F136: 11819 | G136: 1895 | H136: 30283 | I136: 101 | J136: 0.001820316391 | K136: 4 | L136: 197.0203842 | M136: 0.001236213077 | N136: -0.0005841033138 | O136: x | P136: x | Q136: x | R136: x
A137: 34434 | B137: 0 | C137: 4293 | D137: 285129 | E137: 1610 | F137: 11122 | G137: 555 | H137: 27156 | I137: 100 | J137: 0.01505634292 | K137: 4 | L137: 197.0203842 | M137: 0.01436535609 | N137: -0.0006909868311 | O137: x | P137: x | Q137: x | R137: x
A138: 34452 | B138: 0 | C138: 1546 | D138: 117224 | E138: 975 | F138: 3185 | G138: 110 | H138: 13224 | I138: 29 | J138: 0.01318842558 | K138: 3 | L138: 197.0203842 | M138: 0.01150770845 | N138: -0.001680717124 | O138: x | P138: x | Q138: x | R138: x
A139: 34555 | B139: 0 | C139: 2276 | D139: 226331 | E139: 2180 | F139: 4553 | G139: 300 | H139: 22961 | I139: 41 | J139: 0.01005606832 | K139: 3 | L139: 197.0203842 | M139: 0.009185571644 | N139: -0.0008704966803 | O139: x | P139: x | Q139: x | R139: x
A140: 34742 | B140: 0 | C140: 2052 | D140: 286472 | E140: 2526 | F140: 10663 | G140: 40 | H140: 24740 | I140: 91 | J140: 0.007163003714 | K140: 4 | L140: 197.0203842 | M140: 0.006475256276 | N140: -0.0006877474383 | O140: x | P140: x | Q140: x | R140: x
A141: 34836 | B141: 12060 | C141: -246 | D141: 25988 | E141: 175 | F141: 1019 | G141: 283 | H141: 1518 | I141: 11 | J141: -0.009465907342 | K141: 1 | L141: 147.7652881 | M141: -0.01515181192 | N141: -0.005685904576 | O141: x | P141: x | Q141: x | R141: x
A142: 35057 | B142: 0 | C142: 2290 | D142: 120484 | E142: 741 | F142: 4994 | G142: 0 | H142: 12871 | I142: 48 | J142: 0.01900667309 | K142: 3 | L142: 197.0203842 | M142: 0.01737143202 | N142: -0.001635241062 | O142: x | P142: x | Q142: x | R142: x
A143: 35646 | B143: 0 | C143: 620 | D143: 50730 | E143: 242 | F143: 925 | G143: 40 | H143: 11204 | I143: 7 | J143: 0.01222156515 | K143: 2 | L143: 98.51019208 | M143: 0.01027971236 | N143: -0.001941852791 | O143: x | P143: x | Q143: x | R143: x
A144: 35842 | B144: 0 | C144: 1237 | D144: 218514 | E144: 2596 | F144: 4725 | G144: 2854 | H144: 19576 | I144: 38 | J144: 0.005660964515 | K144: 3 | L144: 197.0203842 | M144: 0.004759327164 | N144: -0.0009016373512 | O144: x | P144: x | Q144: x | R144: x
A145: 36456 | B145: 0 | C145: 1176 | D145: 99477 | E145: 613 | F145: 2741 | G145: 10 | H145: 10400 | I145: 20 | J145: 0.01182182816 | K145: 2 | L145: 98.51019208 | M145: 0.01083154707 | N145: -0.0009902810909 | O145: x | P145: x | Q145: x | R145: x
A146: 36933 | B146: 0 | C146: -516 | D146: 94691 | E146: 541 | F146: 3817 | G146: 714 | H146: 4954 | I146: 34 | J146: -0.005449303524 | K146: 2 | L146: 98.51019208 | M146: -0.006489636735 | N146: -0.001040333211 | O146: x | P146: x | Q146: x | R146: x
A147: 37051 | B147: 0 | C147: 613 | D147: 71720 | E147: 681 | F147: 1972 | G147: 163 | H147: 7684 | I147: 21 | J147: 0.008547127719 | K147: 2 | L147: 98.51019208 | M147: 0.007173589068 | N147: -0.001373538651 | O147: x | P147: x | Q147: x | R147: x
A148: 37341 | B148: 0 | C148: 699 | D148: 35740 | E148: 348 | F148: 1175 | G148: 45 | H148: 3939 | I148: 11 | J148: 0.0195579183 | K148: 1 | L148: 98.51019208 | M148: 0.01680161746 | N148: -0.002756300842 | O148: x | P148: x | Q148: x | R148: x
A149: 37378 | B149: 49420 | C149: 2799 | D149: 170066 | E149: 583 | F149: 5031 | G149: 385 | H149: 16988 | I149: 45 | J149: 0.01645831618 | K149: 3 | L149: 295.5305762 | M149: 0.01472057568 | N149: -0.001737740502 | O149: x | P149: x | Q149: x | R149: x
A150: 37659 | B150: 0 | C150: 852 | D150: 41623 | E150: 172 | F150: 1341 | G150: 60 | H150: 4530 | I150: 13 | J150: 0.02046945199 | K150: 1 | L150: 98.51019208 | M150: 0.01810272705 | N150: -0.002366724938 | O150: x | P150: x | Q150: x | R150: x
A151: 37743 | B151: 11540 | C151: 702 | D151: 96593 | E151: 438 | F151: 2648 | G151: 169 | H151: 9707 | I151: 22 | J151: 0.007267607384 | K151: 2 | L151: 147.7652881 | M151: 0.005737835163 | N151: -0.001529772221 | O151: x | P151: x | Q151: x | R151: x
A152: 37949 | B152: 16580 | C152: 5246 | D152: 215915 | E152: 1014 | F152: 3829 | G152: 300 | H152: 23483 | I152: 39 | J152: 0.0242965982 | K152: 3 | L152: 295.5305762 | M152: 0.02292786246 | N152: -0.001368735735 | O152: x | P152: x | Q152: x | R152: x
A153: 38740 | B153: 14020 | C153: 1117 | D153: 182170 | E153: 1647 | F153: 5736 | G153: 120 | H153: 17818 | I153: 61 | J153: 0.006131635286 | K153: 3 | L153: 295.5305762 | M153: 0.004509356226 | N153: -0.001622279059 | O153: x | P153: x | Q153: x | R153: x
A154: 39327 | B154: 0 | C154: 4389 | D154: 439092 | E154: 870 | F154: 8567 | G154: 606 | H154: 72955 | I154: 92 | J154: 0.00999562734 | K154: 4 | L154: 197.0203842 | M154: 0.009546927787 | N154: -0.0004486995531 | O154: x | P154: x | Q154: x | R154: x
A155: 39756 | B155: 36420 | C155: 6914 | D155: 529779 | E155: 1663 | F155: 14766 | G155: 450 | H155: 42172 | I155: 122 | J155: 0.01305072492 | K155: 4 | L155: 295.5305762 | M155: 0.01249288746 | N155: -0.0005578374685 | O155: x | P155: x | Q155: x | R155: x
A156: 40033 | B156: 25620 | C156: 407 | D156: 63390 | E156: 249 | F156: 2509 | G156: 0 | H156: 8723 | I156: 21 | J156: 0.006420571068 | K156: 2 | L156: 147.7652881 | M156: 0.004089520617 | N156: -0.002331050451 | O156: x | P156: x | Q156: x | R156: x
A157: 40350 | B157: 36540 | C157: 314 | D157: 49826 | E157: 326 | F157: 1322 | G157: 8 | H157: 4671 | I157: 8 | J157: 0.006301930719 | K157: 1 | L157: 147.7652881 | M157: 0.003336304578 | N157: -0.002965626141 | O157: x | P157: x | Q157: x | R157: x
A158: 40707 | B158: 0 | C158: 1023 | D158: 283905 | E158: 1523 | F158: 9040 | G158: 749 | H158: 21912 | I158: 90 | J158: 0.003603318011 | K158: 4 | L158: 197.0203842 | M158: 0.002909352128 | N158: -0.0006939658835 | O158: x | P158: x | Q158: x | R158: x
A159: 40855 | B159: 29100 | C159: 1486 | D159: 85542 | E159: 1144 | F159: 1574 | G159: 90 | H159: 7732 | I159: 14 | J159: 0.01737158355 | K159: 2 | L159: 147.7652881 | M159: 0.01564418311 | N159: -0.001727400436 | O159: x | P159: x | Q159: x | R159: x
A160: 41245 | B160: 27500 | C160: 389 | D160: 44533 | E160: 228 | F160: 1031 | G160: 30 | H160: 4839 | I160: 10 | J160: 0.008735095323 | K160: 1 | L160: 147.7652881 | M160: 0.005416987669 | N160: -0.003318107653 | O160: x | P160: x | Q160: x | R160: x
A161: 41553 | B161: 0 | C161: 1106 | D161: 94736 | E161: 716 | F161: 2387 | G161: 0 | H161: 14098 | I161: 25 | J161: 0.01167454822 | K161: 2 | L161: 98.51019208 | M161: 0.01063470917 | N161: -0.001039839048 | O161: x | P161: x | Q161: x | R161: x
A162: 41629 | B162: 0 | C162: 2322 | D162: 169389 | E162: 1114 | F162: 5673 | G162: 470 | H162: 18150 | I162: 59 | J162: 0.01370809202 | K162: 3 | L162: 197.0203842 | M162: 0.01254496818 | N162: -0.00116312384 | O162: x | P162: x | Q162: x | R162: x
A163: 41759 | B163: 0 | C163: 473 | D163: 50841 | E163: 274 | F163: 877 | G163: 190 | H163: 5401 | I163: 9 | J163: 0.00930351488 | K163: 2 | L163: 98.51019208 | M163: 0.007365901692 | N163: -0.001937613188 | O163: x | P163: x | Q163: x | R163: x
A164: 41825 | B164: 13644 | C164: 359 | D164: 152402 | E164: 180 | F164: 5006 | G164: 112 | H164: 18311 | I164: 42 | J164: 0.002355612131 | K164: 3 | L164: 295.5305762 | M164: 0.0004164605699 | N164: -0.001939151561 | O164: x | P164: x | Q164: x | R164: x
A165: 41937 | B165: 0 | C165: 601 | D165: 66802 | E165: 347 | F165: 1567 | G165: 74 | H165: 6113 | I165: 18 | J165: 0.008996736625 | K165: 2 | L165: 98.51019208 | M165: 0.007522077302 | N165: -0.001474659323 | O165: x | P165: x | Q165: x | R165: x
A166: 41955 | B166: 0 | C166: 169 | D166: 36875 | E166: 190 | F166: 994 | G166: 0 | H166: 3530 | I166: 9 | J166: 0.004583050847 | K166: 1 | L166: 98.51019208 | M166: 0.001911588011 | N166: -0.002671462836 | O166: x | P166: x | Q166: x | R166: x
A167: 42037 | B167: 0 | C167: 524 | D167: 64032 | E167: 377 | F167: 2515 | G167: 0 | H167: 8925 | I167: 29 | J167: 0.008183408296 | K167: 2 | L167: 98.51019208 | M167: 0.006644955771 | N167: -0.001538452525 | O167: x | P167: x | Q167: x | R167: x
A168: 42055 | B168: 0 | C168: 483 | D168: 68627 | E168: 414 | F168: 2670 | G168: 96 | H168: 7956 | I168: 29 | J168: 0.00703804625 | K168: 2 | L168: 98.51019208 | M168: 0.00560260259 | N168: -0.00143544366 | O168: x | P168: x | Q168: x | R168: x
A169: 42354 | B169: 0 | C169: 2348 | D169: 132255 | E169: 332 | F169: 3415 | G169: 46 | H169: 17470 | I169: 34 | J169: 0.0177535821 | K169: 3 | L169: 197.0203842 | M169: 0.01626388126 | N169: -0.001489700837 | O169: x | P169: x | Q169: x | R169: x
A170: 42448 | B170: 0 | C170: 10061 | D170: 707270 | E170: 8098 | F170: 16496 | G170: 1696 | H170: 84337 | I170: 148 | J170: 0.01422511912 | K170: 4 | L170: 197.0203842 | M170: 0.01394655452 | N170: -0.0002785645993 | O170: x | P170: x | Q170: x | R170: x
A171: 42457 | B171: 0 | C171: 282 | D171: 34621 | E171: 89 | F171: 905 | G171: 0 | H171: 5168 | I171: 8 | J171: 0.008145345311 | K171: 1 | L171: 98.51019208 | M171: 0.005299956903 | N171: -0.002845388408 | O171: x | P171: x | Q171: x | R171: x
A172: 43052 | B172: 0 | C172: 712 | D172: 84403 | E172: 588 | F172: 2703 | G172: 46 | H172: 12898 | I172: 17 | J172: 0.00843571911 | K172: 2 | L172: 98.51019208 | M172: 0.007268578225 | N172: -0.001167140885 | O172: x | P172: x | Q172: x | R172: x
A173: 43351 | B173: 31740 | C173: -169 | D173: 23232 | E173: 128 | F173: 933 | G173: 101 | H173: 1668 | I173: 8 | J173: -0.007274449036 | K173: 1 | L173: 147.7652881 | M173: -0.0136348695 | N173: -0.006360420459 | O173: x | P173: x | Q173: x | R173: x
A174: 43454 | B174: 24220 | C174: 211 | D174: 24369 | E174: 57 | F174: 706 | G174: 5 | H174: 3543 | I174: 7 | J174: 0.00865854159 | K174: 1 | L174: 147.7652881 | M174: 0.002594883331 | N174: -0.006063658259 | O174: x | P174: x | Q174: x | R174: x
A175: 43744 | B175: 31540 | C175: 233 | D175: 76413 | E175: 881 | F175: 2391 | G175: 0 | H175: 11439 | I175: 15 | J175: 0.003049219374 | K175: 2 | L175: 147.7652881 | M175: 0.001115447789 | N175: -0.001933771585 | O175: x | P175: x | Q175: x | R175: x
A176: 43856 | B176: 20260 | C176: 123 | D176: 60180 | E176: 233 | F176: 1602 | G176: 0 | H176: 5082 | I176: 15 | J176: 0.002043868395 | K176: 2 | L176: 147.7652881 | M176: -0.0004115202412 | N176: -0.002455388636 | O176: x | P176: x | Q176: x | R176: x
A177: 43959 | B177: 13140 | C177: 794 | D177: 135747 | E177: 557 | F177: 3785 | G177: 312 | H177: 14547 | I177: 34 | J177: 0.005849116371 | K177: 3 | L177: 295.5305762 | M177: 0.00367204744 | N177: -0.002177068931 | O177: x | P177: x | Q177: x | R177: x
A178: 44040 | B178: 0 | C178: 2258 | D178: 314632 | E178: 2198 | F178: 6027 | G178: 600 | H178: 30824 | I178: 54 | J178: 0.007176638104 | K178: 4 | L178: 197.0203842 | M178: 0.006550445015 | N178: -0.0006261930896 | O178: x | P178: x | Q178: x | R178: x
A179: 44433 | B179: 33124 | C179: -4806 | D179: 297802 | E179: 2418 | F179: 12258 | G179: 3337 | H179: 25521 | I179: 81 | J179: -0.0161382395 | K179: 4 | L179: 295.5305762 | M179: -0.01713061221 | N179: -0.0009923727048 | O179: x | P179: x | Q179: x | R179: x
A180: 44741 | B180: 26900 | C180: 2106 | D180: 364616 | E180: 1825 | F180: 13701 | G180: 740 | H180: 35069 | I180: 126 | J180: 0.005775939619 | K180: 4 | L180: 295.5305762 | M180: 0.00496541409 | N180: -0.0008105255289 | O180: x | P180: x | Q180: x | R180: x
A181: 44750 | B181: 0 | C181: 1151 | D181: 170820 | E181: 2767 | F181: 4702 | G181: 159 | H181: 16317 | I181: 53 | J181: 0.006738086875 | K181: 3 | L181: 197.0203842 | M181: 0.005584706802 | N181: -0.001153380073 | O181: x | P181: x | Q181: x | R181: x
A182: 44929 | B182: 0 | C182: 721 | D182: 138649 | E182: 898 | F182: 4342 | G182: 500 | H182: 17176 | I182: 58 | J182: 0.005200181754 | K182: 3 | L182: 197.0203842 | M182: 0.003779180635 | N182: -0.001421001119 | O182: x | P182: x | Q182: x | R182: x
A183: 45038 | B183: 0 | C183: 1649 | D183: 135835 | E183: 1326 | F183: 1925 | G183: 884 | H183: 13485 | I183: 18 | J183: 0.01213972835 | K183: 3 | L183: 197.0203842 | M183: 0.01068928933 | N183: -0.001450439019 | O183: x | P183: x | Q183: x | R183: x
A184: 45047 | B184: 0 | C184: 2310 | D184: 123612 | E184: 511 | F184: 4487 | G184: 247 | H184: 17860 | I184: 39 | J184: 0.01868750607 | K184: 3 | L184: 197.0203842 | M184: 0.01709364476 | N184: -0.001593861309 | O184: x | P184: x | Q184: x | R184: x
A185: 45056 | B185: 0 | C185: 530 | D185: 65494 | E185: 216 | F185: 1663 | G185: 50 | H185: 8866 | I185: 12 | J185: 0.008092344337 | K185: 2 | L185: 98.51019208 | M185: 0.006588234158 | N185: -0.001504110179 | O185: x | P185: x | Q185: x | R185: x
A186: 45430 | B186: 0 | C186: 724 | D186: 117984 | E186: 1049 | F186: 3109 | G186: 111 | H186: 15528 | I186: 23 | J186: 0.006136425278 | K186: 3 | L186: 197.0203842 | M186: 0.00446653458 | N186: -0.001669890698 | O186: x | P186: x | Q186: x | R186: x
A187: 45458 | B187: 48620 | C187: -29 | D187: 15259 | E187: 44 | F187: 520 | G187: 49 | H187: 2535 | I187: 3 | J187: -0.001900517727 | K187: 1 | L187: 147.7652881 | M187: -0.01158432978 | N187: -0.009683812053 | O187: x | P187: x | Q187: x | R187: x
A188: 45551 | B188: 0 | C188: 9072 | D188: 766452 | E188: 3791 | F188: 23233 | G188: 770 | H188: 71859 | I188: 185 | J188: 0.01183635766 | K188: 4 | L188: 197.0203842 | M188: 0.01157930257 | N188: -0.0002570550852 | O188: x | P188: x | Q188: x | R188: x
A189: 46053 | B189: 0 | C189: 1228 | D189: 188378 | E189: 1044 | F189: 6106 | G189: 937 | H189: 21726 | I189: 47 | J189: 0.006518807929 | K189: 3 | L189: 197.0203842 | M189: 0.005472930044 | N189: -0.001045877885 | O189: x | P189: x | Q189: x | R189: x
A190: 46941 | B190: 0 | C190: 1876 | D190: 117982 | E190: 692 | F190: 3119 | G190: 156 | H190: 19856 | I190: 35 | J190: 0.01590073062 | K190: 3 | L190: 197.0203842 | M190: 0.01423081161 | N190: -0.001669919006 | O190: x | P190: x | Q190: x | R190: x
A191: 47153 | B191: 0 | C191: 65 | D191: 22144 | E191: 184 | F191: 530 | G191: 35 | H191: 1857 | I191: 5 | J191: 0.00293533237 | K191: 1 | L191: 98.51019208 | M191: -0.001513285408 | N191: -0.004448617778 | O191: x | P191: x | Q191: x | R191: x
A192: 47247 | B192: 29620 | C192: 1702 | D192: 278269 | E192: 2369 | F192: 8016 | G192: 1116 | H192: 29085 | I192: 75 | J192: 0.006116383787 | K192: 4 | L192: 295.5305762 | M192: 0.00505435181 | N192: -0.001062031977 | O192: x | P192: x | Q192: x | R192: x
A193: 47256 | B193: 0 | C193: 121 | D193: 31331 | E193: 156 | F193: 1110 | G193: 43 | H193: 4609 | I193: 12 | J193: 0.003861989723 | K193: 1 | L193: 98.51019208 | M193: 0.0007178132815 | N193: -0.003144176441 | O193: x | P193: x | Q193: x | R193: x
A194: 47452 | B194: 43340 | C194: 265 | D194: 55663 | E194: 250 | F194: 1315 | G194: 0 | H194: 8850 | I194: 13 | J194: =C194/D194 -> 0.004760792627 | K194: =IF(D194/1000<INDEX(sizeV,1),1,IF(D194/1000<INDEX(sizeV,2),2,IF(D194/1000<INDEX(sizeV,3),3,IF(D194/1000<INDEX(sizeV,4),4,IF(D194/1000<INDEX(sizeV,5),5,6))))) -> 2 | L194: =IF(B194=0,salRural*T$2,salUrban*T$2)*INDEX(nHires,K194) -> 147.7652881 | M194: =(C194-L194)/D194 -> 0.002106151517 | N194: =M194-J194 -> -0.00265464111 | O194: x | P194: x | Q194: x | R194: x
A195: 48057 | B195: 0 | C195: 278 | D195: 116334 | E195: 796 | F195: 2856 | G195: 971 | H195: 10299 | I195: 23 | J195: 0.002389671119 | K195: 3 | L195: 197.0203842 | M195: 0.0006960958606 | N195: -0.001693575259 | O195: x | P195: x | Q195: x | R195: x
A196: 48150 | B196: 0 | C196: 210 | D196: 28804 | E196: 171 | F196: 591 | G196: 17 | H196: 3376 | I196: 5 | J196: 0.007290654076 | K196: 1 | L196: 98.51019208 | M196: 0.003870636298 | N196: -0.003420017778 | O196: x | P196: x | Q196: x | R196: x
A197: 48374 | B197: 0 | C197: 27245 | D197: 821577 | E197: 8889 | F197: 29027 | G197: 1600 | H197: 82127 | I197: 262 | J197: 0.03316183389 | K197: 4 | L197: 197.0203842 | M197: 0.03292202632 | N197: -0.0002398075703 | O197: x | P197: x | Q197: x | R197: x
A198: 48440 | B198: 0 | C198: 1194 | D198: 98944 | E198: 620 | F198: 2818 | G198: 200 | H198: 9300 | I198: 25 | J198: 0.01206743208 | K198: 2 | L198: 98.51019208 | M198: 0.01107181646 | N198: -0.0009956156217 | O198: x | P198: x | Q198: x | R198: x
A199: 49054 | B199: 0 | C199: 789 | D199: 168629 | E199: 2796 | F199: 5074 | G199: 616 | H199: 23533 | I199: 19 | J199: 0.004678910508 | K199: 3 | L199: 197.0203842 | M199: 0.003510544544 | N199: -0.001168365964 | O199: x | P199: x | Q199: x | R199: x
A200: 49148 | B200: 0 | C200: 1217 | D200: 92977 | E200: 465 | F200: 1640 | G200: 180 | H200: 14171 | I200: 17 | J200: 0.01308925863 | K200: 2 | L200: 98.51019208 | M200: 0.01202974723 | N200: -0.001059511407 | O200: x | P200: x | Q200: x | R200: x
... 5258 more rows

Sheet 2011 data (hidden)
A1: id.rssd | B1: msa.cd | C1: nt.inc | D1: assets | E1: int.exp | F1: nonint.exp | G1: prov.exp | H1: equity | I1: fte | J1: roa | K1: asset.cohort | L1: addl reg exp | M1: new.roa | N1: delta | O1: newly unprof | P1: roe | Q1: new.roe | R1: delta | T1: 2011
A2: 37 | B2: 0 | C2: 515 | D2: 86776 | E2: 1307 | F2: 2232 | G2: 380 | H2: 17875 | I2: 23 | J2: =C2/D2 -> 0.005934820688 | K2: =IF(D2/1000<INDEX(sizeV,1),1,IF(D2/1000<INDEX(sizeV,2),2,IF(D2/1000<INDEX(sizeV,3),3,IF(D2/1000<INDEX(sizeV,4),4,IF(D2/1000<INDEX(sizeV,5),5,6))))) -> 2 | L2: =IF(B2=0,salRural*T$2,salUrban*T$2)*INDEX(nHires,K2) -> 96.80256102 | M2: =(C2-L2)/D2 -> 0.004819275364 | N2: =M2-J2 -> -0.001115545324 | O2: x | P2: x | Q2: x | R2: x | T2: =VLOOKUP(T1,cpiAdj,2,FALSE) -> 0.9680256102 | W2: Asset | AC2: Change in ROA | AM2: Number
A3: 242 | B3: 0 | C3: 478 | D3: 35222 | E3: 286 | F3: 952 | G3: 0 | H3: 4721 | I3: 12 | J3: 0.01357106354 | K3: 1 | L3: 96.80256102 | M3: 0.01082270851 | N3: -0.002748355034 | O3: x | P3: x | Q3: x | R3: x | V3: Size | W3: Size Max | X3: Addl | Y3: # of | AA3: Median | AB3: x | AC3: 25th pctile | AD3: 50th pctile | AE3: 75th pctile | AF3: Avg | AG3: Original | AH3: Newly | AJ3: Original | AK3: After Change | AM3: of firms
A4: 354 | B4: 0 | C4: 17 | D4: 10080 | E4: 49 | F4: 357 | G4: 0 | H4: 1050 | I4: 4 | J4: 0.001686507937 | K4: 1 | L4: 96.80256102 | M4: -0.007916920736 | N4: -0.009603428673 | O4: x | P4: x | Q4: x | R4: x | V4: Quintile | W4: ($MM) | X4: Hires | Y4: Banks | Z4: % | AA4: FTEs | AB4: x | AC4: (bps) | AD4: (bps) | AE4: (bps) | AF4: (bps) | AG4: Unprof | AH4: Unprof | AI4: Difference | AJ4: ROA < 40 | AK4: ROA < 40 | AL4: Difference | AM4: in the cohort
A5: 457 | B5: 0 | C5: 956 | D5: 37616 | E5: 407 | F5: 989 | G5: 30 | H5: 3450 | I5: 9 | J5: 0.02541471714 | K5: 1 | L5: 96.80256102 | M5: 0.02284127603 | N5: -0.002573441116 | O5: x | P5: x | Q5: x | R5: x | U5: < $50M | V5: 1 | W5: x | X5: x | Y5: x | Z5: x | AA5: x | AB5: x | AC5: =PERCENTILE(IF($K$2:$K$7000=$V5,$N$2:$N$7000),0.25)*10000 -> -46.33038715 | AD5: =PERCENTILE(IF($K$2:$K$7000=$V5,$N$2:$N$7000),0.5)*10000 -> -33.59100662 | AE5: =PERCENTILE(IF($K$2:$K$7000=$V5,$N$2:$N$7000),0.75)*10000 -> -25.43957905 | AF5: =AVERAGE(IF($K$2:$K$7000=$V5,$N$2:$N$7000))*10000 -> -42.49763874 | AG5: =SUM(IF($K$2:$K$7000=$V5,IF($J$2:$J$7000<0,1,0))) -> 126 | AH5: =SUM(IF($K$2:$K$7000=$V5,IF($M$2:$M$7000<0,1,0))) -> 292 | AI5: =IF(INDEX(sizeV,V5)>0,AH5-AG5) -> 166 | AJ5: =SUM(IF($K$2:$K$7000=$V5,IF($J$2:$J$7000<0.004,1,0))) -> 279 | AK5: =SUM(IF($K$2:$K$7000=$V5,IF($M$2:$M$7000<0.004,1,0))) -> 483 | AL5: =IF(INDEX(sizeV,V5)>0,AK5-AJ5) -> 204 | AM5: =COUNTIF($K$2:$K$7000,$V5) -> 832
A6: 505 | B6: 10580 | C6: 2316 | D6: 387870 | E6: 3092 | F6: 11070 | G6: 682 | H6: 30277 | I6: 112 | J6: 0.005971072782 | K6: 4 | L6: 290.4076831 | M6: 0.005222348511 | N6: -0.0007487242712 | O6: x | P6: x | Q6: x | R6: x | U6: $50M - $100M | V6: 2 | W6: x | X6: x | Y6: x | Z6: x | AA6: x | AB6: x | AC6: =PERCENTILE(IF($K$2:$K$7000=$V6,$N$2:$N$7000),0.25)*10000 -> -18.80537746 | AD6: =PERCENTILE(IF($K$2:$K$7000=$V6,$N$2:$N$7000),0.5)*10000 -> -15.67728975 | AE6: =PERCENTILE(IF($K$2:$K$7000=$V6,$N$2:$N$7000),0.75)*10000 -> -12.47037861 | AF6: =AVERAGE(IF($K$2:$K$7000=$V6,$N$2:$N$7000))*10000 -> -16.2954128 | AG6: =SUM(IF($K$2:$K$7000=$V6,IF($J$2:$J$7000<0,1,0))) -> 171 | AH6: =SUM(IF($K$2:$K$7000=$V6,IF($M$2:$M$7000<0,1,0))) -> 242 | AI6: =IF(INDEX(sizeV,V6)>0,AH6-AG6) -> 71 | AJ6: =SUM(IF($K$2:$K$7000=$V6,IF($J$2:$J$7000<0.004,1,0))) -> 350 | AK6: =SUM(IF($K$2:$K$7000=$V6,IF($M$2:$M$7000<0.004,1,0))) -> 458 | AL6: =IF(INDEX(sizeV,V6)>0,AK6-AJ6) -> 108 | AM6: =COUNTIF($K$2:$K$7000,$V6) -> 1221
A7: 1155 | B7: 0 | C7: 2334 | D7: 219058 | E7: 2225 | F7: 5639 | G7: 1058 | H7: 19568 | I7: 53 | J7: 0.01065471245 | K7: 3 | L7: 193.605122 | M7: 0.009770904865 | N7: -0.0008838075854 | O7: x | P7: x | Q7: x | R7: x | U7: $100M - $250M | V7: 3 | W7: x | X7: x | Y7: x | Z7: x | AA7: x | AB7: x | AC7: =PERCENTILE(IF($K$2:$K$7000=$V7,$N$2:$N$7000),0.25)*10000 -> -18.58106753 | AD7: =PERCENTILE(IF($K$2:$K$7000=$V7,$N$2:$N$7000),0.5)*10000 -> -15.23304637 | AE7: =PERCENTILE(IF($K$2:$K$7000=$V7,$N$2:$N$7000),0.75)*10000 -> -12.12546154 | AF7: =AVERAGE(IF($K$2:$K$7000=$V7,$N$2:$N$7000))*10000 -> -15.8658221 | AG7: =SUM(IF($K$2:$K$7000=$V7,IF($J$2:$J$7000<0,1,0))) -> 307 | AH7: =SUM(IF($K$2:$K$7000=$V7,IF($M$2:$M$7000<0,1,0))) -> 379 | AI7: =IF(INDEX(sizeV,V7)>0,AH7-AG7) -> 72 | AJ7: =SUM(IF($K$2:$K$7000=$V7,IF($J$2:$J$7000<0.004,1,0))) -> 552 | AK7: =SUM(IF($K$2:$K$7000=$V7,IF($M$2:$M$7000<0.004,1,0))) -> 718 | AL7: =IF(INDEX(sizeV,V7)>0,AK7-AJ7) -> 166 | AM7: =COUNTIF($K$2:$K$7000,$V7) -> 1984
A8: 1351 | B8: 0 | C8: 2927 | D8: 159681 | E8: 2267 | F8: 2566 | G8: 666 | H8: 22118 | I8: 30 | J8: 0.01833029603 | K8: 3 | L8: 193.605122 | M8: 0.01711784669 | N8: -0.001212449334 | O8: x | P8: x | Q8: x | R8: x | U8: $250M - $500M | V8: 4 | W8: x | X8: x | Y8: x | Z8: x | AA8: x | AB8: x | AC8: =PERCENTILE(IF($K$2:$K$7000=$V8,$N$2:$N$7000),0.25)*10000 -> -7.667165795 | AD8: =PERCENTILE(IF($K$2:$K$7000=$V8,$N$2:$N$7000),0.5)*10000 -> -5.957813948 | AE8: =PERCENTILE(IF($K$2:$K$7000=$V8,$N$2:$N$7000),0.75)*10000 -> -4.320704557 | AF8: =AVERAGE(IF($K$2:$K$7000=$V8,$N$2:$N$7000))*10000 -> -6.222106495 | AG8: =SUM(IF($K$2:$K$7000=$V8,IF($J$2:$J$7000<0,1,0))) -> 234 | AH8: =SUM(IF($K$2:$K$7000=$V8,IF($M$2:$M$7000<0,1,0))) -> 248 | AI8: =IF(INDEX(sizeV,V8)>0,AH8-AG8) -> 14 | AJ8: =SUM(IF($K$2:$K$7000=$V8,IF($J$2:$J$7000<0.004,1,0))) -> 440 | AK8: =SUM(IF($K$2:$K$7000=$V8,IF($M$2:$M$7000<0.004,1,0))) -> 480 | AL8: =IF(INDEX(sizeV,V8)>0,AK8-AJ8) -> 40 | AM8: =COUNTIF($K$2:$K$7000,$V8) -> 1491
A9: 1454 | B9: 16220 | C9: 8579 | D9: 572190 | E9: 1538 | F9: 15737 | G9: 100 | H9: 57373 | I9: 146 | J9: 0.01499327147 | K9: 4 | L9: 290.4076831 | M9: 0.01448573431 | N9: -0.0005075371521 | O9: x | P9: x | Q9: x | R9: x | U9: $500M - $1B | V9: 5 | W9: x | X9: x | Y9: x | Z9: x | AA9: x | AB9: x | AC9: =PERCENTILE(IF($K$2:$K$7000=$V9,$N$2:$N$7000),0.25)*10000 ->  | AD9: =PERCENTILE(IF($K$2:$K$7000=$V9,$N$2:$N$7000),0.5)*10000 ->  | AE9: =PERCENTILE(IF($K$2:$K$7000=$V9,$N$2:$N$7000),0.75)*10000 ->  | AF9: =AVERAGE(IF($K$2:$K$7000=$V9,$N$2:$N$7000))*10000 ->  | AG9: =SUM(IF($K$2:$K$7000=$V9,IF($J$2:$J$7000<0,1,0))) -> 0 | AH9: =SUM(IF($K$2:$K$7000=$V9,IF($M$2:$M$7000<0,1,0))) -> 0 | AI9: =IF(INDEX(sizeV,V9)>0,AH9-AG9) -> 0 | AJ9: =SUM(IF($K$2:$K$7000=$V9,IF($J$2:$J$7000<0.004,1,0))) -> 0 | AK9: =SUM(IF($K$2:$K$7000=$V9,IF($M$2:$M$7000<0.004,1,0))) -> 0 | AL9: =IF(INDEX(sizeV,V9)>0,AK9-AJ9) -> 0 | AM9: =COUNTIF($K$2:$K$7000,$V9) -> 0
A10: 1557 | B10: 0 | C10: 723 | D10: 61178 | E10: 373 | F10: 1275 | G10: 100 | H10: 5757 | I10: 12 | J10: 0.01181797378 | K10: 2 | L10: 96.80256102 | M10: 0.01023566378 | N10: -0.001582309997 | O10: x | P10: x | Q10: x | R10: x
A11: 1669 | B11: 0 | C11: 2531 | D11: 239398 | E11: 1363 | F11: 5320 | G11: 892 | H11: 44071 | I11: 52 | J11: 0.01057235232 | K11: 3 | L11: 193.605122 | M11: 0.009763635778 | N11: -0.0008087165392 | O11: x | P11: x | Q11: x | R11: x
A12: 1829 | B12: 38300 | C12: 2866 | D12: 407355 | E12: 4310 | F12: 11237 | G12: 425 | H12: 43439 | I12: 96 | J12: 0.007035632311 | K12: 4 | L12: 290.4076831 | M12: 0.006322721746 | N12: -0.0007129105646 | O12: x | P12: x | Q12: x | R12: x | W12: Percentiles of ROA (before)
A13: 1856 | B13: 0 | C13: 4578 | D13: 144714 | E13: 4834 | F13: 1503 | G13: 297 | H13: 21726 | I13: 7 | J13: 0.03163481073 | K13: 3 | L13: 193.605122 | M13: 0.0302969642 | N13: -0.001337846525 | O13: x | P13: x | Q13: x | R13: x | V13: Cohort | W13: 25 | X13: 50 | Y13: 75
A14: 2040 | B14: 0 | C14: 694 | D14: 192905 | E14: 3051 | F14: 5619 | G14: 1052 | H14: 20762 | I14: 49 | J14: 0.003597625774 | K14: 3 | L14: 193.605122 | M14: 0.002593996413 | N14: -0.001003629362 | O14: x | P14: x | Q14: x | R14: x | V14: 1 | W14: =PERCENTILE(IF($K$2:$K$7000=$V14,$J$2:$J$7000),W$13/100) -> 0.002638794519 | X14: =PERCENTILE(IF($K$2:$K$7000=$V14,$J$2:$J$7000),X$13/100) -> 0.006396293397 | Y14: =PERCENTILE(IF($K$2:$K$7000=$V14,$J$2:$J$7000),Y$13/100) -> 0.01050230431
A15: 2161 | B15: 0 | C15: 1827 | D15: 131855 | E15: 753 | F15: 3574 | G15: 23 | H15: 14026 | I15: 32 | J15: 0.01385612984 | K15: 3 | L15: 193.605122 | M15: 0.01238781144 | N15: -0.001468318396 | O15: x | P15: x | Q15: x | R15: x | V15: 2 | W15: =PERCENTILE(IF($K$2:$K$7000=$V15,$J$2:$J$7000),W$13/100) -> 0.003325191652 | X15: =PERCENTILE(IF($K$2:$K$7000=$V15,$J$2:$J$7000),X$13/100) -> 0.00749188072 | Y15: =PERCENTILE(IF($K$2:$K$7000=$V15,$J$2:$J$7000),Y$13/100) -> 0.01190836848
A16: 2554 | B16: 0 | C16: 130 | D16: 12109 | E16: 76 | F16: 271 | G16: 26 | H16: 1162 | I16: 4 | J16: 0.01073581633 | K16: 1 | L16: 96.80256102 | M16: 0.002741550828 | N16: -0.007994265507 | O16: x | P16: x | Q16: x | R16: x | V16: 3 | W16: =PERCENTILE(IF($K$2:$K$7000=$V16,$J$2:$J$7000),W$13/100) -> 0.003400479302 | X16: =PERCENTILE(IF($K$2:$K$7000=$V16,$J$2:$J$7000),X$13/100) -> 0.007817103871 | Y16: =PERCENTILE(IF($K$2:$K$7000=$V16,$J$2:$J$7000),Y$13/100) -> 0.01179974234
A17: 2732 | B17: 16974 | C17: 3736 | D17: 523409 | E17: 2411 | F17: 10389 | G17: 2850 | H17: 77188 | I17: 92 | J17: 0.007137821474 | K17: 4 | L17: 290.4076831 | M17: 0.006582982557 | N17: -0.0005548389177 | O17: x | P17: x | Q17: x | R17: x | V17: 4 | W17: =PERCENTILE(IF($K$2:$K$7000=$V17,$J$2:$J$7000),W$13/100) -> 0.003160728154 | X17: =PERCENTILE(IF($K$2:$K$7000=$V17,$J$2:$J$7000),X$13/100) -> 0.007608098748 | Y17: =PERCENTILE(IF($K$2:$K$7000=$V17,$J$2:$J$7000),Y$13/100) -> 0.0114222562
A18: 2750 | B18: 0 | C18: 492 | D18: 59593 | E18: 796 | F18: 1403 | G18: 135 | H18: 5512 | I18: 11 | J18: 0.008256003222 | K18: 2 | L18: 96.80256102 | M18: 0.006631608393 | N18: -0.001624394829 | O18: x | P18: x | Q18: x | R18: x | V18: 5 | W18: =PERCENTILE(IF($K$2:$K$7000=$V18,$J$2:$J$7000),W$13/100) ->  | X18: =PERCENTILE(IF($K$2:$K$7000=$V18,$J$2:$J$7000),X$13/100) ->  | Y18: =PERCENTILE(IF($K$2:$K$7000=$V18,$J$2:$J$7000),Y$13/100) -> 
A19: 3252 | B19: 0 | C19: 3336 | D19: 152928 | E19: 1032 | F19: 3338 | G19: 600 | H19: 20113 | I19: 35 | J19: 0.02181418707 | K19: 3 | L19: 193.605122 | M19: 0.02054819835 | N19: -0.001265988714 | O19: x | P19: x | Q19: x | R19: x
A20: 3458 | B20: 0 | C20: 225 | D20: 33286 | E20: 281 | F20: 747 | G20: 85 | H20: 3330 | I20: 11 | J20: 0.00675959863 | K20: 1 | L20: 96.80256102 | M20: 0.003851392146 | N20: -0.002908206484 | O20: x | P20: x | Q20: x | R20: x
A21: 3720 | B21: 0 | C21: 1955 | D21: 205356 | E21: 984 | F21: 6343 | G21: 227 | H21: 28842 | I21: 61 | J21: 0.009520052981 | K21: 3 | L21: 193.605122 | M21: 0.008577274966 | N21: -0.000942778015 | O21: x | P21: x | Q21: x | R21: x | W21: Percentiles of ROA (after)
A22: 3953 | B22: 0 | C22: -6996 | D22: 53095 | E22: 572 | F22: 4815 | G22: 6727 | H22: 1603 | I22: 17 | J22: -0.1317638196 | K22: 2 | L22: 96.80256102 | M22: -0.133587015 | N22: -0.001823195424 | O22: x | P22: x | Q22: x | R22: x | V22: Cohort | W22: 25 | X22: 50 | Y22: 75
A23: 4156 | B23: 0 | C23: 1217 | D23: 203086 | E23: 1803 | F23: 6775 | G23: 563 | H23: 20504 | I23: 61 | J23: 0.005992535182 | K23: 3 | L23: 193.605122 | M23: 0.005039219237 | N23: -0.0009533159452 | O23: x | P23: x | Q23: x | R23: x | V23: 1 | W23: =PERCENTILE(IF($K$2:$K$7000=$V23,$M$2:$M$7000),W$13/100) -> -0.002300026665 | X23: =PERCENTILE(IF($K$2:$K$7000=$V23,$M$2:$M$7000),X$13/100) -> 0.002593332405 | Y23: =PERCENTILE(IF($K$2:$K$7000=$V23,$M$2:$M$7000),Y$13/100) -> 0.007254463503
A24: 4231 | B24: 0 | C24: 276 | D24: 128697 | E24: 1732 | F24: 3045 | G24: 597 | H24: 14767 | I24: 33 | J24: 0.002144572135 | K24: 3 | L24: 193.605122 | M24: 0.0006402237656 | N24: -0.001504348369 | O24: x | P24: x | Q24: x | R24: x | V24: 2 | W24: =PERCENTILE(IF($K$2:$K$7000=$V24,$M$2:$M$7000),W$13/100) -> 0.001524600731 | X24: =PERCENTILE(IF($K$2:$K$7000=$V24,$M$2:$M$7000),X$13/100) -> 0.005901450022 | Y24: =PERCENTILE(IF($K$2:$K$7000=$V24,$M$2:$M$7000),Y$13/100) -> 0.01023566378
A25: 4437 | B25: 0 | C25: 1161 | D25: 264812 | E25: 2605 | F25: 6692 | G25: 1900 | H25: 26922 | I25: 57 | J25: 0.004384242406 | K25: 4 | L25: 193.605122 | M25: 0.00365313837 | N25: -0.0007311040362 | O25: x | P25: x | Q25: x | R25: x | V25: 3 | W25: =PERCENTILE(IF($K$2:$K$7000=$V25,$M$2:$M$7000),W$13/100) -> 0.001678141198 | X25: =PERCENTILE(IF($K$2:$K$7000=$V25,$M$2:$M$7000),X$13/100) -> 0.00622995725 | Y25: =PERCENTILE(IF($K$2:$K$7000=$V25,$M$2:$M$7000),Y$13/100) -> 0.01034069443
A26: 4839 | B26: 16974 | C26: 2994 | D26: 322757 | E26: 3272 | F26: 10838 | G26: 2260 | H26: 31923 | I26: 90 | J26: 0.009276328631 | K26: 4 | L26: 290.4076831 | M26: 0.008376556719 | N26: -0.0008997719122 | O26: x | P26: x | Q26: x | R26: x | V26: 4 | W26: =PERCENTILE(IF($K$2:$K$7000=$V26,$M$2:$M$7000),W$13/100) -> 0.002485282516 | X26: =PERCENTILE(IF($K$2:$K$7000=$V26,$M$2:$M$7000),X$13/100) -> 0.006993529695 | Y26: =PERCENTILE(IF($K$2:$K$7000=$V26,$M$2:$M$7000),Y$13/100) -> 0.01079629972
A27: 5069 | B27: 31084 | C27: 25849 | D27: 441819 | E27: 4491 | F27: 5163 | G27: -3718 | H27: 124178 | I27: 30 | J27: 0.05850585873 | K27: 4 | L27: 290.4076831 | M27: 0.05784855861 | N27: -0.000657300123 | O27: x | P27: x | Q27: x | R27: x | V27: 5 | W27: =PERCENTILE(IF($K$2:$K$7000=$V27,$M$2:$M$7000),W$13/100) ->  | X27: =PERCENTILE(IF($K$2:$K$7000=$V27,$M$2:$M$7000),X$13/100) ->  | Y27: =PERCENTILE(IF($K$2:$K$7000=$V27,$M$2:$M$7000),Y$13/100) -> 
A28: 5135 | B28: 0 | C28: 3059 | D28: 362765 | E28: 3372 | F28: 8498 | G28: 900 | H28: 39625 | I28: 62 | J28: 0.008432456273 | K28: 4 | L28: 193.605122 | M28: 0.007898763326 | N28: -0.0005336929473 | O28: x | P28: x | Q28: x | R28: x
A29: 5210 | B29: 0 | C29: 7814 | D29: 988859 | E29: 7327 | F29: 25551 | G29: 5435 | H29: 83274 | I29: 259 | J29: 0.00790203659 | K29: 4 | L29: 193.605122 | M29: 0.007706250212 | N29: -0.0001957863781 | O29: x | P29: x | Q29: x | R29: x
A30: 5331 | B30: 16974 | C30: 1401 | D30: 395776 | E30: 4900 | F30: 9301 | G30: 2500 | H30: 32753 | I30: 73 | J30: 0.003539881145 | K30: 4 | L30: 290.4076831 | M30: 0.002806113349 | N30: -0.0007337677956 | O30: x | P30: x | Q30: x | R30: x
A31: 5461 | B31: 44700 | C31: 1724 | D31: 469390 | E31: 1870 | F31: 15327 | G31: 6239 | H31: 47197 | I31: 120 | J31: 0.003672851999 | K31: 4 | L31: 290.4076831 | M31: 0.003054160329 | N31: -0.0006186916702 | O31: x | P31: x | Q31: x | R31: x
A32: 5751 | B32: 0 | C32: 2339 | D32: 124573 | E32: 473 | F32: 2276 | G32: 0 | H32: 26712 | I32: 18 | J32: 0.01877613929 | K32: 3 | L32: 193.605122 | M32: 0.01722198934 | N32: -0.001554149953 | O32: x | P32: x | Q32: x | R32: x
A33: 6039 | B33: 0 | C33: 17 | D33: 89425 | E33: 658 | F33: 2958 | G33: 175 | H33: 8708 | I33: 24 | J33: 0.0001901034386 | K33: 2 | L33: 96.80256102 | M33: -0.0008923965448 | N33: -0.001082499983 | O33: x | P33: x | Q33: x | R33: x
A34: 6141 | B34: 0 | C34: 353 | D34: 62682 | E34: 349 | F34: 1248 | G34: 160 | H34: 5038 | I34: 11 | J34: 0.005631600779 | K34: 2 | L34: 96.80256102 | M34: 0.004087256931 | N34: -0.001544343847 | O34: x | P34: x | Q34: x | R34: x
A35: 6329 | B35: 0 | C35: -2452 | D35: 428492 | E35: 4422 | F35: 20715 | G35: 16838 | H35: 32501 | I35: 185 | J35: -0.005722393884 | K35: 4 | L35: 193.605122 | M35: -0.006174222907 | N35: -0.0004518290237 | O35: x | P35: x | Q35: x | R35: x
A36: 6972 | B36: 38900 | C36: 10336 | D36: 780348 | E36: 2500 | F36: 32515 | G36: -1528 | H36: 88909 | I36: 233 | J36: 0.01324537258 | K36: 4 | L36: 290.4076831 | M36: 0.01287322107 | N36: -0.0003721515056 | O36: x | P36: x | Q36: x | R36: x
A37: 7009 | B37: 20764 | C37: 11005 | D37: 721934 | E37: 366 | F37: 51850 | G37: 0 | H37: 50608 | I37: 82 | J37: 0.01524377575 | K37: 4 | L37: 290.4076831 | M37: 0.01484151227 | N37: -0.0004022634798 | O37: x | P37: x | Q37: x | R37: x
A38: 7045 | B38: 0 | C38: 1224 | D38: 155806 | E38: 876 | F38: 3601 | G38: 235 | H38: 16035 | I38: 51 | J38: 0.007855923392 | K38: 3 | L38: 193.605122 | M38: 0.006613319628 | N38: -0.001242603764 | O38: x | P38: x | Q38: x | R38: x
A39: 7157 | B39: 0 | C39: 335 | D39: 48779 | E39: 522 | F39: 1052 | G39: 20 | H39: 4390 | I39: 8 | J39: 0.006867709465 | K39: 1 | L39: 96.80256102 | M39: 0.004883196437 | N39: -0.001984513029 | O39: x | P39: x | Q39: x | R39: x
A40: 7456 | B40: 0 | C40: 595 | D40: 59978 | E40: 456 | F40: 1807 | G40: 0 | H40: 5036 | I40: 16 | J40: 0.009920304112 | K40: 2 | L40: 96.80256102 | M40: 0.008306336306 | N40: -0.001613967805 | O40: x | P40: x | Q40: x | R40: x
A41: 7634 | B41: 0 | C41: -277 | D41: 62101 | E41: 805 | F41: 1793 | G41: 860 | H41: 5369 | I41: 13 | J41: -0.004460475677 | K41: 2 | L41: 96.80256102 | M41: -0.006019267983 | N41: -0.001558792306 | O41: x | P41: x | Q41: x | R41: x
A42: 8033 | B42: 12940 | C42: 1654 | D42: 165804 | E42: 1953 | F42: 3671 | G42: 457 | H42: 16185 | I42: 35 | J42: 0.009975633881 | K42: 3 | L42: 290.4076831 | M42: 0.008224121957 | N42: -0.001751511924 | O42: x | P42: x | Q42: x | R42: x
A43: 8462 | B43: 0 | C43: 1842 | D43: 153292 | E43: 455 | F43: 2256 | G43: 40 | H43: 16202 | I43: 21 | J43: 0.01201628265 | K43: 3 | L43: 193.605122 | M43: 0.01075330009 | N43: -0.001262982556 | O43: x | P43: x | Q43: x | R43: x
A44: 8631 | B44: 37620 | C44: 437 | D44: 58419 | E44: 411 | F44: 1802 | G44: 60 | H44: 6504 | I44: 20 | J44: 0.007480443007 | K44: 2 | L44: 145.2038415 | M44: 0.004994884515 | N44: -0.002485558492 | O44: x | P44: x | Q44: x | R44: x
A45: 9357 | B45: 33460 | C45: 6458 | D45: 430149 | E45: 1115 | F45: 7209 | G45: 0 | H45: 70853 | I45: 46 | J45: 0.01501340233 | K45: 4 | L45: 290.4076831 | M45: 0.01433826957 | N45: -0.0006751327634 | O45: x | P45: x | Q45: x | R45: x
A46: 9553 | B46: 0 | C46: 1073 | D46: 122484 | E46: 900 | F46: 2209 | G46: 0 | H46: 9515 | I46: 15 | J46: 0.00876032788 | K46: 3 | L46: 193.605122 | M46: 0.007179671451 | N46: -0.001580656429 | O46: x | P46: x | Q46: x | R46: x
A47: 9955 | B47: 0 | C47: 1402 | D47: 108894 | E47: 391 | F47: 3151 | G47: 277 | H47: 13138 | I47: 28 | J47: 0.01287490587 | K47: 3 | L47: 193.605122 | M47: 0.0110969831 | N47: -0.001777922769 | O47: x | P47: x | Q47: x | R47: x
A48: 10250 | B48: 33460 | C48: -3804 | D48: 376526 | E48: 4644 | F48: 13773 | G48: 7335 | H48: 26217 | I48: 89 | J48: -0.01010288798 | K48: 4 | L48: 290.4076831 | M48: -0.01087416987 | N48: -0.0007712818851 | O48: x | P48: x | Q48: x | R48: x
A49: 10849 | B49: 30780 | C49: 494 | D49: 267652 | E49: 2525 | F49: 8283 | G49: 925 | H49: 26327 | I49: 60 | J49: 0.001845680212 | K49: 4 | L49: 290.4076831 | M49: 0.0007606605478 | N49: -0.001085019664 | O49: x | P49: x | Q49: x | R49: x
A50: 10858 | B50: 0 | C50: 3584 | D50: 403650 | E50: 2097 | F50: 13688 | G50: 647 | H50: 34651 | I50: 121 | J50: 0.008878979314 | K50: 4 | L50: 193.605122 | M50: 0.008399343188 | N50: -0.0004796361255 | O50: x | P50: x | Q50: x | R50: x
A51: 11145 | B51: 0 | C51: 1033 | D51: 169378 | E51: 1529 | F51: 5964 | G51: 840 | H51: 17357 | I51: 57 | J51: 0.006098784966 | K51: 3 | L51: 193.605122 | M51: 0.004955749141 | N51: -0.001143035825 | O51: x | P51: x | Q51: x | R51: x
A52: 11640 | B52: 0 | C52: 4035 | D52: 320654 | E52: 2918 | F52: 8864 | G52: 75 | H52: 33153 | I52: 55 | J52: 0.01258365715 | K52: 4 | L52: 193.605122 | M52: 0.01197987512 | N52: -0.0006037820269 | O52: x | P52: x | Q52: x | R52: x
A53: 11837 | B53: 0 | C53: 288 | D53: 104092 | E53: 1198 | F53: 2484 | G53: 725 | H53: 11683 | I53: 17 | J53: 0.00276678323 | K53: 3 | L53: 193.605122 | M53: 0.0009068408519 | N53: -0.001859942378 | O53: x | P53: x | Q53: x | R53: x
A54: 12030 | B54: 0 | C54: 2818 | D54: 313355 | E54: 3553 | F54: 7824 | G54: 7313 | H54: 37391 | I54: 85 | J54: 0.008992995165 | K54: 4 | L54: 193.605122 | M54: 0.008375149201 | N54: -0.000617845964 | O54: x | P54: x | Q54: x | R54: x
A55: 12142 | B55: 0 | C55: 1309 | D55: 185048 | E55: 710 | F55: 6245 | G55: 110 | H55: 20412 | I55: 69 | J55: 0.007073840301 | K55: 3 | L55: 193.605122 | M55: 0.006027597585 | N55: -0.001046242716 | O55: x | P55: x | Q55: x | R55: x
A56: 12245 | B56: 0 | C56: 759 | D56: 116659 | E56: 831 | F56: 3842 | G56: 200 | H56: 13723 | I56: 41 | J56: 0.006506141832 | K56: 3 | L56: 193.605122 | M56: 0.004846560299 | N56: -0.001659581533 | O56: x | P56: x | Q56: x | R56: x
A57: 12647 | B57: 0 | C57: 802 | D57: 105210 | E57: 1143 | F57: 2516 | G57: 574 | H57: 9757 | I57: 24 | J57: 0.007622849539 | K57: 3 | L57: 193.605122 | M57: 0.00578267159 | N57: -0.001840177949 | O57: x | P57: x | Q57: x | R57: x
A58: 12656 | B58: 0 | C58: 75 | D58: 16697 | E58: 150 | F58: 788 | G58: 30 | H58: 1408 | I58: 9 | J58: 0.004491824879 | K58: 1 | L58: 96.80256102 | M58: -0.001305777147 | N58: -0.005797602026 | O58: x | P58: x | Q58: x | R58: x
A59: 12937 | B59: 16974 | C59: 1426 | D59: 220598 | E59: 1354 | F59: 5528 | G59: 620 | H59: 32579 | I59: 41 | J59: 0.006464247183 | K59: 3 | L59: 290.4076831 | M59: 0.005147790628 | N59: -0.001316456555 | O59: x | P59: x | Q59: x | R59: x
A60: 12946 | B60: 0 | C60: 10174 | D60: 734076 | E60: 7198 | F60: 16419 | G60: 5662 | H60: 75864 | I60: 157 | J60: 0.01385960037 | K60: 4 | L60: 193.605122 | M60: 0.01359586048 | N60: -0.000263739888 | O60: x | P60: x | Q60: x | R60: x
A61: 12955 | B61: 36540 | C61: 684 | D61: 120941 | E61: 754 | F61: 5298 | G61: 1320 | H61: 12417 | I61: 54 | J61: 0.005655650276 | K61: 3 | L61: 290.4076831 | M61: 0.00325441593 | N61: -0.002401234346 | O61: x | P61: x | Q61: x | R61: x
A62: 13251 | B62: 0 | C62: -162 | D62: 40743 | E62: 274 | F62: 1088 | G62: 602 | H62: 3418 | I62: 8 | J62: -0.003976143141 | K62: 1 | L62: 96.80256102 | M62: -0.006352074246 | N62: -0.002375931105 | O62: x | P62: x | Q62: x | R62: x
A63: 13457 | B63: 0 | C63: 203 | D63: 21158 | E63: 90 | F63: 700 | G63: 0 | H63: 5963 | I63: 4 | J63: 0.009594479629 | K63: 1 | L63: 96.80256102 | M63: 0.00501925697 | N63: -0.004575222659 | O63: x | P63: x | Q63: x | R63: x
A64: 14052 | B64: 0 | C64: 211 | D64: 62050 | E64: 375 | F64: 2056 | G64: 168 | H64: 6638 | I64: 19 | J64: 0.003400483481 | K64: 2 | L64: 96.80256102 | M64: 0.001840409975 | N64: -0.001560073506 | O64: x | P64: x | Q64: x | R64: x
A65: 14155 | B65: 0 | C65: 1488 | D65: 117530 | E65: 846 | F65: 4910 | G65: 722 | H65: 14119 | I65: 43 | J65: 0.01266059729 | K65: 3 | L65: 193.605122 | M65: 0.01101331471 | N65: -0.001647282584 | O65: x | P65: x | Q65: x | R65: x
A66: 14650 | B66: 0 | C66: 416 | D66: 26099 | E66: 112 | F66: 1265 | G66: 198 | H66: 2816 | I66: 13 | J66: =C66/D66 -> 0.01593930802 | K66: =IF(D66/1000<INDEX(sizeV,1),1,IF(D66/1000<INDEX(sizeV,2),2,IF(D66/1000<INDEX(sizeV,3),3,IF(D66/1000<INDEX(sizeV,4),4,IF(D66/1000<INDEX(sizeV,5),5,6))))) -> 1 | L66: =IF(B66=0,salRural*T$2,salUrban*T$2)*INDEX(nHires,K66) -> 96.80256102 | M66: =(C66-L66)/D66 -> 0.01223025553 | N66: =M66-J66 -> -0.003709052493 | O66: x | P66: x | Q66: x | R66: x
A67: 14753 | B67: 0 | C67: 278 | D67: 42656 | E67: 296 | F67: 1076 | G67: 0 | H67: 3720 | I67: 11 | J67: 0.006517254314 | K67: 1 | L67: 96.80256102 | M67: 0.004247876945 | N67: -0.002269377368 | O67: x | P67: x | Q67: x | R67: x
A68: 14865 | B68: 0 | C68: 2303 | D68: 260348 | E68: 1061 | F68: 9884 | G68: 1325 | H68: 28474 | I68: 100 | J68: 0.008845852474 | K68: 4 | L68: 193.605122 | M68: 0.008102212723 | N68: -0.0007436397516 | O68: x | P68: x | Q68: x | R68: x
A69: 16458 | B69: 29940 | C69: 1807 | D69: 294206 | E69: 1147 | F69: 10072 | G69: 300 | H69: 34559 | I69: 82 | J69: 0.006141954957 | K69: 4 | L69: 290.4076831 | M69: 0.005154865356 | N69: -0.0009870896007 | O69: x | P69: x | Q69: x | R69: x
A70: 16551 | B70: 0 | C70: 1648 | D70: 230524 | E70: 2878 | F70: 6382 | G70: 600 | H70: 22244 | I70: 79 | J70: 0.007148930263 | K70: 3 | L70: 193.605122 | M70: 0.006309082256 | N70: -0.0008398480073 | O70: x | P70: x | Q70: x | R70: x
A71: 16748 | B71: 21780 | C71: 578 | D71: 57155 | E71: 457 | F71: 1768 | G71: 30 | H71: 6618 | I71: 16 | J71: 0.01011285102 | K71: 2 | L71: 145.2038415 | M71: 0.007572323654 | N71: -0.002540527365 | O71: x | P71: x | Q71: x | R71: x
A72: 16944 | B72: 28020 | C72: 107 | D72: 40548 | E72: 208 | F72: 1269 | G72: 0 | H72: 4134 | I72: 12 | J72: 0.002638847785 | K72: 1 | L72: 145.2038415 | M72: -0.0009421880618 | N72: -0.003581035847 | O72: x | P72: x | Q72: x | R72: x
A73: 16953 | B73: 24220 | C73: 207 | D73: 35002 | E73: 182 | F73: 1093 | G73: 53 | H73: 5343 | I73: 8 | J73: 0.005913947774 | K73: 1 | L73: 145.2038415 | M73: 0.001765503642 | N73: -0.004148444133 | O73: x | P73: x | Q73: x | R73: x
A74: 17110 | B74: 37964 | C74: 2940 | D74: 107720 | E74: 498 | F74: 18094 | G74: -440 | H74: 18669 | I74: 66 | J74: 0.0272929818 | K74: 3 | L74: 290.4076831 | M74: 0.02459703228 | N74: -0.002695949527 | O74: x | P74: x | Q74: x | R74: x
A75: 17259 | B75: 0 | C75: 917 | D75: 66967 | E75: 611 | F75: 2329 | G75: 70 | H75: 7477 | I75: 29 | J75: 0.01369331163 | K75: 2 | L75: 96.80256102 | M75: 0.01224778531 | N75: -0.001445526319 | O75: x | P75: x | Q75: x | R75: x
A76: 17950 | B76: 13740 | C76: 2352 | D76: 303802 | E76: 2348 | F76: 6844 | G76: 1382 | H76: 29137 | I76: 78 | J76: 0.007741884517 | K76: 4 | L76: 290.4076831 | M76: 0.006785973486 | N76: -0.0009559110311 | O76: x | P76: x | Q76: x | R76: x
A77: 18050 | B77: 12420 | C77: 5816 | D77: 411931 | E77: 1620 | F77: 10536 | G77: 840 | H77: 42072 | I77: 111 | J77: 0.01411886942 | K77: 4 | L77: 290.4076831 | M77: 0.01341387834 | N77: -0.000704991086 | O77: x | P77: x | Q77: x | R77: x
A78: 18135 | B78: 16974 | C78: 1454 | D78: 235866 | E78: 1957 | F78: 8654 | G78: 460 | H78: 21166 | I78: 53 | J78: 0.006164517141 | K78: 3 | L78: 290.4076831 | M78: 0.004933277017 | N78: -0.001231240124 | O78: x | P78: x | Q78: x | R78: x
A79: 18827 | B79: 38300 | C79: 3642 | D79: 388197 | E79: 2969 | F79: 8858 | G79: 1461 | H79: 39215 | I79: 85 | J79: 0.009381834481 | K79: 4 | L79: 290.4076831 | M79: 0.008633740902 | N79: -0.0007480935789 | O79: x | P79: x | Q79: x | R79: x
A80: 18836 | B80: 0 | C80: 190 | D80: 154459 | E80: 1983 | F80: 5285 | G80: 958 | H80: 13334 | I80: 48 | J80: 0.001230099897 | K80: 3 | L80: 193.605122 | M80: -2.334031711e-05 | N80: -0.001253440214 | O80: x | P80: x | Q80: x | R80: x
A81: 18854 | B81: 36420 | C81: 15943 | D81: 211563 | E81: 1826 | F81: 6169 | G81: 675 | H81: 20687 | I81: 52 | J81: 0.07535816754 | K81: 3 | L81: 290.4076831 | M81: 0.07398549045 | N81: -0.001372677089 | O81: x | P81: x | Q81: x | R81: x
A82: 18957 | B82: 45820 | C82: -318 | D82: 24450 | E82: 384 | F82: 1125 | G82: 347 | H82: 661 | I82: 9 | J82: -0.01300613497 | K82: 1 | L82: 145.2038415 | M82: -0.01894494239 | N82: -0.005938807425 | O82: x | P82: x | Q82: x | R82: x
A83: 19356 | B83: 0 | C83: 429 | D83: 75077 | E83: 467 | F83: 2431 | G83: 424 | H83: 8262 | I83: 28 | J83: 0.00571413349 | K83: 2 | L83: 96.80256102 | M83: 0.004424756436 | N83: -0.001289377053 | O83: x | P83: x | Q83: x | R83: x
A84: 19936 | B84: 0 | C84: 417 | D84: 240976 | E84: 1813 | F84: 5477 | G84: 3330 | H84: 21211 | I84: 48 | J84: 0.001730462785 | K84: 3 | L84: 193.605122 | M84: 0.0009270420206 | N84: -0.0008034207641 | O84: x | P84: x | Q84: x | R84: x
A85: 20053 | B85: 20740 | C85: 500 | D85: 69980 | E85: 689 | F85: 2239 | G85: 165 | H85: 8491 | I85: 17 | J85: 0.007144898542 | K85: 2 | L85: 145.2038415 | M85: 0.005069965111 | N85: -0.002074933431 | O85: x | P85: x | Q85: x | R85: x
A86: 20512 | B86: 0 | C86: 918 | D86: 97869 | E86: 881 | F86: 2762 | G86: 31 | H86: 9479 | I86: 26 | J86: 0.009379885357 | K86: 2 | L86: 96.80256102 | M86: 0.008390781953 | N86: -0.0009891034037 | O86: x | P86: x | Q86: x | R86: x
A87: 20633 | B87: 0 | C87: 1529 | D87: 320020 | E87: 4970 | F87: 9314 | G87: 521 | H87: 27662 | I87: 85 | J87: 0.004777826386 | K87: 4 | L87: 193.605122 | M87: 0.004172848191 | N87: -0.0006049781952 | O87: x | P87: x | Q87: x | R87: x
A88: 20857 | B88: 0 | C88: 3183 | D88: 193599 | E88: 618 | F88: 2551 | G88: 0 | H88: 22051 | I88: 16 | J88: 0.01644120063 | K88: 3 | L88: 193.605122 | M88: 0.015441169 | N88: -0.001000031622 | O88: x | P88: x | Q88: x | R88: x
A89: 21256 | B89: 48620 | C89: 49 | D89: 9375 | E89: 60 | F89: 344 | G89: 5 | H89: 1080 | I89: 4 | J89: 0.005226666667 | K89: 1 | L89: 145.2038415 | M89: -0.0102617431 | N89: -0.01548840976 | O89: x | P89: x | Q89: x | R89: x
A90: 21359 | B90: 0 | C90: 395 | D90: 23787 | E90: 240 | F90: 823 | G90: 18 | H90: 2680 | I90: 7 | J90: 0.016605709 | K90: 1 | L90: 96.80256102 | M90: 0.01253615164 | N90: -0.004069557364 | O90: x | P90: x | Q90: x | R90: x
A91: 21630 | B91: 29180 | C91: 1029 | D91: 87026 | E91: 611 | F91: 2264 | G91: 28 | H91: 8825 | I91: 28 | J91: 0.01182405258 | K91: 2 | L91: 145.2038415 | M91: 0.01015554154 | N91: -0.001668511037 | O91: x | P91: x | Q91: x | R91: x
A92: 21658 | B92: 0 | C92: 1182 | D92: 147981 | E92: 1482 | F92: 4055 | G92: 477 | H92: 15039 | I92: 41 | J92: 0.00798751191 | K92: 3 | L92: 193.605122 | M92: 0.006679201235 | N92: -0.001308310675 | O92: x | P92: x | Q92: x | R92: x
A93: 22048 | B93: 0 | C93: 1048 | D93: 191141 | E93: 1884 | F93: 6764 | G93: 508 | H93: 19071 | I93: 64 | J93: 0.005482863436 | K93: 3 | L93: 193.605122 | M93: 0.00446997179 | N93: -0.001012891646 | O93: x | P93: x | Q93: x | R93: x
A94: 22356 | B94: 0 | C94: 3351 | D94: 391151 | E94: 2036 | F94: 8485 | G94: 700 | H94: 43774 | I94: 78 | J94: 0.008567023988 | K94: 4 | L94: 193.605122 | M94: 0.008072061373 | N94: -0.0004949626156 | O94: x | P94: x | Q94: x | R94: x
A95: 22543 | B95: 0 | C95: 433 | D95: 83322 | E95: 317 | F95: 2262 | G95: 675 | H95: 14171 | I95: 24 | J95: 0.005196706752 | K95: 2 | L95: 96.80256102 | M95: 0.004034918017 | N95: -0.001161788736 | O95: x | P95: x | Q95: x | R95: x
A96: 22552 | B96: 0 | C96: 1308 | D96: 85738 | E96: 843 | F96: 2599 | G96: 60 | H96: 7854 | I96: 20 | J96: 0.01525577923 | K96: 2 | L96: 96.80256102 | M96: 0.01412672839 | N96: -0.001129050841 | O96: x | P96: x | Q96: x | R96: x
A97: 22730 | B97: 0 | C97: 710 | D97: 116869 | E97: 776 | F97: 4019 | G97: 80 | H97: 12616 | I97: 46 | J97: 0.006075178191 | K97: 3 | L97: 193.605122 | M97: 0.004418578733 | N97: -0.001656599458 | O97: x | P97: x | Q97: x | R97: x
A98: 22936 | B98: 0 | C98: -9240 | D98: 217062 | E98: 3470 | F98: 7457 | G98: 10150 | H98: 9779 | I98: 59 | J98: -0.04256848274 | K98: 3 | L98: 193.605122 | M98: -0.0434604174 | N98: -0.000891934664 | O98: x | P98: x | Q98: x | R98: x
A99: 22954 | B99: 22020 | C99: 806 | D99: 93527 | E99: 968 | F99: 2403 | G99: 140 | H99: 8974 | I99: 20 | J99: 0.008617832284 | K99: 2 | L99: 145.2038415 | M99: 0.007065298347 | N99: -0.001552533937 | O99: x | P99: x | Q99: x | R99: x
A100: 23045 | B100: 0 | C100: 179 | D100: 41632 | E100: 121 | F100: 1113 | G100: 0 | H100: 8013 | I100: 15 | J100: 0.004299577248 | K100: 1 | L100: 96.80256102 | M100: 0.001974381221 | N100: -0.002325196028 | O100: x | P100: x | Q100: x | R100: x
A101: 23456 | B101: 0 | C101: 1373 | D101: 94327 | E101: 1078 | F101: 2852 | G101: 162 | H101: 10858 | I101: 23 | J101: 0.01455574756 | K101: 2 | L101: 96.80256102 | M101: 0.0135295031 | N101: -0.001026244458 | O101: x | P101: x | Q101: x | R101: x
A102: 23540 | B102: 16974 | C102: 303 | D102: 188451 | E102: 977 | F102: 5475 | G102: 2237 | H102: 12512 | I102: 36 | J102: 0.00160784501 | K102: 3 | L102: 290.4076831 | M102: 6.682011207e-05 | N102: -0.001541024898 | O102: x | P102: x | Q102: x | R102: x
A103: 23643 | B103: 0 | C103: 2809 | D103: 157315 | E103: 1468 | F103: 4615 | G103: 720 | H103: 16291 | I103: 40 | J103: 0.01785589422 | K103: 3 | L103: 193.605122 | M103: 0.01662520979 | N103: -0.001230684436 | O103: x | P103: x | Q103: x | R103: x
A104: 23755 | B104: 33460 | C104: 1075 | D104: 161180 | E104: 1354 | F104: 6269 | G104: 318 | H104: 15295 | I104: 52 | J104: 0.00666956198 | K104: 3 | L104: 290.4076831 | M104: 0.004867801942 | N104: -0.001801760039 | O104: x | P104: x | Q104: x | R104: x
A105: 24453 | B105: 0 | C105: -9345 | D105: 222215 | E105: 3546 | F105: 10423 | G105: 3512 | H105: 6277 | I105: 43 | J105: -0.04205386675 | K105: 3 | L105: 193.605122 | M105: -0.04292511812 | N105: -0.0008712513649 | O105: x | P105: x | Q105: x | R105: x
A106: 24659 | B106: 0 | C106: 557 | D106: 38702 | E106: 300 | F106: 995 | G106: 58 | H106: 4561 | I106: 9 | J106: 0.01439202108 | K106: 1 | L106: 96.80256102 | M106: 0.01189079218 | N106: -0.002501228903 | O106: x | P106: x | Q106: x | R106: x
A107: 24668 | B107: 0 | C107: 1522 | D107: 211477 | E107: 1299 | F107: 7545 | G107: 51 | H107: 21397 | I107: 73 | J107: 0.007197000147 | K107: 3 | L107: 193.605122 | M107: 0.006281509942 | N107: -0.0009154902048 | O107: x | P107: x | Q107: x | R107: x
A108: 24855 | B108: 0 | C108: 32 | D108: 15662 | E108: 50 | F108: 411 | G108: 0 | H108: 956 | I108: 4 | J108: 0.002043161793 | K108: 1 | L108: 96.80256102 | M108: -0.004137566149 | N108: -0.006180727942 | O108: x | P108: x | Q108: x | R108: x
A109: 24949 | B109: 0 | C109: 2912 | D109: 766052 | E109: 7319 | F109: 19589 | G109: 3423 | H109: 74671 | I109: 200 | J109: 0.003801308527 | K109: 4 | L109: 193.605122 | M109: 0.003548577483 | N109: -0.0002527310444 | O109: x | P109: x | Q109: x | R109: x
A110: 25357 | B110: 36420 | C110: 1088 | D110: 125815 | E110: 1623 | F110: 3787 | G110: 306 | H110: 10842 | I110: 48 | J110: 0.008647617534 | K110: 3 | L110: 290.4076831 | M110: 0.006339405611 | N110: -0.002308211923 | O110: x | P110: x | Q110: x | R110: x
A111: 25647 | B111: 16974 | C111: -1082 | D111: 66049 | E111: 874 | F111: 2533 | G111: 915 | H111: 2379 | I111: 22 | J111: -0.01638177717 | K111: 2 | L111: 145.2038415 | M111: -0.01858020321 | N111: -0.00219842604 | O111: x | P111: x | Q111: x | R111: x
A112: 26242 | B112: 0 | C112: 5116 | D112: 388434 | E112: 1694 | F112: 11550 | G112: 775 | H112: 55489 | I112: 121 | J112: 0.01317083468 | K112: 4 | L112: 193.605122 | M112: 0.01267240993 | N112: -0.0004984247569 | O112: x | P112: x | Q112: x | R112: x
A113: 26457 | B113: 0 | C113: 178 | D113: 24789 | E113: 161 | F113: 750 | G113: 0 | H113: 3066 | I113: 8 | J113: 0.0071806043 | K113: 1 | L113: 96.80256102 | M113: 0.003275543143 | N113: -0.003905061157 | O113: x | P113: x | Q113: x | R113: x
A114: 26765 | B114: 0 | C114: -2379 | D114: 250739 | E114: 1758 | F114: 11584 | G114: 395 | H114: 25983 | I114: 73 | J114: -0.009487953609 | K114: 4 | L114: 193.605122 | M114: -0.01026009166 | N114: -0.0007721380481 | O114: x | P114: x | Q114: x | R114: x
A115: 26859 | B115: 26420 | C115: -4464 | D115: 335949 | E115: 2001 | F115: 13597 | G115: 4266 | H115: 31758 | I115: 92 | J115: -0.01328773117 | K115: 4 | L115: 290.4076831 | M115: -0.01415217096 | N115: -0.0008644397901 | O115: x | P115: x | Q115: x | R115: x
A116: 27548 | B116: 27500 | C116: 2866 | D116: 558221 | E116: 5043 | F116: 19241 | G116: 4804 | H116: 54835 | I116: 158 | J116: 0.005134167292 | K116: 4 | L116: 290.4076831 | M116: 0.00461392946 | N116: -0.0005202378324 | O116: x | P116: x | Q116: x | R116: x
A117: 27614 | B117: 0 | C117: 4059 | D117: 326995 | E117: 2287 | F117: 9497 | G117: 470 | H117: 31861 | I117: 91 | J117: 0.01241303384 | K117: 4 | L117: 193.605122 | M117: 0.01182096019 | N117: -0.0005920736465 | O117: x | P117: x | Q117: x | R117: x
A118: 27847 | B118: 0 | C118: 4348 | D118: 437737 | E118: 5234 | F118: 12676 | G118: 5489 | H118: 49111 | I118: 121 | J118: 0.009932904918 | K118: 4 | L118: 193.605122 | M118: 0.009490618517 | N118: -0.0004422864004 | O118: x | P118: x | Q118: x | R118: x
A119: 28152 | B119: 41060 | C119: 1187 | D119: 74872 | E119: 581 | F119: 1847 | G119: 0 | H119: 7056 | I119: 19 | J119: 0.01585372369 | K119: 2 | L119: 145.2038415 | M119: 0.01391436263 | N119: -0.001939361063 | O119: x | P119: x | Q119: x | R119: x
A120: 28255 | B120: 0 | C120: 2422 | D120: 278259 | E120: 1206 | F120: 5608 | G120: 314 | H120: 21095 | I120: 52 | J120: 0.008704120981 | K120: 4 | L120: 193.605122 | M120: 0.008008347899 | N120: -0.0006957730821 | O120: x | P120: x | Q120: x | R120: x
A121: 28349 | B121: 22900 | C121: -1619 | D121: 174541 | E121: 2052 | F121: 6808 | G121: 1400 | H121: 16456 | I121: 60 | J121: -0.009275757558 | K121: 3 | L121: 290.4076831 | M121: -0.01093959404 | N121: -0.00166383648 | O121: x | P121: x | Q121: x | R121: x
A122: 28732 | B122: 0 | C122: 357 | D122: 80103 | E122: 538 | F122: 2560 | G122: 135 | H122: 8513 | I122: 21 | J122: 0.004456761919 | K122: 2 | L122: 96.80256102 | M122: 0.003248285819 | N122: -0.0012084761 | O122: x | P122: x | Q122: x | R122: x
A123: 29636 | B123: 0 | C123: 7349 | D123: 853660 | E123: 6645 | F123: 25963 | G123: 2995 | H123: 84377 | I123: 259 | J123: 0.008608813813 | K123: 4 | L123: 193.605122 | M123: 0.008382019631 | N123: -0.0002267941827 | O123: x | P123: x | Q123: x | R123: x
A124: 29953 | B124: 36540 | C124: 1625 | D124: 79779 | E124: 979 | F124: 1954 | G124: 0 | H124: 10123 | I124: 19 | J124: 0.02036876872 | K124: 2 | L124: 145.2038415 | M124: 0.01854869274 | N124: -0.001820075979 | O124: x | P124: x | Q124: x | R124: x
A125: 30052 | B125: 0 | C125: 188 | D125: 22714 | E125: 154 | F125: 1346 | G125: 6 | H125: 3000 | I125: 13 | J125: 0.008276833671 | K125: 1 | L125: 96.80256102 | M125: 0.004015032094 | N125: -0.004261801577 | O125: x | P125: x | Q125: x | R125: x
A126: 30502 | B126: 0 | C126: 5807 | D126: 814236 | E126: 7501 | F126: 26657 | G126: 4660 | H126: 83795 | I126: 210 | J126: 0.007131838926 | K126: 4 | L126: 193.605122 | M126: 0.006894063733 | N126: -0.000237775193 | O126: x | P126: x | Q126: x | R126: x
A127: 30650 | B127: 33460 | C127: -730 | D127: 143369 | E127: 1347 | F127: 5001 | G127: 1819 | H127: 12742 | I127: 27 | J127: -0.005091756237 | K127: 3 | L127: 290.4076831 | M127: -0.007117352308 | N127: -0.002025596071 | O127: x | P127: x | Q127: x | R127: x
A128: 31134 | B128: 12260 | C128: 1212 | D128: 112256 | E128: 965 | F128: 3682 | G128: 294 | H128: 15901 | I128: 39 | J128: 0.01079675029 | K128: 3 | L128: 290.4076831 | M128: 0.008209737715 | N128: -0.00258701257 | O128: x | P128: x | Q128: x | R128: x
A129: 31255 | B129: 26420 | C129: 3906 | D129: 445051 | E129: 2806 | F129: 13478 | G129: 600 | H129: 38161 | I129: 90 | J129: 0.008776522241 | K129: 4 | L129: 290.4076831 | M129: 0.00812399549 | N129: -0.000652526751 | O129: x | P129: x | Q129: x | R129: x
A130: 31657 | B130: 0 | C130: 1950 | D130: 113698 | E130: 829 | F130: 2770 | G130: 150 | H130: 11851 | I130: 31 | J130: =C130/D130 -> 0.01715069746 | K130: =IF(D130/1000<INDEX(sizeV,1),1,IF(D130/1000<INDEX(sizeV,2),2,IF(D130/1000<INDEX(sizeV,3),3,IF(D130/1000<INDEX(sizeV,4),4,IF(D130/1000<INDEX(sizeV,5),5,6))))) -> 3 | L130: =IF(B130=0,salRural*T$2,salUrban*T$2)*INDEX(nHires,K130) -> 193.605122 | M130: =(C130-L130)/D130 -> 0.01544789599 | N130: =M130-J130 -> -0.001702801474 | O130: x | P130: x | Q130: x | R130: x
A131: 31826 | B131: 0 | C131: 2290 | D131: 240696 | E131: 2039 | F131: 6489 | G131: 1480 | H131: 38219 | I131: 69 | J131: 0.009514075847 | K131: 3 | L131: 193.605122 | M131: 0.008709720469 | N131: -0.0008043553779 | O131: x | P131: x | Q131: x | R131: x
A132: 31835 | B132: 0 | C132: 1207 | D132: 119313 | E132: 636 | F132: 4037 | G132: 300 | H132: 12904 | I132: 27 | J132: 0.01011624886 | K132: 3 | L132: 193.605122 | M132: 0.008493583079 | N132: -0.001622665779 | O132: x | P132: x | Q132: x | R132: x
A133: 32234 | B133: 0 | C133: 722 | D133: 98643 | E133: 391 | F133: 2414 | G133: 19 | H133: 12761 | I133: 23 | J133: 0.007319323216 | K133: 2 | L133: 96.80256102 | M133: 0.006337980789 | N133: -0.0009813424269 | O133: x | P133: x | Q133: x | R133: x
A134: 32766 | B134: 19124 | C134: 210 | D134: 53631 | E134: 125 | F134: 1566 | G134: 24 | H134: 4853 | I134: 13 | J134: 0.003915645802 | K134: 2 | L134: 145.2038415 | M134: 0.00120818479 | N134: -0.002707461012 | O134: x | P134: x | Q134: x | R134: x
A135: 33147 | B135: 0 | C135: 1782 | D135: 401832 | E135: 3951 | F135: 12025 | G135: 4810 | H135: 34858 | I135: 89 | J135: 0.004434689124 | K135: 4 | L135: 193.605122 | M135: 0.003952882991 | N135: -0.000481806133 | O135: x | P135: x | Q135: x | R135: x
A136: 33259 | B136: 33460 | C136: -2997 | D136: 551035 | E136: 5594 | F136: 14144 | G136: 11211 | H136: 45034 | I136: 82 | J136: -0.005438855971 | K136: 4 | L136: 290.4076831 | M136: -0.00596587818 | N136: -0.0005270222092 | O136: x | P136: x | Q136: x | R136: x
A137: 33268 | B137: 0 | C137: 1487 | D137: 149256 | E137: 800 | F137: 3914 | G137: 0 | H137: 14854 | I137: 35 | J137: 0.009962748566 | K137: 3 | L137: 193.605122 | M137: 0.008665613965 | N137: -0.001297134601 | O137: x | P137: x | Q137: x | R137: x
A138: 33754 | B138: 0 | C138: 32 | D138: 32852 | E138: 191 | F138: 993 | G138: 271 | H138: 4510 | I138: 11 | J138: 0.0009740655059 | K138: 1 | L138: 96.80256102 | M138: -0.001972560606 | N138: -0.002946626112 | O138: x | P138: x | Q138: x | R138: x
A139: 33839 | B139: 14060 | C139: 359 | D139: 31608 | E139: 186 | F139: 769 | G139: 19 | H139: 3508 | I139: 8 | J139: 0.01135788408 | K139: 1 | L139: 145.2038415 | M139: 0.006763988815 | N139: -0.004593895265 | O139: x | P139: x | Q139: x | R139: x
A140: 33857 | B140: 0 | C140: 871 | D140: 155546 | E140: 2033 | F140: 3829 | G140: 265 | H140: 18108 | I140: 33 | J140: 0.005599629692 | K140: 3 | L140: 193.605122 | M140: 0.004354948877 | N140: -0.001244680815 | O140: x | P140: x | Q140: x | R140: x
A141: 34153 | B141: 33460 | C141: -5802 | D141: 413334 | E141: 3594 | F141: 24912 | G141: 2920 | H141: 22492 | I141: 190 | J141: -0.01403707413 | K141: 4 | L141: 290.4076831 | M141: -0.01473967223 | N141: -0.0007025981 | O141: x | P141: x | Q141: x | R141: x
A142: 34359 | B142: 0 | C142: 386 | D142: 30578 | E142: 252 | F142: 650 | G142: 25 | H142: 6528 | I142: 6 | J142: 0.01262345477 | K142: 1 | L142: 96.80256102 | M142: 0.00945769635 | N142: -0.003165758422 | O142: x | P142: x | Q142: x | R142: x
A143: 34425 | B143: 0 | C143: 320 | D143: 314347 | E143: 4206 | F143: 12173 | G143: 495 | H143: 26978 | I143: 116 | J143: 0.001017983311 | K143: 4 | L143: 193.605122 | M143: 0.0004020871138 | N143: -0.0006158961976 | O143: x | P143: x | Q143: x | R143: x
A144: 34434 | B144: 0 | C144: 3807 | D144: 264492 | E144: 2013 | F144: 9407 | G144: 840 | H144: 26245 | I144: 92 | J144: 0.01439363005 | K144: 4 | L144: 193.605122 | M144: 0.01366164148 | N144: -0.0007319885745 | O144: x | P144: x | Q144: x | R144: x
A145: 34452 | B145: 0 | C145: 1556 | D145: 107500 | E145: 1214 | F145: 3141 | G145: 110 | H145: 12207 | I145: 27 | J145: 0.0144744186 | K145: 3 | L145: 193.605122 | M145: 0.01267344073 | N145: -0.001800977879 | O145: x | P145: x | Q145: x | R145: x
A146: 34555 | B146: 0 | C146: 2105 | D146: 212167 | E146: 2560 | F146: 4443 | G146: 145 | H146: 21847 | I146: 43 | J146: 0.009921429817 | K146: 3 | L146: 193.605122 | M146: 0.009008916928 | N146: -0.0009125128886 | O146: x | P146: x | Q146: x | R146: x
A147: 34742 | B147: 0 | C147: 1502 | D147: 282050 | E147: 3317 | F147: 10247 | G147: 524 | H147: 24323 | I147: 92 | J147: 0.005325296933 | K147: 4 | L147: 193.605122 | M147: 0.004638875653 | N147: -0.0006864212801 | O147: x | P147: x | Q147: x | R147: x
A148: 34836 | B148: 12060 | C148: 80 | D148: 26768 | E148: 283 | F148: 1096 | G148: 137 | H148: 1756 | I148: 11 | J148: 0.002988643156 | K148: 1 | L148: 145.2038415 | M148: -0.002435887684 | N148: -0.00542453084 | O148: x | P148: x | Q148: x | R148: x
A149: 35057 | B149: 0 | C149: 1670 | D149: 106284 | E149: 1117 | F149: 4958 | G149: 0 | H149: 11314 | I149: 47 | J149: 0.01571261902 | K149: 3 | L149: 193.605122 | M149: 0.01389103607 | N149: -0.001821582948 | O149: x | P149: x | Q149: x | R149: x
A150: 35646 | B150: 0 | C150: 613 | D150: 48369 | E150: 300 | F150: 1055 | G150: 25 | H150: 10884 | I150: 8 | J150: 0.01267340652 | K150: 1 | L150: 96.80256102 | M150: 0.01067207176 | N150: -0.00200133476 | O150: x | P150: x | Q150: x | R150: x
A151: 35842 | B151: 0 | C151: 2369 | D151: 225660 | E151: 2153 | F151: 3930 | G151: 1480 | H151: 16734 | I151: 38 | J151: 0.01049809448 | K151: 3 | L151: 193.605122 | M151: 0.009640143924 | N151: -0.0008579505541 | O151: x | P151: x | Q151: x | R151: x
A152: 36456 | B152: 0 | C152: 59 | D152: 96712 | E152: 864 | F152: 2563 | G152: 1940 | H152: 9883 | I152: 19 | J152: 0.0006100587311 | K152: 2 | L152: 96.80256102 | M152: -0.0003908776679 | N152: -0.001000936399 | O152: x | P152: x | Q152: x | R152: x
A153: 36858 | B153: 28140 | C153: -2605 | D153: 158613 | E153: 548 | F153: 8178 | G153: 136 | H153: 17313 | I153: 38 | J153: -0.01642362228 | K153: 3 | L153: 290.4076831 | M153: -0.01825454208 | N153: -0.001830919805 | O153: x | P153: x | Q153: x | R153: x
A154: 36933 | B154: 0 | C154: -1088 | D154: 85496 | E154: 626 | F154: 3823 | G154: 549 | H154: 5560 | I154: 35 | J154: -0.01272574156 | K154: 2 | L154: 96.80256102 | M154: -0.01385798822 | N154: -0.001132246667 | O154: x | P154: x | Q154: x | R154: x
A155: 37051 | B155: 0 | C155: 495 | D155: 67018 | E155: 972 | F155: 2090 | G155: 200 | H155: 7033 | I155: 21 | J155: 0.007386075383 | K155: 2 | L155: 96.80256102 | M155: 0.005941649094 | N155: -0.001444426289 | O155: x | P155: x | Q155: x | R155: x
A156: 37341 | B156: 0 | C156: 507 | D156: 33428 | E156: 400 | F156: 1276 | G156: 99 | H156: 3780 | I156: 12 | J156: 0.01516692593 | K156: 1 | L156: 96.80256102 | M156: 0.01227107332 | N156: -0.002895852609 | O156: x | P156: x | Q156: x | R156: x
A157: 37378 | B157: 49420 | C157: 2329 | D157: 165615 | E157: 1003 | F157: 4680 | G157: 780 | H157: 16756 | I157: 41 | J157: 0.01406273586 | K157: 3 | L157: 290.4076831 | M157: 0.01230922511 | N157: -0.001753510751 | O157: x | P157: x | Q157: x | R157: x
A158: 37659 | B158: 0 | C158: 619 | D158: 40834 | E158: 269 | F158: 1363 | G158: 145 | H158: 4258 | I158: 12 | J158: 0.01515893618 | K158: 1 | L158: 96.80256102 | M158: 0.01278829992 | N158: -0.002370636259 | O158: x | P158: x | Q158: x | R158: x
A159: 37743 | B159: 11540 | C159: 687 | D159: 95396 | E159: 642 | F159: 2620 | G159: 60 | H159: 9310 | I159: 22 | J159: 0.007201559814 | K159: 2 | L159: 145.2038415 | M159: 0.005679443147 | N159: -0.001522116667 | O159: x | P159: x | Q159: x | R159: x
A160: 37949 | B160: 16580 | C160: 4931 | D160: 213981 | E160: 1302 | F160: 3652 | G160: 400 | H160: 21148 | I160: 41 | J160: 0.02304410205 | K160: 3 | L160: 290.4076831 | M160: 0.0216869363 | N160: -0.001357165744 | O160: x | P160: x | Q160: x | R160: x
A161: 38535 | B161: 16974 | C161: -7117 | D161: 354677 | E161: 2793 | F161: 11413 | G161: 9012 | H161: 10938 | I161: 95 | J161: -0.02006614469 | K161: 4 | L161: 290.4076831 | M161: -0.02088493949 | N161: -0.0008187947994 | O161: x | P161: x | Q161: x | R161: x
A162: 38740 | B162: 14020 | C162: 1035 | D162: 184281 | E162: 2258 | F162: 5562 | G162: 560 | H162: 17240 | I162: 63 | J162: 0.005616422746 | K162: 3 | L162: 290.4076831 | M162: 0.004040526788 | N162: -0.001575895958 | O162: x | P162: x | Q162: x | R162: x
A163: 39327 | B163: 0 | C163: 4725 | D163: 412584 | E163: 1403 | F163: 8271 | G163: 1127 | H163: 71825 | I163: 88 | J163: 0.01145221337 | K163: 4 | L163: 193.605122 | M163: 0.01098296317 | N163: -0.000469250194 | O163: x | P163: x | Q163: x | R163: x
A164: 39756 | B164: 36420 | C164: 6322 | D164: 483069 | E164: 2467 | F164: 14131 | G164: 1230 | H164: 39194 | I164: 121 | J164: 0.01308715732 | K164: 4 | L164: 290.4076831 | M164: 0.01248598506 | N164: -0.0006011722612 | O164: x | P164: x | Q164: x | R164: x
A165: 40033 | B165: 25620 | C165: 282 | D165: 75473 | E165: 557 | F165: 2905 | G165: -296 | H165: 8158 | I165: 22 | J165: 0.003736435546 | K165: 2 | L165: 145.2038415 | M165: 0.001812517834 | N165: -0.001923917713 | O165: x | P165: x | Q165: x | R165: x
A166: 40350 | B166: 36540 | C166: 295 | D166: 47444 | E166: 407 | F166: 1316 | G166: 10 | H166: 7353 | I166: 8 | J166: 0.006217856842 | K166: 1 | L166: 145.2038415 | M166: 0.003157325657 | N166: -0.003060531185 | O166: x | P166: x | Q166: x | R166: x
A167: 40707 | B167: 0 | C167: 949 | D167: 267468 | E167: 1818 | F167: 9334 | G167: 604 | H167: 21423 | I167: 92 | J167: 0.003548087996 | K167: 4 | L167: 193.605122 | M167: 0.002824243939 | N167: -0.0007238440563 | O167: x | P167: x | Q167: x | R167: x
A168: 40855 | B168: 29100 | C168: 1099 | D168: 77540 | E168: 1217 | F168: 1653 | G168: 90 | H168: 6893 | I168: 14 | J168: 0.01417332989 | K168: 2 | L168: 145.2038415 | M168: 0.01230069846 | N168: -0.001872631436 | O168: x | P168: x | Q168: x | R168: x
A169: 41245 | B169: 27500 | C169: 407 | D169: 42332 | E169: 372 | F169: 983 | G169: 50 | H169: 4451 | I169: 10 | J169: 0.009614476046 | K169: 1 | L169: 145.2038415 | M169: 0.006184356007 | N169: -0.00343012004 | O169: x | P169: x | Q169: x | R169: x
A170: 41553 | B170: 0 | C170: 1174 | D170: 89263 | E170: 861 | F170: 2352 | G170: 0 | H170: 14203 | I170: 25 | J170: 0.01315214591 | K170: 2 | L170: 96.80256102 | M170: 0.01206768133 | N170: -0.001084464571 | O170: x | P170: x | Q170: x | R170: x
A171: 41629 | B171: 0 | C171: 1602 | D171: 164519 | E171: 1443 | F171: 5344 | G171: 1063 | H171: 17677 | I171: 52 | J171: 0.00973747713 | K171: 3 | L171: 193.605122 | M171: 0.008560682219 | N171: -0.001176794911 | O171: x | P171: x | Q171: x | R171: x
A172: 41759 | B172: 0 | C172: 526 | D172: 48874 | E172: 369 | F172: 903 | G172: 175 | H172: 5151 | I172: 9 | J172: 0.01076236854 | K172: 1 | L172: 96.80256102 | M172: 0.008781712955 | N172: -0.001980655584 | O172: x | P172: x | Q172: x | R172: x
A173: 41825 | B173: 13644 | C173: 1246 | D173: 145903 | E173: 281 | F173: 3769 | G173: 176 | H173: 18425 | I173: 34 | J173: 0.008539920358 | K173: 3 | L173: 290.4076831 | M173: 0.006549504239 | N173: -0.001990416119 | O173: x | P173: x | Q173: x | R173: x
A174: 41937 | B174: 0 | C174: 502 | D174: 63873 | E174: 503 | F174: 1540 | G174: 83 | H174: 5835 | I174: 16 | J174: 0.007859345889 | K174: 2 | L174: 96.80256102 | M174: 0.006343798459 | N174: -0.00151554743 | O174: x | P174: x | Q174: x | R174: x
A175: 41955 | B175: 0 | C175: 146 | D175: 36759 | E175: 264 | F175: 1016 | G175: 0 | H175: 3290 | I175: 9 | J175: 0.003971816426 | K175: 1 | L175: 96.80256102 | M175: 0.001338378057 | N175: -0.002633438369 | O175: x | P175: x | Q175: x | R175: x
A176: 42037 | B176: 0 | C176: 363 | D176: 62582 | E176: 521 | F176: 2701 | G176: 12 | H176: 8797 | I176: 31 | J176: 0.005800389888 | K176: 2 | L176: 96.80256102 | M176: 0.004253578329 | N176: -0.00154681156 | O176: x | P176: x | Q176: x | R176: x
A177: 42055 | B177: 0 | C177: 370 | D177: 61264 | E177: 500 | F177: 2492 | G177: 70 | H177: 7636 | I177: 28 | J177: 0.006039435884 | K177: 2 | L177: 96.80256102 | M177: 0.004459347071 | N177: -0.001580088813 | O177: x | P177: x | Q177: x | R177: x
A178: 42354 | B178: 0 | C178: 2241 | D178: 126415 | E178: 500 | F178: 3370 | G178: 69 | H178: 17028 | I178: 34 | J178: 0.01772732666 | K178: 3 | L178: 193.605122 | M178: 0.01619582232 | N178: -0.001531504347 | O178: x | P178: x | Q178: x | R178: x
A179: 42448 | B179: 0 | C179: 10250 | D179: 676265 | E179: 9674 | F179: 15593 | G179: 1696 | H179: 79566 | I179: 146 | J179: 0.01515678026 | K179: 4 | L179: 193.605122 | M179: 0.01487049437 | N179: -0.0002862858821 | O179: x | P179: x | Q179: x | R179: x
A180: 42457 | B180: 0 | C180: 249 | D180: 29189 | E180: 106 | F180: 755 | G180: 15 | H180: 5149 | I180: 8 | J180: 0.008530610847 | K180: 1 | L180: 96.80256102 | M180: 0.005214205316 | N180: -0.00331640553 | O180: x | P180: x | Q180: x | R180: x
A181: 43052 | B181: 0 | C181: 861 | D181: 83568 | E181: 886 | F181: 2968 | G181: 0 | H181: 12272 | I181: 18 | J181: 0.01030298679 | K181: 2 | L181: 96.80256102 | M181: 0.009144618023 | N181: -0.001158368766 | O181: x | P181: x | Q181: x | R181: x
A182: 43351 | B182: 31740 | C182: 85 | D182: 12512 | E182: 70 | F182: 540 | G182: 33 | H182: 1818 | I182: 6 | J182: 0.006793478261 | K182: 1 | L182: 145.2038415 | M182: -0.004811688102 | N182: -0.01160516636 | O182: x | P182: x | Q182: x | R182: x
A183: 43454 | B183: 24220 | C183: 243 | D183: 25092 | E183: 81 | F183: 707 | G183: 1 | H183: 3388 | I183: 7 | J183: 0.009684361549 | K183: 1 | L183: 145.2038415 | M183: 0.003897503526 | N183: -0.005786858024 | O183: x | P183: x | Q183: x | R183: x
A184: 43744 | B184: 31540 | C184: -231 | D184: 81621 | E184: 1174 | F184: 2725 | G184: 0 | H184: 11202 | I184: 15 | J184: -0.002830154004 | K184: 2 | L184: 145.2038415 | M184: -0.004609155016 | N184: -0.001779001011 | O184: x | P184: x | Q184: x | R184: x
A185: 43856 | B185: 20260 | C185: 124 | D185: 49874 | E185: 286 | F185: 1560 | G185: 0 | H185: 4954 | I185: 16 | J185: 0.002486265389 | K185: 1 | L185: 145.2038415 | M185: -0.0004251482041 | N185: -0.002911413593 | O185: x | P185: x | Q185: x | R185: x
A186: 43959 | B186: 13140 | C186: 1148 | D186: 124071 | E186: 646 | F186: 3875 | G186: 150 | H186: 14122 | I186: 34 | J186: 0.009252766561 | K186: 3 | L186: 290.4076831 | M186: 0.006912109332 | N186: -0.002340657229 | O186: x | P186: x | Q186: x | R186: x
A187: 44040 | B187: 0 | C187: 1917 | D187: 294801 | E187: 3058 | F187: 5947 | G187: 776 | H187: 29469 | I187: 54 | J187: 0.006502691646 | K187: 4 | L187: 193.605122 | M187: 0.005845960081 | N187: -0.0006567315648 | O187: x | P187: x | Q187: x | R187: x
A188: 44433 | B188: 33124 | C188: -5078 | D188: 269458 | E188: 3101 | F188: 12666 | G188: 1050 | H188: 24079 | I188: 72 | J188: -0.01884523748 | K188: 4 | L188: 290.4076831 | M188: -0.01992298497 | N188: -0.00107774749 | O188: x | P188: x | Q188: x | R188: x
A189: 44741 | B189: 26900 | C189: 1441 | D189: 355964 | E189: 2170 | F189: 13590 | G189: 2155 | H189: 32314 | I189: 131 | J189: 0.004048162174 | K189: 4 | L189: 290.4076831 | M189: 0.003232327755 | N189: -0.0008158344188 | O189: x | P189: x | Q189: x | R189: x
A190: 44750 | B190: 0 | C190: 1006 | D190: 171196 | E190: 3219 | F190: 4810 | G190: 296 | H190: 15840 | I190: 53 | J190: 0.005876305521 | K190: 3 | L190: 193.605122 | M190: 0.004745408058 | N190: -0.001130897463 | O190: x | P190: x | Q190: x | R190: x
A191: 44929 | B191: 0 | C191: 757 | D191: 137568 | E191: 1095 | F191: 4500 | G191: 445 | H191: 17244 | I191: 64 | J191: 0.005502733194 | K191: 3 | L191: 193.605122 | M191: 0.004095391937 | N191: -0.001407341257 | O191: x | P191: x | Q191: x | R191: x
A192: 45038 | B192: 0 | C192: 1529 | D192: 136984 | E192: 1799 | F192: 1969 | G192: 879 | H192: 13020 | I192: 17 | J192: 0.01116188752 | K192: 3 | L192: 193.605122 | M192: 0.009748546385 | N192: -0.001413341135 | O192: x | P192: x | Q192: x | R192: x
A193: 45047 | B193: 0 | C193: 2086 | D193: 119071 | E193: 728 | F193: 4298 | G193: 464 | H193: 17844 | I193: 40 | J193: 0.01751895928 | K193: 3 | L193: 193.605122 | M193: 0.01589299559 | N193: -0.001625963686 | O193: x | P193: x | Q193: x | R193: x
A194: 45056 | B194: 0 | C194: 546 | D194: 63369 | E194: 309 | F194: 1642 | G194: 0 | H194: 8779 | I194: 12 | J194: =C194/D194 -> 0.00861620035 | K194: =IF(D194/1000<INDEX(sizeV,1),1,IF(D194/1000<INDEX(sizeV,2),2,IF(D194/1000<INDEX(sizeV,3),3,IF(D194/1000<INDEX(sizeV,4),4,IF(D194/1000<INDEX(sizeV,5),5,6))))) -> 2 | L194: =IF(B194=0,salRural*T$2,salUrban*T$2)*INDEX(nHires,K194) -> 96.80256102 | M194: =(C194-L194)/D194 -> 0.007088599141 | N194: =M194-J194 -> -0.001527601209 | O194: x | P194: x | Q194: x | R194: x
A195: 45430 | B195: 0 | C195: 699 | D195: 119081 | E195: 1369 | F195: 2988 | G195: 339 | H195: 15036 | I195: 23 | J195: 0.005869954065 | K195: 3 | L195: 193.605122 | M195: 0.004244126922 | N195: -0.001625827143 | O195: x | P195: x | Q195: x | R195: x
A196: 45458 | B196: 48620 | C196: -38 | D196: 12624 | E196: 61 | F196: 482 | G196: 60 | H196: 2010 | I196: 4 | J196: -0.003010139417 | K196: 1 | L196: 145.2038415 | M196: -0.01451234486 | N196: -0.01150220544 | O196: x | P196: x | Q196: x | R196: x
A197: 45551 | B197: 0 | C197: 7736 | D197: 678667 | E197: 5884 | F197: 22486 | G197: 948 | H197: 66363 | I197: 180 | J197: 0.01139881562 | K197: 4 | L197: 193.605122 | M197: 0.01111354299 | N197: -0.000285272633 | O197: x | P197: x | Q197: x | R197: x
A198: 45560 | B198: 41700 | C198: 11895 | D198: 949387 | E198: 3116 | F198: 29380 | G198: 714 | H198: 78823 | I198: 222 | J198: 0.01252913722 | K198: 4 | L198: 290.4076831 | M198: 0.01222324754 | N198: -0.0003058896773 | O198: x | P198: x | Q198: x | R198: x
A199: 46053 | B199: 0 | C199: 1030 | D199: 182478 | E199: 1595 | F199: 5851 | G199: 798 | H199: 21759 | I199: 46 | J199: 0.005644516051 | K199: 3 | L199: 193.605122 | M199: 0.004583538169 | N199: -0.001060977882 | O199: x | P199: x | Q199: x | R199: x
A200: 46941 | B200: 0 | C200: 1752 | D200: 116272 | E200: 892 | F200: 3007 | G200: 160 | H200: 18910 | I200: 30 | J200: 0.01506811614 | K200: 3 | L200: 193.605122 | M200: 0.01340301085 | N200: -0.001665105288 | O200: x | P200: x | Q200: x | R200: x
... 5329 more rows

Sheet 2010 data (hidden)
A1: id.rssd | B1: msa.cd | C1: nt.inc | D1: assets | E1: int.exp | F1: nonint.exp | G1: prov.exp | H1: equity | I1: fte | J1: roa | K1: asset.cohort | L1: addl reg exp | M1: new.roa | N1: delta | O1: newly unprof | P1: roe | Q1: new.roe | R1: delta | T1: 2010
A2: 37 | B2: 0 | C2: 613 | D2: 83515 | E2: 1559 | F2: 2326 | G2: 300 | H2: 16828 | I2: 21 | J2: =C2/D2 -> 0.007339998803 | K2: =IF(D2/1000<INDEX(sizeV,1),1,IF(D2/1000<INDEX(sizeV,2),2,IF(D2/1000<INDEX(sizeV,3),3,IF(D2/1000<INDEX(sizeV,4),4,IF(D2/1000<INDEX(sizeV,5),5,6))))) -> 2 | L2: =IF(B2=0,salRural*T$2,salUrban*T$2)*INDEX(nHires,K2) -> 93.96531881 | M2: =(C2-L2)/D2 -> 0.006214867763 | N2: =M2-J2 -> -0.00112513104 | O2: x | P2: x | Q2: x | R2: x | T2: =VLOOKUP(T1,cpiAdj,2,FALSE) -> 0.9396531881 | W2: Asset | AC2: Change in ROA | AM2: Number
A3: 242 | B3: 0 | C3: 525 | D3: 32756 | E3: 328 | F3: 921 | G3: 13 | H3: 4311 | I3: 13 | J3: 0.016027598 | K3: 1 | L3: 93.96531881 | M3: 0.01315895351 | N3: -0.002868644487 | O3: x | P3: x | Q3: x | R3: x | V3: Size | W3: Size Max | X3: Addl | Y3: # of | AA3: Median | AB3: x | AC3: 25th pctile | AD3: 50th pctile | AE3: 75th pctile | AF3: Avg | AG3: Original | AH3: Newly | AJ3: Original | AK3: After Change | AM3: of firms
A4: 354 | B4: 0 | C4: 18 | D4: 9876 | E4: 62 | F4: 338 | G4: 0 | H4: 995 | I4: 4 | J4: 0.001822600243 | K4: 1 | L4: 93.96531881 | M4: -0.007691911584 | N4: -0.009514511827 | O4: x | P4: x | Q4: x | R4: x | V4: Quintile | W4: ($MM) | X4: Hires | Y4: Banks | Z4: % | AA4: FTEs | AB4: x | AC4: (bps) | AD4: (bps) | AE4: (bps) | AF4: (bps) | AG4: Unprof | AH4: Unprof | AI4: Difference | AJ4: ROA < 40 | AK4: ROA < 40 | AL4: Difference | AM4: in the cohort
A5: 457 | B5: 0 | C5: 534 | D5: 36710 | E5: 645 | F5: 923 | G5: 393 | H5: 3411 | I5: 9 | J5: 0.01454644511 | K5: 1 | L5: 93.96531881 | M5: 0.01198677966 | N5: -0.002559665454 | O5: x | P5: x | Q5: x | R5: x | U5: < $50M | V5: 1 | W5: x | X5: x | Y5: x | Z5: x | AA5: x | AB5: x | AC5: =PERCENTILE(IF($K$2:$K$7000=$V5,$N$2:$N$7000),0.25)*10000 -> -46.82659363 | AD5: =PERCENTILE(IF($K$2:$K$7000=$V5,$N$2:$N$7000),0.5)*10000 -> -33.00734818 | AE5: =PERCENTILE(IF($K$2:$K$7000=$V5,$N$2:$N$7000),0.75)*10000 -> -25.05507988 | AF5: =AVERAGE(IF($K$2:$K$7000=$V5,$N$2:$N$7000))*10000 -> -43.69706895 | AG5: =SUM(IF($K$2:$K$7000=$V5,IF($J$2:$J$7000<0,1,0))) -> 154 | AH5: =SUM(IF($K$2:$K$7000=$V5,IF($M$2:$M$7000<0,1,0))) -> 348 | AI5: =IF(INDEX(sizeV,V5)>0,AH5-AG5) -> 194 | AJ5: =SUM(IF($K$2:$K$7000=$V5,IF($J$2:$J$7000<0.004,1,0))) -> 344 | AK5: =SUM(IF($K$2:$K$7000=$V5,IF($M$2:$M$7000<0.004,1,0))) -> 551 | AL5: =IF(INDEX(sizeV,V5)>0,AK5-AJ5) -> 207 | AM5: =COUNTIF($K$2:$K$7000,$V5) -> 911
A6: 505 | B6: 10580 | C6: 2514 | D6: 385348 | E6: 3913 | F6: 11003 | G6: 655 | H6: 29036 | I6: 109 | J6: 0.006523973136 | K6: 4 | L6: 281.8959564 | M6: 0.005792437079 | N6: -0.0007315360568 | O6: x | P6: x | Q6: x | R6: x | U6: $50M - $100M | V6: 2 | W6: x | X6: x | Y6: x | Z6: x | AA6: x | AB6: x | AC6: =PERCENTILE(IF($K$2:$K$7000=$V6,$N$2:$N$7000),0.25)*10000 -> -18.16527196 | AD6: =PERCENTILE(IF($K$2:$K$7000=$V6,$N$2:$N$7000),0.5)*10000 -> -15.35105109 | AE6: =PERCENTILE(IF($K$2:$K$7000=$V6,$N$2:$N$7000),0.75)*10000 -> -12.14744148 | AF6: =AVERAGE(IF($K$2:$K$7000=$V6,$N$2:$N$7000))*10000 -> -15.84750575 | AG6: =SUM(IF($K$2:$K$7000=$V6,IF($J$2:$J$7000<0,1,0))) -> 235 | AH6: =SUM(IF($K$2:$K$7000=$V6,IF($M$2:$M$7000<0,1,0))) -> 294 | AI6: =IF(INDEX(sizeV,V6)>0,AH6-AG6) -> 59 | AJ6: =SUM(IF($K$2:$K$7000=$V6,IF($J$2:$J$7000<0.004,1,0))) -> 405 | AK6: =SUM(IF($K$2:$K$7000=$V6,IF($M$2:$M$7000<0.004,1,0))) -> 511 | AL6: =IF(INDEX(sizeV,V6)>0,AK6-AJ6) -> 106 | AM6: =COUNTIF($K$2:$K$7000,$V6) -> 1253
A7: 1155 | B7: 0 | C7: 283 | D7: 202751 | E7: 2866 | F7: 5717 | G7: 3703 | H7: 17630 | I7: 53 | J7: 0.001395800761 | K7: 3 | L7: 187.9306376 | M7: 0.0004688971319 | N7: -0.0009269036286 | O7: x | P7: x | Q7: x | R7: x | U7: $100M - $250M | V7: 3 | W7: x | X7: x | Y7: x | Z7: x | AA7: x | AB7: x | AC7: =PERCENTILE(IF($K$2:$K$7000=$V7,$N$2:$N$7000),0.25)*10000 -> -17.97012203 | AD7: =PERCENTILE(IF($K$2:$K$7000=$V7,$N$2:$N$7000),0.5)*10000 -> -14.73940745 | AE7: =PERCENTILE(IF($K$2:$K$7000=$V7,$N$2:$N$7000),0.75)*10000 -> -11.69368286 | AF7: =AVERAGE(IF($K$2:$K$7000=$V7,$N$2:$N$7000))*10000 -> -15.34596352 | AG7: =SUM(IF($K$2:$K$7000=$V7,IF($J$2:$J$7000<0,1,0))) -> 386 | AH7: =SUM(IF($K$2:$K$7000=$V7,IF($M$2:$M$7000<0,1,0))) -> 474 | AI7: =IF(INDEX(sizeV,V7)>0,AH7-AG7) -> 88 | AJ7: =SUM(IF($K$2:$K$7000=$V7,IF($J$2:$J$7000<0.004,1,0))) -> 678 | AK7: =SUM(IF($K$2:$K$7000=$V7,IF($M$2:$M$7000<0.004,1,0))) -> 813 | AL7: =IF(INDEX(sizeV,V7)>0,AK7-AJ7) -> 135 | AM7: =COUNTIF($K$2:$K$7000,$V7) -> 1966
A8: 1351 | B8: 0 | C8: 2301 | D8: 153006 | E8: 2710 | F8: 2493 | G8: 696 | H8: 20544 | I8: 30 | J8: 0.01503862594 | K8: 3 | L8: 187.9306376 | M8: 0.01381036928 | N8: -0.001228256654 | O8: x | P8: x | Q8: x | R8: x | U8: $250M - $500M | V8: 4 | W8: x | X8: x | Y8: x | Z8: x | AA8: x | AB8: x | AC8: =PERCENTILE(IF($K$2:$K$7000=$V8,$N$2:$N$7000),0.25)*10000 -> -7.57594796 | AD8: =PERCENTILE(IF($K$2:$K$7000=$V8,$N$2:$N$7000),0.5)*10000 -> -5.826936907 | AE8: =PERCENTILE(IF($K$2:$K$7000=$V8,$N$2:$N$7000),0.75)*10000 -> -4.21567925 | AF8: =AVERAGE(IF($K$2:$K$7000=$V8,$N$2:$N$7000))*10000 -> -6.100562971 | AG8: =SUM(IF($K$2:$K$7000=$V8,IF($J$2:$J$7000<0,1,0))) -> 330 | AH8: =SUM(IF($K$2:$K$7000=$V8,IF($M$2:$M$7000<0,1,0))) -> 360 | AI8: =IF(INDEX(sizeV,V8)>0,AH8-AG8) -> 30 | AJ8: =SUM(IF($K$2:$K$7000=$V8,IF($J$2:$J$7000<0.004,1,0))) -> 554 | AK8: =SUM(IF($K$2:$K$7000=$V8,IF($M$2:$M$7000<0.004,1,0))) -> 586 | AL8: =IF(INDEX(sizeV,V8)>0,AK8-AJ8) -> 32 | AM8: =COUNTIF($K$2:$K$7000,$V8) -> 1480
A9: 1454 | B9: 16220 | C9: 8490 | D9: 482306 | E9: 1794 | F9: 15810 | G9: 600 | H9: 46628 | I9: 148 | J9: 0.01760293258 | K9: 4 | L9: 281.8959564 | M9: 0.01701845725 | N9: -0.0005844753257 | O9: x | P9: x | Q9: x | R9: x | U9: $500M - $1B | V9: 5 | W9: x | X9: x | Y9: x | Z9: x | AA9: x | AB9: x | AC9: =PERCENTILE(IF($K$2:$K$7000=$V9,$N$2:$N$7000),0.25)*10000 ->  | AD9: =PERCENTILE(IF($K$2:$K$7000=$V9,$N$2:$N$7000),0.5)*10000 ->  | AE9: =PERCENTILE(IF($K$2:$K$7000=$V9,$N$2:$N$7000),0.75)*10000 ->  | AF9: =AVERAGE(IF($K$2:$K$7000=$V9,$N$2:$N$7000))*10000 ->  | AG9: =SUM(IF($K$2:$K$7000=$V9,IF($J$2:$J$7000<0,1,0))) -> 0 | AH9: =SUM(IF($K$2:$K$7000=$V9,IF($M$2:$M$7000<0,1,0))) -> 0 | AI9: =IF(INDEX(sizeV,V9)>0,AH9-AG9) -> 0 | AJ9: =SUM(IF($K$2:$K$7000=$V9,IF($J$2:$J$7000<0.004,1,0))) -> 0 | AK9: =SUM(IF($K$2:$K$7000=$V9,IF($M$2:$M$7000<0.004,1,0))) -> 0 | AL9: =IF(INDEX(sizeV,V9)>0,AK9-AJ9) -> 0 | AM9: =COUNTIF($K$2:$K$7000,$V9) -> 0
A10: 1557 | B10: 0 | C10: 426 | D10: 55127 | E10: 567 | F10: 1184 | G10: 100 | H10: 5296 | I10: 12 | J10: 0.00772761079 | K10: 2 | L10: 93.96531881 | M10: 0.00602308635 | N10: -0.00170452444 | O10: x | P10: x | Q10: x | R10: x
A11: 1669 | B11: 0 | C11: 3020 | D11: 245535 | E11: 1976 | F11: 5250 | G11: 761 | H11: 42531 | I11: 57 | J11: 0.01229967214 | K11: 3 | L11: 187.9306376 | M11: 0.01153427968 | N11: -0.0007653924598 | O11: x | P11: x | Q11: x | R11: x
A12: 1829 | B12: 38300 | C12: 3095 | D12: 408741 | E12: 5495 | F12: 11026 | G12: 690 | H12: 41280 | I12: 90 | J12: 0.007572032167 | K12: 4 | L12: 281.8959564 | M12: 0.006882363266 | N12: -0.0006896689014 | O12: x | P12: x | Q12: x | R12: x | W12: Percentiles of ROA (before)
A13: 1856 | B13: 0 | C13: -894 | D13: 166728 | E13: 5777 | F13: 1976 | G13: 555 | H13: 18809 | I13: 8 | J13: -0.005362026774 | K13: 3 | L13: 187.9306376 | M13: -0.006489195802 | N13: -0.001127169027 | O13: x | P13: x | Q13: x | R13: x | V13: Cohort | W13: 25 | X13: 50 | Y13: 75
A14: 2040 | B14: 0 | C14: 775 | D14: 205240 | E14: 3904 | F14: 5127 | G14: 2013 | H14: 19657 | I14: 47 | J14: 0.003776067043 | K14: 3 | L14: 187.9306376 | M14: 0.002860404221 | N14: -0.0009156628221 | O14: x | P14: x | Q14: x | R14: x | V14: 1 | W14: =PERCENTILE(IF($K$2:$K$7000=$V14,$J$2:$J$7000),W$13/100) -> 0.001797342814 | X14: =PERCENTILE(IF($K$2:$K$7000=$V14,$J$2:$J$7000),X$13/100) -> 0.00594048712 | Y14: =PERCENTILE(IF($K$2:$K$7000=$V14,$J$2:$J$7000),Y$13/100) -> 0.01016300663
A15: 2161 | B15: 0 | C15: 2190 | D15: 128312 | E15: 1010 | F15: 3583 | G15: 40 | H15: 13026 | I15: 33 | J15: 0.01706777231 | K15: 3 | L15: 187.9306376 | M15: 0.01560313425 | N15: -0.001464638051 | O15: x | P15: x | Q15: x | R15: x | V15: 2 | W15: =PERCENTILE(IF($K$2:$K$7000=$V15,$J$2:$J$7000),W$13/100) -> 0.002116591928 | X15: =PERCENTILE(IF($K$2:$K$7000=$V15,$J$2:$J$7000),X$13/100) -> 0.007357152297 | Y15: =PERCENTILE(IF($K$2:$K$7000=$V15,$J$2:$J$7000),Y$13/100) -> 0.01145899949
A16: 2554 | B16: 0 | C16: 110 | D16: 11009 | E16: 92 | F16: 267 | G16: 28 | H16: 1119 | I16: 4 | J16: 0.009991824871 | K16: 1 | L16: 93.96531881 | M16: 0.001456506603 | N16: -0.008535318267 | O16: x | P16: x | Q16: x | R16: x | V16: 3 | W16: =PERCENTILE(IF($K$2:$K$7000=$V16,$J$2:$J$7000),W$13/100) -> 0.0019891298 | X16: =PERCENTILE(IF($K$2:$K$7000=$V16,$J$2:$J$7000),X$13/100) -> 0.007088230986 | Y16: =PERCENTILE(IF($K$2:$K$7000=$V16,$J$2:$J$7000),Y$13/100) -> 0.01159659823
A17: 2732 | B17: 16974 | C17: 3352 | D17: 519751 | E17: 3581 | F17: 10784 | G17: 4000 | H17: 73967 | I17: 100 | J17: 0.006449242041 | K17: 4 | L17: 281.8959564 | M17: 0.005906874722 | N17: -0.000542367319 | O17: x | P17: x | Q17: x | R17: x | V17: 4 | W17: =PERCENTILE(IF($K$2:$K$7000=$V17,$J$2:$J$7000),W$13/100) -> 0.0009829387509 | X17: =PERCENTILE(IF($K$2:$K$7000=$V17,$J$2:$J$7000),X$13/100) -> 0.006317933415 | Y17: =PERCENTILE(IF($K$2:$K$7000=$V17,$J$2:$J$7000),Y$13/100) -> 0.01080364173
A18: 2750 | B18: 0 | C18: 469 | D18: 55375 | E18: 957 | F18: 1313 | G18: 243 | H18: 5154 | I18: 11 | J18: 0.008469525959 | K18: 2 | L18: 93.96531881 | M18: 0.006772635326 | N18: -0.001696890633 | O18: x | P18: x | Q18: x | R18: x | V18: 5 | W18: =PERCENTILE(IF($K$2:$K$7000=$V18,$J$2:$J$7000),W$13/100) ->  | X18: =PERCENTILE(IF($K$2:$K$7000=$V18,$J$2:$J$7000),X$13/100) ->  | Y18: =PERCENTILE(IF($K$2:$K$7000=$V18,$J$2:$J$7000),Y$13/100) -> 
A19: 3252 | B19: 0 | C19: 3221 | D19: 150409 | E19: 1191 | F19: 3189 | G19: 750 | H19: 18395 | I19: 34 | J19: 0.02141494193 | K19: 3 | L19: 187.9306376 | M19: 0.02016547788 | N19: -0.001249464045 | O19: x | P19: x | Q19: x | R19: x
A20: 3458 | B20: 0 | C20: 134 | D20: 30937 | E20: 380 | F20: 697 | G20: 60 | H20: 3039 | I20: 11 | J20: 0.004331383133 | K20: 1 | L20: 93.96531881 | M20: 0.001294071215 | N20: -0.003037311918 | O20: x | P20: x | Q20: x | R20: x
A21: 3720 | B21: 0 | C21: 2019 | D21: 189426 | E21: 1549 | F21: 6357 | G21: 212 | H21: 27082 | I21: 56 | J21: 0.01065851573 | K21: 3 | L21: 187.9306376 | M21: 0.009666409904 | N21: -0.0009921058229 | O21: x | P21: x | Q21: x | R21: x | W21: Percentiles of ROA (after)
A22: 3953 | B22: 36420 | C22: -905 | D22: 121505 | E22: 1059 | F22: 4993 | G22: 2940 | H22: 8599 | I22: 39 | J22: -0.007448253158 | K22: 3 | L22: 281.8959564 | M22: -0.009768289012 | N22: -0.002320035854 | O22: x | P22: x | Q22: x | R22: x | V22: Cohort | W22: 25 | X22: 50 | Y22: 75
A23: 4138 | B23: 0 | C23: -313 | D23: 193679 | E23: 2310 | F23: 7593 | G23: 1557 | H23: 17291 | I23: 57 | J23: -0.001616076085 | K23: 3 | L23: 187.9306376 | M23: -0.002586396241 | N23: -0.0009703201566 | O23: x | P23: x | Q23: x | R23: x | V23: 1 | W23: =PERCENTILE(IF($K$2:$K$7000=$V23,$M$2:$M$7000),W$13/100) -> -0.002582853053 | X23: =PERCENTILE(IF($K$2:$K$7000=$V23,$M$2:$M$7000),X$13/100) -> 0.002159482861 | Y23: =PERCENTILE(IF($K$2:$K$7000=$V23,$M$2:$M$7000),Y$13/100) -> 0.006803709294
A24: 4156 | B24: 0 | C24: 1371 | D24: 184816 | E24: 2262 | F24: 6805 | G24: 1137 | H24: 18876 | I24: 62 | J24: 0.007418188901 | K24: 3 | L24: 187.9306376 | M24: 0.006401336261 | N24: -0.001016852641 | O24: x | P24: x | Q24: x | R24: x | V24: 2 | W24: =PERCENTILE(IF($K$2:$K$7000=$V24,$M$2:$M$7000),W$13/100) -> 0.0004311153577 | X24: =PERCENTILE(IF($K$2:$K$7000=$V24,$M$2:$M$7000),X$13/100) -> 0.005770855495 | Y24: =PERCENTILE(IF($K$2:$K$7000=$V24,$M$2:$M$7000),Y$13/100) -> 0.009963359198
A25: 4231 | B25: 0 | C25: 262 | D25: 128713 | E25: 2445 | F25: 2935 | G25: 1001 | H25: 13825 | I25: 33 | J25: 0.002035536426 | K25: 3 | L25: 187.9306376 | M25: 0.0005754613939 | N25: -0.001460075032 | O25: x | P25: x | Q25: x | R25: x | V25: 3 | W25: =PERCENTILE(IF($K$2:$K$7000=$V25,$M$2:$M$7000),W$13/100) -> 0.0003550342961 | X25: =PERCENTILE(IF($K$2:$K$7000=$V25,$M$2:$M$7000),X$13/100) -> 0.005623700739 | Y25: =PERCENTILE(IF($K$2:$K$7000=$V25,$M$2:$M$7000),Y$13/100) -> 0.01006770934
A26: 4437 | B26: 0 | C26: 1598 | D26: 260907 | E26: 3900 | F26: 7067 | G26: 1340 | H26: 25456 | I26: 58 | J26: 0.00612478776 | K26: 4 | L26: 187.9306376 | M26: 0.005404490345 | N26: -0.0007202974148 | O26: x | P26: x | Q26: x | R26: x | V26: 4 | W26: =PERCENTILE(IF($K$2:$K$7000=$V26,$M$2:$M$7000),W$13/100) -> 0.0002757032916 | X26: =PERCENTILE(IF($K$2:$K$7000=$V26,$M$2:$M$7000),X$13/100) -> 0.005717582027 | Y26: =PERCENTILE(IF($K$2:$K$7000=$V26,$M$2:$M$7000),Y$13/100) -> 0.01030838647
A27: 4839 | B27: 16974 | C27: 2840 | D27: 308090 | E27: 4334 | F27: 11582 | G27: 1550 | H27: 29887 | I27: 89 | J27: 0.009218085624 | K27: 4 | L27: 281.8959564 | M27: 0.008303106377 | N27: -0.0009149792477 | O27: x | P27: x | Q27: x | R27: x | V27: 5 | W27: =PERCENTILE(IF($K$2:$K$7000=$V27,$M$2:$M$7000),W$13/100) ->  | X27: =PERCENTILE(IF($K$2:$K$7000=$V27,$M$2:$M$7000),X$13/100) ->  | Y27: =PERCENTILE(IF($K$2:$K$7000=$V27,$M$2:$M$7000),Y$13/100) -> 
A28: 5069 | B28: 31084 | C28: 34340 | D28: 491278 | E28: 6009 | F28: 5348 | G28: -3660 | H28: 124832 | I28: 27 | J28: 0.0698993238 | K28: 4 | L28: 281.8959564 | M28: 0.0693255225 | N28: -0.0005738013028 | O28: x | P28: x | Q28: x | R28: x
A29: 5135 | B29: 0 | C29: 2604 | D29: 321343 | E29: 3596 | F29: 7813 | G29: 860 | H29: 36997 | I29: 62 | J29: 0.008103490663 | K29: 4 | L29: 187.9306376 | M29: 0.007518661873 | N29: -0.0005848287892 | O29: x | P29: x | Q29: x | R29: x
A30: 5210 | B30: 0 | C30: 7658 | D30: 953152 | E30: 9440 | F30: 25875 | G30: 6410 | H30: 80682 | I30: 249 | J30: 0.008034395354 | K30: 4 | L30: 187.9306376 | M30: 0.007837227811 | N30: -0.0001971675427 | O30: x | P30: x | Q30: x | R30: x
A31: 5331 | B31: 16974 | C31: 2001 | D31: 369049 | E31: 5421 | F31: 9150 | G31: 2150 | H31: 29515 | I31: 75 | J31: 0.005422044227 | K31: 4 | L31: 281.8959564 | M31: 0.004658199978 | N31: -0.0007638442495 | O31: x | P31: x | Q31: x | R31: x
A32: 5461 | B32: 44700 | C32: 5226 | D32: 472160 | E32: 2571 | F32: 16144 | G32: 1896 | H32: 45833 | I32: 132 | J32: 0.01106828194 | K32: 4 | L32: 281.8959564 | M32: 0.01047124713 | N32: -0.0005970348111 | O32: x | P32: x | Q32: x | R32: x
A33: 5751 | B33: 0 | C33: 2355 | D33: 119254 | E33: 833 | F33: 2211 | G33: 0 | H33: 25007 | I33: 20 | J33: 0.01974776527 | K33: 3 | L33: 187.9306376 | M33: 0.01817187987 | N33: -0.001575885401 | O33: x | P33: x | Q33: x | R33: x
A34: 6039 | B34: 0 | C34: 206 | D34: 80103 | E34: 975 | F34: 2703 | G34: 750 | H34: 8700 | I34: 24 | J34: 0.00257168895 | K34: 2 | L34: 93.96531881 | M34: 0.001398632775 | N34: -0.001173056175 | O34: x | P34: x | Q34: x | R34: x
A35: 6141 | B35: 0 | C35: 373 | D35: 50897 | E35: 411 | F35: 1170 | G35: 60 | H35: 4805 | I35: 11 | J35: 0.007328526239 | K35: 2 | L35: 93.96531881 | M35: 0.005482340436 | N35: -0.001846185803 | O35: x | P35: x | Q35: x | R35: x
A36: 6329 | B36: 0 | C36: -5126 | D36: 472905 | E36: 7346 | F36: 20756 | G36: 18050 | H36: 34181 | I36: 181 | J36: -0.01083938635 | K36: 4 | L36: 187.9306376 | M36: -0.01123678252 | N36: -0.0003973961739 | O36: x | P36: x | Q36: x | R36: x
A37: 6972 | B37: 38900 | C37: -34581 | D37: 840651 | E37: 6610 | F37: 38828 | G37: 39205 | H37: 80829 | I37: 253 | J37: -0.04113597676 | K37: 4 | L37: 281.8959564 | M37: -0.0414713073 | N37: -0.0003353305431 | O37: x | P37: x | Q37: x | R37: x
A38: 7009 | B38: 20764 | C38: 5653 | D38: 634845 | E38: 774 | F38: 53913 | G38: 0 | H38: 50137 | I38: 75 | J38: 0.008904535753 | K38: 4 | L38: 281.8959564 | M38: 0.008460496725 | N38: -0.0004440390275 | O38: x | P38: x | Q38: x | R38: x
A39: 7045 | B39: 0 | C39: 1110 | D39: 133295 | E39: 1153 | F39: 3620 | G39: 245 | H39: 14453 | I39: 45 | J39: 0.008327394126 | K39: 3 | L39: 187.9306376 | M39: 0.006917509002 | N39: -0.001409885124 | O39: x | P39: x | Q39: x | R39: x
A40: 7157 | B40: 0 | C40: -188 | D40: 50406 | E40: 837 | F40: 981 | G40: 450 | H40: 4012 | I40: 8 | J40: -0.003729714717 | K40: 2 | L40: 93.96531881 | M40: -0.005593884038 | N40: -0.001864169321 | O40: x | P40: x | Q40: x | R40: x
A41: 7456 | B41: 0 | C41: 562 | D41: 54204 | E41: 573 | F41: 1700 | G41: 10 | H41: 4802 | I41: 14 | J41: 0.01036823851 | K41: 2 | L41: 93.96531881 | M41: 0.008634688975 | N41: -0.001733549532 | O41: x | P41: x | Q41: x | R41: x
A42: 7634 | B42: 0 | C42: -241 | D42: 66727 | E42: 1336 | F42: 1843 | G42: 874 | H42: 3466 | I42: 11 | J42: -0.003611731383 | K42: 2 | L42: 93.96531881 | M42: -0.005019936739 | N42: -0.001408205356 | O42: x | P42: x | Q42: x | R42: x
A43: 8033 | B43: 12940 | C43: 1643 | D43: 160779 | E43: 2066 | F43: 3589 | G43: 0 | H43: 14734 | I43: 35 | J43: 0.01021899626 | K43: 3 | L43: 281.8959564 | M43: 0.008465682978 | N43: -0.001753313284 | O43: x | P43: x | Q43: x | R43: x
A44: 8462 | B44: 0 | C44: 1903 | D44: 122404 | E44: 519 | F44: 2203 | G44: 25 | H44: 14230 | I44: 21 | J44: 0.01554687755 | K44: 3 | L44: 187.9306376 | M44: 0.0140115467 | N44: -0.001535330852 | O44: x | P44: x | Q44: x | R44: x
A45: 8631 | B45: 37620 | C45: 368 | D45: 58506 | E45: 510 | F45: 1798 | G45: 124 | H45: 6361 | I45: 20 | J45: 0.006289953167 | K45: 2 | L45: 140.9479782 | M45: 0.003880833108 | N45: -0.00240912006 | O45: x | P45: x | Q45: x | R45: x
A46: 9357 | B46: 33460 | C46: 9155 | D46: 373899 | E46: 1544 | F46: 7591 | G46: 150 | H46: 66733 | I46: 47 | J46: 0.02448522194 | K46: 4 | L46: 281.8959564 | M46: 0.02373128584 | N46: -0.0007539361069 | O46: x | P46: x | Q46: x | R46: x
A47: 9553 | B47: 0 | C47: 883 | D47: 90945 | E47: 1091 | F47: 2230 | G47: 50 | H47: 8249 | I47: 14 | J47: 0.00970916488 | K47: 2 | L47: 93.96531881 | M47: 0.008675954491 | N47: -0.001033210389 | O47: x | P47: x | Q47: x | R47: x
A48: 9955 | B48: 0 | C48: 1022 | D48: 104815 | E48: 528 | F48: 3177 | G48: 545 | H48: 12184 | I48: 27 | J48: 0.009750512808 | K48: 3 | L48: 187.9306376 | M48: 0.007957538161 | N48: -0.001792974647 | O48: x | P48: x | Q48: x | R48: x
A49: 10250 | B49: 33460 | C49: -11580 | D49: 416219 | E49: 7828 | F49: 15494 | G49: 17995 | H49: 29697 | I49: 119 | J49: -0.02782189184 | K49: 4 | L49: 281.8959564 | M49: -0.0284991698 | N49: -0.0006772779628 | O49: x | P49: x | Q49: x | R49: x
A50: 10849 | B50: 30780 | C50: -4872 | D50: 282734 | E50: 3843 | F50: 8009 | G50: 7725 | H50: 22428 | I50: 63 | J50: -0.01723174433 | K50: 4 | L50: 281.8959564 | M50: -0.01822878025 | N50: -0.0009970359292 | O50: x | P50: x | Q50: x | R50: x
A51: 10858 | B51: 0 | C51: 4914 | D51: 388138 | E51: 3459 | F51: 13217 | G51: 860 | H51: 37142 | I51: 126 | J51: 0.01266044551 | K51: 4 | L51: 187.9306376 | M51: 0.01217626041 | N51: -0.0004841851033 | O51: x | P51: x | Q51: x | R51: x
A52: 11145 | B52: 0 | C52: 1001 | D52: 166933 | E52: 2122 | F52: 5555 | G52: 1211 | H52: 16725 | I52: 58 | J52: 0.005996417724 | K52: 3 | L52: 187.9306376 | M52: 0.004870632903 | N52: -0.001125784822 | O52: x | P52: x | Q52: x | R52: x
A53: 11640 | B53: 0 | C53: 3463 | D53: 310544 | E53: 3119 | F53: 8450 | G53: 678 | H53: 29272 | I53: 58 | J53: 0.01115139884 | K53: 4 | L53: 187.9306376 | M53: 0.01054623294 | N53: -0.0006051658947 | O53: x | P53: x | Q53: x | R53: x
A54: 11837 | B54: 0 | C54: 32 | D54: 112243 | E54: 1581 | F54: 2546 | G54: 1425 | H54: 10231 | I54: 18 | J54: 0.0002850957298 | K54: 3 | L54: 187.9306376 | M54: -0.001389223717 | N54: -0.001674319446 | O54: x | P54: x | Q54: x | R54: x
A55: 12030 | B55: 0 | C55: 1742 | D55: 323731 | E55: 5381 | F55: 8470 | G55: 7185 | H55: 34566 | I55: 89 | J55: 0.005381010777 | K55: 4 | L55: 187.9306376 | M55: 0.004800495975 | N55: -0.0005805148028 | O55: x | P55: x | Q55: x | R55: x
A56: 12142 | B56: 0 | C56: 1374 | D56: 175649 | E56: 946 | F56: 5888 | G56: 200 | H56: 18983 | I56: 70 | J56: 0.007822418573 | K56: 3 | L56: 187.9306376 | M56: 0.006752497096 | N56: -0.001069921478 | O56: x | P56: x | Q56: x | R56: x
A57: 12245 | B57: 0 | C57: 625 | D57: 118288 | E57: 1207 | F57: 3769 | G57: 751 | H57: 13041 | I57: 41 | J57: 0.005283714324 | K57: 3 | L57: 187.9306376 | M57: 0.003694959441 | N57: -0.001588754883 | O57: x | P57: x | Q57: x | R57: x
A58: 12647 | B58: 0 | C58: 806 | D58: 97520 | E58: 1366 | F58: 2423 | G58: 320 | H58: 9440 | I58: 25 | J58: 0.008264971288 | K58: 2 | L58: 93.96531881 | M58: 0.00730142208 | N58: -0.0009635492084 | O58: x | P58: x | Q58: x | R58: x
A59: 12656 | B59: 0 | C59: 93 | D59: 17234 | E59: 197 | F59: 726 | G59: 37 | H59: 1333 | I59: 9 | J59: 0.005396309621 | K59: 1 | L59: 93.96531881 | M59: -5.601246409e-05 | N59: -0.005452322085 | O59: x | P59: x | Q59: x | R59: x
A60: 12937 | B60: 16974 | C60: 1183 | D60: 205986 | E60: 1499 | F60: 5488 | G60: 760 | H60: 31851 | I60: 40 | J60: 0.005743108755 | K60: 3 | L60: 281.8959564 | M60: 0.004374588776 | N60: -0.001368519979 | O60: x | P60: x | Q60: x | R60: x
A61: 12946 | B61: 0 | C61: 6533 | D61: 677132 | E61: 8621 | F61: 15434 | G61: 6880 | H61: 65766 | I61: 160 | J61: 0.00964804499 | K61: 4 | L61: 187.9306376 | M61: 0.009370505843 | N61: -0.0002775391469 | O61: x | P61: x | Q61: x | R61: x
A62: 12955 | B62: 36540 | C62: 1572 | D62: 118938 | E62: 1223 | F62: 4928 | G62: 666 | H62: 12788 | I62: 53 | J62: 0.01321697019 | K62: 3 | L62: 281.8959564 | M62: 0.01084686176 | N62: -0.00237010843 | O62: x | P62: x | Q62: x | R62: x
A63: 13037 | B63: 0 | C63: 1610 | D63: 158049 | E63: 1419 | F63: 4561 | G63: 507 | H63: 24618 | I63: 49 | J63: 0.01018671425 | K63: 3 | L63: 187.9306376 | M63: 0.008997648592 | N63: -0.001189065654 | O63: x | P63: x | Q63: x | R63: x
A64: 13251 | B64: 0 | C64: 280 | D64: 40255 | E64: 422 | F64: 1069 | G64: 257 | H64: 3765 | I64: 8 | J64: 0.006955657682 | K64: 1 | L64: 93.96531881 | M64: 0.004621405569 | N64: -0.002334252113 | O64: x | P64: x | Q64: x | R64: x
A65: 13457 | B65: 0 | C65: 213 | D65: 20751 | E65: 141 | F65: 661 | G65: 6 | H65: 5696 | I65: 4 | J65: 0.01026456556 | K65: 1 | L65: 93.96531881 | M65: 0.005736334692 | N65: -0.004528230871 | O65: x | P65: x | Q65: x | R65: x
A66: 14052 | B66: 0 | C66: 90 | D66: 66964 | E66: 606 | F66: 2064 | G66: 745 | H66: 6485 | I66: 20 | J66: =C66/D66 -> 0.001344005734 | K66: =IF(D66/1000<INDEX(sizeV,1),1,IF(D66/1000<INDEX(sizeV,2),2,IF(D66/1000<INDEX(sizeV,3),3,IF(D66/1000<INDEX(sizeV,4),4,IF(D66/1000<INDEX(sizeV,5),5,6))))) -> 2 | L66: =IF(B66=0,salRural*T$2,salUrban*T$2)*INDEX(nHires,K66) -> 93.96531881 | M66: =(C66-L66)/D66 -> -5.921568016e-05 | N66: =M66-J66 -> -0.001403221415 | O66: x | P66: x | Q66: x | R66: x
A67: 14155 | B67: 0 | C67: 1785 | D67: 115085 | E67: 1101 | F67: 4697 | G67: 450 | H67: 14056 | I67: 43 | J67: 0.01551027501 | K67: 3 | L67: 187.9306376 | M67: 0.01387730254 | N67: -0.001632972478 | O67: x | P67: x | Q67: x | R67: x
A68: 14454 | B68: 0 | C68: 29 | D68: 20355 | E68: 215 | F68: 840 | G68: 60 | H68: 3419 | I68: 6 | J68: 0.001424711373 | K68: 1 | L68: 93.96531881 | M68: -0.003191614778 | N68: -0.004616326151 | O68: x | P68: x | Q68: x | R68: x
A69: 14650 | B69: 0 | C69: 385 | D69: 25995 | E69: 139 | F69: 1245 | G69: 90 | H69: 2649 | I69: 13 | J69: 0.01481054049 | K69: 1 | L69: 93.96531881 | M69: 0.01119579462 | N69: -0.003614745867 | O69: x | P69: x | Q69: x | R69: x
A70: 14753 | B70: 0 | C70: 294 | D70: 40380 | E70: 463 | F70: 939 | G70: 0 | H70: 3388 | I70: 11 | J70: 0.007280832095 | K70: 1 | L70: 93.96531881 | M70: 0.004953805874 | N70: -0.002327026221 | O70: x | P70: x | Q70: x | R70: x
A71: 14865 | B71: 0 | C71: 2084 | D71: 251548 | E71: 1743 | F71: 9779 | G71: 1265 | H71: 26265 | I71: 98 | J71: 0.008284701131 | K71: 4 | L71: 187.9306376 | M71: 0.007537604602 | N71: -0.0007470965287 | O71: x | P71: x | Q71: x | R71: x
A72: 16458 | B72: 29940 | C72: 1788 | D72: 284373 | E72: 1698 | F72: 9652 | G72: 823 | H72: 32632 | I72: 80 | J72: 0.006287516747 | K72: 4 | L72: 281.8959564 | M72: 0.005296227292 | N72: -0.0009912894558 | O72: x | P72: x | Q72: x | R72: x
A73: 16551 | B73: 0 | C73: 1401 | D73: 160733 | E73: 3111 | F73: 5820 | G73: 900 | H73: 16935 | I73: 56 | J73: 0.008716318366 | K73: 3 | L73: 187.9306376 | M73: 0.007547108325 | N73: -0.001169210042 | O73: x | P73: x | Q73: x | R73: x
A74: 16748 | B74: 21780 | C74: 549 | D74: 56947 | E74: 662 | F74: 1733 | G74: 30 | H74: 6173 | I74: 15 | J74: 0.009640542961 | K74: 2 | L74: 140.9479782 | M74: 0.00716547003 | N74: -0.002475072931 | O74: x | P74: x | Q74: x | R74: x
A75: 16944 | B75: 28020 | C75: -30 | D75: 38114 | E75: 290 | F75: 1284 | G75: 67 | H75: 3983 | I75: 13 | J75: -0.0007871123472 | K75: 1 | L75: 140.9479782 | M75: -0.004485175479 | N75: -0.003698063132 | O75: x | P75: x | Q75: x | R75: x
A76: 16953 | B76: 24220 | C76: 182 | D76: 33301 | E76: 243 | F76: 1108 | G76: 8 | H76: 4757 | I76: 8 | J76: 0.005465301342 | K76: 1 | L76: 140.9479782 | M76: 0.001232756427 | N76: -0.004232544915 | O76: x | P76: x | Q76: x | R76: x
A77: 17110 | B77: 37964 | C77: 2468 | D77: 105493 | E77: 665 | F77: 16848 | G77: 0 | H77: 17229 | I77: 64 | J77: 0.0233949172 | K77: 3 | L77: 281.8959564 | M77: 0.02072274031 | N77: -0.002672176888 | O77: x | P77: x | Q77: x | R77: x
A78: 17259 | B78: 0 | C78: 979 | D78: 64033 | E78: 766 | F78: 2174 | G78: 186 | H78: 7024 | I78: 28 | J78: 0.01528899161 | K78: 2 | L78: 93.96531881 | M78: 0.01382154016 | N78: -0.001467451452 | O78: x | P78: x | Q78: x | R78: x
A79: 17950 | B79: 13740 | C79: 2417 | D79: 273496 | E79: 3230 | F79: 7033 | G79: 783 | H79: 24843 | I79: 81 | J79: 0.008837423582 | K79: 4 | L79: 281.8959564 | M79: 0.007806710312 | N79: -0.00103071327 | O79: x | P79: x | Q79: x | R79: x
A80: 18050 | B80: 12420 | C80: 4792 | D80: 339379 | E80: 1889 | F80: 10564 | G80: 600 | H80: 38278 | I80: 113 | J80: 0.01411990724 | K80: 4 | L80: 281.8959564 | M80: 0.01328928438 | N80: -0.0008306228624 | O80: x | P80: x | Q80: x | R80: x
A81: 18135 | B81: 16974 | C81: 1292 | D81: 241311 | E81: 2725 | F81: 9052 | G81: 638 | H81: 18696 | I81: 56 | J81: 0.005354086635 | K81: 3 | L81: 281.8959564 | M81: 0.004185901362 | N81: -0.001168185273 | O81: x | P81: x | Q81: x | R81: x
A82: 18827 | B82: 38300 | C82: 2715 | D82: 390559 | E82: 3705 | F82: 8709 | G82: 1685 | H82: 38723 | I82: 85 | J82: 0.006951574538 | K82: 4 | L82: 281.8959564 | M82: 0.006229798938 | N82: -0.0007217755996 | O82: x | P82: x | Q82: x | R82: x
A83: 18836 | B83: 0 | C83: 253 | D83: 154664 | E83: 2645 | F83: 5146 | G83: 1659 | H83: 13128 | I83: 52 | J83: 0.001635804066 | K83: 3 | L83: 187.9306376 | M83: 0.0004207143381 | N83: -0.001215089727 | O83: x | P83: x | Q83: x | R83: x
A84: 18854 | B84: 36420 | C84: 2023 | D84: 139295 | E84: 1734 | F84: 3544 | G84: 842 | H84: 10733 | I84: 32 | J84: 0.01452313436 | K84: 3 | L84: 281.8959564 | M84: 0.01249940087 | N84: -0.002023733489 | O84: x | P84: x | Q84: x | R84: x
A85: 18957 | B85: 45820 | C85: -257 | D85: 29020 | E85: 613 | F85: 1242 | G85: 553 | H85: 923 | I85: 9 | J85: -0.008855961406 | K85: 1 | L85: 140.9479782 | M85: -0.01371288691 | N85: -0.004856925507 | O85: x | P85: x | Q85: x | R85: x
A86: 19356 | B86: 0 | C86: 591 | D86: 75555 | E86: 709 | F86: 2798 | G86: 31 | H86: 7810 | I86: 28 | J86: 0.007822116339 | K86: 2 | L86: 93.96531881 | M86: 0.006578448563 | N86: -0.001243667776 | O86: x | P86: x | Q86: x | R86: x
A87: 19936 | B87: 0 | C87: 53 | D87: 245316 | E87: 3110 | F87: 6354 | G87: 3400 | H87: 20706 | I87: 50 | J87: 0.0002160478729 | K87: 3 | L87: 187.9306376 | M87: -0.0005500278727 | N87: -0.0007660757456 | O87: x | P87: x | Q87: x | R87: x
A88: 20053 | B88: 20740 | C88: 19 | D88: 68535 | E88: 1018 | F88: 2318 | G88: 1003 | H88: 7833 | I88: 19 | J88: 0.0002772306121 | K88: 2 | L88: 140.9479782 | M88: -0.001779353297 | N88: -0.002056583909 | O88: x | P88: x | Q88: x | R88: x
A89: 20370 | B89: 42644 | C89: -11320 | D89: 179423 | E89: 2838 | F89: 9923 | G89: 7066 | H89: 4277 | I89: 59 | J89: -0.06309113101 | K89: 3 | L89: 281.8959564 | M89: -0.06466225599 | N89: -0.001571124975 | O89: x | P89: x | Q89: x | R89: x
A90: 20512 | B90: 0 | C90: 883 | D90: 101595 | E90: 1580 | F90: 2655 | G90: 15 | H90: 9184 | I90: 26 | J90: 0.008691372607 | K90: 3 | L90: 187.9306376 | M90: 0.006841570573 | N90: -0.001849802034 | O90: x | P90: x | Q90: x | R90: x
A91: 20633 | B91: 0 | C91: 1591 | D91: 324603 | E91: 5988 | F91: 8852 | G91: 465 | H91: 24889 | I91: 90 | J91: 0.00490137183 | K91: 4 | L91: 187.9306376 | M91: 0.004322416498 | N91: -0.0005789553319 | O91: x | P91: x | Q91: x | R91: x
A92: 20857 | B92: 0 | C92: 2478 | D92: 187121 | E92: 699 | F92: 2556 | G92: 486 | H92: 15875 | I92: 16 | J92: 0.01324276805 | K92: 3 | L92: 187.9306376 | M92: 0.01223844124 | N92: -0.001004326813 | O92: x | P92: x | Q92: x | R92: x
A93: 21256 | B93: 48620 | C93: -25 | D93: 8836 | E93: 84 | F93: 382 | G93: 2 | H93: 1015 | I93: 5 | J93: -0.002829334541 | K93: 1 | L93: 140.9479782 | M93: -0.01878089387 | N93: -0.01595155933 | O93: x | P93: x | Q93: x | R93: x
A94: 21359 | B94: 0 | C94: 274 | D94: 23887 | E94: 299 | F94: 845 | G94: 117 | H94: 2403 | I94: 7 | J94: 0.01147067443 | K94: 1 | L94: 93.96531881 | M94: 0.007536931435 | N94: -0.00393374299 | O94: x | P94: x | Q94: x | R94: x
A95: 21630 | B95: 29180 | C95: 1146 | D95: 78610 | E95: 730 | F95: 2171 | G95: 0 | H95: 8176 | I95: 28 | J95: 0.01457829793 | K95: 2 | L95: 140.9479782 | M95: 0.01278529477 | N95: -0.001793003157 | O95: x | P95: x | Q95: x | R95: x
A96: 21658 | B96: 0 | C96: 1369 | D96: 142440 | E96: 1994 | F96: 3829 | G96: 544 | H96: 14061 | I96: 44 | J96: 0.009611064308 | K96: 3 | L96: 187.9306376 | M96: 0.008291697293 | N96: -0.001319367015 | O96: x | P96: x | Q96: x | R96: x
A97: 22048 | B97: 0 | C97: 1092 | D97: 184382 | E97: 2479 | F97: 6887 | G97: 909 | H97: 18334 | I97: 65 | J97: 0.005922487011 | K97: 3 | L97: 187.9306376 | M97: 0.004903240893 | N97: -0.001019246117 | O97: x | P97: x | Q97: x | R97: x
A98: 22356 | B98: 0 | C98: 2107 | D98: 352098 | E98: 1931 | F98: 9297 | G98: 1453 | H98: 40322 | I98: 80 | J98: 0.005984129419 | K98: 4 | L98: 187.9306376 | M98: 0.005450384161 | N98: -0.0005337452573 | O98: x | P98: x | Q98: x | R98: x
A99: 22459 | B99: 28140 | C99: 970 | D99: 101149 | E99: 1061 | F99: 3640 | G99: 69 | H99: 10166 | I99: 42 | J99: 0.009589813048 | K99: 3 | L99: 281.8959564 | M99: 0.006802875397 | N99: -0.002786937651 | O99: x | P99: x | Q99: x | R99: x
A100: 22543 | B100: 0 | C100: 929 | D100: 80650 | E100: 507 | F100: 2310 | G100: 210 | H100: 12954 | I100: 23 | J100: 0.01151890887 | K100: 2 | L100: 93.96531881 | M100: 0.01035380882 | N100: -0.001165100047 | O100: x | P100: x | Q100: x | R100: x
A101: 22552 | B101: 0 | C101: 753 | D101: 59333 | E101: 720 | F101: 1695 | G101: 275 | H101: 4978 | I101: 13 | J101: 0.01269108253 | K101: 2 | L101: 93.96531881 | M101: 0.01110738849 | N101: -0.001583694046 | O101: x | P101: x | Q101: x | R101: x
A102: 22730 | B102: 0 | C102: 652 | D102: 108817 | E102: 1014 | F102: 4095 | G102: 80 | H102: 11984 | I102: 47 | J102: 0.005991710854 | K102: 3 | L102: 187.9306376 | M102: 0.004264677049 | N102: -0.001727033805 | O102: x | P102: x | Q102: x | R102: x
A103: 22936 | B103: 0 | C103: -6130 | D103: 272631 | E103: 5631 | F103: 9136 | G103: 5883 | H103: 19024 | I103: 70 | J103: -0.02248460373 | K103: 4 | L103: 187.9306376 | M103: -0.02317392607 | N103: -0.0006893223354 | O103: x | P103: x | Q103: x | R103: x
A104: 22954 | B104: 22020 | C104: 610 | D104: 89067 | E104: 1246 | F104: 2400 | G104: 515 | H104: 7951 | I104: 20 | J104: 0.006848776764 | K104: 2 | L104: 140.9479782 | M104: 0.005266282931 | N104: -0.001582493833 | O104: x | P104: x | Q104: x | R104: x
A105: 23045 | B105: 0 | C105: 186 | D105: 38577 | E105: 142 | F105: 1179 | G105: 0 | H105: 6701 | I105: 15 | J105: 0.00482152578 | K105: 1 | L105: 93.96531881 | M105: 0.00238573972 | N105: -0.002435786059 | O105: x | P105: x | Q105: x | R105: x
A106: 23456 | B106: 0 | C106: 1273 | D106: 89222 | E106: 1271 | F106: 2695 | G106: 274 | H106: 9790 | I106: 23 | J106: 0.01426778149 | K106: 2 | L106: 93.96531881 | M106: 0.01321461838 | N106: -0.001053163108 | O106: x | P106: x | Q106: x | R106: x
A107: 23540 | B107: 16974 | C107: -12270 | D107: 187374 | E107: 1305 | F107: 18523 | G107: 1501 | H107: 11778 | I107: 39 | J107: -0.06548400525 | K107: 3 | L107: 281.8959564 | M107: -0.06698846135 | N107: -0.001504456095 | O107: x | P107: x | Q107: x | R107: x
A108: 23643 | B108: 0 | C108: 2888 | D108: 159988 | E108: 1783 | F108: 4658 | G108: 600 | H108: 14214 | I108: 41 | J108: 0.01805135385 | K108: 3 | L108: 187.9306376 | M108: 0.01687669927 | N108: -0.001174654584 | O108: x | P108: x | Q108: x | R108: x
A109: 23755 | B109: 33460 | C109: 1048 | D109: 153386 | E109: 1932 | F109: 6148 | G109: 440 | H109: 14117 | I109: 56 | J109: 0.006832435816 | K109: 3 | L109: 281.8959564 | M109: 0.004994615177 | N109: -0.001837820638 | O109: x | P109: x | Q109: x | R109: x
A110: 24453 | B110: 0 | C110: -22685 | D110: 286994 | E110: 5070 | F110: 13420 | G110: 18399 | H110: 15923 | I110: 52 | J110: -0.07904346432 | K110: 4 | L110: 187.9306376 | M110: -0.0796982886 | N110: -0.0006548242737 | O110: x | P110: x | Q110: x | R110: x
A111: 24659 | B111: 0 | C111: 314 | D111: 39257 | E111: 415 | F111: 881 | G111: 354 | H111: 4403 | I111: 9 | J111: 0.007998573503 | K111: 1 | L111: 93.96531881 | M111: 0.005604979525 | N111: -0.002393593978 | O111: x | P111: x | Q111: x | R111: x
A112: 24668 | B112: 0 | C112: 1715 | D112: 194360 | E112: 1715 | F112: 6838 | G112: 0 | H112: 19571 | I112: 67 | J112: 0.008823832064 | K112: 3 | L112: 187.9306376 | M112: 0.007856911723 | N112: -0.0009669203417 | O112: x | P112: x | Q112: x | R112: x
A113: 24855 | B113: 0 | C113: 18 | D113: 11610 | E113: 96 | F113: 424 | G113: 0 | H113: 923 | I113: 4 | J113: 0.001550387597 | K113: 1 | L113: 93.96531881 | M113: -0.006543093782 | N113: -0.008093481379 | O113: x | P113: x | Q113: x | R113: x
A114: 24949 | B114: 0 | C114: -2473 | D114: 789409 | E114: 9180 | F114: 21631 | G114: 12969 | H114: 71652 | I114: 210 | J114: -0.003132723341 | K114: 4 | L114: 187.9306376 | M114: -0.003370788321 | N114: -0.0002380649798 | O114: x | P114: x | Q114: x | R114: x
A115: 25357 | B115: 36420 | C115: 96 | D115: 128676 | E115: 2077 | F115: 4031 | G115: 710 | H115: 10959 | I115: 49 | J115: 0.0007460598713 | K115: 3 | L115: 281.8959564 | M115: -0.00144468243 | N115: -0.002190742302 | O115: x | P115: x | Q115: x | R115: x
A116: 25647 | B116: 16974 | C116: -1418 | D116: 67738 | E116: 1299 | F116: 2585 | G116: 1492 | H116: 3426 | I116: 21 | J116: -0.02093359709 | K116: 2 | L116: 140.9479782 | M116: -0.02301437861 | N116: -0.002080781514 | O116: x | P116: x | Q116: x | R116: x
A117: 26149 | B117: 0 | C117: 415 | D117: 93102 | E117: 1208 | F117: 1819 | G117: 814 | H117: 7085 | I117: 17 | J117: 0.004457476746 | K117: 2 | L117: 93.96531881 | M117: 0.003448203918 | N117: -0.001009272828 | O117: x | P117: x | Q117: x | R117: x
A118: 26242 | B118: 0 | C118: 5712 | D118: 388901 | E118: 3080 | F118: 12183 | G118: 683 | H118: 54434 | I118: 124 | J118: 0.01468754259 | K118: 4 | L118: 187.9306376 | M118: 0.01420430743 | N118: -0.0004832351617 | O118: x | P118: x | Q118: x | R118: x
A119: 26457 | B119: 0 | C119: 205 | D119: 23925 | E119: 230 | F119: 739 | G119: 0 | H119: 3068 | I119: 7 | J119: 0.008568443051 | K119: 1 | L119: 93.96531881 | M119: 0.004640948012 | N119: -0.003927495039 | O119: x | P119: x | Q119: x | R119: x
A120: 26765 | B120: 0 | C120: -9589 | D120: 217592 | E120: 4756 | F120: 15891 | G120: 544 | H120: 21385 | I120: 70 | J120: -0.04406871576 | K120: 3 | L120: 187.9306376 | M120: -0.04493239934 | N120: -0.0008636835803 | O120: x | P120: x | Q120: x | R120: x
A121: 26859 | B121: 26420 | C121: -3908 | D121: 381152 | E121: 3342 | F121: 14977 | G121: 4575 | H121: 36222 | I121: 97 | J121: -0.01025312736 | K121: 4 | L121: 281.8959564 | M121: -0.0109927167 | N121: -0.0007395893408 | O121: x | P121: x | Q121: x | R121: x
A122: 27548 | B122: 27500 | C122: 3342 | D122: 538734 | E122: 6325 | F122: 19020 | G122: 4544 | H122: 52133 | I122: 160 | J122: 0.006203432492 | K122: 4 | L122: 281.8959564 | M122: 0.005680176197 | N122: -0.0005232562942 | O122: x | P122: x | Q122: x | R122: x
A123: 27614 | B123: 0 | C123: 3810 | D123: 295109 | E123: 2831 | F123: 8691 | G123: 330 | H123: 26301 | I123: 94 | J123: 0.01291048392 | K123: 4 | L123: 187.9306376 | M123: 0.01227366621 | N123: -0.0006368177101 | O123: x | P123: x | Q123: x | R123: x
A124: 27847 | B124: 0 | C124: 6194 | D124: 461210 | E124: 8125 | F124: 12210 | G124: 2175 | H124: 44237 | I124: 136 | J124: 0.01342989094 | K124: 4 | L124: 187.9306376 | M124: 0.01302241791 | N124: -0.0004074730331 | O124: x | P124: x | Q124: x | R124: x
A125: 28152 | B125: 41060 | C125: 1276 | D125: 75527 | E125: 845 | F125: 1833 | G125: 0 | H125: 6569 | I125: 19 | J125: 0.01689462047 | K125: 2 | L125: 140.9479782 | M125: 0.01502842721 | N125: -0.001866193258 | O125: x | P125: x | Q125: x | R125: x
A126: 28255 | B126: 0 | C126: 1635 | D126: 240762 | E126: 1886 | F126: 5631 | G126: 507 | H126: 19151 | I126: 53 | J126: 0.006790938769 | K126: 3 | L126: 187.9306376 | M126: 0.006010372743 | N126: -0.0007805660263 | O126: x | P126: x | Q126: x | R126: x
A127: 28349 | B127: 22900 | C127: 764 | D127: 185726 | E127: 2536 | F127: 5118 | G127: 3007 | H127: 18075 | I127: 55 | J127: 0.004113586681 | K127: 3 | L127: 281.8959564 | M127: 0.002595781116 | N127: -0.001517805565 | O127: x | P127: x | Q127: x | R127: x
A128: 28732 | B128: 0 | C128: 197 | D128: 78536 | E128: 791 | F128: 2519 | G128: 553 | H128: 8099 | I128: 24 | J128: 0.002508403789 | K128: 2 | L128: 93.96531881 | M128: 0.001311942055 | N128: -0.001196461735 | O128: x | P128: x | Q128: x | R128: x
A129: 29636 | B129: 0 | C129: 7332 | D129: 817798 | E129: 8730 | F129: 24426 | G129: 2456 | H129: 74720 | I129: 265 | J129: 0.008965539167 | K129: 4 | L129: 187.9306376 | M129: 0.008735738364 | N129: -0.0002298008036 | O129: x | P129: x | Q129: x | R129: x
A130: 29953 | B130: 36540 | C130: 2346 | D130: 80453 | E130: 1321 | F130: 2460 | G130: 270 | H130: 10034 | I130: 20 | J130: =C130/D130 -> 0.02915988217 | K130: =IF(D130/1000<INDEX(sizeV,1),1,IF(D130/1000<INDEX(sizeV,2),2,IF(D130/1000<INDEX(sizeV,3),3,IF(D130/1000<INDEX(sizeV,4),4,IF(D130/1000<INDEX(sizeV,5),5,6))))) -> 2 | L130: =IF(B130=0,salRural*T$2,salUrban*T$2)*INDEX(nHires,K130) -> 140.9479782 | M130: =(C130-L130)/D130 -> 0.02740795274 | N130: =M130-J130 -> -0.001751929427 | O130: x | P130: x | Q130: x | R130: x
A131: 30052 | B131: 0 | C131: 185 | D131: 20011 | E131: 163 | F131: 1403 | G131: 6 | H131: 2812 | I131: 12 | J131: 0.009244915297 | K131: 1 | L131: 93.96531881 | M131: 0.004549231982 | N131: -0.004695683314 | O131: x | P131: x | Q131: x | R131: x
A132: 30258 | B132: 33460 | C132: -14778 | D132: 425154 | E132: 6465 | F132: 22856 | G132: 11359 | H132: 14972 | I132: 117 | J132: -0.03475916962 | K132: 4 | L132: 281.8959564 | M132: -0.03542221397 | N132: -0.0006630443473 | O132: x | P132: x | Q132: x | R132: x
A133: 30502 | B133: 0 | C133: 5165 | D133: 826636 | E133: 9009 | F133: 24046 | G133: 3335 | H133: 69309 | I133: 212 | J133: 0.00624821566 | K133: 4 | L133: 187.9306376 | M133: 0.006020871777 | N133: -0.0002273438824 | O133: x | P133: x | Q133: x | R133: x
A134: 30650 | B134: 33460 | C134: -427 | D134: 145068 | E134: 1756 | F134: 5100 | G134: 1326 | H134: 13203 | I134: 31 | J134: -0.002943447211 | K134: 3 | L134: 281.8959564 | M134: -0.004886645962 | N134: -0.001943198751 | O134: x | P134: x | Q134: x | R134: x
A135: 31134 | B135: 12260 | C135: 1161 | D135: 106534 | E135: 1261 | F135: 3507 | G135: 242 | H135: 14399 | I135: 37 | J135: 0.0108979293 | K135: 3 | L135: 281.8959564 | M135: 0.008251863664 | N135: -0.002646065636 | O135: x | P135: x | Q135: x | R135: x
A136: 31255 | B136: 26420 | C136: 3925 | D136: 395408 | E136: 3752 | F136: 12939 | G136: 625 | H136: 34936 | I136: 87 | J136: 0.009926455712 | K136: 4 | L136: 281.8959564 | M136: 0.00921353145 | N136: -0.0007129242616 | O136: x | P136: x | Q136: x | R136: x
A137: 31657 | B137: 0 | C137: 2100 | D137: 103422 | E137: 1114 | F137: 2699 | G137: 120 | H137: 10916 | I137: 31 | J137: 0.02030515751 | K137: 3 | L137: 187.9306376 | M137: 0.01848803313 | N137: -0.00181712438 | O137: x | P137: x | Q137: x | R137: x
A138: 31826 | B138: 0 | C138: 1936 | D138: 234509 | E138: 3015 | F138: 6228 | G138: 2000 | H138: 35876 | I138: 70 | J138: 0.008255546695 | K138: 3 | L138: 187.9306376 | M138: 0.007454167483 | N138: -0.0008013792119 | O138: x | P138: x | Q138: x | R138: x
A139: 31835 | B139: 0 | C139: 951 | D139: 112443 | E139: 826 | F139: 3697 | G139: 300 | H139: 11494 | I139: 27 | J139: 0.008457618527 | K139: 3 | L139: 187.9306376 | M139: 0.006786277157 | N139: -0.00167134137 | O139: x | P139: x | Q139: x | R139: x
A140: 32234 | B140: 0 | C140: 414 | D140: 97366 | E140: 698 | F140: 2505 | G140: 104 | H140: 11555 | I140: 24 | J140: 0.004251997617 | K140: 2 | L140: 93.96531881 | M140: 0.003286924401 | N140: -0.0009650732166 | O140: x | P140: x | Q140: x | R140: x
A141: 32766 | B141: 19124 | C141: 200 | D141: 54476 | E141: 229 | F141: 1524 | G141: 58 | H141: 4642 | I141: 15 | J141: 0.003671341508 | K141: 2 | L141: 140.9479782 | M141: 0.001084000694 | N141: -0.002587340814 | O141: x | P141: x | Q141: x | R141: x
A142: 33147 | B142: 0 | C142: 2763 | D142: 369862 | E142: 5802 | F142: 11870 | G142: 1000 | H142: 33647 | I142: 96 | J142: 0.007470353808 | K142: 4 | L142: 187.9306376 | M142: 0.006962243654 | N142: -0.0005081101535 | O142: x | P142: x | Q142: x | R142: x
A143: 33259 | B143: 33460 | C143: -5532 | D143: 596087 | E143: 8536 | F143: 15320 | G143: 17725 | H143: 47944 | I143: 86 | J143: -0.009280524487 | K143: 4 | L143: 281.8959564 | M143: -0.009753435248 | N143: -0.0004729107604 | O143: x | P143: x | Q143: x | R143: x
A144: 33268 | B144: 0 | C144: 1309 | D144: 112906 | E144: 791 | F144: 4084 | G144: 0 | H144: 11212 | I144: 39 | J144: 0.01159371513 | K144: 3 | L144: 187.9306376 | M144: 0.00992922752 | N144: -0.001664487606 | O144: x | P144: x | Q144: x | R144: x
A145: 33727 | B145: 0 | C145: -5572 | D145: 342863 | E145: 3303 | F145: 14183 | G145: 3940 | H145: 24525 | I145: 103 | J145: -0.01625138904 | K145: 4 | L145: 187.9306376 | M145: -0.0167995107 | N145: -0.0005481216626 | O145: x | P145: x | Q145: x | R145: x
A146: 33754 | B146: 0 | C146: 272 | D146: 33502 | E146: 232 | F146: 921 | G146: 32 | H146: 4315 | I146: 10 | J146: 0.008118918274 | K146: 1 | L146: 93.96531881 | M146: 0.005314150833 | N146: -0.002804767441 | O146: x | P146: x | Q146: x | R146: x
A147: 33839 | B147: 14060 | C147: 331 | D147: 29113 | E147: 256 | F147: 802 | G147: 4 | H147: 3060 | I147: 7 | J147: 0.01136949129 | K147: 1 | L147: 140.9479782 | M147: 0.006528080988 | N147: -0.004841410305 | O147: x | P147: x | Q147: x | R147: x
A148: 33857 | B148: 0 | C148: 128 | D148: 114377 | E148: 2147 | F148: 3359 | G148: 185 | H148: 13739 | I148: 31 | J148: 0.001119106114 | K148: 3 | L148: 187.9306376 | M148: -0.0005239745544 | N148: -0.001643080668 | O148: x | P148: x | Q148: x | R148: x
A149: 34153 | B149: 33460 | C149: -8533 | D149: 484150 | E149: 7011 | F149: 26532 | G149: 6240 | H149: 27581 | I149: 188 | J149: -0.01762470309 | K149: 4 | L149: 281.8959564 | M149: -0.0182069523 | N149: -0.0005822492129 | O149: x | P149: x | Q149: x | R149: x
A150: 34359 | B150: 0 | C150: 420 | D150: 31199 | E150: 323 | F150: 656 | G150: 0 | H150: 6061 | I150: 6 | J150: 0.01346196993 | K150: 1 | L150: 93.96531881 | M150: 0.01045016447 | N150: -0.003011805468 | O150: x | P150: x | Q150: x | R150: x
A151: 34425 | B151: 0 | C151: 466 | D151: 325989 | E151: 5505 | F151: 11546 | G151: 720 | H151: 26367 | I151: 118 | J151: 0.001429496087 | K151: 4 | L151: 187.9306376 | M151: 0.0008530022865 | N151: -0.0005764938007 | O151: x | P151: x | Q151: x | R151: x
A152: 34434 | B152: 0 | C152: 2502 | D152: 233636 | E152: 2683 | F152: 8447 | G152: 203 | H152: 19612 | I152: 80 | J152: 0.01070896608 | K152: 3 | L152: 187.9306376 | M152: 0.009904592453 | N152: -0.0008043736308 | O152: x | P152: x | Q152: x | R152: x
A153: 34452 | B153: 0 | C153: 1245 | D153: 100238 | E153: 1399 | F153: 2851 | G153: 110 | H153: 10208 | I153: 26 | J153: 0.01242043935 | K153: 3 | L153: 187.9306376 | M153: 0.01054559511 | N153: -0.001874844247 | O153: x | P153: x | Q153: x | R153: x
A154: 34555 | B154: 0 | C154: 2340 | D154: 201108 | E154: 2993 | F154: 4295 | G154: 169 | H154: 20254 | I154: 40 | J154: 0.01163553911 | K154: 3 | L154: 187.9306376 | M154: 0.01070106292 | N154: -0.00093447619 | O154: x | P154: x | Q154: x | R154: x
A155: 34742 | B155: 0 | C155: 1026 | D155: 272543 | E155: 4179 | F155: 10506 | G155: 777 | H155: 23177 | I155: 88 | J155: 0.003764543577 | K155: 4 | L155: 187.9306376 | M155: 0.00307499867 | N155: -0.0006895449071 | O155: x | P155: x | Q155: x | R155: x
A156: 34836 | B156: 12060 | C156: -678 | D156: 28103 | E156: 405 | F156: 970 | G156: 870 | H156: 1793 | I156: 10 | J156: -0.0241255382 | K156: 1 | L156: 140.9479782 | M156: -0.02914094503 | N156: -0.005015406832 | O156: x | P156: x | Q156: x | R156: x
A157: 35057 | B157: 0 | C157: 1083 | D157: 119280 | E157: 1800 | F157: 4401 | G157: 676 | H157: 9607 | I157: 43 | J157: 0.009079476861 | K157: 3 | L157: 187.9306376 | M157: 0.007503934963 | N157: -0.001575541898 | O157: x | P157: x | Q157: x | R157: x
A158: 35646 | B158: 0 | C158: 618 | D158: 49900 | E158: 405 | F158: 1043 | G158: 0 | H158: 11174 | I158: 8 | J158: 0.01238476954 | K158: 1 | L158: 93.96531881 | M158: 0.01050169702 | N158: -0.001883072521 | O158: x | P158: x | Q158: x | R158: x
A159: 35842 | B159: 0 | C159: 1556 | D159: 157662 | E159: 2236 | F159: 3624 | G159: 1138 | H159: 11299 | I159: 38 | J159: 0.009869213888 | K159: 3 | L159: 187.9306376 | M159: 0.008677229531 | N159: -0.001191984356 | O159: x | P159: x | Q159: x | R159: x
A160: 36344 | B160: 0 | C160: 4864 | D160: 402793 | E160: 4417 | F160: 14461 | G160: 1295 | H160: 41684 | I160: 138 | J160: 0.01207568155 | K160: 4 | L160: 187.9306376 | M160: 0.01160911278 | N160: -0.0004665687775 | O160: x | P160: x | Q160: x | R160: x
A161: 36456 | B161: 0 | C161: 938 | D161: 97547 | E161: 1355 | F161: 2847 | G161: 350 | H161: 9022 | I161: 19 | J161: 0.009615877474 | K161: 2 | L161: 93.96531881 | M161: 0.008652594966 | N161: -0.000963282508 | O161: x | P161: x | Q161: x | R161: x
A162: 36858 | B162: 28140 | C162: 3856 | D162: 179752 | E162: 1432 | F162: 5702 | G162: -1164 | H162: 21392 | I162: 40 | J162: 0.02145177801 | K162: 3 | L162: 281.8959564 | M162: 0.01988352866 | N162: -0.001568249346 | O162: x | P162: x | Q162: x | R162: x
A163: 36933 | B163: 0 | C163: -1972 | D163: 93058 | E163: 1228 | F163: 4161 | G163: 1250 | H163: 6678 | I163: 34 | J163: -0.02119108513 | K163: 2 | L163: 93.96531881 | M163: -0.02220083517 | N163: -0.001009750036 | O163: x | P163: x | Q163: x | R163: x
A164: 37051 | B164: 0 | C164: 388 | D164: 65946 | E164: 1007 | F164: 2102 | G164: 222 | H164: 6816 | I164: 22 | J164: 0.005883601735 | K164: 2 | L164: 93.96531881 | M164: 0.00445871897 | N164: -0.001424882765 | O164: x | P164: x | Q164: x | R164: x
A165: 37341 | B165: 0 | C165: 559 | D165: 32694 | E165: 488 | F165: 1233 | G165: 112 | H165: 3422 | I165: 11 | J165: 0.01709793846 | K165: 1 | L165: 93.96531881 | M165: 0.01422385395 | N165: -0.002874084505 | O165: x | P165: x | Q165: x | R165: x
A166: 37378 | B166: 49420 | C166: 2163 | D166: 163194 | E166: 1413 | F166: 4602 | G166: 690 | H166: 15764 | I166: 40 | J166: 0.01325416376 | K166: 3 | L166: 281.8959564 | M166: 0.0115267966 | N166: -0.001727367161 | O166: x | P166: x | Q166: x | R166: x
A167: 37659 | B167: 0 | C167: 707 | D167: 38748 | E167: 324 | F167: 1394 | G167: 85 | H167: 4065 | I167: 12 | J167: 0.01824610302 | K167: 1 | L167: 93.96531881 | M167: 0.01582106641 | N167: -0.002425036616 | O167: x | P167: x | Q167: x | R167: x
A168: 37743 | B168: 11540 | C168: 104 | D168: 89627 | E168: 939 | F168: 2599 | G168: 830 | H168: 8228 | I168: 23 | J168: 0.001160364622 | K168: 2 | L168: 140.9479782 | M168: -0.0004122416036 | N168: -0.001572606226 | O168: x | P168: x | Q168: x | R168: x
A169: 37949 | B169: 16580 | C169: 3751 | D169: 195594 | E169: 1871 | F169: 3676 | G169: 400 | H169: 16144 | I169: 39 | J169: 0.01917747988 | K169: 3 | L169: 281.8959564 | M169: 0.0177362498 | N169: -0.001441230081 | O169: x | P169: x | Q169: x | R169: x
A170: 38535 | B170: 16974 | C170: -12605 | D170: 400007 | E170: 4915 | F170: 12498 | G170: 12872 | H170: 18597 | I170: 92 | J170: -0.03151194854 | K170: 4 | L170: 281.8959564 | M170: -0.0322166761 | N170: -0.0007047275583 | O170: x | P170: x | Q170: x | R170: x
A171: 38740 | B171: 14020 | C171: 706 | D171: 184544 | E171: 2842 | F171: 5761 | G171: 515 | H171: 16422 | I171: 63 | J171: 0.003825645916 | K171: 3 | L171: 281.8959564 | M171: 0.002298118842 | N171: -0.001527527074 | O171: x | P171: x | Q171: x | R171: x
A172: 39327 | B172: 0 | C172: 5105 | D172: 401793 | E172: 1943 | F172: 8250 | G172: 1012 | H172: 69825 | I172: 89 | J172: 0.01270554738 | K172: 4 | L172: 187.9306376 | M172: 0.01223781739 | N172: -0.0004677299943 | O172: x | P172: x | Q172: x | R172: x
A173: 39756 | B173: 36420 | C173: 5040 | D173: 438904 | E173: 3985 | F173: 13664 | G173: 1587 | H173: 36956 | I173: 120 | J173: 0.01148314893 | K173: 4 | L173: 281.8959564 | M173: 0.01084087646 | N173: -0.0006422724706 | O173: x | P173: x | Q173: x | R173: x
A174: 40033 | B174: 25620 | C174: 593 | D174: 80424 | E174: 768 | F174: 3151 | G174: -336 | H174: 7530 | I174: 21 | J174: 0.007373420869 | K174: 2 | L174: 140.9479782 | M174: 0.005620859716 | N174: -0.001752561154 | O174: x | P174: x | Q174: x | R174: x
A175: 40350 | B175: 36540 | C175: 354 | D175: 43953 | E175: 488 | F175: 1258 | G175: 0 | H175: 7019 | I175: 10 | J175: 0.008054057743 | K175: 1 | L175: 140.9479782 | M175: 0.004847269169 | N175: -0.003206788574 | O175: x | P175: x | Q175: x | R175: x
A176: 40707 | B176: 0 | C176: 1021 | D176: 262621 | E176: 2131 | F176: 9524 | G176: 706 | H176: 20793 | I176: 96 | J176: 0.00388773175 | K176: 4 | L176: 187.9306376 | M176: 0.003172135368 | N176: -0.0007155963827 | O176: x | P176: x | Q176: x | R176: x
A177: 40855 | B177: 29100 | C177: 740 | D177: 70596 | E177: 1241 | F177: 1517 | G177: 205 | H177: 5904 | I177: 14 | J177: 0.01048218029 | K177: 2 | L177: 140.9479782 | M177: 0.008485636889 | N177: -0.001996543405 | O177: x | P177: x | Q177: x | R177: x
A178: 41245 | B178: 27500 | C178: 240 | D178: 39555 | E178: 501 | F178: 924 | G178: 261 | H178: 3941 | I178: 10 | J178: 0.006067500948 | K178: 1 | L178: 140.9479782 | M178: 0.002504159317 | N178: -0.003563341631 | O178: x | P178: x | Q178: x | R178: x
A179: 41553 | B179: 0 | C179: 1202 | D179: 84529 | E179: 897 | F179: 2227 | G179: 90 | H179: 13100 | I179: 25 | J179: 0.01421997184 | K179: 2 | L179: 93.96531881 | M179: 0.01310833774 | N179: -0.0011116341 | O179: x | P179: x | Q179: x | R179: x
A180: 41629 | B180: 0 | C180: 1994 | D180: 164844 | E180: 1764 | F180: 5114 | G180: 806 | H180: 16043 | I180: 50 | J180: 0.01209628497 | K180: 3 | L180: 187.9306376 | M180: 0.01095623354 | N180: -0.001140051428 | O180: x | P180: x | Q180: x | R180: x
A181: 41759 | B181: 0 | C181: 522 | D181: 42615 | E181: 441 | F181: 886 | G181: 195 | H181: 4569 | I181: 9 | J181: 0.01224920803 | K181: 1 | L181: 93.96531881 | M181: 0.01004422577 | N181: -0.002204982255 | O181: x | P181: x | Q181: x | R181: x
A182: 41825 | B182: 13644 | C182: 1718 | D182: 143843 | E182: 458 | F182: 3738 | G182: 33 | H182: 17142 | I182: 34 | J182: 0.01194357737 | K182: 3 | L182: 281.8959564 | M182: 0.009983829895 | N182: -0.001959747478 | O182: x | P182: x | Q182: x | R182: x
A183: 41937 | B183: 0 | C183: 392 | D183: 58433 | E183: 589 | F183: 1497 | G183: 260 | H183: 5120 | I183: 17 | J183: 0.006708537984 | K183: 2 | L183: 93.96531881 | M183: 0.005100451478 | N183: -0.001608086506 | O183: x | P183: x | Q183: x | R183: x
A184: 41955 | B184: 0 | C184: 193 | D184: 34034 | E184: 322 | F184: 995 | G184: 0 | H184: 3175 | I184: 9 | J184: 0.005670799788 | K184: 1 | L184: 93.96531881 | M184: 0.002909874866 | N184: -0.002760924922 | O184: x | P184: x | Q184: x | R184: x
A185: 42037 | B185: 0 | C185: 452 | D185: 62969 | E185: 624 | F185: 2577 | G185: 304 | H185: 8251 | I185: 33 | J185: 0.007178135273 | K185: 2 | L185: 93.96531881 | M185: 0.005685887996 | N185: -0.001492247277 | O185: x | P185: x | Q185: x | R185: x
A186: 42055 | B186: 0 | C186: 192 | D186: 62679 | E186: 628 | F186: 2611 | G186: 100 | H186: 6811 | I186: 30 | J186: 0.003063226918 | K186: 2 | L186: 93.96531881 | M186: 0.001564075387 | N186: -0.001499151531 | O186: x | P186: x | Q186: x | R186: x
A187: 42354 | B187: 0 | C187: 1953 | D187: 112588 | E187: 790 | F187: 3317 | G187: 76 | H187: 15748 | I187: 33 | J187: 0.01734643124 | K187: 3 | L187: 187.9306376 | M187: 0.01567724236 | N187: -0.00166918888 | O187: x | P187: x | Q187: x | R187: x
A188: 42448 | B188: 0 | C188: 8316 | D188: 645374 | E188: 10955 | F188: 15125 | G188: 3523 | H188: 72098 | I188: 147 | J188: 0.01288555163 | K188: 4 | L188: 187.9306376 | M188: 0.01259435515 | N188: -0.0002911964808 | O188: x | P188: x | Q188: x | R188: x
A189: 42457 | B189: 0 | C189: 189 | D189: 25976 | E189: 157 | F189: 803 | G189: 50 | H189: 5199 | I189: 8 | J189: 0.007275947028 | K189: 1 | L189: 93.96531881 | M189: 0.003658557176 | N189: -0.003617389852 | O189: x | P189: x | Q189: x | R189: x
A190: 43052 | B190: 0 | C190: 909 | D190: 92152 | E190: 1244 | F190: 2526 | G190: 639 | H190: 11223 | I190: 19 | J190: 0.009864137512 | K190: 2 | L190: 93.96531881 | M190: 0.008844460036 | N190: -0.001019677476 | O190: x | P190: x | Q190: x | R190: x
A191: 43351 | B191: 31740 | C191: -262 | D191: 12643 | E191: 146 | F191: 452 | G191: 40 | H191: 1206 | I191: 6 | J191: -0.02072292968 | K191: 1 | L191: 140.9479782 | M191: -0.03187123137 | N191: -0.01114830169 | O191: x | P191: x | Q191: x | R191: x
A192: 43454 | B192: 24220 | C192: 212 | D192: 21001 | E192: 125 | F192: 713 | G192: 27 | H192: 2982 | I192: 8 | J192: 0.01009475739 | K192: 1 | L192: 140.9479782 | M192: 0.003383268501 | N192: -0.006711488891 | O192: x | P192: x | Q192: x | R192: x
A193: 43511 | B193: 29540 | C193: -1354 | D193: 446019 | E193: 7415 | F193: 17232 | G193: 3335 | H193: 38446 | I193: 128 | J193: -0.003035745114 | K193: 4 | L193: 281.8959564 | M193: -0.003667771903 | N193: -0.000632026789 | O193: x | P193: x | Q193: x | R193: x
A194: 43744 | B194: 31540 | C194: -3622 | D194: 91164 | E194: 1765 | F194: 3576 | G194: 5191 | H194: 11460 | I194: 18 | J194: =C194/D194 -> -0.03973059541 | K194: =IF(D194/1000<INDEX(sizeV,1),1,IF(D194/1000<INDEX(sizeV,2),2,IF(D194/1000<INDEX(sizeV,3),3,IF(D194/1000<INDEX(sizeV,4),4,IF(D194/1000<INDEX(sizeV,5),5,6))))) -> 2 | L194: =IF(B194=0,salRural*T$2,salUrban*T$2)*INDEX(nHires,K194) -> 140.9479782 | M194: =(C194-L194)/D194 -> -0.04127668793 | N194: =M194-J194 -> -0.001546092517 | O194: x | P194: x | Q194: x | R194: x
A195: 43856 | B195: 20260 | C195: 44 | D195: 46119 | E195: 292 | F195: 1812 | G195: 15 | H195: 4772 | I195: 16 | J195: 0.0009540536438 | K195: 1 | L195: 140.9479782 | M195: -0.002102126633 | N195: -0.003056180277 | O195: x | P195: x | Q195: x | R195: x
A196: 43959 | B196: 13140 | C196: 1481 | D196: 119240 | E196: 917 | F196: 3973 | G196: 100 | H196: 13223 | I196: 34 | J196: 0.01242032875 | K196: 3 | L196: 281.8959564 | M196: 0.01005622311 | N196: -0.002364105639 | O196: x | P196: x | Q196: x | R196: x
A197: 44040 | B197: 0 | C197: 1717 | D197: 286044 | E197: 3678 | F197: 5849 | G197: 420 | H197: 27223 | I197: 54 | J197: 0.006002573031 | K197: 4 | L197: 187.9306376 | M197: 0.005345573976 | N197: -0.0006569990547 | O197: x | P197: x | Q197: x | R197: x
A198: 44433 | B198: 33124 | C198: -8334 | D198: 252810 | E198: 4047 | F198: 14058 | G198: 3495 | H198: 22478 | I198: 78 | J198: -0.03296546814 | K198: 4 | L198: 281.8959564 | M198: -0.03408051879 | N198: -0.001115050656 | O198: x | P198: x | Q198: x | R198: x
A199: 44741 | B199: 26900 | C199: -1545 | D199: 337544 | E199: 2641 | F199: 13647 | G199: 7569 | H199: 30476 | I199: 134 | J199: -0.004577181049 | K199: 4 | L199: 281.8959564 | M199: -0.00541231945 | N199: -0.000835138401 | O199: x | P199: x | Q199: x | R199: x
A200: 44750 | B200: 0 | C200: 488 | D200: 168897 | E200: 3853 | F200: 5035 | G200: 861 | H200: 14529 | I200: 56 | J200: 0.00288933492 | K200: 3 | L200: 187.9306376 | M200: 0.001776641162 | N200: -0.001112693758 | O200: x | P200: x | Q200: x | R200: x
... 4300 more rows

Sheet 2009 data (hidden)
A1: id.rssd | B1: msa.cd | C1: nt.inc | D1: assets | E1: int.exp | F1: nonint.exp | G1: prov.exp | H1: equity | I1: fte | J1: roa | K1: asset.cohort | L1: addl reg exp | M1: new.roa | N1: delta | O1: newly unprof | P1: roe | Q1: new.roe | R1: delta | T1: 2009
A2: 37 | B2: 0 | C2: 603 | D2: 82141 | E2: 1906 | F2: 2357 | G2: 180 | H2: 16737 | I2: 25 | J2: =C2/D2 -> 0.007341035536 | K2: =IF(D2/1000<INDEX(sizeV,1),1,IF(D2/1000<INDEX(sizeV,2),2,IF(D2/1000<INDEX(sizeV,3),3,IF(D2/1000<INDEX(sizeV,4),4,IF(D2/1000<INDEX(sizeV,5),5,6))))) -> 2 | L2: =IF(B2=0,salRural*T$2,salUrban*T$2)*INDEX(nHires,K2) -> 92.64814957 | M2: =(C2-L2)/D2 -> 0.006213119519 | N2: =M2-J2 -> -0.001127916017 | O2: x | P2: x | Q2: x | R2: x | T2: =VLOOKUP(T1,cpiAdj,2,FALSE) -> 0.9264814957 | W2: Asset | AC2: Change in ROA | AM2: Number
A3: 242 | B3: 0 | C3: 514 | D3: 33370 | E3: 397 | F3: 901 | G3: 0 | H3: 4277 | I3: 13 | J3: 0.01540305664 | K3: 1 | L3: 92.64814957 | M3: 0.01262666618 | N3: -0.002776390458 | O3: x | P3: x | Q3: x | R3: x | V3: Size | W3: Size Max | X3: Addl | Y3: # of | AA3: Median | AB3: x | AC3: 25th pctile | AD3: 50th pctile | AE3: 75th pctile | AF3: Avg | AG3: Original | AH3: Newly | AJ3: Original | AK3: After Change | AM3: of firms
A4: 354 | B4: 0 | C4: 26 | D4: 8530 | E4: 91 | F4: 350 | G4: 0 | H4: 1008 | I4: 4 | J4: 0.003048065651 | K4: 1 | L4: 92.64814957 | M4: -0.00781338213 | N4: -0.01086144778 | O4: x | P4: x | Q4: x | R4: x | V4: Quintile | W4: ($MM) | X4: Hires | Y4: Banks | Z4: % | AA4: FTEs | AB4: x | AC4: (bps) | AD4: (bps) | AE4: (bps) | AF4: (bps) | AG4: Unprof | AH4: Unprof | AI4: Difference | AJ4: ROA < 40 | AK4: ROA < 40 | AL4: Difference | AM4: in the cohort
A5: 457 | B5: 0 | C5: 318 | D5: 35609 | E5: 666 | F5: 920 | G5: 406 | H5: 3245 | I5: 9 | J5: 0.008930326603 | K5: 1 | L5: 92.64814957 | M5: 0.006328508254 | N5: -0.002601818348 | O5: x | P5: x | Q5: x | R5: x | U5: < $50M | V5: 1 | W5: x | X5: x | Y5: x | Z5: x | AA5: x | AB5: x | AC5: =PERCENTILE(IF($K$2:$K$7000=$V5,$N$2:$N$7000),0.25)*10000 -> -46.82285339 | AD5: =PERCENTILE(IF($K$2:$K$7000=$V5,$N$2:$N$7000),0.5)*10000 -> -32.3469573 | AE5: =PERCENTILE(IF($K$2:$K$7000=$V5,$N$2:$N$7000),0.75)*10000 -> -25.08495622 | AF5: =AVERAGE(IF($K$2:$K$7000=$V5,$N$2:$N$7000))*10000 -> -41.78465586 | AG5: =SUM(IF($K$2:$K$7000=$V5,IF($J$2:$J$7000<0,1,0))) -> 218 | AH5: =SUM(IF($K$2:$K$7000=$V5,IF($M$2:$M$7000<0,1,0))) -> 403 | AI5: =IF(INDEX(sizeV,V5)>0,AH5-AG5) -> 185 | AJ5: =SUM(IF($K$2:$K$7000=$V5,IF($J$2:$J$7000<0.004,1,0))) -> 390 | AK5: =SUM(IF($K$2:$K$7000=$V5,IF($M$2:$M$7000<0.004,1,0))) -> 608 | AL5: =IF(INDEX(sizeV,V5)>0,AK5-AJ5) -> 218 | AM5: =COUNTIF($K$2:$K$7000,$V5) -> 1008
A6: 505 | B6: 10580 | C6: 2513 | D6: 365584 | E6: 4750 | F6: 11339 | G6: 900 | H6: 27985 | I6: 110 | J6: 0.006873933214 | K6: 4 | L6: 277.9444487 | M6: 0.006113658014 | N6: -0.0007602752 | O6: x | P6: x | Q6: x | R6: x | U6: $50M - $100M | V6: 2 | W6: x | X6: x | Y6: x | Z6: x | AA6: x | AB6: x | AC6: =PERCENTILE(IF($K$2:$K$7000=$V6,$N$2:$N$7000),0.25)*10000 -> -17.69411393 | AD6: =PERCENTILE(IF($K$2:$K$7000=$V6,$N$2:$N$7000),0.5)*10000 -> -14.96968868 | AE6: =PERCENTILE(IF($K$2:$K$7000=$V6,$N$2:$N$7000),0.75)*10000 -> -11.98622837 | AF6: =AVERAGE(IF($K$2:$K$7000=$V6,$N$2:$N$7000))*10000 -> -15.48573355 | AG6: =SUM(IF($K$2:$K$7000=$V6,IF($J$2:$J$7000<0,1,0))) -> 266 | AH6: =SUM(IF($K$2:$K$7000=$V6,IF($M$2:$M$7000<0,1,0))) -> 332 | AI6: =IF(INDEX(sizeV,V6)>0,AH6-AG6) -> 66 | AJ6: =SUM(IF($K$2:$K$7000=$V6,IF($J$2:$J$7000<0.004,1,0))) -> 439 | AK6: =SUM(IF($K$2:$K$7000=$V6,IF($M$2:$M$7000<0.004,1,0))) -> 538 | AL6: =IF(INDEX(sizeV,V6)>0,AK6-AJ6) -> 99 | AM6: =COUNTIF($K$2:$K$7000,$V6) -> 1254
A7: 1155 | B7: 0 | C7: 2651 | D7: 225212 | E7: 3595 | F7: 5471 | G7: 1420 | H7: 17043 | I7: 52 | J7: 0.0117711312 | K7: 3 | L7: 185.2962991 | M7: 0.01094836732 | N7: -0.0008227638809 | O7: x | P7: x | Q7: x | R7: x | U7: $100M - $250M | V7: 3 | W7: x | X7: x | Y7: x | Z7: x | AA7: x | AB7: x | AC7: =PERCENTILE(IF($K$2:$K$7000=$V7,$N$2:$N$7000),0.25)*10000 -> -17.72500348 | AD7: =PERCENTILE(IF($K$2:$K$7000=$V7,$N$2:$N$7000),0.5)*10000 -> -14.49575534 | AE7: =PERCENTILE(IF($K$2:$K$7000=$V7,$N$2:$N$7000),0.75)*10000 -> -11.53845389 | AF7: =AVERAGE(IF($K$2:$K$7000=$V7,$N$2:$N$7000))*10000 -> -15.05553427 | AG7: =SUM(IF($K$2:$K$7000=$V7,IF($J$2:$J$7000<0,1,0))) -> 467 | AH7: =SUM(IF($K$2:$K$7000=$V7,IF($M$2:$M$7000<0,1,0))) -> 548 | AI7: =IF(INDEX(sizeV,V7)>0,AH7-AG7) -> 81 | AJ7: =SUM(IF($K$2:$K$7000=$V7,IF($J$2:$J$7000<0.004,1,0))) -> 730 | AK7: =SUM(IF($K$2:$K$7000=$V7,IF($M$2:$M$7000<0.004,1,0))) -> 882 | AL7: =IF(INDEX(sizeV,V7)>0,AK7-AJ7) -> 152 | AM7: =COUNTIF($K$2:$K$7000,$V7) -> 1938
A8: 1351 | B8: 0 | C8: 2651 | D8: 138885 | E8: 3155 | F8: 2371 | G8: 292 | H8: 19343 | I8: 28 | J8: 0.01908773446 | K8: 3 | L8: 185.2962991 | M8: 0.01775356375 | N8: -0.001334170711 | O8: x | P8: x | Q8: x | R8: x | U8: $250M - $500M | V8: 4 | W8: x | X8: x | Y8: x | Z8: x | AA8: x | AB8: x | AC8: =PERCENTILE(IF($K$2:$K$7000=$V8,$N$2:$N$7000),0.25)*10000 -> -7.417855544 | AD8: =PERCENTILE(IF($K$2:$K$7000=$V8,$N$2:$N$7000),0.5)*10000 -> -5.743092991 | AE8: =PERCENTILE(IF($K$2:$K$7000=$V8,$N$2:$N$7000),0.75)*10000 -> -4.102405141 | AF8: =AVERAGE(IF($K$2:$K$7000=$V8,$N$2:$N$7000))*10000 -> -5.977660705 | AG8: =SUM(IF($K$2:$K$7000=$V8,IF($J$2:$J$7000<0,1,0))) -> 510 | AH8: =SUM(IF($K$2:$K$7000=$V8,IF($M$2:$M$7000<0,1,0))) -> 538 | AI8: =IF(INDEX(sizeV,V8)>0,AH8-AG8) -> 28 | AJ8: =SUM(IF($K$2:$K$7000=$V8,IF($J$2:$J$7000<0.004,1,0))) -> 756 | AK8: =SUM(IF($K$2:$K$7000=$V8,IF($M$2:$M$7000<0.004,1,0))) -> 797 | AL8: =IF(INDEX(sizeV,V8)>0,AK8-AJ8) -> 41 | AM8: =COUNTIF($K$2:$K$7000,$V8) -> 1552
A9: 1454 | B9: 16220 | C9: 7231 | D9: 460472 | E9: 2475 | F9: 15908 | G9: 600 | H9: 45434 | I9: 149 | J9: 0.01570345211 | K9: 4 | L9: 277.9444487 | M9: 0.0150998444 | N9: -0.0006036077084 | O9: x | P9: x | Q9: x | R9: x | U9: $500M - $1B | V9: 5 | W9: x | X9: x | Y9: x | Z9: x | AA9: x | AB9: x | AC9: =PERCENTILE(IF($K$2:$K$7000=$V9,$N$2:$N$7000),0.25)*10000 ->  | AD9: =PERCENTILE(IF($K$2:$K$7000=$V9,$N$2:$N$7000),0.5)*10000 ->  | AE9: =PERCENTILE(IF($K$2:$K$7000=$V9,$N$2:$N$7000),0.75)*10000 ->  | AF9: =AVERAGE(IF($K$2:$K$7000=$V9,$N$2:$N$7000))*10000 ->  | AG9: =SUM(IF($K$2:$K$7000=$V9,IF($J$2:$J$7000<0,1,0))) -> 0 | AH9: =SUM(IF($K$2:$K$7000=$V9,IF($M$2:$M$7000<0,1,0))) -> 0 | AI9: =IF(INDEX(sizeV,V9)>0,AH9-AG9) -> 0 | AJ9: =SUM(IF($K$2:$K$7000=$V9,IF($J$2:$J$7000<0.004,1,0))) -> 0 | AK9: =SUM(IF($K$2:$K$7000=$V9,IF($M$2:$M$7000<0.004,1,0))) -> 0 | AL9: =IF(INDEX(sizeV,V9)>0,AK9-AJ9) -> 0 | AM9: =COUNTIF($K$2:$K$7000,$V9) -> 0
A10: 1557 | B10: 0 | C10: 525 | D10: 45834 | E10: 521 | F10: 1029 | G10: 0 | H10: 5063 | I10: 11 | J10: 0.01145437885 | K10: 1 | L10: 92.64814957 | M10: 0.009432994075 | N10: -0.00202138477 | O10: x | P10: x | Q10: x | R10: x
A11: 1632 | B11: 0 | C11: -21360 | D11: 777609 | E11: 13332 | F11: 17824 | G11: 31839 | H11: 65236 | I11: 118 | J11: -0.02746881788 | K11: 4 | L11: 185.2962991 | M11: -0.02770710768 | N11: -0.0002382898078 | O11: x | P11: x | Q11: x | R11: x
A12: 1669 | B12: 0 | C12: 3077 | D12: 245262 | E12: 2700 | F12: 5143 | G12: 242 | H12: 42004 | I12: 59 | J12: 0.01254576738 | K12: 3 | L12: 185.2962991 | M12: 0.01179026388 | N12: -0.0007555034989 | O12: x | P12: x | Q12: x | R12: x | W12: Percentiles of ROA (before)
A13: 1829 | B13: 38300 | C13: 2729 | D13: 410683 | E13: 6996 | F13: 11157 | G13: 360 | H13: 40570 | I13: 94 | J13: 0.006645027917 | K13: 4 | L13: 277.9444487 | M13: 0.005968242054 | N13: -0.0006767858633 | O13: x | P13: x | Q13: x | R13: x | V13: Cohort | W13: 25 | X13: 50 | Y13: 75
A14: 1856 | B14: 0 | C14: 3339 | D14: 194976 | E14: 6841 | F14: 1909 | G14: 48 | H14: 15042 | I14: 9 | J14: 0.01712518464 | K14: 3 | L14: 185.2962991 | M14: 0.01617483024 | N14: -0.0009503543982 | O14: x | P14: x | Q14: x | R14: x | V14: 1 | W14: =PERCENTILE(IF($K$2:$K$7000=$V14,$J$2:$J$7000),W$13/100) -> 0.0008872725612 | X14: =PERCENTILE(IF($K$2:$K$7000=$V14,$J$2:$J$7000),X$13/100) -> 0.005839602087 | Y14: =PERCENTILE(IF($K$2:$K$7000=$V14,$J$2:$J$7000),Y$13/100) -> 0.01041647389
A15: 2040 | B15: 0 | C15: 1726 | D15: 221223 | E15: 4629 | F15: 5037 | G15: 599 | H15: 18670 | I15: 46 | J15: 0.007802082062 | K15: 3 | L15: 185.2962991 | M15: 0.006964482449 | N15: -0.0008375996128 | O15: x | P15: x | Q15: x | R15: x | V15: 2 | W15: =PERCENTILE(IF($K$2:$K$7000=$V15,$J$2:$J$7000),W$13/100) -> 0.001151802802 | X15: =PERCENTILE(IF($K$2:$K$7000=$V15,$J$2:$J$7000),X$13/100) -> 0.006838311806 | Y15: =PERCENTILE(IF($K$2:$K$7000=$V15,$J$2:$J$7000),Y$13/100) -> 0.01107485698
A16: 2161 | B16: 0 | C16: 2030 | D16: 124191 | E16: 1515 | F16: 3501 | G16: 47 | H16: 12665 | I16: 32 | J16: 0.01634578995 | K16: 3 | L16: 185.2962991 | M16: 0.01485376316 | N16: -0.00149202679 | O16: x | P16: x | Q16: x | R16: x | V16: 3 | W16: =PERCENTILE(IF($K$2:$K$7000=$V16,$J$2:$J$7000),W$13/100) -> 0.0003149115298 | X16: =PERCENTILE(IF($K$2:$K$7000=$V16,$J$2:$J$7000),X$13/100) -> 0.006325632367 | Y16: =PERCENTILE(IF($K$2:$K$7000=$V16,$J$2:$J$7000),Y$13/100) -> 0.01087508868
A17: 2451 | B17: 0 | C17: -691 | D17: 37789 | E17: 969 | F17: 2149 | G17: 892 | H17: 2805 | I17: 18 | J17: -0.01828574453 | K17: 1 | L17: 92.64814957 | M17: -0.02073746724 | N17: -0.002451722712 | O17: x | P17: x | Q17: x | R17: x | V17: 4 | W17: =PERCENTILE(IF($K$2:$K$7000=$V17,$J$2:$J$7000),W$13/100) -> -0.004575822225 | X17: =PERCENTILE(IF($K$2:$K$7000=$V17,$J$2:$J$7000),X$13/100) -> 0.004269188602 | Y17: =PERCENTILE(IF($K$2:$K$7000=$V17,$J$2:$J$7000),Y$13/100) -> 0.009263734308
A18: 2554 | B18: 0 | C18: 127 | D18: 10370 | E18: 113 | F18: 263 | G18: 38 | H18: 1129 | I18: 4 | J18: 0.01224686596 | K18: 1 | L18: 92.64814957 | M18: 0.003312618171 | N18: -0.008934247789 | O18: x | P18: x | Q18: x | R18: x | V18: 5 | W18: =PERCENTILE(IF($K$2:$K$7000=$V18,$J$2:$J$7000),W$13/100) ->  | X18: =PERCENTILE(IF($K$2:$K$7000=$V18,$J$2:$J$7000),X$13/100) ->  | Y18: =PERCENTILE(IF($K$2:$K$7000=$V18,$J$2:$J$7000),Y$13/100) -> 
A19: 2732 | B19: 16974 | C19: 2425 | D19: 525623 | E19: 5379 | F19: 11951 | G19: 5800 | H19: 72224 | I19: 100 | J19: 0.004613572846 | K19: 4 | L19: 277.9444487 | M19: 0.004084782346 | N19: -0.0005287904995 | O19: x | P19: x | Q19: x | R19: x
A20: 2750 | B20: 0 | C20: 395 | D20: 54962 | E20: 1079 | F20: 1378 | G20: 170 | H20: 5206 | I20: 11 | J20: 0.007186783596 | K20: 2 | L20: 92.64814957 | M20: 0.005501107136 | N20: -0.00168567646 | O20: x | P20: x | Q20: x | R20: x
A21: 2938 | B21: 10500 | C21: -6509 | D21: 611107 | E21: 9398 | F21: 15264 | G21: 20047 | H21: 51088 | I21: 107 | J21: -0.01065116256 | K21: 4 | L21: 277.9444487 | M21: -0.01110598381 | N21: -0.0004548212485 | O21: x | P21: x | Q21: x | R21: x | W21: Percentiles of ROA (after)
A22: 3252 | B22: 0 | C22: 3011 | D22: 151709 | E22: 1626 | F22: 3446 | G22: 550 | H22: 17434 | I22: 34 | J22: 0.01984720748 | K22: 3 | L22: 185.2962991 | M22: 0.01862581456 | N22: -0.001221392924 | O22: x | P22: x | Q22: x | R22: x | V22: Cohort | W22: 25 | X22: 50 | Y22: 75
A23: 3458 | B23: 0 | C23: -683 | D23: 28566 | E23: 488 | F23: 844 | G23: 650 | H23: 2984 | I23: 11 | J23: -0.02390954281 | K23: 1 | L23: 92.64814957 | M23: -0.02715284428 | N23: -0.003243301462 | O23: x | P23: x | Q23: x | R23: x | V23: 1 | W23: =PERCENTILE(IF($K$2:$K$7000=$V23,$M$2:$M$7000),W$13/100) -> -0.00403501693 | X23: =PERCENTILE(IF($K$2:$K$7000=$V23,$M$2:$M$7000),X$13/100) -> 0.002180975725 | Y23: =PERCENTILE(IF($K$2:$K$7000=$V23,$M$2:$M$7000),Y$13/100) -> 0.007145855379
A24: 3720 | B24: 0 | C24: 1815 | D24: 189435 | E24: 2187 | F24: 5985 | G24: 217 | H24: 25940 | I24: 57 | J24: 0.009581122813 | K24: 3 | L24: 185.2962991 | M24: 0.008602970417 | N24: -0.000978152396 | O24: x | P24: x | Q24: x | R24: x | V24: 2 | W24: =PERCENTILE(IF($K$2:$K$7000=$V24,$M$2:$M$7000),W$13/100) -> -0.000414412131 | X24: =PERCENTILE(IF($K$2:$K$7000=$V24,$M$2:$M$7000),X$13/100) -> 0.005344396722 | Y24: =PERCENTILE(IF($K$2:$K$7000=$V24,$M$2:$M$7000),Y$13/100) -> 0.00968961015
A25: 3953 | B25: 36420 | C25: 1116 | D25: 126047 | E25: 1561 | F25: 4614 | G25: 2300 | H25: 9874 | I25: 38 | J25: 0.008853840234 | K25: 3 | L25: 277.9444487 | M25: 0.006648754443 | N25: -0.002205085791 | O25: x | P25: x | Q25: x | R25: x | V25: 3 | W25: =PERCENTILE(IF($K$2:$K$7000=$V25,$M$2:$M$7000),W$13/100) -> -0.001359934095 | X25: =PERCENTILE(IF($K$2:$K$7000=$V25,$M$2:$M$7000),X$13/100) -> 0.004870509198 | Y25: =PERCENTILE(IF($K$2:$K$7000=$V25,$M$2:$M$7000),Y$13/100) -> 0.009395611911
A26: 4138 | B26: 0 | C26: -153 | D26: 187408 | E26: 3181 | F26: 7185 | G26: 2200 | H26: 16196 | I26: 67 | J26: -0.0008164005806 | K26: 3 | L26: 185.2962991 | M26: -0.001805132647 | N26: -0.0009887320666 | O26: x | P26: x | Q26: x | R26: x | V26: 4 | W26: =PERCENTILE(IF($K$2:$K$7000=$V26,$M$2:$M$7000),W$13/100) -> -0.005295123544 | X26: =PERCENTILE(IF($K$2:$K$7000=$V26,$M$2:$M$7000),X$13/100) -> 0.003591371523 | Y26: =PERCENTILE(IF($K$2:$K$7000=$V26,$M$2:$M$7000),Y$13/100) -> 0.008752067839
A27: 4156 | B27: 0 | C27: 352 | D27: 204811 | E27: 2988 | F27: 7070 | G27: 2152 | H27: 18009 | I27: 68 | J27: 0.001718657689 | K27: 3 | L27: 185.2962991 | M27: 0.0008139391969 | N27: -0.0009047184924 | O27: x | P27: x | Q27: x | R27: x | V27: 5 | W27: =PERCENTILE(IF($K$2:$K$7000=$V27,$M$2:$M$7000),W$13/100) ->  | X27: =PERCENTILE(IF($K$2:$K$7000=$V27,$M$2:$M$7000),X$13/100) ->  | Y27: =PERCENTILE(IF($K$2:$K$7000=$V27,$M$2:$M$7000),Y$13/100) -> 
A28: 4231 | B28: 0 | C28: 253 | D28: 127603 | E28: 2872 | F28: 3027 | G28: 833 | H28: 14252 | I28: 34 | J28: 0.001982712005 | K28: 3 | L28: 185.2962991 | M28: 0.0005305807925 | N28: -0.001452131213 | O28: x | P28: x | Q28: x | R28: x
A29: 4437 | B29: 0 | C29: 1079 | D29: 257470 | E29: 4530 | F29: 6555 | G29: 2400 | H29: 24093 | I29: 63 | J29: 0.004190779508 | K29: 4 | L29: 185.2962991 | M29: 0.003471098384 | N29: -0.0007196811246 | O29: x | P29: x | Q29: x | R29: x
A30: 4839 | B30: 16974 | C30: 1216 | D30: 311242 | E30: 6763 | F30: 10943 | G30: 1964 | H30: 26072 | I30: 85 | J30: 0.003906927728 | K30: 4 | L30: 277.9444487 | M30: 0.003013910562 | N30: -0.0008930171658 | O30: x | P30: x | Q30: x | R30: x
A31: 5069 | B31: 31084 | C31: 22161 | D31: 493871 | E31: 10848 | F31: 3652 | G31: 15000 | H31: 102203 | I31: 28 | J31: 0.04487204148 | K31: 4 | L31: 277.9444487 | M31: 0.04430925394 | N31: -0.0005627875472 | O31: x | P31: x | Q31: x | R31: x
A32: 5135 | B32: 0 | C32: 1588 | D32: 292585 | E32: 4843 | F32: 7516 | G32: 1840 | H32: 34844 | I32: 57 | J32: 0.005427482612 | K32: 4 | L32: 185.2962991 | M32: 0.004794175029 | N32: -0.0006333075829 | O32: x | P32: x | Q32: x | R32: x
A33: 5210 | B33: 0 | C33: 6623 | D33: 946510 | E33: 13298 | F33: 25883 | G33: 4750 | H33: 76086 | I33: 244 | J33: 0.006997284762 | K33: 4 | L33: 185.2962991 | M33: 0.006801516836 | N33: -0.0001957679255 | O33: x | P33: x | Q33: x | R33: x
A34: 5331 | B34: 16974 | C34: 1020 | D34: 358400 | E34: 6633 | F34: 9948 | G34: 1675 | H34: 30130 | I34: 71 | J34: 0.002845982143 | K34: 4 | L34: 277.9444487 | M34: 0.002070467498 | N34: -0.0007755146448 | O34: x | P34: x | Q34: x | R34: x
A35: 5461 | B35: 44700 | C35: 5508 | D35: 447668 | E35: 3456 | F35: 15732 | G35: 1515 | H35: 43633 | I35: 134 | J35: 0.01230376082 | K35: 4 | L35: 277.9444487 | M35: 0.011682889 | N35: -0.0006208718262 | O35: x | P35: x | Q35: x | R35: x
A36: 5751 | B36: 0 | C36: 1596 | D36: 120623 | E36: 1205 | F36: 2116 | G36: 764 | H36: 23845 | I36: 19 | J36: 0.01323130746 | K36: 3 | L36: 185.2962991 | M36: 0.01169514687 | N36: -0.001536160592 | O36: x | P36: x | Q36: x | R36: x
A37: 6039 | B37: 0 | C37: -1102 | D37: 84518 | E37: 1406 | F37: 3351 | G37: 1696 | H37: 8483 | I37: 28 | J37: -0.01303864266 | K37: 2 | L37: 92.64814957 | M37: -0.01413483695 | N37: -0.001096194297 | O37: x | P37: x | Q37: x | R37: x
A38: 6141 | B38: 0 | C38: 297 | D38: 47943 | E38: 524 | F38: 1170 | G38: 60 | H38: 4552 | I38: 11 | J38: 0.006194856392 | K38: 1 | L38: 92.64814957 | M38: 0.004262391808 | N38: -0.001932464584 | O38: x | P38: x | Q38: x | R38: x
A39: 6329 | B39: 0 | C39: -830 | D39: 466651 | E39: 9413 | F39: 17893 | G39: 8964 | H39: 35344 | I39: 180 | J39: -0.00177863114 | K39: 4 | L39: 185.2962991 | M39: -0.002175707968 | N39: -0.0003970768286 | O39: x | P39: x | Q39: x | R39: x
A40: 6972 | B40: 38900 | C40: -16655 | D40: 913715 | E40: 10868 | F40: 35275 | G40: 24260 | H40: 86602 | I40: 274 | J40: -0.01822778437 | K40: 4 | L40: 277.9444487 | M40: -0.018531976 | N40: -0.0003041916229 | O40: x | P40: x | Q40: x | R40: x
A41: 7009 | B41: 20764 | C41: 3680 | D41: 588194 | E41: 1738 | F41: 51126 | G41: 0 | H41: 49327 | I41: 68 | J41: 0.006256439202 | K41: 4 | L41: 277.9444487 | M41: 0.005783900467 | N41: -0.000472538735 | O41: x | P41: x | Q41: x | R41: x
A42: 7045 | B42: 0 | C42: 1103 | D42: 120221 | E42: 1371 | F42: 3410 | G42: 298 | H42: 14082 | I42: 48 | J42: 0.009174769799 | K42: 3 | L42: 185.2962991 | M42: 0.007633472529 | N42: -0.00154129727 | O42: x | P42: x | Q42: x | R42: x
A43: 7157 | B43: 0 | C43: 327 | D43: 42787 | E43: 838 | F43: 992 | G43: 0 | H43: 4363 | I43: 8 | J43: 0.007642508238 | K43: 1 | L43: 92.64814957 | M43: 0.005477174152 | N43: -0.002165334087 | O43: x | P43: x | Q43: x | R43: x
A44: 7456 | B44: 0 | C44: 501 | D44: 51471 | E44: 720 | F44: 1569 | G44: 99 | H44: 4691 | I44: 13 | J44: 0.009733636417 | K44: 2 | L44: 92.64814957 | M44: 0.007933629625 | N44: -0.001800006792 | O44: x | P44: x | Q44: x | R44: x
A45: 7634 | B45: 0 | C45: -4037 | D45: 74760 | E45: 2112 | F45: 2015 | G45: 3901 | H45: 3763 | I45: 12 | J45: -0.05399946495 | K45: 2 | L45: 92.64814957 | M45: -0.05523873929 | N45: -0.001239274339 | O45: x | P45: x | Q45: x | R45: x
A46: 8033 | B46: 12940 | C46: 1587 | D46: 128403 | E46: 1861 | F46: 3249 | G46: 12 | H46: 13647 | I46: 34 | J46: 0.01235952431 | K46: 3 | L46: 277.9444487 | M46: 0.01019489849 | N46: -0.002164625816 | O46: x | P46: x | Q46: x | R46: x
A47: 8462 | B47: 0 | C47: 1803 | D47: 119276 | E47: 784 | F47: 2192 | G47: 115 | H47: 14551 | I47: 22 | J47: 0.01511620108 | K47: 3 | L47: 185.2962991 | M47: 0.01356269242 | N47: -0.001553508662 | O47: x | P47: x | Q47: x | R47: x
A48: 8631 | B48: 37620 | C48: 256 | D48: 54950 | E48: 683 | F48: 1824 | G48: 163 | H48: 6399 | I48: 22 | J48: 0.00465878071 | K48: 2 | L48: 138.9722244 | M48: 0.002129713843 | N48: -0.002529066867 | O48: x | P48: x | Q48: x | R48: x
A49: 9357 | B49: 33460 | C49: 7525 | D49: 372708 | E49: 2028 | F49: 8164 | G49: 1925 | H49: 59749 | I49: 49 | J49: 0.02019006836 | K49: 4 | L49: 277.9444487 | M49: 0.01944432519 | N49: -0.0007457431789 | O49: x | P49: x | Q49: x | R49: x
A50: 9553 | B50: 0 | C50: 839 | D50: 88757 | E50: 1363 | F50: 1723 | G50: 100 | H50: 8404 | I50: 14 | J50: 0.009452775556 | K50: 2 | L50: 92.64814957 | M50: 0.008408935075 | N50: -0.001043840481 | O50: x | P50: x | Q50: x | R50: x
A51: 9955 | B51: 0 | C51: 950 | D51: 104266 | E51: 718 | F51: 3178 | G51: 590 | H51: 11495 | I51: 29 | J51: 0.009111311453 | K51: 3 | L51: 185.2962991 | M51: 0.007334161672 | N51: -0.001777149782 | O51: x | P51: x | Q51: x | R51: x
A52: 10157 | B52: 0 | C52: -1572 | D52: 34416 | E52: 435 | F52: 2030 | G52: 2892 | H52: 3616 | I52: 12 | J52: -0.04567642957 | K52: 1 | L52: 92.64814957 | M52: -0.04836843763 | N52: -0.002692008065 | O52: x | P52: x | Q52: x | R52: x
A53: 10250 | B53: 33460 | C53: 267 | D53: 493997 | E53: 11220 | F53: 13114 | G53: 7770 | H53: 41704 | I53: 123 | J53: 0.0005404891123 | K53: 4 | L53: 277.9444487 | M53: -2.215488901e-05 | N53: -0.0005626440013 | O53: x | P53: x | Q53: x | R53: x
A54: 10849 | B54: 30780 | C54: -1081 | D54: 322159 | E54: 5401 | F54: 8131 | G54: 6668 | H54: 26799 | I54: 65 | J54: -0.003355485956 | K54: 4 | L54: 277.9444487 | M54: -0.004218241454 | N54: -0.0008627554987 | O54: x | P54: x | Q54: x | R54: x
A55: 10858 | B55: 0 | C55: 1646 | D55: 423239 | E55: 6108 | F55: 14431 | G55: 12467 | H55: 35913 | I55: 124 | J55: 0.003889055593 | K55: 4 | L55: 185.2962991 | M55: 0.003451250241 | N55: -0.0004378053514 | O55: x | P55: x | Q55: x | R55: x
A56: 11145 | B56: 0 | C56: 1101 | D56: 161738 | E56: 2764 | F56: 5480 | G56: 840 | H56: 16573 | I56: 55 | J56: 0.006807305642 | K56: 3 | L56: 185.2962991 | M56: 0.005661648474 | N56: -0.001145657169 | O56: x | P56: x | Q56: x | R56: x
A57: 11640 | B57: 0 | C57: 3476 | D57: 312203 | E57: 3751 | F57: 8031 | G57: 932 | H57: 27761 | I57: 55 | J57: 0.01113378155 | K57: 4 | L57: 185.2962991 | M57: 0.01054026931 | N57: -0.0005935122313 | O57: x | P57: x | Q57: x | R57: x
A58: 11837 | B58: 0 | C58: 224 | D58: 112226 | E58: 1871 | F58: 2975 | G58: 1300 | H58: 10506 | I58: 18 | J58: 0.001995972413 | K58: 3 | L58: 185.2962991 | M58: 0.0003448728535 | N58: -0.001651099559 | O58: x | P58: x | Q58: x | R58: x
A59: 12030 | B59: 0 | C59: 1118 | D59: 322120 | E59: 7882 | F59: 8528 | G59: 5200 | H59: 33309 | I59: 89 | J59: 0.00347075624 | K59: 4 | L59: 185.2962991 | M59: 0.00289551627 | N59: -0.00057523997 | O59: x | P59: x | Q59: x | R59: x
A60: 12142 | B60: 0 | C60: 1286 | D60: 159142 | E60: 1285 | F60: 5659 | G60: 350 | H60: 18848 | I60: 68 | J60: 0.008080833469 | K60: 3 | L60: 185.2962991 | M60: 0.006916487796 | N60: -0.001164345673 | O60: x | P60: x | Q60: x | R60: x
A61: 12245 | B61: 0 | C61: 712 | D61: 121279 | E61: 1717 | F61: 3707 | G61: 519 | H61: 12708 | I61: 43 | J61: 0.005870760808 | K61: 3 | L61: 185.2962991 | M61: 0.004342909332 | N61: -0.001527851476 | O61: x | P61: x | Q61: x | R61: x
A62: 12647 | B62: 0 | C62: -710 | D62: 100217 | E62: 1640 | F62: 2497 | G62: 1120 | H62: 8819 | I62: 26 | J62: -0.007084626361 | K62: 3 | L62: 185.2962991 | M62: -0.008933577129 | N62: -0.001848950768 | O62: x | P62: x | Q62: x | R62: x
A63: 12656 | B63: 0 | C63: 79 | D63: 14388 | E63: 249 | F63: 687 | G63: 41 | H63: 1240 | I63: 9 | J63: 0.005490686683 | K63: 1 | L63: 92.64814957 | M63: -0.0009485786467 | N63: -0.00643926533 | O63: x | P63: x | Q63: x | R63: x
A64: 12937 | B64: 16974 | C64: 1618 | D64: 199107 | E64: 2117 | F64: 5229 | G64: 72 | H64: 33035 | I64: 40 | J64: 0.008126283857 | K64: 3 | L64: 277.9444487 | M64: 0.006730328674 | N64: -0.001395955183 | O64: x | P64: x | Q64: x | R64: x
A65: 12946 | B65: 0 | C65: 8150 | D65: 647856 | E65: 10182 | F65: 14909 | G65: 3666 | H65: 65707 | I65: 157 | J65: 0.01257995604 | K65: 4 | L65: 185.2962991 | M65: 0.0122939414 | N65: -0.0002860146377 | O65: x | P65: x | Q65: x | R65: x
A66: 12955 | B66: 36540 | C66: 1839 | D66: 136121 | E66: 1857 | F66: 4787 | G66: 175 | H66: 12219 | I66: 53 | J66: =C66/D66 -> 0.01351003886 | K66: =IF(D66/1000<INDEX(sizeV,1),1,IF(D66/1000<INDEX(sizeV,2),2,IF(D66/1000<INDEX(sizeV,3),3,IF(D66/1000<INDEX(sizeV,4),4,IF(D66/1000<INDEX(sizeV,5),5,6))))) -> 3 | L66: =IF(B66=0,salRural*T$2,salUrban*T$2)*INDEX(nHires,K66) -> 277.9444487 | M66: =(C66-L66)/D66 -> 0.01146814636 | N66: =M66-J66 -> -0.002041892498 | O66: x | P66: x | Q66: x | R66: x
A67: 13037 | B67: 0 | C67: -5530 | D67: 158222 | E67: 2214 | F67: 10958 | G67: 565 | H67: 24433 | I67: 53 | J67: -0.03495089178 | K67: 3 | L67: 185.2962991 | M67: -0.03612200768 | N67: -0.001171115895 | O67: x | P67: x | Q67: x | R67: x
A68: 13251 | B68: 0 | C68: 300 | D68: 36573 | E68: 529 | F68: 949 | G68: 325 | H68: 3637 | I68: 8 | J68: 0.008202772537 | K68: 1 | L68: 92.64814957 | M68: 0.005669533547 | N68: -0.00253323899 | O68: x | P68: x | Q68: x | R68: x
A69: 13457 | B69: 0 | C69: 126 | D69: 20155 | E69: 197 | F69: 664 | G69: 21 | H69: 5401 | I69: 4 | J69: 0.006251550484 | K69: 1 | L69: 92.64814957 | M69: 0.001654768069 | N69: -0.004596782415 | O69: x | P69: x | Q69: x | R69: x
A70: 14052 | B70: 0 | C70: 266 | D70: 70493 | E70: 901 | F70: 2145 | G70: 537 | H70: 6621 | I70: 22 | J70: 0.003773424312 | K70: 2 | L70: 92.64814957 | M70: 0.002459135665 | N70: -0.001314288647 | O70: x | P70: x | Q70: x | R70: x
A71: 14155 | B71: 0 | C71: 1401 | D71: 114365 | E71: 1653 | F71: 4529 | G71: 893 | H71: 13239 | I71: 44 | J71: 0.01225025139 | K71: 3 | L71: 185.2962991 | M71: 0.0106300328 | N71: -0.001620218591 | O71: x | P71: x | Q71: x | R71: x
A72: 14454 | B72: 0 | C72: -1916 | D72: 23064 | E72: 421 | F72: 2155 | G72: 889 | H72: 2641 | I72: 7 | J72: -0.08307318765 | K72: 1 | L72: 92.64814957 | M72: -0.08709019032 | N72: -0.004017002669 | O72: x | P72: x | Q72: x | R72: x
A73: 14650 | B73: 0 | C73: 402 | D73: 25935 | E73: 210 | F73: 1211 | G73: 95 | H73: 2763 | I73: 14 | J73: 0.01550028918 | K73: 1 | L73: 92.64814957 | M73: 0.01192796801 | N73: -0.003572321171 | O73: x | P73: x | Q73: x | R73: x
A74: 14753 | B74: 0 | C74: 133 | D74: 36803 | E74: 535 | F74: 974 | G74: 0 | H74: 3280 | I74: 10 | J74: 0.003613835829 | K74: 1 | L74: 92.64814957 | M74: 0.001096428292 | N74: -0.002517407537 | O74: x | P74: x | Q74: x | R74: x
A75: 14865 | B75: 0 | C75: 608 | D75: 240001 | E75: 2411 | F75: 8337 | G75: 4158 | H75: 24033 | I75: 94 | J75: 0.002533322778 | K75: 3 | L75: 185.2962991 | M75: 0.001761258082 | N75: -0.0007720646961 | O75: x | P75: x | Q75: x | R75: x
A76: 16337 | B76: 45220 | C76: -17837 | D76: 467880 | E76: 11223 | F76: 16698 | G76: 29288 | H76: 26063 | I76: 142 | J76: -0.038123023 | K76: 4 | L76: 277.9444487 | M76: -0.03871707371 | N76: -0.0005940507154 | O76: x | P76: x | Q76: x | R76: x
A77: 16458 | B77: 29940 | C77: 2151 | D77: 275717 | E77: 2115 | F77: 9302 | G77: 382 | H77: 31593 | I77: 79 | J77: 0.007801477602 | K77: 4 | L77: 277.9444487 | M77: 0.006793398852 | N77: -0.00100807875 | O77: x | P77: x | Q77: x | R77: x
A78: 16551 | B78: 0 | C78: 901 | D78: 164190 | E78: 3890 | F78: 5578 | G78: 900 | H78: 16256 | I78: 56 | J78: 0.005487544917 | K78: 3 | L78: 185.2962991 | M78: 0.004358996899 | N78: -0.001128548018 | O78: x | P78: x | Q78: x | R78: x
A79: 16748 | B79: 21780 | C79: 548 | D79: 54742 | E79: 834 | F79: 1909 | G79: 120 | H79: 5760 | I79: 17 | J79: 0.01001059516 | K79: 2 | L79: 138.9722244 | M79: 0.00747191874 | N79: -0.002538676416 | O79: x | P79: x | Q79: x | R79: x
A80: 16944 | B80: 28020 | C80: 95 | D80: 34076 | E80: 411 | F80: 1260 | G80: 25 | H80: 4134 | I80: 13 | J80: 0.002787885902 | K80: 1 | L80: 138.9722244 | M80: -0.001290416256 | N80: -0.004078302159 | O80: x | P80: x | Q80: x | R80: x
A81: 16953 | B81: 24220 | C81: 123 | D81: 32901 | E81: 332 | F81: 1009 | G81: 30 | H81: 5209 | I81: 8 | J81: 0.003738488192 | K81: 1 | L81: 138.9722244 | M81: -0.0004854631882 | N81: -0.00422395138 | O81: x | P81: x | Q81: x | R81: x
A82: 17110 | B82: 37964 | C82: 1205 | D82: 109412 | E82: 1166 | F82: 14986 | G82: 161 | H82: 15762 | I82: 56 | J82: 0.01101341718 | K82: 3 | L82: 277.9444487 | M82: 0.00847307015 | N82: -0.002540347025 | O82: x | P82: x | Q82: x | R82: x
A83: 17259 | B83: 0 | C83: 1045 | D83: 64427 | E83: 995 | F83: 2291 | G83: 96 | H83: 7151 | I83: 25 | J83: 0.0162199078 | K83: 2 | L83: 92.64814957 | M83: 0.01478187484 | N83: -0.001438032961 | O83: x | P83: x | Q83: x | R83: x
A84: 17950 | B84: 13740 | C84: 2090 | D84: 259931 | E84: 4246 | F84: 6641 | G84: 529 | H84: 23411 | I84: 76 | J84: 0.008040595389 | K84: 4 | L84: 277.9444487 | M84: 0.006971294502 | N84: -0.001069300886 | O84: x | P84: x | Q84: x | R84: x
A85: 18050 | B85: 12420 | C85: 5122 | D85: 310060 | E85: 2315 | F85: 10363 | G85: 240 | H85: 37632 | I85: 114 | J85: 0.01651938335 | K85: 4 | L85: 277.9444487 | M85: 0.01562296185 | N85: -0.0008964214949 | O85: x | P85: x | Q85: x | R85: x
A86: 18135 | B86: 16974 | C86: 1444 | D86: 237957 | E86: 3221 | F86: 8117 | G86: 290 | H86: 17683 | I86: 52 | J86: 0.006068323268 | K86: 3 | L86: 277.9444487 | M86: 0.004900278417 | N86: -0.001168044851 | O86: x | P86: x | Q86: x | R86: x
A87: 18827 | B87: 38300 | C87: 3264 | D87: 365301 | E87: 3547 | F87: 8509 | G87: 1021 | H87: 38895 | I87: 83 | J87: 0.008935097358 | K87: 4 | L87: 277.9444487 | M87: 0.00817423317 | N87: -0.0007608641879 | O87: x | P87: x | Q87: x | R87: x
A88: 18836 | B88: 0 | C88: 1225 | D88: 159676 | E88: 3319 | F88: 4868 | G88: 691 | H88: 13642 | I88: 47 | J88: 0.007671785365 | K88: 3 | L88: 185.2962991 | M88: 0.006511333581 | N88: -0.001160451784 | O88: x | P88: x | Q88: x | R88: x
A89: 18854 | B89: 36420 | C89: 1281 | D89: 111276 | E89: 2392 | F89: 2912 | G89: 348 | H89: 8808 | I89: 30 | J89: 0.01151191632 | K89: 3 | L89: 277.9444487 | M89: 0.009014123003 | N89: -0.002497793313 | O89: x | P89: x | Q89: x | R89: x
A90: 18957 | B90: 45820 | C90: -1608 | D90: 35272 | E90: 1023 | F90: 1648 | G90: 2631 | H90: 1155 | I90: 10 | J90: -0.04558856884 | K90: 1 | L90: 138.9722244 | M90: -0.04952858427 | N90: -0.003940015433 | O90: x | P90: x | Q90: x | R90: x
A91: 19356 | B91: 0 | C91: 238 | D91: 80088 | E91: 1086 | F91: 2551 | G91: 729 | H91: 7994 | I91: 27 | J91: 0.002971731096 | K91: 2 | L91: 92.64814957 | M91: 0.001814901738 | N91: -0.001156829357 | O91: x | P91: x | Q91: x | R91: x
A92: 19936 | B92: 0 | C92: 1335 | D92: 228866 | E92: 3644 | F92: 6325 | G92: 2450 | H92: 18460 | I92: 55 | J92: 0.005833107583 | K92: 3 | L92: 185.2962991 | M92: 0.005023479682 | N92: -0.0008096279008 | O92: x | P92: x | Q92: x | R92: x
A93: 20053 | B93: 20740 | C93: -657 | D93: 76715 | E93: 1530 | F93: 2493 | G93: 1567 | H93: 7961 | I93: 20 | J93: -0.008564166069 | K93: 2 | L93: 138.9722244 | M93: -0.0103757052 | N93: -0.00181153913 | O93: x | P93: x | Q93: x | R93: x
A94: 20370 | B94: 42644 | C94: -6215 | D94: 215975 | E94: 4780 | F94: 8260 | G94: 8687 | H94: 15054 | I94: 61 | J94: -0.02877647876 | K94: 3 | L94: 277.9444487 | M94: -0.03006340756 | N94: -0.001286928805 | O94: x | P94: x | Q94: x | R94: x
A95: 20512 | B95: 0 | C95: 635 | D95: 108098 | E95: 2395 | F95: 2715 | G95: 108 | H95: 9072 | I95: 26 | J95: 0.005874299247 | K95: 3 | L95: 185.2962991 | M95: 0.004160148207 | N95: -0.00171415104 | O95: x | P95: x | Q95: x | R95: x
A96: 20633 | B96: 0 | C96: 1313 | D96: 299873 | E96: 6727 | F96: 8309 | G96: 360 | H96: 24614 | I96: 86 | J96: 0.00437852024 | K96: 4 | L96: 185.2962991 | M96: 0.003760604325 | N96: -0.0006179159149 | O96: x | P96: x | Q96: x | R96: x
A97: 20857 | B97: 0 | C97: 4390 | D97: 183293 | E97: 703 | F97: 2637 | G97: 65 | H97: 15249 | I97: 17 | J97: 0.0239507237 | K97: 3 | L97: 185.2962991 | M97: 0.02293979421 | N97: -0.001010929491 | O97: x | P97: x | Q97: x | R97: x
A98: 20866 | B98: 0 | C98: -4722 | D98: 257515 | E98: 5307 | F98: 6802 | G98: 6161 | H98: 12981 | I98: 58 | J98: -0.01833679591 | K98: 4 | L98: 185.2962991 | M98: -0.01905635128 | N98: -0.0007195553624 | O98: x | P98: x | Q98: x | R98: x
A99: 21256 | B99: 48620 | C99: -135 | D99: 8482 | E99: 135 | F99: 426 | G99: 129 | H99: 1041 | I99: 5 | J99: -0.01591605753 | K99: 1 | L99: 138.9722244 | M99: -0.0323004273 | N99: -0.01638436977 | O99: x | P99: x | Q99: x | R99: x
A100: 21359 | B100: 0 | C100: 385 | D100: 24123 | E100: 351 | F100: 848 | G100: 0 | H100: 2319 | I100: 7 | J100: 0.01595987232 | K100: 1 | L100: 92.64814957 | M100: 0.01211921612 | N100: -0.003840656202 | O100: x | P100: x | Q100: x | R100: x
A101: 21630 | B101: 29180 | C101: 1444 | D101: 74968 | E101: 932 | F101: 1831 | G101: 0 | H101: 8326 | I101: 25 | J101: 0.0192615516 | K101: 2 | L101: 138.9722244 | M101: 0.01740779767 | N101: -0.001853753926 | O101: x | P101: x | Q101: x | R101: x
A102: 21658 | B102: 0 | C102: 1428 | D102: 137731 | E102: 2555 | F102: 3715 | G102: 160 | H102: 13888 | I102: 42 | J102: 0.01036803624 | K102: 3 | L102: 185.2962991 | M102: 0.009022686983 | N102: -0.001345349262 | O102: x | P102: x | Q102: x | R102: x
A103: 22048 | B103: 0 | C103: 1042 | D103: 188178 | E103: 3152 | F103: 7096 | G103: 664 | H103: 18003 | I103: 66 | J103: 0.005537310419 | K103: 3 | L103: 185.2962991 | M103: 0.004552624116 | N103: -0.0009846863031 | O103: x | P103: x | Q103: x | R103: x
A104: 22356 | B104: 0 | C104: 4083 | D104: 295953 | E104: 660 | F104: 2158 | G104: 1683 | H104: 31364 | I104: 75 | J104: 0.01379610952 | K104: 4 | L104: 185.2962991 | M104: 0.01317000909 | N104: -0.0006261004252 | O104: x | P104: x | Q104: x | R104: x
A105: 22459 | B105: 28140 | C105: 862 | D105: 106249 | E105: 1684 | F105: 3827 | G105: 133 | H105: 10187 | I105: 42 | J105: 0.008113017534 | K105: 3 | L105: 277.9444487 | M105: 0.005497045161 | N105: -0.002615972373 | O105: x | P105: x | Q105: x | R105: x
A106: 22543 | B106: 0 | C106: 957 | D106: 86516 | E106: 773 | F106: 2274 | G106: 210 | H106: 12279 | I106: 23 | J106: 0.01106153775 | K106: 2 | L106: 92.64814957 | M106: 0.009990658958 | N106: -0.001070878792 | O106: x | P106: x | Q106: x | R106: x
A107: 22552 | B107: 0 | C107: 720 | D107: 54187 | E107: 954 | F107: 1666 | G107: 20 | H107: 4689 | I107: 13 | J107: 0.01328731984 | K107: 2 | L107: 92.64814957 | M107: 0.01157753429 | N107: -0.001709785549 | O107: x | P107: x | Q107: x | R107: x
A108: 22730 | B108: 0 | C108: 680 | D108: 102514 | E108: 1219 | F108: 3927 | G108: 77 | H108: 11746 | I108: 48 | J108: 0.006633240338 | K108: 3 | L108: 185.2962991 | M108: 0.004825718447 | N108: -0.001807521891 | O108: x | P108: x | Q108: x | R108: x
A109: 22936 | B109: 0 | C109: -1007 | D109: 318185 | E109: 8696 | F109: 8278 | G109: 3155 | H109: 23719 | I109: 75 | J109: -0.003164825495 | K109: 4 | L109: 185.2962991 | M109: -0.003747179468 | N109: -0.0005823539738 | O109: x | P109: x | Q109: x | R109: x
A110: 22954 | B110: 22020 | C110: 503 | D110: 94047 | E110: 1526 | F110: 2522 | G110: 432 | H110: 7736 | I110: 21 | J110: 0.005348389635 | K110: 2 | L110: 138.9722244 | M110: 0.003870700561 | N110: -0.001477689074 | O110: x | P110: x | Q110: x | R110: x
A111: 23036 | B111: 47580 | C111: -21211 | D111: 531106 | E111: 9513 | F111: 14003 | G111: 22205 | H111: 59588 | I111: 85 | J111: -0.03993741362 | K111: 4 | L111: 277.9444487 | M111: -0.04046074503 | N111: -0.0005233314041 | O111: x | P111: x | Q111: x | R111: x
A112: 23045 | B112: 0 | C112: 264 | D112: 36663 | E112: 191 | F112: 1154 | G112: 0 | H112: 7777 | I112: 14 | J112: 0.007200720072 | K112: 1 | L112: 92.64814957 | M112: 0.004673699654 | N112: -0.002527020418 | O112: x | P112: x | Q112: x | R112: x
A113: 23456 | B113: 0 | C113: 1006 | D113: 88657 | E113: 1544 | F113: 2781 | G113: 501 | H113: 9393 | I113: 23 | J113: 0.01134710175 | K113: 2 | L113: 92.64814957 | M113: 0.01030208388 | N113: -0.001045017873 | O113: x | P113: x | Q113: x | R113: x
A114: 23504 | B114: 35004 | C114: 8918 | D114: 894634 | E114: 7625 | F114: 24730 | G114: 4150 | H114: 71549 | I114: 179 | J114: 0.009968322241 | K114: 4 | L114: 277.9444487 | M114: 0.009657642736 | N114: -0.0003106795055 | O114: x | P114: x | Q114: x | R114: x
A115: 23540 | B115: 16974 | C115: 1236 | D115: 198434 | E115: 2099 | F115: 4892 | G115: 434 | H115: 28139 | I115: 42 | J115: 0.006228771279 | K115: 3 | L115: 277.9444487 | M115: 0.004828081636 | N115: -0.001400689643 | O115: x | P115: x | Q115: x | R115: x
A116: 23643 | B116: 0 | C116: 1850 | D116: 147992 | E116: 2571 | F116: 4628 | G116: 825 | H116: 14006 | I116: 42 | J116: 0.01250067571 | K116: 3 | L116: 185.2962991 | M116: 0.01124860601 | N116: -0.001252069701 | O116: x | P116: x | Q116: x | R116: x
A117: 23755 | B117: 33460 | C117: 540 | D117: 153205 | E117: 2641 | F117: 5776 | G117: 1104 | H117: 13881 | I117: 55 | J117: 0.003524689142 | K117: 3 | L117: 277.9444487 | M117: 0.001710489549 | N117: -0.001814199593 | O117: x | P117: x | Q117: x | R117: x
A118: 24453 | B118: 0 | C118: 1129 | D118: 338897 | E118: 6477 | F118: 9880 | G118: 1860 | H118: 34079 | I118: 52 | J118: 0.003331395675 | K118: 4 | L118: 185.2962991 | M118: 0.002784632797 | N118: -0.0005467628782 | O118: x | P118: x | Q118: x | R118: x
A119: 24659 | B119: 0 | C119: 387 | D119: 36377 | E119: 480 | F119: 934 | G119: 204 | H119: 4396 | I119: 9 | J119: 0.01063859032 | K119: 1 | L119: 92.64814957 | M119: 0.008091702186 | N119: -0.002546888132 | O119: x | P119: x | Q119: x | R119: x
A120: 24668 | B120: 0 | C120: 1278 | D120: 198211 | E120: 2607 | F120: 6392 | G120: 1216 | H120: 18980 | I120: 69 | J120: 0.006447674448 | K120: 3 | L120: 185.2962991 | M120: 0.005512830776 | N120: -0.0009348436723 | O120: x | P120: x | Q120: x | R120: x
A121: 24855 | B121: 0 | C121: 36 | D121: 12027 | E121: 124 | F121: 414 | G121: 0 | H121: 904 | I121: 4 | J121: 0.002993265153 | K121: 1 | L121: 92.64814957 | M121: -0.004710081447 | N121: -0.007703346601 | O121: x | P121: x | Q121: x | R121: x
A122: 24949 | B122: 0 | C122: -7615 | D122: 774425 | E122: 12545 | F122: 21042 | G122: 23151 | H122: 74158 | I122: 212 | J122: -0.009833101979 | K122: 4 | L122: 185.2962991 | M122: -0.0100723715 | N122: -0.0002392695214 | O122: x | P122: x | Q122: x | R122: x
A123: 25357 | B123: 36420 | C123: 1520 | D123: 132816 | E123: 2908 | F123: 3959 | G123: 239 | H123: 11396 | I123: 52 | J123: 0.01144440429 | K123: 3 | L123: 277.9444487 | M123: 0.009351701235 | N123: -0.002092703053 | O123: x | P123: x | Q123: x | R123: x
A124: 25647 | B124: 16974 | C124: -1387 | D124: 73398 | E124: 2064 | F124: 2919 | G124: 1184 | H124: 4834 | I124: 22 | J124: -0.01889697267 | K124: 2 | L124: 138.9722244 | M124: -0.02079037882 | N124: -0.001893406147 | O124: x | P124: x | Q124: x | R124: x
A125: 26149 | B125: 0 | C125: 821 | D125: 77053 | E125: 1230 | F125: 1755 | G125: 53 | H125: 6910 | I125: 16 | J125: 0.0106550037 | K125: 2 | L125: 92.64814957 | M125: 0.0094526086 | N125: -0.001202395099 | O125: x | P125: x | Q125: x | R125: x
A126: 26242 | B126: 0 | C126: 5219 | D126: 394419 | E126: 4035 | F126: 11766 | G126: 0 | H126: 55936 | I126: 133 | J126: 0.01323212117 | K126: 4 | L126: 185.2962991 | M126: 0.0127623256 | N126: -0.0004697955705 | O126: x | P126: x | Q126: x | R126: x
A127: 26457 | B127: 0 | C127: 142 | D127: 24098 | E127: 338 | F127: 778 | G127: 0 | H127: 2972 | I127: 7 | J127: 0.005892605195 | K127: 1 | L127: 92.64814957 | M127: 0.002047964579 | N127: -0.003844640616 | O127: x | P127: x | Q127: x | R127: x
A128: 26765 | B128: 0 | C128: -15112 | D128: 256804 | E128: 5748 | F128: 15606 | G128: 8883 | H128: 22242 | I128: 97 | J128: -0.05884643541 | K128: 4 | L128: 185.2962991 | M128: -0.05956798297 | N128: -0.0007215475582 | O128: x | P128: x | Q128: x | R128: x
A129: 26859 | B129: 26420 | C129: -1603 | D129: 400707 | E129: 5425 | F129: 13755 | G129: 3065 | H129: 40130 | I129: 107 | J129: -0.004000429241 | K129: 4 | L129: 277.9444487 | M129: -0.004694064363 | N129: -0.0006936351217 | O129: x | P129: x | Q129: x | R129: x
A130: 26916 | B130: 0 | C130: 992 | D130: 486231 | E130: 9487 | F130: 13163 | G130: 5900 | H130: 41930 | I130: 97 | J130: =C130/D130 -> 0.002040182547 | K130: =IF(D130/1000<INDEX(sizeV,1),1,IF(D130/1000<INDEX(sizeV,2),2,IF(D130/1000<INDEX(sizeV,3),3,IF(D130/1000<INDEX(sizeV,4),4,IF(D130/1000<INDEX(sizeV,5),5,6))))) -> 4 | L130: =IF(B130=0,salRural*T$2,salUrban*T$2)*INDEX(nHires,K130) -> 185.2962991 | M130: =(C130-L130)/D130 -> 0.001659095576 | N130: =M130-J130 -> -0.0003810869713 | O130: x | P130: x | Q130: x | R130: x
A131: 27548 | B131: 27500 | C131: 2482 | D131: 522804 | E131: 9576 | F131: 18072 | G131: 4090 | H131: 49867 | I131: 152 | J131: 0.004747477066 | K131: 4 | L131: 277.9444487 | M131: 0.004215835287 | N131: -0.0005316417792 | O131: x | P131: x | Q131: x | R131: x
A132: 27614 | B132: 0 | C132: 3718 | D132: 279131 | E132: 3429 | F132: 8551 | G132: 468 | H132: 25098 | I132: 89 | J132: 0.01331991072 | K132: 4 | L132: 185.2962991 | M132: 0.01265607797 | N132: -0.0006638327493 | O132: x | P132: x | Q132: x | R132: x
A133: 27847 | B133: 0 | C133: 6439 | D133: 459685 | E133: 8555 | F133: 12226 | G133: 1635 | H133: 41776 | I133: 142 | J133: 0.01400741812 | K133: 4 | L133: 185.2962991 | M133: 0.01360432405 | N133: -0.0004030940734 | O133: x | P133: x | Q133: x | R133: x
A134: 28152 | B134: 41060 | C134: 1311 | D134: 70617 | E134: 1054 | F134: 1803 | G134: 13 | H134: 6203 | I134: 18 | J134: 0.01856493479 | K134: 2 | L134: 138.9722244 | M134: 0.01659696356 | N134: -0.00196797123 | O134: x | P134: x | Q134: x | R134: x
A135: 28255 | B135: 0 | C135: 441 | D135: 192406 | E135: 2139 | F135: 5403 | G135: 1108 | H135: 12925 | I135: 54 | J135: 0.002292028315 | K135: 3 | L135: 185.2962991 | M135: 0.00132897987 | N135: -0.0009630484452 | O135: x | P135: x | Q135: x | R135: x
A136: 28349 | B136: 22900 | C136: 1736 | D136: 174126 | E136: 2541 | F136: 4808 | G136: 550 | H136: 15495 | I136: 55 | J136: 0.00996979199 | K136: 3 | L136: 277.9444487 | M136: 0.008373565988 | N136: -0.001596226001 | O136: x | P136: x | Q136: x | R136: x
A137: 28732 | B137: 0 | C137: 212 | D137: 77560 | E137: 1005 | F137: 2831 | G137: 206 | H137: 8096 | I137: 23 | J137: 0.002733367715 | K137: 2 | L137: 92.64814957 | M137: 0.001538832522 | N137: -0.001194535193 | O137: x | P137: x | Q137: x | R137: x
A138: 29636 | B138: 0 | C138: 7275 | D138: 839863 | E138: 11341 | F138: 25604 | G138: 3013 | H138: 73370 | I138: 268 | J138: 0.008662127037 | K138: 4 | L138: 185.2962991 | M138: 0.008441500222 | N138: -0.0002206268155 | O138: x | P138: x | Q138: x | R138: x
A139: 29953 | B139: 36540 | C139: 1621 | D139: 83750 | E139: 1631 | F139: 2086 | G139: 130 | H139: 8608 | I139: 21 | J139: 0.01935522388 | K139: 2 | L139: 138.9722244 | M139: 0.01769585404 | N139: -0.001659369843 | O139: x | P139: x | Q139: x | R139: x
A140: 30052 | B140: 0 | C140: 224 | D140: 18848 | E140: 212 | F140: 1358 | G140: 6 | H140: 2628 | I140: 12 | J140: 0.01188455008 | K140: 1 | L140: 92.64814957 | M140: 0.006969007345 | N140: -0.00491554274 | O140: x | P140: x | Q140: x | R140: x
A141: 30258 | B141: 33460 | C141: -19823 | D141: 480292 | E141: 10001 | F141: 23057 | G141: 19483 | H141: 29390 | I141: 119 | J141: -0.04127280904 | K141: 4 | L141: 277.9444487 | M141: -0.04185150793 | N141: -0.000578698893 | O141: x | P141: x | Q141: x | R141: x
A142: 30502 | B142: 0 | C142: 2268 | D142: 801792 | E142: 13042 | F142: 24796 | G142: 2110 | H142: 64660 | I142: 209 | J142: 0.002828663793 | K142: 4 | L142: 185.2962991 | M142: 0.002597561089 | N142: -0.0002311027039 | O142: x | P142: x | Q142: x | R142: x
A143: 30650 | B143: 33460 | C143: -1637 | D143: 146268 | E143: 3117 | F143: 6613 | G143: 1446 | H143: 13210 | I143: 33 | J143: -0.01119178494 | K143: 3 | L143: 277.9444487 | M143: -0.01309202593 | N143: -0.001900240987 | O143: x | P143: x | Q143: x | R143: x
A144: 31134 | B144: 12260 | C144: 1096 | D144: 101676 | E144: 1727 | F144: 3469 | G144: 147 | H144: 13558 | I144: 38 | J144: 0.01077933829 | K144: 3 | L144: 277.9444487 | M144: 0.008045709423 | N144: -0.002733628867 | O144: x | P144: x | Q144: x | R144: x
A145: 31255 | B145: 26420 | C145: 944 | D145: 364124 | E145: 5744 | F145: 12245 | G145: 510 | H145: 31619 | I145: 91 | J145: 0.002592523426 | K145: 4 | L145: 277.9444487 | M145: 0.001829199809 | N145: -0.000763323617 | O145: x | P145: x | Q145: x | R145: x
A146: 31657 | B146: 0 | C146: 1100 | D146: 95295 | E146: 1435 | F146: 3135 | G146: 180 | H146: 10031 | I146: 31 | J146: 0.011543103 | K146: 2 | L146: 92.64814957 | M146: 0.01057087833 | N146: -0.0009722246662 | O146: x | P146: x | Q146: x | R146: x
A147: 31826 | B147: 0 | C147: 406 | D147: 239771 | E147: 3963 | F147: 6402 | G147: 710 | H147: 35481 | I147: 76 | J147: 0.00169328234 | K147: 3 | L147: 185.2962991 | M147: 0.0009204770421 | N147: -0.0007728052981 | O147: x | P147: x | Q147: x | R147: x
A148: 31835 | B148: 0 | C148: 475 | D148: 110747 | E148: 1224 | F148: 3456 | G148: 1300 | H148: 10375 | I148: 27 | J148: 0.004289055234 | K148: 3 | L148: 185.2962991 | M148: 0.002615905631 | N148: -0.001673149603 | O148: x | P148: x | Q148: x | R148: x
A149: 32234 | B149: 0 | C149: 497 | D149: 101496 | E149: 933 | F149: 2500 | G149: 12 | H149: 11034 | I149: 24 | J149: 0.004896744699 | K149: 3 | L149: 185.2962991 | M149: 0.003071093451 | N149: -0.001825651249 | O149: x | P149: x | Q149: x | R149: x
A150: 32766 | B150: 19124 | C150: 262 | D150: 49019 | E150: 304 | F150: 1627 | G150: 60 | H150: 4442 | I150: 15 | J150: 0.005344866276 | K150: 1 | L150: 138.9722244 | M150: 0.002509797745 | N150: -0.002835068532 | O150: x | P150: x | Q150: x | R150: x
A151: 33147 | B151: 0 | C151: 144 | D151: 397868 | E151: 8313 | F151: 11759 | G151: 4963 | H151: 31229 | I151: 101 | J151: 0.000361929082 | K151: 4 | L151: 185.2962991 | M151: -0.0001037939697 | N151: -0.0004657230517 | O151: x | P151: x | Q151: x | R151: x
A152: 33259 | B152: 33460 | C152: 441 | D152: 615687 | E152: 12386 | F152: 13203 | G152: 7313 | H152: 52944 | I152: 88 | J152: 0.0007162730413 | K152: 4 | L152: 277.9444487 | M152: 0.0002648351375 | N152: -0.0004514379038 | O152: x | P152: x | Q152: x | R152: x
A153: 33268 | B153: 0 | C153: 1322 | D153: 108348 | E153: 1056 | F153: 3938 | G153: 0 | H153: 11732 | I153: 38 | J153: 0.01220142504 | K153: 3 | L153: 185.2962991 | M153: 0.0104912292 | N153: -0.001710195842 | O153: x | P153: x | Q153: x | R153: x
A154: 33549 | B154: 31540 | C154: -740 | D154: 45574 | E154: 776 | F154: 1564 | G154: 1073 | H154: 3238 | I154: 11 | J154: -0.0162373283 | K154: 1 | L154: 138.9722244 | M154: -0.01928670348 | N154: -0.003049375178 | O154: x | P154: x | Q154: x | R154: x
A155: 33727 | B155: 0 | C155: -3724 | D155: 349330 | E155: 4883 | F155: 13382 | G155: 5669 | H155: 30515 | I155: 111 | J155: -0.01066040706 | K155: 4 | L155: 185.2962991 | M155: -0.01119084046 | N155: -0.0005304333986 | O155: x | P155: x | Q155: x | R155: x
A156: 33754 | B156: 0 | C156: 248 | D156: 33661 | E156: 314 | F156: 861 | G156: 35 | H156: 4065 | I156: 10 | J156: 0.007367576721 | K156: 1 | L156: 92.64814957 | M156: 0.004615188213 | N156: -0.002752388508 | O156: x | P156: x | Q156: x | R156: x
A157: 33839 | B157: 14060 | C157: 307 | D157: 28287 | E157: 396 | F157: 818 | G157: 25 | H157: 3055 | I157: 7 | J157: 0.01085304203 | K157: 1 | L157: 138.9722244 | M157: 0.005940105902 | N157: -0.004912936132 | O157: x | P157: x | Q157: x | R157: x
A158: 33857 | B158: 0 | C158: 796 | D158: 93195 | E158: 2132 | F158: 1849 | G158: 45 | H158: 10375 | I158: 27 | J158: 0.008541230753 | K158: 2 | L158: 92.64814957 | M158: 0.007547098561 | N158: -0.0009941321913 | O158: x | P158: x | Q158: x | R158: x
A159: 34153 | B159: 33460 | C159: -27743 | D159: 605453 | E159: 11807 | F159: 40918 | G159: 14050 | H159: 36545 | I159: 210 | J159: -0.04582188873 | K159: 4 | L159: 277.9444487 | M159: -0.04628095731 | N159: -0.0004590685796 | O159: x | P159: x | Q159: x | R159: x
A160: 34359 | B160: 0 | C160: 425 | D160: 30969 | E160: 435 | F160: 656 | G160: 0 | H160: 5831 | I160: 6 | J160: 0.01372340082 | K160: 1 | L160: 92.64814957 | M160: 0.01073175919 | N160: -0.002991641628 | O160: x | P160: x | Q160: x | R160: x
A161: 34425 | B161: 0 | C161: 336 | D161: 329194 | E161: 6235 | F161: 11699 | G161: 2102 | H161: 25843 | I161: 116 | J161: 0.001020674739 | K161: 4 | L161: 185.2962991 | M161: 0.0004577960135 | N161: -0.0005628787254 | O161: x | P161: x | Q161: x | R161: x
A162: 34434 | B162: 0 | C162: 2016 | D162: 213366 | E162: 3149 | F162: 6428 | G162: 223 | H162: 17951 | I162: 75 | J162: 0.00944855319 | K162: 3 | L162: 185.2962991 | M162: 0.008580109768 | N162: -0.0008684434218 | O162: x | P162: x | Q162: x | R162: x
A163: 34452 | B163: 0 | C163: 1017 | D163: 92304 | E163: 1623 | F163: 2733 | G163: 100 | H163: 10583 | I163: 28 | J163: 0.01101794072 | K163: 2 | L163: 92.64814957 | M163: 0.01001421228 | N163: -0.001003728436 | O163: x | P163: x | Q163: x | R163: x
A164: 34555 | B164: 0 | C164: 1978 | D164: 186054 | E164: 3293 | F164: 4074 | G164: 341 | H164: 19566 | I164: 39 | J164: 0.01063132209 | K164: 3 | L164: 185.2962991 | M164: 0.009635394568 | N164: -0.0009959275218 | O164: x | P164: x | Q164: x | R164: x
A165: 34742 | B165: 0 | C165: -2545 | D165: 280800 | E165: 5478 | F165: 11788 | G165: 2348 | H165: 22185 | I165: 99 | J165: -0.009063390313 | K165: 4 | L165: 185.2962991 | M165: -0.009723277419 | N165: -0.0006598871052 | O165: x | P165: x | Q165: x | R165: x
A166: 34836 | B166: 12060 | C166: 60 | D166: 31810 | E166: 615 | F166: 980 | G166: 10 | H166: 2402 | I166: 10 | J166: 0.001886199308 | K166: 1 | L166: 138.9722244 | M166: -0.002482622583 | N166: -0.004368821891 | O166: x | P166: x | Q166: x | R166: x
A167: 35057 | B167: 0 | C167: 581 | D167: 99199 | E167: 2559 | F167: 4123 | G167: 401 | H167: 9224 | I167: 38 | J167: 0.00585691388 | K167: 2 | L167: 92.64814957 | M167: 0.004922951345 | N167: -0.0009339625356 | O167: x | P167: x | Q167: x | R167: x
A168: 35646 | B168: 0 | C168: 636 | D168: 50792 | E168: 594 | F168: 1040 | G168: 0 | H168: 10862 | I168: 8 | J168: 0.01252165695 | K168: 2 | L168: 92.64814957 | M168: 0.01069758723 | N168: -0.001824069727 | O168: x | P168: x | Q168: x | R168: x
A169: 35842 | B169: 0 | C169: 1271 | D169: 136270 | E169: 2780 | F169: 3435 | G169: 853 | H169: 9963 | I169: 34 | J169: 0.009327071256 | K169: 3 | L169: 185.2962991 | M169: 0.007967298018 | N169: -0.001359773238 | O169: x | P169: x | Q169: x | R169: x
A170: 36344 | B170: 0 | C170: 4157 | D170: 421880 | E170: 6452 | F170: 13939 | G170: 945 | H170: 37656 | I170: 132 | J170: 0.009853512847 | K170: 4 | L170: 185.2962991 | M170: 0.009414297196 | N170: -0.0004392156517 | O170: x | P170: x | Q170: x | R170: x
A171: 36456 | B171: 0 | C171: 1010 | D171: 89471 | E171: 1761 | F171: 2680 | G171: 160 | H171: 8735 | I171: 20 | J171: 0.01128857395 | K171: 2 | L171: 92.64814957 | M171: 0.01025306357 | N171: -0.001035510384 | O171: x | P171: x | Q171: x | R171: x
A172: 36858 | B172: 28140 | C172: 1239 | D172: 229719 | E172: 2406 | F172: 7164 | G172: 2589 | H172: 21202 | I172: 48 | J172: 0.005393546028 | K172: 3 | L172: 277.9444487 | M172: 0.004183613681 | N172: -0.001209932347 | O172: x | P172: x | Q172: x | R172: x
A173: 36933 | B173: 0 | C173: -2956 | D173: 107108 | E173: 2028 | F173: 4285 | G173: 2857 | H173: 8672 | I173: 38 | J173: -0.02759831198 | K173: 3 | L173: 185.2962991 | M173: -0.02932830693 | N173: -0.00172999495 | O173: x | P173: x | Q173: x | R173: x
A174: 37051 | B174: 0 | C174: 170 | D174: 59432 | E174: 1063 | F174: 1995 | G174: 343 | H174: 6624 | I174: 23 | J174: 0.002860411899 | K174: 2 | L174: 92.64814957 | M174: 0.001301518549 | N174: -0.00155889335 | O174: x | P174: x | Q174: x | R174: x
A175: 37341 | B175: 0 | C175: 402 | D175: 31157 | E175: 577 | F175: 1251 | G175: 108 | H175: 2927 | I175: 12 | J175: 0.01290239754 | K175: 1 | L175: 92.64814957 | M175: 0.009928807344 | N175: -0.002973590191 | O175: x | P175: x | Q175: x | R175: x
A176: 37378 | B176: 49420 | C176: 1758 | D176: 154111 | E176: 2110 | F176: 4324 | G176: 980 | H176: 13505 | I176: 40 | J176: 0.01140736223 | K176: 3 | L176: 277.9444487 | M176: 0.009603828093 | N176: -0.001803534133 | O176: x | P176: x | Q176: x | R176: x
A177: 37435 | B177: 12060 | C177: 15584 | D177: 895898 | E177: 13397 | F177: 28850 | G177: 11072 | H177: 89974 | I177: 340 | J177: 0.01739483736 | K177: 4 | L177: 277.9444487 | M177: 0.01708459618 | N177: -0.0003102411756 | O177: x | P177: x | Q177: x | R177: x
A178: 37659 | B178: 0 | C178: 753 | D178: 37866 | E178: 418 | F178: 1316 | G178: 115 | H178: 3917 | I178: 12 | J178: 0.01988591348 | K178: 1 | L178: 92.64814957 | M178: 0.01743917632 | N178: -0.002446737167 | O178: x | P178: x | Q178: x | R178: x
A179: 37743 | B179: 11540 | C179: 248 | D179: 83292 | E179: 1126 | F179: 2557 | G179: 1015 | H179: 8184 | I179: 23 | J179: 0.002977476829 | K179: 2 | L179: 138.9722244 | M179: 0.001308982563 | N179: -0.001668494265 | O179: x | P179: x | Q179: x | R179: x
A180: 37949 | B180: 16580 | C180: 851 | D180: 181596 | E180: 2579 | F180: 2679 | G180: 1505 | H180: 14807 | I180: 42 | J180: 0.004686226569 | K180: 3 | L180: 277.9444487 | M180: 0.003155661751 | N180: -0.001530564818 | O180: x | P180: x | Q180: x | R180: x
A181: 38535 | B181: 16974 | C181: -9397 | D181: 455447 | E181: 8581 | F181: 12733 | G181: 12143 | H181: 29726 | I181: 111 | J181: -0.02063247754 | K181: 4 | L181: 277.9444487 | M181: -0.02124274493 | N181: -0.0006102673828 | O181: x | P181: x | Q181: x | R181: x
A182: 38740 | B182: 14020 | C182: 1112 | D182: 181651 | E182: 3087 | F182: 5750 | G182: 305 | H182: 16308 | I182: 64 | J182: 0.006121628838 | K182: 3 | L182: 277.9444487 | M182: 0.004591527442 | N182: -0.001530101396 | O182: x | P182: x | Q182: x | R182: x
A183: 39327 | B183: 0 | C183: 5054 | D183: 388240 | E183: 2542 | F183: 8483 | G183: 850 | H183: 67455 | I183: 88 | J183: 0.013017721 | K183: 4 | L183: 185.2962991 | M183: 0.01254044844 | N183: -0.0004772725611 | O183: x | P183: x | Q183: x | R183: x
A184: 39756 | B184: 36420 | C184: 3321 | D184: 458537 | E184: 5957 | F184: 13653 | G184: 2121 | H184: 36335 | I184: 120 | J184: 0.007242599834 | K184: 4 | L184: 277.9444487 | M184: 0.006636444935 | N184: -0.0006061548985 | O184: x | P184: x | Q184: x | R184: x
A185: 40033 | B185: 25620 | C185: 392 | D185: 75849 | E185: 1379 | F185: 3519 | G185: 0 | H185: 5322 | I185: 29 | J185: 0.005168163061 | K185: 2 | L185: 138.9722244 | M185: 0.003335940825 | N185: -0.001832222236 | O185: x | P185: x | Q185: x | R185: x
A186: 40350 | B186: 36540 | C186: 354 | D186: 43679 | E186: 704 | F186: 1149 | G186: 0 | H186: 6702 | I186: 9 | J186: 0.008104581149 | K186: 1 | L186: 138.9722244 | M186: 0.004922909765 | N186: -0.003181671383 | O186: x | P186: x | Q186: x | R186: x
A187: 40707 | B187: 0 | C187: 1109 | D187: 244948 | E187: 2757 | F187: 9351 | G187: 549 | H187: 20442 | I187: 94 | J187: 0.004527491549 | K187: 3 | L187: 185.2962991 | M187: 0.003771019567 | N187: -0.0007564719824 | O187: x | P187: x | Q187: x | R187: x
A188: 40855 | B188: 29100 | C188: 761 | D188: 60023 | E188: 1302 | F188: 1452 | G188: 135 | H188: 5431 | I188: 14 | J188: 0.01267847325 | K188: 2 | L188: 138.9722244 | M188: 0.01036315705 | N188: -0.002315316201 | O188: x | P188: x | Q188: x | R188: x
A189: 41245 | B189: 27500 | C189: 115 | D189: 36140 | E189: 686 | F189: 897 | G189: 170 | H189: 3723 | I189: 9 | J189: 0.003182069729 | K189: 1 | L189: 138.9722244 | M189: -0.0006633155604 | N189: -0.003845385289 | O189: x | P189: x | Q189: x | R189: x
A190: 41553 | B190: 0 | C190: 1004 | D190: 77528 | E190: 883 | F190: 2366 | G190: 50 | H190: 13059 | I190: 26 | J190: 0.01295015994 | K190: 2 | L190: 92.64814957 | M190: 0.0117551317 | N190: -0.001195028242 | O190: x | P190: x | Q190: x | R190: x
A191: 41629 | B191: 0 | C191: 1237 | D191: 156524 | E191: 2800 | F191: 4786 | G191: 1260 | H191: 14384 | I191: 49 | J191: 0.007902941402 | K191: 3 | L191: 185.2962991 | M191: 0.006719121035 | N191: -0.001183820367 | O191: x | P191: x | Q191: x | R191: x
A192: 41647 | B192: 39540 | C192: -32216 | D192: 912354 | E192: 22665 | F192: 24489 | G192: 58415 | H192: 31930 | I192: 135 | J192: -0.03531085522 | K192: 4 | L192: 277.9444487 | M192: -0.03561550062 | N192: -0.0003046453994 | O192: x | P192: x | Q192: x | R192: x
A193: 41759 | B193: 0 | C193: 586 | D193: 41487 | E193: 560 | F193: 831 | G193: 45 | H193: 4453 | I193: 9 | J193: 0.0141249066 | K193: 1 | L193: 92.64814957 | M193: 0.01189172151 | N193: -0.002233185084 | O193: x | P193: x | Q193: x | R193: x
A194: 41825 | B194: 13644 | C194: 1712 | D194: 140667 | E194: 796 | F194: 3510 | G194: 430 | H194: 16184 | I194: 35 | J194: =C194/D194 -> 0.01217058727 | K194: =IF(D194/1000<INDEX(sizeV,1),1,IF(D194/1000<INDEX(sizeV,2),2,IF(D194/1000<INDEX(sizeV,3),3,IF(D194/1000<INDEX(sizeV,4),4,IF(D194/1000<INDEX(sizeV,5),5,6))))) -> 3 | L194: =IF(B194=0,salRural*T$2,salUrban*T$2)*INDEX(nHires,K194) -> 277.9444487 | M194: =(C194-L194)/D194 -> 0.01019468355 | N194: =M194-J194 -> -0.001975903721 | O194: x | P194: x | Q194: x | R194: x
A195: 41937 | B195: 0 | C195: 282 | D195: 54144 | E195: 643 | F195: 1363 | G195: 157 | H195: 5319 | I195: 17 | J195: 0.005208333333 | K195: 2 | L195: 92.64814957 | M195: 0.003497189909 | N195: -0.001711143424 | O195: x | P195: x | Q195: x | R195: x
A196: 41955 | B196: 0 | C196: 240 | D196: 30965 | E196: 424 | F196: 975 | G196: 0 | H196: 3432 | I196: 9 | J196: 0.007750686259 | K196: 1 | L196: 92.64814957 | M196: 0.004758658176 | N196: -0.002992028082 | O196: x | P196: x | Q196: x | R196: x
A197: 42037 | B197: 0 | C197: 69 | D197: 58030 | E197: 789 | F197: 2577 | G197: 337 | H197: 8120 | I197: 34 | J197: 0.001189040152 | K197: 2 | L197: 92.64814957 | M197: -0.0004075159326 | N197: -0.001596556084 | O197: x | P197: x | Q197: x | R197: x
A198: 42055 | B198: 0 | C198: 175 | D198: 58089 | E198: 753 | F198: 2837 | G198: 0 | H198: 6835 | I198: 30 | J198: 0.003012618568 | K198: 2 | L198: 92.64814957 | M198: 0.001417684078 | N198: -0.00159493449 | O198: x | P198: x | Q198: x | R198: x
A199: 42354 | B199: 0 | C199: 1979 | D199: 107159 | E199: 1125 | F199: 3135 | G199: 67 | H199: 15260 | I199: 31 | J199: 0.01846788417 | K199: 3 | L199: 185.2962991 | M199: 0.01673871258 | N199: -0.001729171597 | O199: x | P199: x | Q199: x | R199: x
A200: 42448 | B200: 0 | C200: 6506 | D200: 633689 | E200: 12992 | F200: 14418 | G200: 3748 | H200: 69625 | I200: 145 | J200: 0.01026686592 | K200: 4 | L200: 185.2962991 | M200: 0.00997445703 | N200: -0.0002924088932 | O200: x | P200: x | Q200: x | R200: x
... 4300 more rows

Sheet 2008 data (hidden)
A1: id.rssd | B1: msa.cd | C1: nt.inc | D1: assets | E1: int.exp | F1: nonint.exp | G1: prov.exp | H1: equity | I1: fte | J1: roa | K1: asset.cohort | L1: addl reg exp | M1: new.roa | N1: delta | O1: newly unprof | P1: roe | Q1: new.roe | R1: delta | T1: 2008
A2: 37 | B2: 0 | C2: 708 | D2: 82383 | E2: 2139 | F2: 2317 | G2: 225 | H2: 16552 | I2: 23 | J2: =C2/D2 -> 0.008594006045 | K2: =IF(D2/1000<INDEX(sizeV,1),1,IF(D2/1000<INDEX(sizeV,2),2,IF(D2/1000<INDEX(sizeV,3),3,IF(D2/1000<INDEX(sizeV,4),4,IF(D2/1000<INDEX(sizeV,5),5,6))))) -> 2 | L2: =IF(B2=0,salRural*T$2,salUrban*T$2)*INDEX(nHires,K2) -> 90.11227909 | M2: =(C2-L2)/D2 -> 0.007500184758 | N2: =M2-J2 -> -0.001093821287 | O2: x | P2: x | Q2: x | R2: x | T2: =VLOOKUP(T1,cpiAdj,2,FALSE) -> 0.9011227909 | W2: Asset | AC2: Change in ROA | AM2: Number
A3: 242 | B3: 0 | C3: 485 | D3: 32560 | E3: 656 | F3: 902 | G3: 0 | H3: 4011 | I3: 13 | J3: 0.0148955774 | K3: 1 | L3: 90.11227909 | M3: 0.01212800126 | N3: -0.002767576139 | O3: x | P3: x | Q3: x | R3: x | V3: Size | W3: Size Max | X3: Addl | Y3: # of | AA3: Median | AB3: x | AC3: 25th pctile | AD3: 50th pctile | AE3: 75th pctile | AF3: Avg | AG3: Original | AH3: Newly | AJ3: Original | AK3: After Change | AM3: of firms
A4: 354 | B4: 0 | C4: 15 | D4: 8364 | E4: 142 | F4: 306 | G4: 0 | H4: 1006 | I4: 4 | J4: 0.001793400287 | K4: 1 | L4: 90.11227909 | M4: -0.008980425524 | N4: -0.01077382581 | O4: x | P4: x | Q4: x | R4: x | V4: Quintile | W4: ($MM) | X4: Hires | Y4: Banks | Z4: % | AA4: FTEs | AB4: x | AC4: (bps) | AD4: (bps) | AE4: (bps) | AF4: (bps) | AG4: Unprof | AH4: Unprof | AI4: Difference | AJ4: ROA < 40 | AK4: ROA < 40 | AL4: Difference | AM4: in the cohort
A5: 457 | B5: 0 | C5: 480 | D5: 32318 | E5: 754 | F5: 884 | G5: 225 | H5: 3141 | I5: 9 | J5: 0.01485240423 | K5: 1 | L5: 90.11227909 | M5: 0.01206410424 | N5: -0.00278829999 | O5: x | P5: x | Q5: x | R5: x | U5: < $50M | V5: 1 | W5: x | X5: x | Y5: x | Z5: x | AA5: x | AB5: x | AC5: =PERCENTILE(IF($K$2:$K$7000=$V5,$N$2:$N$7000),0.25)*10000 -> -46.15936749 | AD5: =PERCENTILE(IF($K$2:$K$7000=$V5,$N$2:$N$7000),0.5)*10000 -> -32.2261267 | AE5: =PERCENTILE(IF($K$2:$K$7000=$V5,$N$2:$N$7000),0.75)*10000 -> -24.62269386 | AF5: =AVERAGE(IF($K$2:$K$7000=$V5,$N$2:$N$7000))*10000 -> -60.21795328 | AG5: =SUM(IF($K$2:$K$7000=$V5,IF($J$2:$J$7000<0,1,0))) -> 164 | AH5: =SUM(IF($K$2:$K$7000=$V5,IF($M$2:$M$7000<0,1,0))) -> 340 | AI5: =IF(INDEX(sizeV,V5)>0,AH5-AG5) -> 176 | AJ5: =SUM(IF($K$2:$K$7000=$V5,IF($J$2:$J$7000<0.004,1,0))) -> 318 | AK5: =SUM(IF($K$2:$K$7000=$V5,IF($M$2:$M$7000<0.004,1,0))) -> 556 | AL5: =IF(INDEX(sizeV,V5)>0,AK5-AJ5) -> 238 | AM5: =COUNTIF($K$2:$K$7000,$V5) -> 1106
A6: 505 | B6: 10580 | C6: 2486 | D6: 356323 | E6: 6179 | F6: 10375 | G6: 1270 | H6: 24540 | I6: 109 | J6: 0.006976815979 | K6: 4 | L6: 270.3368373 | M6: 0.006218131198 | N6: -0.0007586847811 | O6: x | P6: x | Q6: x | R6: x | U6: $50M - $100M | V6: 2 | W6: x | X6: x | Y6: x | Z6: x | AA6: x | AB6: x | AC6: =PERCENTILE(IF($K$2:$K$7000=$V6,$N$2:$N$7000),0.25)*10000 -> -17.13682518 | AD6: =PERCENTILE(IF($K$2:$K$7000=$V6,$N$2:$N$7000),0.5)*10000 -> -14.65740854 | AE6: =PERCENTILE(IF($K$2:$K$7000=$V6,$N$2:$N$7000),0.75)*10000 -> -11.61674954 | AF6: =AVERAGE(IF($K$2:$K$7000=$V6,$N$2:$N$7000))*10000 -> -15.12498021 | AG6: =SUM(IF($K$2:$K$7000=$V6,IF($J$2:$J$7000<0,1,0))) -> 180 | AH6: =SUM(IF($K$2:$K$7000=$V6,IF($M$2:$M$7000<0,1,0))) -> 237 | AI6: =IF(INDEX(sizeV,V6)>0,AH6-AG6) -> 57 | AJ6: =SUM(IF($K$2:$K$7000=$V6,IF($J$2:$J$7000<0.004,1,0))) -> 338 | AK6: =SUM(IF($K$2:$K$7000=$V6,IF($M$2:$M$7000<0.004,1,0))) -> 422 | AL6: =IF(INDEX(sizeV,V6)>0,AK6-AJ6) -> 84 | AM6: =COUNTIF($K$2:$K$7000,$V6) -> 1302
A7: 1155 | B7: 0 | C7: 3632 | D7: 194317 | E7: 4354 | F7: 5216 | G7: 420 | H7: 16150 | I7: 53 | J7: 0.01869110783 | K7: 3 | L7: 180.2245582 | M7: 0.01776363078 | N7: -0.0009274770513 | O7: x | P7: x | Q7: x | R7: x | U7: $100M - $250M | V7: 3 | W7: x | X7: x | Y7: x | Z7: x | AA7: x | AB7: x | AC7: =PERCENTILE(IF($K$2:$K$7000=$V7,$N$2:$N$7000),0.25)*10000 -> -17.39596899 | AD7: =PERCENTILE(IF($K$2:$K$7000=$V7,$N$2:$N$7000),0.5)*10000 -> -14.19247462 | AE7: =PERCENTILE(IF($K$2:$K$7000=$V7,$N$2:$N$7000),0.75)*10000 -> -11.29471887 | AF7: =AVERAGE(IF($K$2:$K$7000=$V7,$N$2:$N$7000))*10000 -> -14.72174394 | AG7: =SUM(IF($K$2:$K$7000=$V7,IF($J$2:$J$7000<0,1,0))) -> 308 | AH7: =SUM(IF($K$2:$K$7000=$V7,IF($M$2:$M$7000<0,1,0))) -> 404 | AI7: =IF(INDEX(sizeV,V7)>0,AH7-AG7) -> 96 | AJ7: =SUM(IF($K$2:$K$7000=$V7,IF($J$2:$J$7000<0.004,1,0))) -> 578 | AK7: =SUM(IF($K$2:$K$7000=$V7,IF($M$2:$M$7000<0.004,1,0))) -> 702 | AL7: =IF(INDEX(sizeV,V7)>0,AK7-AJ7) -> 124 | AM7: =COUNTIF($K$2:$K$7000,$V7) -> 1969
A8: 1351 | B8: 0 | C8: 2975 | D8: 131522 | E8: 3837 | F8: 2094 | G8: 90 | H8: 18067 | I8: 27 | J8: 0.02261978985 | K8: 3 | L8: 180.2245582 | M8: 0.02124949014 | N8: -0.001370299708 | O8: x | P8: x | Q8: x | R8: x | U8: $250M - $500M | V8: 4 | W8: x | X8: x | Y8: x | Z8: x | AA8: x | AB8: x | AC8: =PERCENTILE(IF($K$2:$K$7000=$V8,$N$2:$N$7000),0.25)*10000 -> -7.173785975 | AD8: =PERCENTILE(IF($K$2:$K$7000=$V8,$N$2:$N$7000),0.5)*10000 -> -5.538179907 | AE8: =PERCENTILE(IF($K$2:$K$7000=$V8,$N$2:$N$7000),0.75)*10000 -> -3.966045107 | AF8: =AVERAGE(IF($K$2:$K$7000=$V8,$N$2:$N$7000))*10000 -> -5.784566249 | AG8: =SUM(IF($K$2:$K$7000=$V8,IF($J$2:$J$7000<0,1,0))) -> 312 | AH8: =SUM(IF($K$2:$K$7000=$V8,IF($M$2:$M$7000<0,1,0))) -> 337 | AI8: =IF(INDEX(sizeV,V8)>0,AH8-AG8) -> 25 | AJ8: =SUM(IF($K$2:$K$7000=$V8,IF($J$2:$J$7000<0.004,1,0))) -> 537 | AK8: =SUM(IF($K$2:$K$7000=$V8,IF($M$2:$M$7000<0.004,1,0))) -> 586 | AL8: =IF(INDEX(sizeV,V8)>0,AK8-AJ8) -> 49 | AM8: =COUNTIF($K$2:$K$7000,$V8) -> 1515
A9: 1454 | B9: 16220 | C9: 8210 | D9: 457346 | E9: 4871 | F9: 14250 | G9: 563 | H9: 39228 | I9: 148 | J9: 0.01795139785 | K9: 4 | L9: 270.3368373 | M9: 0.01736029869 | N9: -0.0005910991618 | O9: x | P9: x | Q9: x | R9: x | U9: $500M - $1B | V9: 5 | W9: x | X9: x | Y9: x | Z9: x | AA9: x | AB9: x | AC9: =PERCENTILE(IF($K$2:$K$7000=$V9,$N$2:$N$7000),0.25)*10000 ->  | AD9: =PERCENTILE(IF($K$2:$K$7000=$V9,$N$2:$N$7000),0.5)*10000 ->  | AE9: =PERCENTILE(IF($K$2:$K$7000=$V9,$N$2:$N$7000),0.75)*10000 ->  | AF9: =AVERAGE(IF($K$2:$K$7000=$V9,$N$2:$N$7000))*10000 ->  | AG9: =SUM(IF($K$2:$K$7000=$V9,IF($J$2:$J$7000<0,1,0))) -> 0 | AH9: =SUM(IF($K$2:$K$7000=$V9,IF($M$2:$M$7000<0,1,0))) -> 0 | AI9: =IF(INDEX(sizeV,V9)>0,AH9-AG9) -> 0 | AJ9: =SUM(IF($K$2:$K$7000=$V9,IF($J$2:$J$7000<0.004,1,0))) -> 0 | AK9: =SUM(IF($K$2:$K$7000=$V9,IF($M$2:$M$7000<0.004,1,0))) -> 0 | AL9: =IF(INDEX(sizeV,V9)>0,AK9-AJ9) -> 0 | AM9: =COUNTIF($K$2:$K$7000,$V9) -> 0
A10: 1557 | B10: 0 | C10: 496 | D10: 41927 | E10: 716 | F10: 915 | G10: 0 | H10: 5008 | I10: 11 | J10: 0.01183008563 | K10: 1 | L10: 90.11227909 | M10: 0.009680819541 | N10: -0.002149266084 | O10: x | P10: x | Q10: x | R10: x
A11: 1632 | B11: 0 | C11: 2371 | D11: 781624 | E11: 20343 | F11: 15664 | G11: 8207 | H11: 67285 | I11: 130 | J11: 0.003033427837 | K11: 4 | L11: 180.2245582 | M11: 0.002802850785 | N11: -0.0002305770526 | O11: x | P11: x | Q11: x | R11: x
A12: 1669 | B12: 0 | C12: 2872 | D12: 238495 | E12: 3912 | F12: 4917 | G12: 348 | H12: 41340 | I12: 61 | J12: 0.01204218118 | K12: 3 | L12: 180.2245582 | M12: 0.01128650681 | N12: -0.0007556743671 | O12: x | P12: x | Q12: x | R12: x | W12: Percentiles of ROA (before)
A13: 1829 | B13: 38300 | C13: 3031 | D13: 374805 | E13: 8085 | F13: 10182 | G13: 270 | H13: 39119 | I13: 91 | J13: 0.00808687184 | K13: 4 | L13: 270.3368373 | M13: 0.007365598545 | N13: -0.0007212732948 | O13: x | P13: x | Q13: x | R13: x | V13: Cohort | W13: 25 | X13: 50 | Y13: 75
A14: 1856 | B14: 0 | C14: 4620 | D14: 241475 | E14: 7469 | F14: 1424 | G14: 12 | H14: 18928 | I14: 12 | J14: 0.01913241536 | K14: 3 | L14: 180.2245582 | M14: 0.01838606664 | N14: -0.0007463487242 | O14: x | P14: x | Q14: x | R14: x | V14: 1 | W14: =PERCENTILE(IF($K$2:$K$7000=$V14,$J$2:$J$7000),W$13/100) -> 0.003262675529 | X14: =PERCENTILE(IF($K$2:$K$7000=$V14,$J$2:$J$7000),X$13/100) -> 0.007515089204 | Y14: =PERCENTILE(IF($K$2:$K$7000=$V14,$J$2:$J$7000),Y$13/100) -> 0.01157135428
A15: 2040 | B15: 0 | C15: 328 | D15: 205119 | E15: 5278 | F15: 4586 | G15: 4010 | H15: 18074 | I15: 46 | J15: 0.001599071758 | K15: 3 | L15: 180.2245582 | M15: 0.0007204376085 | N15: -0.0008786341498 | O15: x | P15: x | Q15: x | R15: x | V15: 2 | W15: =PERCENTILE(IF($K$2:$K$7000=$V15,$J$2:$J$7000),W$13/100) -> 0.003673069489 | X15: =PERCENTILE(IF($K$2:$K$7000=$V15,$J$2:$J$7000),X$13/100) -> 0.008785531296 | Y15: =PERCENTILE(IF($K$2:$K$7000=$V15,$J$2:$J$7000),Y$13/100) -> 0.01308188718
A16: 2161 | B16: 0 | C16: 1352 | D16: 110035 | E16: 1979 | F16: 3322 | G16: 24 | H16: 11715 | I16: 32 | J16: 0.01228699959 | K16: 3 | L16: 180.2245582 | M16: 0.01064911566 | N16: -0.001637883929 | O16: x | P16: x | Q16: x | R16: x | V16: 3 | W16: =PERCENTILE(IF($K$2:$K$7000=$V16,$J$2:$J$7000),W$13/100) -> 0.002916000376 | X16: =PERCENTILE(IF($K$2:$K$7000=$V16,$J$2:$J$7000),X$13/100) -> 0.007833858397 | Y16: =PERCENTILE(IF($K$2:$K$7000=$V16,$J$2:$J$7000),Y$13/100) -> 0.01205415674
A17: 2451 | B17: 0 | C17: -1597 | D17: 41163 | E17: 1125 | F17: 2287 | G17: 1897 | H17: 3296 | I17: 20 | J17: -0.03879697787 | K17: 1 | L17: 90.11227909 | M17: -0.0409861351 | N17: -0.002189157231 | O17: x | P17: x | Q17: x | R17: x | V17: 4 | W17: =PERCENTILE(IF($K$2:$K$7000=$V17,$J$2:$J$7000),W$13/100) -> 0.001640029143 | X17: =PERCENTILE(IF($K$2:$K$7000=$V17,$J$2:$J$7000),X$13/100) -> 0.006838409349 | Y17: =PERCENTILE(IF($K$2:$K$7000=$V17,$J$2:$J$7000),Y$13/100) -> 0.01094274733
A18: 2554 | B18: 0 | C18: 144 | D18: 10202 | E18: 149 | F18: 216 | G18: 20 | H18: 1103 | I18: 4 | J18: 0.01411487944 | K18: 1 | L18: 90.11227909 | M18: 0.005282074193 | N18: -0.008832805243 | O18: x | P18: x | Q18: x | R18: x | V18: 5 | W18: =PERCENTILE(IF($K$2:$K$7000=$V18,$J$2:$J$7000),W$13/100) ->  | X18: =PERCENTILE(IF($K$2:$K$7000=$V18,$J$2:$J$7000),X$13/100) ->  | Y18: =PERCENTILE(IF($K$2:$K$7000=$V18,$J$2:$J$7000),Y$13/100) -> 
A19: 2732 | B19: 16974 | C19: 6583 | D19: 512866 | E19: 9277 | F19: 10949 | G19: 300 | H19: 71631 | I19: 100 | J19: 0.01283571147 | K19: 4 | L19: 270.3368373 | M19: 0.01230860139 | N19: -0.000527110078 | O19: x | P19: x | Q19: x | R19: x
A20: 2750 | B20: 0 | C20: 254 | D20: 54793 | E20: 1489 | F20: 1216 | G20: 153 | H20: 5145 | I20: 11 | J20: 0.004635628639 | K20: 2 | L20: 90.11227909 | M20: 0.002991033908 | N20: -0.001644594731 | O20: x | P20: x | Q20: x | R20: x
A21: 2938 | B21: 10500 | C21: 1200 | D21: 429855 | E21: 9686 | F21: 9089 | G21: 4759 | H21: 32005 | I21: 77 | J21: 0.002791639041 | K21: 4 | L21: 270.3368373 | M21: 0.00216273665 | N21: -0.0006289023909 | O21: x | P21: x | Q21: x | R21: x | W21: Percentiles of ROA (after)
A22: 3252 | B22: 0 | C22: 3517 | D22: 142710 | E22: 2112 | F22: 2911 | G22: 330 | H22: 15928 | I22: 35 | J22: 0.02464438372 | K22: 3 | L22: 180.2245582 | M22: 0.02338151105 | N22: -0.001262872666 | O22: x | P22: x | Q22: x | R22: x | V22: Cohort | W22: 25 | X22: 50 | Y22: 75
A23: 3458 | B23: 0 | C23: 96 | D23: 30598 | E23: 749 | F23: 845 | G23: 30 | H23: 3098 | I23: 10 | J23: 0.003137459965 | K23: 1 | L23: 90.11227909 | M23: 0.0001924217568 | N23: -0.002945038208 | O23: x | P23: x | Q23: x | R23: x | V23: 1 | W23: =PERCENTILE(IF($K$2:$K$7000=$V23,$M$2:$M$7000),W$13/100) -> -0.001535888155 | X23: =PERCENTILE(IF($K$2:$K$7000=$V23,$M$2:$M$7000),X$13/100) -> 0.003975258172 | Y23: =PERCENTILE(IF($K$2:$K$7000=$V23,$M$2:$M$7000),Y$13/100) -> 0.008337168775
A24: 3720 | B24: 0 | C24: 2119 | D24: 177912 | E24: 3129 | F24: 5782 | G24: 196 | H24: 24442 | I24: 59 | J24: 0.01191038266 | K24: 3 | L24: 180.2245582 | M24: 0.01089738434 | N24: -0.001012998326 | O24: x | P24: x | Q24: x | R24: x | V24: 2 | W24: =PERCENTILE(IF($K$2:$K$7000=$V24,$M$2:$M$7000),W$13/100) -> 0.002096789562 | X24: =PERCENTILE(IF($K$2:$K$7000=$V24,$M$2:$M$7000),X$13/100) -> 0.007304516104 | Y24: =PERCENTILE(IF($K$2:$K$7000=$V24,$M$2:$M$7000),Y$13/100) -> 0.01162257318
A25: 3953 | B25: 36420 | C25: 2732 | D25: 127365 | E25: 2062 | F25: 4386 | G25: 1025 | H25: 9359 | I25: 40 | J25: 0.02145016292 | K25: 3 | L25: 270.3368373 | M25: 0.01932762661 | N25: -0.002122536311 | O25: x | P25: x | Q25: x | R25: x | V25: 3 | W25: =PERCENTILE(IF($K$2:$K$7000=$V25,$M$2:$M$7000),W$13/100) -> 0.001434734056 | X25: =PERCENTILE(IF($K$2:$K$7000=$V25,$M$2:$M$7000),X$13/100) -> 0.00639622805 | Y25: =PERCENTILE(IF($K$2:$K$7000=$V25,$M$2:$M$7000),Y$13/100) -> 0.0107012025
A26: 4138 | B26: 0 | C26: -2677 | D26: 200047 | E26: 5063 | F26: 9290 | G26: 4419 | H26: 14759 | I26: 75 | J26: -0.01338185526 | K26: 3 | L26: 180.2245582 | M26: -0.01428276634 | N26: -0.0009009110768 | O26: x | P26: x | Q26: x | R26: x | V26: 4 | W26: =PERCENTILE(IF($K$2:$K$7000=$V26,$M$2:$M$7000),W$13/100) -> 0.001025664897 | X26: =PERCENTILE(IF($K$2:$K$7000=$V26,$M$2:$M$7000),X$13/100) -> 0.006213375732 | Y26: =PERCENTILE(IF($K$2:$K$7000=$V26,$M$2:$M$7000),Y$13/100) -> 0.01040617008
A27: 4156 | B27: 0 | C27: 2746 | D27: 202585 | E27: 3948 | F27: 5285 | G27: 153 | H27: 18465 | I27: 59 | J27: 0.01355480416 | K27: 3 | L27: 180.2245582 | M27: 0.01266517976 | N27: -0.0008896243956 | O27: x | P27: x | Q27: x | R27: x | V27: 5 | W27: =PERCENTILE(IF($K$2:$K$7000=$V27,$M$2:$M$7000),W$13/100) ->  | X27: =PERCENTILE(IF($K$2:$K$7000=$V27,$M$2:$M$7000),X$13/100) ->  | Y27: =PERCENTILE(IF($K$2:$K$7000=$V27,$M$2:$M$7000),Y$13/100) -> 
A28: 4231 | B28: 0 | C28: 1079 | D28: 124859 | E28: 3636 | F28: 2910 | G28: 500 | H28: 14232 | I28: 34 | J28: 0.008641747892 | K28: 3 | L28: 180.2245582 | M28: 0.007198323243 | N28: -0.001443424648 | O28: x | P28: x | Q28: x | R28: x
A29: 4437 | B29: 0 | C29: 2762 | D29: 234645 | E29: 5308 | F29: 5773 | G29: 400 | H29: 23303 | I29: 63 | J29: 0.01177097317 | K29: 3 | L29: 180.2245582 | M29: 0.01100289988 | N29: -0.0007680732944 | O29: x | P29: x | Q29: x | R29: x
